Workbook

Sheet Notes
A1: BuyAndSell.xlsm; Traders Tip spreadsheet created for the July 2021 Issue
A2: Coded beginning 2021-April-09 by Ronald McAllister (rpmac_xltt@sprynet.com)
A4: This Workbook demonstrates an EXCEL version of the ideas presented
A5: by Markos Katsanos in an article titled "Buy & Hold, Or Buy & Sell?r"
A6: which originally appeared in the July 2021 issue of
A7: "Technical Analysis of Stocks and Commodities" magazine.
A9: * * * * * * * * * * * * * * * *
A11: Development Notes for: July 2021
A12: Two rounds of ATR calculations with different durations and three rounds of AStochK computations with three different parameter sets
A13: were going to take up a lot of repetative looking formula columns on the ComputationsAndCharts Tab.
A15: So I used VBA to create user defined functions to calculate ATR and AStochK (see vba module "IndicatorFunctionLibrary").
A17: To use either of these UDF's properly, they must be "Array Entered".in a column.
A19: In the case of AStochK, I needed values for 3 separate parameter sets so I have three separate array entered columns.
A21: Overall spreadsheet is SLOW.
A22: At least part of this is charting engine overhead due to plotting 1250 bars.
A23: The remainder is calculation time
A25: Also of note.The article mentions experimenting with going short.
A26: The simplistic short strategy in the sidebar code equated initiating a short with closing a long and covering a short with initiatig a long position.
A27: Probably need a better criteria for the shorting aand covering decisions.
A28: However, this simple short strategy seems to work ok with SPY. But it does not seem to work so well with other target symbols.
A30: May 17 2021 - for July 2020 T-Tip: Found a Weekly data retrieval Anomaly:
A31: When retrieving weekly data on a Monday, Yahoo Finance returned two bars for the Monday date.
A32: One bar with null price and volume values.
A33: One bar with prices and volume values consistent with the mid day retrieval time.
A34: Perhaps a "partial week" problem.
A35: Workaround: Added code to look for and remove a nulls / zeros bar for the most recent date
A38: New for May 2021
A39: Upgraded the data download logic to do a better job of catching the common data download errors and provide a more graceful resolution.
A40: This includes better user notification of the nature of the error and some user control over how the error should be handled.
A41: User notification comes in the form of a MSGbox display that includes the (sometimes cryptic) description of the error and offers the user three options.
A43: Abort - If I could customize the title, I would rename this button to "Debug"
A44: This choice places you in Debug mode at the failing VBA statement.
A45: Unless you are feeling good about your VBA (and Network) debugging skills, this is probably not for you.
A47: Retry
A48: Lets the code retry the failed download request.
A49: This is a reasonable option if the download request timed out (similar to video buffering) or your network connection has dropped out..
A50: Probably a good idea to make sure your internet connection is alive and well before you select Retry.
A52: Ignore
A53: Lets the code fall thru to a (hopefully) graceful error completion with the error indicated at the top of the InputPriceData tab
A55: New for August 2020
A56: Restructured my Symbol-Not-Found detection and now stop further processing in the not found case
A58: New with the May 2020 version of my T-Tips template: VBA to implement a "Perpetual" U.S. Markets Closed Holiday Calendar.
A60: Why we need one: The Yahoo Finance recently has begun having occasional filtration problems where bars for U.S. Market Closed Holidays
A61: make their way onto the Historical Data web page and into the Historical Data download.
A63: While testing this May 2020 spreadsheet with different symbols, I found that I sometimes had bars with the text "null" in the price fields.
A64: My code always translates the "null" text price values to zeros.
A65: The resulting zeros cause real problems with indicator computations and the amount of blank space below price candles on the price chart.
A67: "null" price bars can be valid for very lightly traded penny sheet symbols which may not trade every day the markets are open.
A68: But is definitely not normal for symbols on the big boards.
A70: A closer look determined that these "bars" were for holiday dates when the US markets are normally closed.
A71: I found it interesting that some times the next download for the same symbol would not contain any of these "holiday" bars. Weird!
A73: My approach here was to write code to determine if the DATE on a null price values bar falls on one of the 9 market closed U.S. Holidays.
A74: If the bar date corresponds to one of these market closed holidays, I drop the bar before it reaches the InputPriceData tab.
A75: If the date is not a holiday, I let the bar through with the resulting zero values.
A77: No messy tables to update over the years as there are good solid rules that can be used in VBA or any other programming language to determine
A78: the dates for U.S. Market Closed Holidays for any given calendar year.
A80: This workbook contains and uses VBA macros and may take advantage of user defined VBA Class structures.
A81: Input Data:
A82: The data in this workbook is sorted date-descending (most recent date at the top). All cell formulas and
A83: VBA routines are built assuming this date sequence.
A85: ERROR 9 (already fixed in this spreadsheet)
A86: On or about Jan 29, 2020 Yahoo Finance changed the format of the split factor expression used their historical data downloads.
A87: The Split expression went from using "/" as in "New Share Number/Old Share Number",
A88: to using ":" as in "New Share Number:Old Share Number".
A89: This caused the then current version of my VBA code to fail with a "Runtime Error '9': subscript out of range".
A91: Fix for this ERROR 9
A92: For T-Tip spreadsheets from September 2018 up to present:
A93: Selecting the Debug option takes one into the VBA at the code line which causes the failure:
A94: CellArray(C_A_RowNdx, C_A_ColNdx + 1) = SplitFactors(1)
A95: Two lines above the failing VBA line is a line that reads:
A96: SplitFactors = Split(CsvColumns(CsvColNdx), "/")
A97: Change the / to a :
A98: The corrected line should now read
A99: SplitFactors = Split(CsvColumns(CsvColNdx), ":")
A101: If you are fixing several spreadsheets and do not want to use the failure to find the fix location,
A102: you can use VBA’s FIND dialog (Ctrl F) to look for the substring
A103: SplitFactors =
A104: Do include one space and the equal sign in your FIND string
A105: Select the "Current Project" option
A106: There should only be one instance.
A108: T-Tip spreadsheets prior to the September 2018 spreadsheet do not hard fail.
A110: They just get weird results in the split columns of the Input Price Data tab (soft fail).
A111: These older spreadsheets used different data retrieval and formatting logic.
A113: To fix these older spreadsheets:
A114: In the VBA editor, use find (CTRL-F).
A115: Select the "Current Project" option, and search for the following:
A116: OtherChar:="/"
A117: You are looking for a hit in a line reading:
A118: Other:=True, OtherChar:="/", _
A119: This line is part of a multiline block of code starting with a line that reads:
A120: SplitRange.Offset(0, 1).Resize(SpRows, 1).TextToColumns
A121: Change the / to a : so that the line reads
A122: Other:=True, OtherChar:=":", _
A125: 2019-04-04 Finally came up with a mechanism to align the left location and overall length of the cursor scroll bar so that the left most and right most
A126: scroll bar thumb positions visually align reasonably well with the left and right ends of the price chart horizontal axis.
A127: Makes it a little easier to visually align the Thumb and thus the cursor with points of interest on the charts.
A129: Older:
B130: My sincere apologies to our Macintosh based readers: Neither MSXML nor WinHttpRequest are supported in your environment. So as it stands this version of the spreadsheet will not work for you.
B131: See "Why this approach does not work for Macintosh" below.
B132: I am investigating cURL as a non-Querytable based approach for the Macintosh environment.
A134: The new Yahoo Finance history download interface has changed rather radically. The biggest hurdle being a pseudo-security requirement of adding a
B135: crumb character string to any URL requesting any type of history download. That crumb must match up (by way of some sort of hash algorithm) with
B136: the Yahoo Finance cookie that must also be sent with any request to the new Yahoo History down load interface.
B138: A crumb value is returned, buried in the HTML for any of what I call the "entry level" Yahoo Finance web pages (no crumb security requirement for entry level pages).
B139: A crumb may come with other Yahoo Finance pages. A crumb may even accompany some of the secured pages as well. I have not checked.
B141: Entry level pages are the top level pages of the various Yahoo Finance dialogs and include: Quote Lookup, Stock Summary Quote, and any of the pages
B142: with links in the horizontal row with the "Summary" link on the quote summary page such as Options, Historical Data, and the rest.
B144: To date I have found no way to get at this crumb value using any native EXCEL capabilities.
B146: So this crumb requirement effectively shuts out any solution that attempts to exclusively use built-in facilities of EXCEL, which is to say a purely Querytables solution.
B148: The approach built for this Traders Tip spreadsheet uses WINHTTP calls to Load the InputPriceData worksheet.
B150: First I call to get the HTML text for the Yahoo Summary Quote page using the requested symbol. From this HTML text I extract the full company name,
B151: the market it trades, the market status and time stamp, and finally the associated crumb string. There is a bunch of other useful bits buried in this HTML
B152: text that do not necessarily appear on the web page your browser presents. Perhaps some day I will go after and build a worksheet with these other bits.
B154: Next I add the freshly extracted crumb string to the URLs I use in three separate WINHTTP calls to retrieve Price history, Split history, and Dividend history respectively.
B156: From there VBA code proceeds as in the past to fill in the cell formulas and formatting that make the "prettied up" InputPriceData sheet.
A158: Why this approach works for Windows:
B159: WINHTTP maintains a temporary computer memory cache where cookies are maintained for as long as the WINHTTP object is instantiated.
B160: WINHTTP updates this cache any time a "set cookie" header accompanies a web response.
B161: Subsequent WINHTTP calls automatically search this cache for cookies and add any "appropriate" cookies to the headers
B162: of any web requests that get sent out.
B163: This cookie handling automation means that even if the response to our WINHTTP call for the Summary web page includes a new version of
B164: the Yahoo Finance cookie, the imbedded Crumb value will always match the cookie newly installed in the cache!
A167: Why this approach does not work for Macintosh:
B168: For what it is worth, the Macintosh version of the MS Office suite of products do in fact maintain a special, shared amongst themselves only, cookie cache.
B169: They automate cookie handling into and from this cache JUST for the Office products and any Querytable activity they might originate.
B171: This cache is not tied to, nor shared with, any browser that might be installed on the MAC. And I have not found anything with HTTP capabilities similar to
B172: MSXML that can work with that Office product cookie cache.
B174: When working in the MAC EXCEL environment, I have not yet become conversant with a Mac based WINHTTP like capability.
B175: So l currently have no mechanism to replicate the non-Querytable data retrieval process I am using in Windows environments.
B176: A software product called CURL has been suggested as providing this capability in the MAC environment.
B177: A version of CURL is available for the Windows So some day I may explore its capabilities and how to access those capabilities from VBA.
A179: Calculation and Chart Worksheet Usage Comments:
C180: In General, Items in Bolded BLUE are items you may freely change to play what-if games.
C181: Be sure to have a backup copy of the spreadsheet before you alter anything else.
A183: Features carried forward from the June 2016 version of my T-Tips Template
A184: Added a pair of buttons near cell F12 that will allow the user to step the charting window forward or backward one bar for each click.
A185: I find this to be a good way to test my understanding of the author's ideas as I step through the evolution of the price behavior and the indicators.
B187: First: In the "Help! I would like to plot data" area.
B188: Added button to resolve #NA problems by locating the bar in the input data with a slightly more recent date than what the user actually requested.
B189: I find this particularly useful when I have a general idea of where I want to be date wise. Now I can pick a set of dates "out of the air".
B190: If either (or both) of my date specifications fall between dates that are available in the price history,
B191: this button will resolve them to the dates of the nearest, slightly more recent input bars.
B192: I can then refine my data interval search as necessary from there.
B193: Really great when working with Weekly or Monthly studies!
C194: 2016Jun11 - added logic to the "I would like to chart.." button to detect #N/A values and terminate
C195: gracefully with a message instead of blowing up in the charting logic.
B197: Second: In the "Price Chart Windowing Controls" area. (A11 and A12)
B198: When retrieving data for a new symbol or when changing from daily to weekly or monthly data, there was the possibility that the
B199: residual settings in A11 and A12 would fall outside of the number bars available on the input data tab after the new data retrieval.
B200: In certain combinations, this could create a serious error in the chart sizing logic and crash the spreadsheet.
B201: I have taken this opportunity to update the validity checking logic used in the chart sizing macros
B202: to adjust these values as necessary so that they fall within the boundaries of the newly retrieved input data.
A203: Features carried forward from the October 2015 Traders Tips Template
B204: Improved automation: changes to any of the following will automatically initiate calculations appropriate to reflect a change.
C205: Changing either of cells A11 (pan) or A12 (zoom) will automatically initiate the same chart sizing macros that the manual
C206: "Set Chart" button uses.

Sheet InputPriceData
A1: SPDR S&P 500 ETF Trust (SPY) -NYSEArca (Weekly)
M2: To retrieve data for symbols traded on non US Exchanges, | II2: 241.79
A3: Request Online Yahoo History for: | F3: Market State == > | G3: As of | H3: 15:52:00 | I3: EDT. Market open. | M3: you will need to append the dot-suffix for the exchange to the symbol.
A4: Symbol | B4: SPY | D4: Valid | I4: =OFFSET(I4,-2,0,1,1) -> 0 | M4: The following links provide a description of how to use the exchange suffix
A5: From | B5: 1950-10-01 | D5: Data | M5: along with a list of suffixes for the major world exchanges. | AD5: Trailing 12 Div return (Cur Close)
A6: To | B6: =NOW() -> 2021-05-17T16:18:32.330 | D6: Types | E6: =VLOOKUP(B7,D7:E10,2,FALSE) -> w | M6: https://help.yahoo.com/kb/finance/SLN2310.html
A7: Data Type | B7: Weekly | D7: Daily | E7: d | M7: And
A8: Crumb | B8: Fsxff5TkCe3 | D8: Weekly | E8: w | M8: https://www.stockmarketeye.com/users-guide/ticker-symbols-and-data-providers/data-providers.html
A9: Available Data | D9: Monthly | E9: m
A10: Bar Count: | B10: 1478 | M10: You may search on “exchange suffixes” for additional discussions | AD10: =OFFSET(AC15,1,0,1,1)/OFFSET(N15,1,0,1,1) -> 0.01339352353
A11: From: | B11: =IF(B10<=0,"",OFFSET(B15,B10,IF(HistReqDataType="v",1,0),1,1)) -> 1993-01-25 | W11: Trailing 12 Month Dividend Returns
A12: To: | B12: =IF(B10<=0,"",IF(HistReqDataType="v",OFFSET(B15,2,1,1,1),OFFSET(B15,1,0,1,1))) -> 2021-05-17 | W12: Raw Close price on Dividend date | X12: Div Year and Month | Y12: Looking for year ago Div Year and Month | Z12: Year ago Div Date we found | AA12: row offset to year ago div Date | AB12: Same month flag | AC12: Trailing 12 Div Total | AD12: Trailing 12 Div return
Q13: Split History | S13: 0 | T13: Running | U13: Dividend History
B14: Raw Data Values | H14: Adjusted | I14: Price Adjust | J14: Vol Adjust | K14: Adjusted Values | P14: Last | Q14: Effective | R14: Shares | T14: Vol Adjust | V14: 114
A15: RelRow | B15: Date | C15: Open | D15: High | E15: Low | F15: Close | G15: Volume | H15: Close | I15: Factor | J15: Factor | K15: Open | L15: High | M15: Low | N15: Close | O15: Volume | P15: Trade | Q15: 44334 | R15: New | S15: Old | T15: 1 | U15: Date | V15: $ / Share
A16: 1 | B16: 2021-05-17 | C16: 415.390015 | D16: 416.390015 | E16: 413.359985 | F16: 415.345001 | G16: 56769259 | H16: 415.345001 | I16: =IF(F16=0,1,H16/F16) -> 1 | J16: =INDEX(OFFSET($T$15,0,0,$S$13+1,1),MATCH(B16,OFFSET($Q$15,0,0,$S$13+1,1),-1)) -> 1 | K16: =ROUND($I16*C16,2) -> 415.39 | L16: =ROUND($I16*D16,2) -> 416.39 | M16: 413.36 | N16: 415.35 | O16: =G16*J16 -> 56769259 | U16: 2021-03-19 | V16: 1.278 | W16: =(INDEX(OFFSET($F$15,1,0,$B$10,1),MATCH(U16,OFFSET($B$15,1,0,$B$10,1),-1))) -> 395.980011 | X16: =YEAR(U16)&RIGHT("0"&MONTH(U16),2) -> 202103 | Y16: =YEAR(U16)-1&RIGHT("0"&MONTH(U16),2) -> 202003 | Z16: =OFFSET(U15,AA16,0,1,1) -> 2020-03-20 | AA16: =MATCH(Y16,OFFSET($X$15,A16,0,$V$14+1-A16,1),-1) -> 5 | AB16: =IF(OR(AND(YEAR(U16)=YEAR(Z16),MONTH(U16)=MONTH(Z16)),MONTH(U16)=MONTH(Z16)),1,0) -> 1 | AC16: =(V16+IF(AA16-AB16=0,0,IFERROR(SUM(OFFSET(V16,1,0,AA16-AB16-1,1)),0))) -> 5.563 | AD16: =AC16/(INDEX(OFFSET($F$15,1,0,$B$10,1),MATCH(U16,OFFSET($B$15,1,0,$B$10,1),-1))) -> 0.01404868894
A17: 2 | B17: 2021-05-10 | C17: 422.5 | D17: 422.73999 | E17: 404 | F17: 416.579987 | G17: 522068500 | H17: 416.579987 | I17: =IF(F17=0,1,H17/F17) -> 1 | J17: =INDEX(OFFSET($T$15,0,0,$S$13+1,1),MATCH(B17,OFFSET($Q$15,0,0,$S$13+1,1),-1)) -> 1 | K17: =ROUND($I17*C17,2) -> 422.5 | L17: =ROUND($I17*D17,2) -> 422.74 | M17: =ROUND($I17*E17,2) -> 404 | N17: =ROUND($I17*F17,2) -> 416.58 | O17: =G17*J17 -> 522068500 | U17: 2020-12-18 | V17: 1.58 | W17: =(INDEX(OFFSET($F$15,1,0,$B$10,1),MATCH(U17,OFFSET($B$15,1,0,$B$10,1),-1))) -> 369 | X17: =YEAR(U17)&RIGHT("0"&MONTH(U17),2) -> 202012 | Y17: =YEAR(U17)-1&RIGHT("0"&MONTH(U17),2) -> 201912 | Z17: =OFFSET(U16,AA17,0,1,1) -> 2019-12-20 | AA17: =MATCH(Y17,OFFSET($X$15,A17,0,$V$14+1-A17,1),-1) -> 5 | AB17: =IF(OR(AND(YEAR(U17)=YEAR(Z17),MONTH(U17)=MONTH(Z17)),MONTH(U17)=MONTH(Z17)),1,0) -> 1 | AC17: =(V17+IF(AA17-AB17=0,0,IFERROR(SUM(OFFSET(V17,1,0,AA17-AB17-1,1)),0))) -> 5.691 | AD17: =AC17/(INDEX(OFFSET($F$15,1,0,$B$10,1),MATCH(U17,OFFSET($B$15,1,0,$B$10,1),-1))) -> 0.01542276423
A18: 3 | B18: 2021-05-03 | C18: 419.429993 | D18: 422.820007 | E18: 411.670013 | F18: 422.119995 | G18: 351681700 | H18: 422.119995 | I18: 1 | J18: 1 | K18: 419.43 | L18: 422.82 | M18: 411.67 | N18: 422.12 | O18: 351681700 | U18: 2020-09-18 | V18: 1.339 | W18: 328.730011 | X18: 202009 | Y18: 201909 | Z18: 2019-09-20 | AA18: 5 | AB18: 1 | AC18: 5.681 | AD18: 0.01728165914
A19: 4 | B19: 2021-04-26 | C19: 417.440002 | D19: 420.720001 | E19: 416.299988 | F19: 417.299988 | G19: 318717100 | H19: 417.299988 | I19: 1 | J19: 1 | K19: 417.44 | L19: 420.72 | M19: 416.3 | N19: 417.3 | O19: 318717100 | U19: 2020-06-19 | V19: 1.366 | W19: 300.049988 | X19: 202006 | Y19: 201906 | Z19: 2019-06-21 | AA19: 5 | AB19: 1 | AC19: 5.726 | AD19: 0.01908348685
A20: 5 | B20: 2021-04-19 | C20: 416.26001 | D20: 418.25 | E20: 410.589996 | F20: 416.73999 | G20: 397935300 | H20: 416.73999 | I20: 1 | J20: 1 | K20: 416.26 | L20: 418.25 | M20: 410.59 | N20: 416.74 | O20: 397935300 | U20: 2020-03-20 | V20: 1.406 | W20: 253.419998 | X20: 202003 | Y20: 201903 | Z20: 2019-03-15 | AA20: 5 | AB20: 1 | AC20: 5.792 | AD20: 0.02285533914
A21: 6 | B21: 2021-04-12 | C21: 410.850006 | D21: 417.910004 | E21: 410.200012 | F21: 417.26001 | G21: 317182900 | H21: 417.26001 | I21: 1 | J21: 1 | K21: 410.85 | L21: 417.91 | M21: 410.2 | N21: 417.26 | O21: 317182900 | U21: 2019-12-20 | V21: 1.57 | W21: 322.859985 | X21: 201912 | Y21: 201812 | Z21: 2018-12-21 | AA21: 5 | AB21: 1 | AC21: 5.619 | AD21: 0.01740382909
A22: 7 | B22: 2021-04-05 | C22: 403.459991 | D22: 411.670013 | E22: 403.380005 | F22: 411.48999 | G22: 328509800 | H22: 411.48999 | I22: 1 | J22: 1 | K22: 403.46 | L22: 411.67 | M22: 403.38 | N22: 411.49 | O22: 328509800 | U22: 2019-09-20 | V22: 1.384 | W22: 295.399994 | X22: 201909 | Y22: 201809 | Z22: 2018-09-21 | AA22: 5 | AB22: 1 | AC22: 5.484 | AD22: 0.01856465847
A23: 8 | B23: 2021-03-29 | C23: 394.399994 | D23: 400.670013 | E23: 392.809998 | F23: 400.609985 | G23: 396786900 | H23: 400.609985 | I23: 1 | J23: 1 | K23: 394.4 | L23: 400.67 | M23: 392.81 | N23: 400.61 | O23: 396786900 | U23: 2019-06-21 | V23: 1.432 | W23: 293 | X23: 201906 | Y23: 201806 | Z23: 2018-06-15 | AA23: 5 | AB23: 1 | AC23: 5.423 | AD23: 0.01850853242
A24: 9 | B24: 2021-03-22 | C24: 390.029999 | D24: 396.410004 | E24: 383.899994 | F24: 395.980011 | G24: 492591500 | H24: 395.980011 | I24: 1 | J24: 1 | K24: 390.03 | L24: 396.41 | M24: 383.9 | N24: 395.98 | O24: 492591500 | U24: 2019-03-15 | V24: 1.233 | W24: 279.25 | X24: 201903 | Y24: 201803 | Z24: 2018-03-16 | AA24: 5 | AB24: 1 | AC24: 5.237 | AD24: 0.01875380483
A25: 10 | B25: 2021-03-15 | C25: 394.329987 | D25: 398.119995 | E25: 387.149994 | F25: 389.480011 | G25: 474082600 | H25: 388.208527 | I25: 0.996735432 | J25: 1 | K25: 393.04 | L25: 396.82 | M25: 385.89 | N25: 388.21 | O25: 474082600 | U25: 2018-12-21 | V25: 1.435 | W25: 247.75 | X25: 201812 | Y25: 201712 | Z25: 2017-12-15 | AA25: 5 | AB25: 1 | AC25: 5.101 | AD25: 0.02058930373
A26: 11 | B26: 2021-03-08 | C26: 384.660004 | D26: 395.649994 | E26: 381.420013 | F26: 394.059998 | G26: 497580800 | H26: 392.77356 | I26: 0.9967354261 | J26: 1 | K26: 383.4 | L26: 394.36 | M26: 380.17 | N26: 392.77 | O26: 497580800 | U26: 2018-09-21 | V26: 1.323 | W26: 290.720001 | X26: 201809 | Y26: 201709 | Z26: 2017-09-15 | AA26: 5 | AB26: 1 | AC26: 5.017 | AD26: 0.01725715459
A27: 12 | B27: 2021-03-01 | C27: 385.589996 | D27: 390.920013 | E27: 371.880005 | F27: 383.630005 | G27: 640356900 | H27: 382.377625 | I27: 0.9967354483 | J27: 1 | K27: 384.33 | L27: 389.64 | M27: 370.67 | N27: 382.38 | O27: 640356900 | U27: 2018-06-15 | V27: 1.246 | W27: 274.73999 | X27: 201806 | Y27: 201706 | Z27: 2017-06-16 | AA27: 5 | AB27: 1 | AC27: 4.929 | AD27: 0.01794059904
A28: 13 | B28: 2021-02-22 | C28: 387.059998 | D28: 392.230011 | E28: 378.230011 | F28: 380.359985 | G28: 546504300 | H28: 379.118286 | I28: 0.9967354636 | J28: 1 | K28: 385.8 | L28: 390.95 | M28: 377 | N28: 379.12 | O28: 546504300 | U28: 2018-03-16 | V28: 1.097 | W28: 258.049988 | X28: 201803 | Y28: 201703 | Z28: 2017-03-17 | AA28: 5 | AB28: 1 | AC28: 4.866 | AD28: 0.01885681157
A29: 14 | B29: 2021-02-15 | C29: 393.959991 | D29: 394.170013 | E29: 387.73999 | F29: 390.029999 | G29: 246216800 | H29: 388.756714 | I29: 0.9967354178 | J29: 1 | K29: 392.67 | L29: 392.88 | M29: 386.47 | N29: 388.76 | O29: 246216800 | U29: 2017-12-15 | V29: 1.351 | W29: 267.51001 | X29: 201712 | Y29: 201612 | Z29: 2016-12-16 | AA29: 5 | AB29: 1 | AC29: 4.802 | AD29: 0.01795073014
A30: 15 | B30: 2021-02-08 | C30: 389.269989 | D30: 392.899994 | E30: 387.5 | F30: 392.640015 | G30: 226577300 | H30: 391.358215 | I30: 0.9967354321 | J30: 1 | K30: 388 | L30: 391.62 | M30: 386.23 | N30: 391.36 | O30: 226577300 | U30: 2017-09-15 | V30: 1.235 | W30: 249.440002 | X30: 201709 | Y30: 201609 | Z30: 2016-09-16 | AA30: 5 | AB30: 1 | AC30: 4.78 | AD30: 0.0191629248
A31: 16 | B31: 2021-02-01 | C31: 373.720001 | D31: 388.470001 | E31: 370.380005 | F31: 387.709991 | G31: 288507800 | H31: 386.444305 | I31: 0.9967354826 | J31: 1 | K31: 372.5 | L31: 387.2 | M31: 369.17 | N31: 386.44 | O31: 288507800 | U31: 2017-06-16 | V31: 1.183 | W31: 243.130005 | X31: 201706 | Y31: 201606 | Z31: 2016-06-17 | AA31: 5 | AB31: 1 | AC31: 4.627 | AD31: 0.01903097069
A32: 17 | B32: 2021-01-25 | C32: 383.670013 | D32: 385.850006 | E32: 368.269989 | F32: 370.070007 | G32: 457381600 | H32: 368.861908 | I32: 0.9967354852 | J32: 1 | K32: 382.42 | L32: 384.59 | M32: 367.07 | N32: 368.86 | O32: 457381600 | U32: 2017-03-17 | V32: 1.033 | W32: 233.860001 | X32: 201703 | Y32: 201603 | Z32: 2016-03-18 | AA32: 5 | AB32: 1 | AC32: 4.522 | AD32: 0.019336355
A33: 18 | B33: 2021-01-18 | C33: 378.339996 | D33: 384.950012 | E33: 376.75 | F33: 382.880005 | G33: 213770000 | H33: 381.630066 | I33: 0.9967354289 | J33: 1 | K33: 377.1 | L33: 383.69 | M33: 375.52 | N33: 381.63 | O33: 213770000 | U33: 2016-12-16 | V33: 1.329 | W33: 225.710007 | X33: 201612 | Y33: 201512 | Z33: 2015-12-18 | AA33: 5 | AB33: 1 | AC33: 4.539 | AD33: 0.02010987488
A34: 19 | B34: 2021-01-11 | C34: 377.850006 | D34: 381.130005 | E34: 373.700012 | F34: 375.700012 | G34: 306035100 | H34: 374.473511 | I34: 0.9967354246 | J34: 1 | K34: 376.62 | L34: 379.89 | M34: 372.48 | N34: 374.47 | O34: 306035100 | U34: 2016-09-16 | V34: 1.082 | W34: 215.990005 | X34: 201609 | Y34: 201509 | Z34: 2015-09-18 | AA34: 5 | AB34: 1 | AC34: 4.422 | AD34: 0.02047316958
A35: 20 | B35: 2021-01-04 | C35: 375.309998 | D35: 381.48999 | E35: 364.820007 | F35: 381.26001 | G35: 425078700 | H35: 380.015381 | I35: 0.9967354851 | J35: 1 | K35: 374.08 | L35: 380.24 | M35: 363.63 | N35: 380.02 | O35: 425078700 | U35: 2016-06-17 | V35: 1.078 | W35: 203.240005 | X35: 201606 | Y35: 201506 | Z35: 2015-06-19 | AA35: 5 | AB35: 1 | AC35: 4.373 | AD35: 0.02151643324
A36: 21 | B36: 2020-12-28 | C36: 371.73999 | D36: 374.660004 | E36: 370.829987 | F36: 373.880005 | G36: 220656900 | H36: 372.659454 | I36: 0.9967354472 | J36: 1 | K36: 370.53 | L36: 373.44 | M36: 369.62 | N36: 372.66 | O36: 220656900 | U36: 2016-03-18 | V36: 1.05 | W36: 203.119995 | X36: 201603 | Y36: 201503 | Z36: 2015-03-20 | AA36: 5 | AB36: 1 | AC36: 4.325 | AD36: 0.02129283235
A37: 22 | B37: 2020-12-21 | C37: 364.970001 | D37: 378.459991 | E37: 362.029999 | F37: 369 | G37: 216995000 | H37: 367.79538 | I37: 0.9967354472 | J37: 1 | K37: 363.78 | L37: 377.22 | M37: 360.85 | N37: 367.8 | O37: 216995000 | U37: 2015-12-18 | V37: 1.212 | W37: 205.679993 | X37: 201512 | Y37: 201412 | Z37: 2014-12-19 | AA37: 5 | AB37: 1 | AC37: 4.206 | AD37: 0.02044924224
A38: 23 | B38: 2020-12-14 | C38: 368.640015 | D38: 372.459991 | E38: 364.470001 | F38: 369.179993 | G38: 392163800 | H38: 366.412872 | I38: 0.9925046832 | J38: 1 | K38: 365.88 | L38: 369.67 | M38: 361.74 | N38: 366.41 | O38: 392163800 | U38: 2015-09-18 | V38: 1.033 | W38: 192.850006 | X38: 201509 | Y38: 201409 | Z38: 2014-09-19 | AA38: 5 | AB38: 1 | AC38: 4.129 | AD38: 0.02141042194
A39: 24 | B39: 2020-12-07 | C39: 369.019989 | D39: 371.049988 | E39: 363.26001 | F39: 366.299988 | G39: 280935500 | H39: 363.554474 | I39: 0.992504739 | J39: 1 | K39: 366.25 | L39: 368.27 | M39: 360.54 | N39: 363.55 | O39: 280935500 | U39: 2015-06-19 | V39: 1.03 | W39: 209.820007 | X39: 201506 | Y39: 201406 | Z39: 2014-06-20 | AA39: 5 | AB39: 1 | AC39: 4.035 | AD39: 0.01923076859
A40: 25 | B40: 2020-11-30 | C40: 362.829987 | D40: 369.850006 | E40: 359.170013 | F40: 369.850006 | G40: 317663000 | H40: 367.077881 | I40: 0.9925047318 | J40: 1 | K40: 360.11 | L40: 367.08 | M40: 356.48 | N40: 367.08 | O40: 317663000 | U40: 2015-03-20 | V40: 0.931 | W40: 205.740005 | X40: 201503 | Y40: 201403 | Z40: 2014-03-21 | AA40: 5 | AB40: 1 | AC40: 3.942 | AD40: 0.01916010452
A41: 26 | B41: 2020-11-23 | C41: 357.279999 | D41: 364.179993 | E41: 354.869995 | F41: 363.670013 | G41: 199491500 | H41: 360.944214 | I41: 0.9925047463 | J41: 1 | K41: 354.6 | L41: 361.45 | M41: 352.21 | N41: 360.94 | O41: 199491500 | U41: 2014-12-19 | V41: 1.135 | W41: 208.440002 | X41: 201412 | Y41: 201312 | Z41: 2013-12-20 | AA41: 5 | AB41: 1 | AC41: 3.836 | AD41: 0.01840337729
A42: 27 | B42: 2020-11-16 | C42: 360.980011 | D42: 362.779999 | E42: 354.149994 | F42: 355.329987 | G42: 341601600 | H42: 352.666718 | I42: 0.9925048009 | J42: 1 | K42: 358.27 | L42: 360.06 | M42: 351.5 | N42: 352.67 | O42: 341601600 | U42: 2014-09-19 | V42: 0.939 | W42: 197.899994 | X42: 201409 | Y42: 201309 | Z42: 2013-09-20 | AA42: 5 | AB42: 1 | AC42: 3.681 | AD42: 0.01860030375
A43: 28 | B43: 2020-11-09 | C43: 363.970001 | D43: 364.380005 | E43: 350.51001 | F43: 358.100006 | G43: 446943600 | H43: 355.415955 | I43: 0.9925047446 | J43: 1 | K43: 361.24 | L43: 361.65 | M43: 347.88 | N43: 355.42 | O43: 446943600 | U43: 2014-06-20 | V43: 0.937 | W43: 195.820007 | X43: 201406 | Y43: 201306 | Z43: 2013-06-21 | AA43: 5 | AB43: 1 | AC43: 3.58 | AD43: 0.01828209515
A44: 29 | B44: 2020-11-02 | C44: 330.200012 | D44: 352.190002 | E44: 327.23999 | F44: 350.160004 | G44: 463334900 | H44: 347.535461 | I44: 0.9925047322 | J44: 1 | K44: 327.73 | L44: 349.55 | M44: 324.79 | N44: 347.54 | O44: 463334900 | U44: 2014-03-21 | V44: 0.825 | W44: 185.490005 | X44: 201403 | Y44: 201303 | Z44: 2013-03-15 | AA44: 5 | AB44: 1 | AC44: 3.482 | AD44: 0.01877190094
A45: 30 | B45: 2020-10-26 | C45: 342.130005 | D45: 342.980011 | E45: 322.600006 | F45: 326.540009 | G45: 495446400 | H45: 324.092499 | I45: 0.9925047163 | J45: 1 | K45: 339.57 | L45: 340.41 | M45: 320.18 | N45: 324.09 | O45: 495446400 | U45: 2013-12-20 | V45: 0.98 | W45: 183.850006 | X45: 201312 | Y45: 201212 | Z45: 2012-12-21 | AA45: 5 | AB45: 1 | AC45: 3.351 | AD45: 0.01822681474
A46: 31 | B46: 2020-10-19 | C46: 348.649994 | D46: 349.329987 | E46: 340.649994 | F46: 345.779999 | G46: 296595700 | H46: 343.188293 | I46: 0.9925047544 | J46: 1 | K46: 346.04 | L46: 346.71 | M46: 338.1 | N46: 343.19 | O46: 296595700 | U46: 2013-09-20 | V46: 0.838 | W46: 168.910004 | X46: 201309 | Y46: 201209 | Z46: 2012-09-21 | AA46: 5 | AB46: 1 | AC46: 3.393 | AD46: 0.02008762015
A47: 32 | B47: 2020-10-12 | C47: 349.589996 | D47: 354.019989 | E47: 343.130005 | F47: 347.290009 | G47: 361231500 | H47: 344.686981 | I47: 0.9925047426 | J47: 1 | K47: 346.97 | L47: 351.37 | M47: 340.56 | N47: 344.69 | O47: 361231500 | U47: 2013-06-21 | V47: 0.839 | W47: 160.419998 | X47: 201306 | Y47: 201206 | Z47: 2012-06-15 | AA47: 5 | AB47: 1 | AC47: 3.334 | AD47: 0.02078294503
A48: 33 | B48: 2020-10-05 | C48: 336.059998 | D48: 347.350006 | E48: 334.380005 | F48: 346.850006 | G48: 297612700 | H48: 344.250275 | I48: 0.9925047399 | J48: 1 | K48: 333.54 | L48: 344.75 | M48: 331.87 | N48: 344.25 | O48: 297612700 | U48: 2013-03-15 | V48: 0.694 | W48: 155.600006 | X48: 201303 | Y48: 201203 | Z48: 2012-03-16 | AA48: 5 | AB48: 1 | AC48: 3.183 | AD48: 0.02045629741
A49: 34 | B49: 2020-09-28 | C49: 333.220001 | D49: 338.73999 | E49: 331.190002 | F49: 333.839996 | G49: 398099500 | H49: 331.337799 | I49: 0.9925048016 | J49: 1 | K49: 330.72 | L49: 336.2 | M49: 328.71 | N49: 331.34 | O49: 398099500 | U49: 2012-12-21 | V49: 1.022 | W49: 140.029999 | X49: 201212 | Y49: 201112 | Z49: 2011-12-16 | AA49: 5 | AB49: 1 | AC49: 3.103 | AD49: 0.0221595374
A50: 35 | B50: 2020-09-21 | C50: 325.700012 | D50: 331.200012 | E50: 319.799988 | F50: 328.730011 | G50: 403925800 | H50: 326.266083 | I50: 0.9925047062 | J50: 1 | K50: 323.26 | L50: 328.72 | M50: 317.4 | N50: 326.27 | O50: 403925800 | U50: 2012-09-21 | V50: 0.779 | W50: 143.970001 | X50: 201209 | Y50: 201109 | Z50: 2011-09-16 | AA50: 5 | AB50: 1 | AC50: 2.851 | AD50: 0.01980273654
A51: 36 | B51: 2020-09-14 | C51: 337.48999 | D51: 343.059998 | E51: 327.970001 | F51: 330.649994 | G51: 398023800 | H51: 326.863281 | I51: 0.9885476695 | J51: 1 | K51: 333.62 | L51: 339.13 | M51: 324.21 | N51: 326.86 | O51: 398023800 | U51: 2012-06-15 | V51: 0.688 | W51: 133.460007 | X51: 201206 | Y51: 201106 | Z51: 2011-06-17 | AA51: 5 | AB51: 1 | AC51: 2.697 | AD51: 0.02020830105
A52: 37 | B52: 2020-09-07 | C52: 336.709991 | D52: 342.640015 | E52: 331 | F52: 334.059998 | G52: 381177300 | H52: 330.234192 | I52: 0.9885475483 | J52: 1 | K52: 332.85 | L52: 338.72 | M52: 327.21 | N52: 330.23 | O52: 381177300 | U52: 2012-03-16 | V52: 0.614 | W52: 139.649994 | X52: 201203 | Y52: 201103 | Z52: 2011-03-18 | AA52: 5 | AB52: 1 | AC52: 2.637 | AD52: 0.0188829224
A53: 38 | B53: 2020-08-31 | C53: 350.350006 | D53: 358.75 | E53: 334.869995 | F53: 342.570007 | G53: 477715300 | H53: 338.646729 | I53: 0.9885475146 | J53: 1 | K53: 346.34 | L53: 354.64 | M53: 331.03 | N53: 338.65 | O53: 477715300 | U53: 2011-12-16 | V53: 0.77 | W53: 126.389999 | X53: 201112 | Y53: 201012 | Z53: 2010-12-17 | AA53: 5 | AB53: 1 | AC53: 2.576 | AD53: 0.02038135945
A54: 39 | B54: 2020-08-24 | C54: 342.119995 | D54: 350.720001 | E54: 339.450012 | F54: 350.579987 | G54: 244465300 | H54: 346.565033 | I54: 0.9885476806 | J54: 1 | K54: 338.2 | L54: 346.7 | M54: 335.56 | N54: 346.57 | O54: 244465300 | U54: 2011-09-16 | V54: 0.625 | W54: 113.540001 | X54: 201109 | Y54: 201009 | Z54: 2010-09-17 | AA54: 5 | AB54: 1 | AC54: 2.459 | AD54: 0.02165756542
A55: 40 | B55: 2020-08-17 | C55: 337.940002 | D55: 339.720001 | E55: 335.220001 | F55: 339.480011 | G55: 239583500 | H55: 335.592133 | I55: 0.9885475496 | J55: 1 | K55: 334.07 | L55: 335.83 | M55: 331.38 | N55: 335.59 | O55: 239583500 | U55: 2011-06-17 | V55: 0.628 | W55: 126.809998 | X55: 201106 | Y55: 201006 | Z55: 2010-06-18 | AA55: 5 | AB55: 1 | AC55: 2.436 | AD55: 0.0192098418
A56: 41 | B56: 2020-08-10 | C56: 335.059998 | D56: 338.279999 | E56: 332.01001 | F56: 336.839996 | G56: 256734100 | H56: 332.982361 | I56: 0.9885475744 | J56: 1 | K56: 331.22 | L56: 334.41 | M56: 328.21 | N56: 332.98 | O56: 256734100 | U56: 2011-03-18 | V56: 0.553 | W56: 131.300003 | X56: 201103 | Y56: 201003 | Z56: 2010-03-19 | AA56: 5 | AB56: 1 | AC56: 2.339 | AD56: 0.01781416562
A57: 42 | B57: 2020-08-03 | C57: 328.320007 | D57: 334.880005 | E57: 327.730011 | F57: 334.570007 | G57: 238681200 | H57: 330.738403 | I57: 0.9885476764 | J57: 1 | K57: 324.56 | L57: 331.04 | M57: 323.98 | N57: 330.74 | O57: 238681200 | U57: 2010-12-17 | V57: 0.653 | W57: 125.599998 | X57: 201012 | Y57: 200912 | Z57: 2009-12-18 | AA57: 5 | AB57: 1 | AC57: 2.266 | AD57: 0.01804140156
A58: 43 | B58: 2020-07-27 | C58: 321.630005 | D58: 326.630005 | E58: 319.640015 | F58: 326.519989 | G58: 301090700 | H58: 322.780548 | I58: 0.9885475893 | J58: 1 | K58: 317.95 | L58: 322.89 | M58: 315.98 | N58: 322.78 | O58: 301090700 | U58: 2010-09-17 | V58: 0.602 | W58: 114.82 | X58: 201009 | Y58: 200909 | Z58: 2009-09-18 | AA58: 5 | AB58: 1 | AC58: 2.203 | AD58: 0.01918655287
A59: 44 | B59: 2020-07-20 | C59: 321.429993 | D59: 327.230011 | E59: 319.25 | F59: 320.880005 | G59: 320898500 | H59: 317.20517 | I59: 0.9885476348 | J59: 1 | K59: 317.75 | L59: 323.48 | M59: 315.59 | N59: 317.21 | O59: 320898500 | U59: 2010-06-18 | V59: 0.531 | W59: 107.870003 | X59: 201006 | Y59: 200906 | Z59: 2009-06-19 | AA59: 5 | AB59: 1 | AC59: 2.109 | AD59: 0.01955131122
A60: 45 | B60: 2020-07-13 | C60: 320.130005 | D60: 323.040009 | E60: 312 | F60: 321.720001 | G60: 401248400 | H60: 318.035522 | I60: 0.98854756 | J60: 1 | K60: 316.46 | L60: 319.34 | M60: 308.43 | N60: 318.04 | O60: 401248400 | U60: 2010-03-19 | V60: 0.48 | W60: 116.580002 | X60: 201003 | Y60: 200903 | Z60: 2009-03-20 | AA60: 5 | AB60: 1 | AC60: 2.096 | AD60: 0.01797906986
A61: 46 | B61: 2020-07-06 | C61: 316.369995 | D61: 317.880005 | E61: 310.679993 | F61: 317.589996 | G61: 340167000 | H61: 313.95285 | I61: 0.9885476682 | J61: 1 | K61: 312.75 | L61: 314.24 | M61: 307.12 | N61: 313.95 | O61: 340167000 | U61: 2009-12-18 | V61: 0.59 | W61: 112.480003 | X61: 200912 | Y61: 200812 | Z61: 2008-12-19 | AA61: 5 | AB61: 1 | AC61: 2.177 | AD61: 0.0193545514
A62: 47 | B62: 2020-06-29 | C62: 301.410004 | D62: 315.700012 | E62: 298.929993 | F62: 312.230011 | G62: 334908800 | H62: 308.654205 | I62: 0.9885475263 | J62: 1 | K62: 297.96 | L62: 312.08 | M62: 295.51 | N62: 308.65 | O62: 334908800 | U62: 2009-09-18 | V62: 0.508 | W62: 104.449997 | X62: 200909 | Y62: 200809 | Z62: 2008-09-19 | AA62: 5 | AB62: 1 | AC62: 2.306 | AD62: 0.0220775497
A63: 48 | B63: 2020-06-22 | C63: 307.98999 | D63: 314.5 | E63: 299.420013 | F63: 300.049988 | G63: 493363100 | H63: 296.613739 | I63: 0.9885477449 | J63: 1 | K63: 304.46 | L63: 310.9 | M63: 295.99 | N63: 296.61 | O63: 493363100 | U63: 2009-06-19 | V63: 0.518 | W63: 91.839996 | X63: 200906 | Y63: 200806 | Z63: 2008-06-20 | AA63: 5 | AB63: 1 | AC63: 2.489 | AD63: 0.02710148202
A64: 49 | B64: 2020-06-15 | C64: 298.019989 | D64: 315.640015 | E64: 296.73999 | F64: 308.640015 | G64: 573187400 | H64: 303.768585 | I64: 0.9842164666 | J64: 1 | K64: 293.32 | L64: 310.66 | M64: 292.06 | N64: 303.77 | O64: 573187400 | U64: 2009-03-20 | V64: 0.561 | W64: 81.610001 | X64: 200903 | Y64: 200803 | Z64: 2008-03-20 | AA64: 5 | AB64: 1 | AC64: 2.64 | AD64: 0.03234897644
A65: 50 | B65: 2020-06-08 | C65: 320.220001 | D65: 323.410004 | E65: 298.600006 | F65: 304.209991 | G65: 650043700 | H65: 299.408508 | I65: 0.9842165506 | J65: 1 | K65: 315.17 | L65: 318.31 | M65: 293.89 | N65: 299.41 | O65: 650043700 | U65: 2008-12-19 | V65: 0.719 | W65: 87.160004 | X65: 200812 | Y65: 200712 | Z65: 2007-12-21 | AA65: 5 | AB65: 1 | AC65: 2.721 | AD65: 0.0312184474
A66: 51 | B66: 2020-06-01 | C66: 303.619995 | D66: 321.269989 | E66: 303.059998 | F66: 319.339996 | G66: 448912200 | H66: 314.299652 | I66: 0.9842163711 | J66: 1 | K66: 298.83 | L66: 316.2 | M66: 298.28 | N66: 314.3 | O66: 448912200 | U66: 2008-09-19 | V66: 0.691 | W66: 120.849998 | X66: 200809 | Y66: 200709 | Z66: 2007-09-21 | AA66: 5 | AB66: 1 | AC66: 2.777 | AD66: 0.02297889984
A67: 52 | B67: 2020-05-25 | C67: 301.929993 | D67: 306.839996 | E67: 295.459991 | F67: 304.320007 | G67: 403264800 | H67: 299.516785 | I67: 0.9842165422 | J67: 1 | K67: 297.16 | L67: 302 | M67: 290.8 | N67: 299.52 | O67: 403264800 | U67: 2008-06-20 | V67: 0.669 | W67: 127.529999 | X67: 200806 | Y67: 200706 | Z67: 2007-06-15 | AA67: 5 | AB67: 1 | AC67: 2.805 | AD67: 0.02199482492
A68: 53 | B68: 2020-05-18 | C68: 293.049988 | D68: 297.869995 | E68: 291.950012 | F68: 295.440002 | G68: 443006900 | H68: 290.776947 | I68: 0.9842165754 | J68: 1 | K68: 288.42 | L68: 293.17 | M68: 287.34 | N68: 290.78 | O68: 443006900 | U68: 2008-03-20 | V68: 0.642 | W68: 131.509995 | X68: 200803 | Y68: 200703 | Z68: 2007-03-16 | AA68: 5 | AB68: 1 | AC68: 2.792 | AD68: 0.0212303255
A69: 54 | B69: 2020-05-11 | C69: 290.339996 | D69: 294.23999 | E69: 272.98999 | F69: 286.279999 | G69: 553230300 | H69: 281.761536 | I69: 0.9842166305 | J69: 1 | K69: 285.76 | L69: 289.6 | M69: 268.68 | N69: 281.76 | O69: 553230300 | U69: 2007-12-21 | V69: 0.775 | W69: 147.300003 | X69: 200712 | Y69: 200612 | Z69: 2006-12-15 | AA69: 5 | AB69: 1 | AC69: 2.701 | AD69: 0.01833672739
A70: 55 | B70: 2020-05-04 | C70: 280.73999 | D70: 292.950012 | E70: 279.130005 | F70: 292.440002 | G70: 385778500 | H70: 287.82428 | I70: 0.9842165163 | J70: 1 | K70: 276.31 | L70: 288.33 | M70: 274.72 | N70: 287.82 | O70: 385778500 | U70: 2007-09-21 | V70: 0.719 | W70: 152.580002 | X70: 200709 | Y70: 200609 | Z70: 2006-09-15 | AA70: 5 | AB70: 1 | AC70: 2.719 | AD70: 0.01782015968
A71: 56 | B71: 2020-04-27 | C71: 285.119995 | D71: 294.880005 | E71: 281.519989 | F71: 282.790009 | G71: 549993900 | H71: 278.326569 | I71: 0.9842164155 | J71: 1 | K71: 280.62 | L71: 290.23 | M71: 277.08 | N71: 278.33 | O71: 549993900 | U71: 2007-06-15 | V71: 0.656 | W71: 150.550003 | X71: 200706 | Y71: 200606 | Z71: 2006-06-16 | AA71: 5 | AB71: 1 | AC71: 2.579 | AD71: 0.01713052108
A72: 57 | B72: 2020-04-20 | C72: 282.609985 | D72: 286.790009 | E72: 272.019989 | F72: 282.970001 | G72: 509219500 | H72: 278.503754 | I72: 0.9842165354 | J72: 1 | K72: 278.15 | L72: 282.26 | M72: 267.73 | N72: 278.5 | O72: 509219500 | U72: 2007-03-16 | V72: 0.551 | W72: 143.389999 | X72: 200703 | Y72: 200603 | Z72: 2006-03-17 | AA72: 5 | AB72: 1 | AC72: 2.478 | AD72: 0.01728153998
A73: 58 | B73: 2020-04-13 | C73: 277.140015 | D73: 287.299988 | E73: 271.410004 | F73: 286.640015 | G73: 649240600 | H73: 282.115784 | I73: 0.9842163314 | J73: 1 | K73: 272.77 | L73: 282.77 | M73: 267.13 | N73: 282.12 | O73: 649240600 | U73: 2006-12-15 | V73: 0.793 | W73: 140.75 | X73: 200612 | Y73: 200512 | Z73: 2005-12-16 | AA73: 5 | AB73: 1 | AC73: 2.446 | AD73: 0.01737833037
A74: 59 | B74: 2020-04-06 | C74: 257.839996 | D74: 281.200012 | E74: 248.169998 | F74: 278.200012 | G74: 733262100 | H74: 273.809021 | I74: 0.9842164241 | J74: 1 | K74: 253.77 | L74: 276.76 | M74: 244.25 | N74: 273.81 | O74: 733262100 | U74: 2006-09-15 | V74: 0.579 | W74: 131.470001 | X74: 200609 | Y74: 200509 | Z74: 2005-09-16 | AA74: 5 | AB74: 1 | AC74: 2.325 | AD74: 0.01768464275
A75: 60 | B75: 2020-03-30 | C75: 255.699997 | D75: 263.329987 | E75: 243.899994 | F75: 248.190002 | G75: 869026800 | H75: 244.272705 | I75: 0.9842165399 | J75: 1 | K75: 251.66 | L75: 259.17 | M75: 240.05 | N75: 244.27 | O75: 869026800 | U75: 2006-06-16 | V75: 0.555 | W75: 124.440002 | X75: 200606 | Y75: 200506 | Z75: 2005-06-17 | AA75: 5 | AB75: 1 | AC75: 2.268 | AD75: 0.01822565062
A76: 61 | B76: 2020-03-23 | C76: 228.190002 | D76: 262.799988 | E76: 218.259995 | F76: 253.419998 | G76: 1342924000 | H76: 249.420135 | I76: 0.9842164666 | J76: 1 | K76: 224.59 | L76: 258.65 | M76: 214.82 | N76: 249.42 | O76: 1342924000 | U76: 2006-03-17 | V76: 0.519 | W76: 130.210007 | X76: 200603 | Y76: 200503 | Z76: 2005-03-18 | AA76: 5 | AB76: 1 | AC76: 2.201 | AD76: 0.01690346273
A77: 62 | B77: 2020-03-16 | C77: 241.179993 | D77: 256.899994 | E77: 228.020004 | F77: 228.800003 | G77: 1523388400 | H77: 223.872299 | I77: 0.9784628325 | J77: 1 | K77: 235.99 | L77: 251.37 | M77: 223.11 | N77: 223.87 | O77: 1523388400 | U77: 2005-12-16 | V77: 0.672 | W77: 126.760002 | X77: 200512 | Y77: 200412 | Z77: 2004-12-17 | AA77: 5 | AB77: 1 | AC77: 2.149 | AD77: 0.0169532973
A78: 63 | B78: 2020-03-09 | C78: 275.299988 | D78: 288.519989 | E78: 247.679993 | F78: 269.320007 | G78: 1562964500 | H78: 263.519592 | I78: 0.9784627401 | J78: 1 | K78: 269.37 | L78: 282.31 | M78: 242.35 | N78: 263.52 | O78: 1562964500 | U78: 2005-09-16 | V78: 0.522 | W78: 121.440002 | X78: 200509 | Y78: 200409 | Z78: 2004-09-17 | AA78: 6 | AB78: 1 | AC78: 2.396 | AD78: 0.01972990745
A79: 64 | B79: 2020-03-02 | C79: 298.209991 | D79: 313.839996 | E79: 290.230011 | F79: 297.459991 | G79: 1130490100 | H79: 291.053558 | I79: 0.978462875 | J79: 1 | K79: 291.79 | L79: 307.08 | M79: 283.98 | N79: 291.05 | O79: 1130490100 | U79: 2005-06-17 | V79: 0.488 | W79: 118.980003 | X79: 200506 | Y79: 200406 | Z79: 2004-06-18 | AA79: 6 | AB79: 1 | AC79: 2.343 | AD79: 0.01969238478
A80: 65 | B80: 2020-02-24 | C80: 323.140015 | D80: 333.559998 | E80: 285.540009 | F80: 296.26001 | G80: 1244104700 | H80: 289.879395 | I80: 0.9784627868 | J80: 1 | K80: 316.18 | L80: 326.38 | M80: 279.39 | N80: 289.88 | O80: 1244104700 | U80: 2005-03-18 | V80: 0.467 | W80: 117.139999 | X80: 200503 | Y80: 200403 | Z80: 2004-03-19 | AA80: 6 | AB80: 1 | AC80: 2.269 | AD80: 0.0193699848
A81: 66 | B81: 2020-02-17 | C81: 336.51001 | D81: 339.079987 | E81: 332.579987 | F81: 333.480011 | G81: 293992500 | H81: 326.297821 | I81: =IF(F81=0,1,H81/F81) -> 0.978462907 | J81: =INDEX(OFFSET($T$15,0,0,$S$13+1,1),MATCH(B81,OFFSET($Q$15,0,0,$S$13+1,1),-1)) -> 1 | K81: =ROUND($I81*C81,2) -> 329.26 | L81: =ROUND($I81*D81,2) -> 331.78 | M81: =ROUND($I81*E81,2) -> 325.42 | N81: =ROUND($I81*F81,2) -> 326.3 | O81: =G81*J81 -> 293992500 | U81: 2004-12-17 | V81: 0.568 | W81: =(INDEX(OFFSET($F$15,1,0,$B$10,1),MATCH(U81,OFFSET($B$15,1,0,$B$10,1),-1))) -> 120.769997 | X81: =YEAR(U81)&RIGHT("0"&MONTH(U81),2) -> 200412 | Y81: =YEAR(U81)-1&RIGHT("0"&MONTH(U81),2) -> 200312 | Z81: =OFFSET(U80,AA81,0,1,1) -> 2003-12-19 | AA81: =MATCH(Y81,OFFSET($X$15,A81,0,$V$14+1-A81,1),-1) -> 6 | AB81: =IF(OR(AND(YEAR(U81)=YEAR(Z81),MONTH(U81)=MONTH(Z81)),MONTH(U81)=MONTH(Z81)),1,0) -> 1 | AC81: =(V81+IF(AA81-AB81=0,0,IFERROR(SUM(OFFSET(V81,1,0,AA81-AB81-1,1)),0))) -> 2.197 | AD81: =AC81/(INDEX(OFFSET($F$15,1,0,$B$10,1),MATCH(U81,OFFSET($B$15,1,0,$B$10,1),-1))) -> 0.01819160433
A82: 67 | B82: 2020-02-10 | C82: 331.230011 | D82: 338.119995 | E82: 331.190002 | F82: 337.600006 | G82: 260011300 | H82: 330.329071 | I82: 0.9784628706 | J82: 1 | K82: 324.1 | L82: 330.84 | M82: 324.06 | N82: 330.33 | O82: 260011300 | U82: 2004-11-15 | V82: 0.351 | W82: 117.419998 | X82: 200411 | Y82: 200311 | Z82: 2003-12-19 | AA82: 5 | AB82: 0 | AC82: 2.145 | AD82: 0.01826775708
A83: 68 | B83: 2020-02-03 | C83: 323.350006 | D83: 334.190002 | E83: 323.220001 | F83: 332.200012 | G83: 312106400 | H83: 325.045349 | I83: 0.9784627852 | J83: 1 | K83: 316.39 | L83: 326.99 | M83: 316.26 | N83: 325.05 | O83: 312106400 | U83: 2004-09-17 | V83: 0.469 | W83: 111.459999 | X83: 200409 | Y83: 200309 | Z83: 2003-09-19 | AA83: 5 | AB83: 1 | AC83: 1.794 | AD83: 0.0160954604
A84: 69 | B84: 2020-01-27 | C84: 323.029999 | D84: 328.630005 | E84: 320.730011 | F84: 321.730011 | G84: 391122800 | H84: 314.800873 | I84: 0.9784628795 | J84: 1 | K84: 316.07 | L84: 321.55 | M84: 313.82 | N84: 314.8 | O84: 391122800 | U84: 2004-06-18 | V84: 0.414 | W84: 113.839996 | X84: 200406 | Y84: 200306 | Z84: 2003-06-20 | AA84: 5 | AB84: 1 | AC84: 1.725 | AD84: 0.01515284663
A85: 70 | B85: 2020-01-20 | C85: 330.899994 | D85: 332.950012 | E85: 327.359985 | F85: 328.769989 | G85: 266198700 | H85: 321.689209 | I85: 0.9784628152 | J85: 1 | K85: 323.77 | L85: 325.78 | M85: 320.31 | N85: 321.69 | O85: 266198700 | U85: 2004-03-19 | V85: 0.395 | W85: 111.029999 | X85: 200403 | Y85: 200303 | Z85: 2003-03-21 | AA85: 5 | AB85: 1 | AC85: 1.671 | AD85: 0.01504998663
A86: 71 | B86: 2020-01-13 | C86: 326.390015 | D86: 332.179993 | E86: 325.920013 | F86: 331.950012 | G86: 331872500 | H86: 324.800781 | I86: 0.9784629289 | J86: 1 | K86: 319.36 | L86: 325.03 | M86: 318.9 | N86: 324.8 | O86: 331872500 | U86: 2003-12-19 | V86: 0.516 | W86: 109.699997 | X86: 200312 | Y86: 200212 | Z86: 2002-12-20 | AA86: 5 | AB86: 1 | AC86: 1.63 | AD86: 0.01485870597
A87: 72 | B87: 2020-01-06 | C87: 320.48999 | D87: 327.459991 | E87: 320.359985 | F87: 325.709991 | G87: 265948900 | H87: 318.695129 | I87: 0.978462859 | J87: 1 | K87: 313.59 | L87: 320.41 | M87: 313.46 | N87: 318.7 | O87: 265948900 | U87: 2003-09-19 | V87: 0.4 | W87: 99.949997 | X87: 200309 | Y87: 200209 | Z87: 2002-09-20 | AA87: 5 | AB87: 1 | AC87: 1.55 | AD87: 0.01550775434
A88: 73 | B88: 2019-12-30 | C88: 322.950012 | D88: 324.890015 | E88: 320.149994 | F88: 322.410004 | G88: 243667300 | H88: 315.466217 | I88: 0.9784628674 | J88: 1 | K88: 315.99 | L88: 317.89 | M88: 313.25 | N88: 315.47 | O88: 243667300 | U88: 2003-06-20 | V88: 0.36 | W88: 97.660004 | X88: 200306 | Y88: 200206 | Z88: 2002-06-21 | AA88: 5 | AB88: 1 | AC88: 1.528 | AD88: 0.01564611855
A89: 74 | B89: 2019-12-23 | C89: 321.589996 | D89: 323.799988 | E89: 320.899994 | F89: 322.859985 | G89: 146700000 | H89: 315.906494 | I89: 0.9784628281 | J89: 1 | K89: 314.66 | L89: 316.83 | M89: 313.99 | N89: 315.91 | O89: 146700000 | U89: 2003-03-21 | V89: 0.354 | W89: 86.709999 | X89: 200303 | Y89: 200203 | Z89: 2002-03-15 | AA89: 5 | AB89: 1 | AC89: 1.521 | AD89: 0.01754122959
A90: 75 | B90: 2019-12-16 | C90: 319.220001 | D90: 321.970001 | E90: 317.25 | F90: 320.730011 | G90: 424433000 | H90: 312.287048 | I90: 0.9736757936 | J90: 1 | K90: 310.82 | L90: 313.49 | M90: 308.9 | N90: 312.29 | O90: 424433000 | U90: 2002-12-20 | V90: 0.436 | W90: 87.379997 | X90: 200212 | Y90: 200112 | Z90: 2001-12-21 | AA90: 5 | AB90: 1 | AC90: 1.498 | AD90: 0.01714351169
A91: 76 | B91: 2019-12-09 | C91: 314.440002 | D91: 318.670013 | E91: 312.809998 | F91: 317.320007 | G91: 318810900 | H91: 308.966797 | I91: 0.9736757538 | J91: 1 | K91: 306.16 | L91: 310.28 | M91: 304.58 | N91: 308.97 | O91: 318810900 | U91: 2002-09-20 | V91: 0.378 | W91: 82.75 | X91: 200209 | Y91: 200109 | Z91: 2001-09-21 | AA91: 5 | AB91: 1 | AC91: 1.455 | AD91: 0.01758308157
A92: 77 | B92: 2019-12-02 | C92: 314.589996 | D92: 315.309998 | E92: 307.130005 | F92: 314.869995 | G92: 288425500 | H92: 306.581268 | I92: 0.9736757165 | J92: 1 | K92: 306.31 | L92: 307.01 | M92: 299.05 | N92: 306.58 | O92: 288425500 | U92: 2002-06-21 | V92: 0.353 | W92: 98.959999 | X92: 200206 | Y92: 200106 | Z92: 2001-06-15 | AA92: 5 | AB92: 1 | AC92: 1.446 | AD92: 0.01461196458
A93: 78 | B93: 2019-11-25 | C93: 311.980011 | D93: 315.480011 | E93: 311.980011 | F93: 314.309998 | G93: 167253500 | H93: 306.036011 | I93: 0.9736757117 | J93: 1 | K93: 303.77 | L93: 307.18 | M93: 303.77 | N93: 306.04 | O93: 167253500 | U93: 2002-03-15 | V93: 0.331 | W93: 115.040001 | X93: 200203 | Y93: 200103 | Z93: 2001-03-16 | AA93: 5 | AB93: 1 | AC93: 1.439 | AD93: 0.01250869252
A94: 79 | B94: 2019-11-18 | C94: 311.529999 | D94: 312.690002 | E94: 309.059998 | F94: 310.959991 | G94: 295953800 | H94: 302.774231 | I94: 0.9736758418 | J94: 1 | K94: 303.33 | L94: 304.46 | M94: 300.92 | N94: 302.77 | O94: 295953800 | U94: 2001-12-21 | V94: 0.393 | W94: 116 | X94: 200112 | Y94: 200012 | Z94: 2000-12-15 | AA94: 5 | AB94: 1 | AC94: 1.424 | AD94: 0.01227586207
A95: 80 | B95: 2019-11-11 | C95: 307.420013 | D95: 311.839996 | E95: 307.269989 | F95: 311.790009 | G95: 249443100 | H95: 303.582367 | I95: 0.9736757376 | J95: 1 | K95: 299.33 | L95: 303.63 | M95: 299.18 | N95: 303.58 | O95: 249443100 | U95: 2001-09-21 | V95: 0.369 | W95: 104.440002 | X95: 200109 | Y95: 200009 | Z95: 2000-09-15 | AA95: 5 | AB95: 1 | AC95: 1.442 | AD95: 0.01380697024
A96: 81 | B96: 2019-11-04 | C96: 307.850006 | D96: 309.649994 | E96: 306.059998 | F96: 308.940002 | G96: 253331600 | H96: 300.807434 | I96: 0.9736758984 | J96: 1 | K96: 299.75 | L96: 301.5 | M96: 298 | N96: 300.81 | O96: 253331600 | U96: 2001-06-15 | V96: 0.346 | W96: 122.849998 | X96: 200106 | Y96: 200006 | Z96: 2000-06-16 | AA96: 5 | AB96: 1 | AC96: 1.448 | AD96: 0.01178673198
A97: 82 | B97: 2019-10-28 | C97: 302.940002 | D97: 306.190002 | E97: 301.730011 | F97: 306.140015 | G97: 276271100 | H97: 298.081146 | I97: 0.9736758718 | J97: 1 | K97: 294.97 | L97: 298.13 | M97: 293.79 | N97: 298.08 | O97: 276271100 | U97: 2001-03-16 | V97: 0.316 | W97: 114.480003 | X97: 200103 | Y97: 200003 | Z97: 2000-03-17 | AA97: 5 | AB97: 1 | AC97: 1.45 | AD97: 0.01266596752
A98: 83 | B98: 2019-10-21 | C98: 299.420013 | D98: 302.200012 | E98: 298.5 | F98: 301.600006 | G98: 202654000 | H98: 293.660614 | I98: 0.9736757565 | J98: 1 | K98: 291.54 | L98: 294.24 | M98: 290.64 | N98: 293.66 | O98: 202654000 | U98: 2000-12-15 | V98: 0.411 | W98: 130.9375 | X98: 200012 | Y98: 199912 | Z98: 1999-12-17 | AA98: 5 | AB98: 1 | AC98: 1.505 | AD98: 0.01149403341
A99: 84 | B99: 2019-10-14 | C99: 295.929993 | D99: 300.23999 | E99: 295.570007 | F99: 297.970001 | G99: 246118100 | H99: 290.12616 | I99: 0.9736757359 | J99: 1 | K99: 288.14 | L99: 292.34 | M99: 287.79 | N99: 290.13 | O99: 246118100 | U99: 2000-09-15 | V99: 0.375 | W99: 145.28125 | X99: 200009 | Y99: 199909 | Z99: 1999-09-17 | AA99: 5 | AB99: 1 | AC99: 1.442 | AD99: 0.009925575393
A100: 85 | B100: 2019-10-07 | C100: 293.470001 | D100: 298.73999 | E100: 288.48999 | F100: 296.279999 | G100: 371694700 | H100: 288.480621 | I100: 0.9736756513 | J100: 1 | K100: 285.74 | L100: 290.88 | M100: 280.9 | N100: 288.48 | O100: 371694700 | U100: 2000-06-16 | V100: 0.348 | W100: 144.375 | X100: 200006 | Y100: 199906 | Z100: 1999-06-18 | AA100: 5 | AB100: 1 | AC100: 1.439 | AD100: 0.009967099567
A101: 86 | B101: 2019-09-30 | C101: 295.970001 | D101: 298.459991 | E101: 284.820007 | F101: 294.350006 | G101: 412814300 | H101: 286.601471 | I101: 0.9736757777 | J101: 1 | K101: 288.18 | L101: 290.6 | M101: 277.32 | N101: 286.6 | O101: 412814300 | U101: 2000-03-17 | V101: 0.371 | W101: 153.5625 | X101: 200003 | Y101: 199903 | Z101: 1999-03-19 | AA101: 5 | AB101: 1 | AC101: 1.496 | AD101: 0.009741961742
A102: 87 | B102: 2019-09-23 | C102: 297.549988 | D102: 299.839996 | E102: 293.690002 | F102: 295.399994 | G102: 351126500 | H102: 287.62381 | I102: 0.9736757476 | J102: 1 | K102: 289.72 | L102: 291.95 | M102: 285.96 | N102: 287.62 | O102: 351126500 | U102: 1999-12-17 | V102: 0.348 | W102: 146.484375 | X102: 199912 | Y102: 199812 | Z102: 1998-12-18 | AA102: 5 | AB102: 1 | AC102: 1.445 | AD102: 0.009864533333
A103: 88 | B103: 2019-09-16 | C103: 299.839996 | D103: 302.630005 | E103: 297.410004 | F103: 298.279999 | G103: 339168000 | H103: 289.092987 | I103: 0.9692000401 | J103: 1 | K103: 290.6 | L103: 293.31 | M103: 288.25 | N103: 289.09 | O103: 339168000 | U103: 1999-09-17 | V103: 0.372 | W103: 127.75 | X103: 199909 | Y103: 199809 | Z103: 1998-09-18 | AA103: 5 | AB103: 1 | AC103: 1.489 | AD103: 0.0116555773
A104: 89 | B104: 2019-09-09 | C104: 299.140015 | D104: 302.459991 | E104: 295.970001 | F104: 301.089996 | G104: 313042000 | H104: 291.816437 | I104: 0.9692000428 | J104: 1 | K104: 289.93 | L104: 293.14 | M104: 286.85 | N104: 291.82 | O104: 313042000 | U104: 1999-06-18 | V104: 0.405 | W104: 131.703125 | X104: 199906 | Y104: 199806 | Z104: 1998-06-19 | AA104: 5 | AB104: 1 | AC104: 1.476 | AD104: 0.01120702337
A105: 90 | B105: 2019-09-02 | C105: 290.570007 | D105: 298.829987 | E105: 289.269989 | F105: 298.049988 | G105: 248831100 | H105: 288.870087 | I105: 0.9692001296 | J105: 1 | K105: 281.62 | L105: 289.63 | M105: 280.36 | N105: 288.87 | O105: 248831100 | U105: 1999-03-19 | V105: 0.32 | W105: 128.5625 | X105: 199903 | Y105: 199803 | Z105: 1998-03-20 | AA105: 5 | AB105: 1 | AC105: 1.423 | AD105: 0.01106854643
A106: 91 | B106: 2019-08-26 | C106: 287.269989 | D106: 294.23999 | E106: 285.25 | F106: 292.450012 | G106: 319590000 | H106: 283.442535 | I106: 0.9691999431 | J106: 1 | K106: 278.42 | L106: 285.18 | M106: 276.46 | N106: 283.44 | O106: 319590000 | U106: 1998-12-18 | V106: 0.392 | W106: 122.6875 | X106: 199812 | Y106: 199712 | Z106: 1997-12-19 | AA106: 5 | AB106: 1 | AC106: 1.416 | AD106: 0.01154151808
A107: 92 | B107: 2019-08-19 | C107: 292.190002 | D107: 293.929993 | E107: 283.470001 | F107: 284.850006 | G107: 355520800 | H107: 276.076599 | I107: 0.9691999059 | J107: 1 | K107: 283.19 | L107: 284.88 | M107: 274.74 | N107: 276.08 | O107: 355520800 | U107: 1998-09-18 | V107: 0.359 | W107: 104.25 | X107: 199809 | Y107: 199709 | Z107: 1997-09-19 | AA107: 5 | AB107: 1 | AC107: 1.404 | AD107: 0.0134676259
A108: 93 | B108: 2019-08-12 | C108: 289.959991 | D108: 294.149994 | E108: 282.390015 | F108: 288.850006 | G108: 478024400 | H108: 279.9534 | I108: 0.9691999106 | J108: 1 | K108: 281.03 | L108: 285.09 | M108: 273.69 | N108: 279.95 | O108: 478024400 | U108: 1998-06-19 | V108: 0.352 | W108: 113.6875 | X108: 199806 | Y108: 199706 | Z108: 1997-06-20 | AA108: 5 | AB108: 1 | AC108: 1.393 | AD108: 0.0122528862
A109: 94 | B109: 2019-08-05 | C109: 288.089996 | D109: 293.619995 | E109: 281.720001 | F109: 291.619995 | G109: 621473300 | H109: 282.638062 | I109: 0.9691998726 | J109: 1 | K109: 279.22 | L109: 284.58 | M109: 273.04 | N109: 282.64 | O109: 621473300 | U109: 1998-03-20 | V109: 0.313 | W109: 109.625 | X109: 199803 | Y109: 199703 | Z109: 1997-03-21 | AA109: 5 | AB109: 1 | AC109: 1.391 | AD109: 0.01268871152
A110: 95 | B110: 2019-07-29 | C110: 301.880005 | D110: 302.01001 | E110: 290.899994 | F110: 292.619995 | G110: 447617000 | H110: 283.60733 | I110: 0.9692001054 | J110: 1 | K110: 292.58 | L110: 292.71 | M110: 281.94 | N110: 283.61 | O110: 447617000 | U110: 1997-12-19 | V110: 0.38 | W110: 93.78125 | X110: 199712 | Y110: 199612 | Z110: 1996-12-20 | AA110: 5 | AB110: 1 | AC110: 1.377 | AD110: 0.01468310563
A111: 96 | B111: 2019-07-22 | C111: 297.609985 | D111: 302.230011 | E111: 297.040009 | F111: 302.01001 | G111: 235894000 | H111: 292.708038 | I111: 0.9691997891 | J111: 1 | K111: 288.44 | L111: 292.92 | M111: 287.89 | N111: 292.71 | O111: 235894000 | U111: 1997-09-19 | V111: 0.348 | W111: 94.46875 | X111: 199709 | Y111: 199609 | Z111: 1996-09-20 | AA111: 5 | AB111: 1 | AC111: 1.364 | AD111: 0.01443863712
A112: 97 | B112: 2019-07-15 | C112: 301.130005 | D112: 301.130005 | E112: 296.700012 | F112: 297.170013 | G112: 216657600 | H112: 288.017151 | I112: 0.9691999139 | J112: 1 | K112: 291.86 | L112: 291.86 | M112: 287.56 | N112: 288.02 | O112: 216657600 | U112: 1997-06-20 | V112: 0.35 | W112: 88.90625 | X112: 199706 | Y112: 199606 | Z112: 1996-06-21 | AA112: 5 | AB112: 1 | AC112: 1.368 | AD112: 0.01538699473
A113: 98 | B113: 2019-07-08 | C113: 297.01001 | D113: 300.730011 | E113: 295.480011 | F113: 300.649994 | G113: 236543700 | H113: 291.389984 | I113: 0.9692000326 | J113: 1 | K113: 287.86 | L113: 291.47 | M113: 286.38 | N113: 291.39 | O113: 236543700 | U113: 1997-03-21 | V113: 0.299 | W113: 77 | X113: 199703 | Y113: 199603 | Z113: 1996-03-15 | AA113: 5 | AB113: 1 | AC113: 1.369 | AD113: 0.01777922078
A114: 99 | B114: 2019-07-01 | C114: 296.679993 | D114: 298.820007 | E114: 294.329987 | F114: 298.459991 | G114: 232786300 | H114: 289.267426 | I114: 0.9692000091 | J114: 1 | K114: 287.54 | L114: 289.62 | M114: 285.26 | N114: 289.27 | O114: 232786300 | U114: 1996-12-20 | V114: 0.367 | W114: 75.875 | X114: 199612 | Y114: 199512 | Z114: 1995-12-15 | AA114: 5 | AB114: 1 | AC114: 1.355 | AD114: 0.0178583196
A115: 100 | B115: 2019-06-24 | C115: 294.230011 | D115: 294.579987 | E115: 290.350006 | F115: 293 | G115: 280902400 | H115: 283.975586 | I115: 0.9691999522 | J115: 1 | K115: 285.17 | L115: 285.51 | M115: 281.41 | N115: 283.98 | O115: 280902400 | U115: 1996-09-20 | V115: 0.352 | W115: 68.6875 | X115: 199609 | Y115: 199509 | Z115: 1995-09-15 | AA115: 5 | AB115: 1 | AC115: 1.37 | AD115: 0.01994540491
A116: 101 | B116: 2019-06-17 | C116: 289.519989 | D116: 296.309998 | E116: 289.179993 | F116: 294 | G116: 403194400 | H116: 283.565613 | I116: 0.9645088878 | J116: 1 | K116: 279.24 | L116: 285.79 | M116: 278.92 | N116: 283.57 | O116: 403194400 | U116: 1996-06-21 | V116: 0.351 | W116: 67.109375 | X116: 199606 | Y116: 199506 | Z116: 1995-06-16 | AA116: 5 | AB116: 1 | AC116: 1.33 | AD116: 0.01981839348
A117: 102 | B117: 2019-06-10 | C117: 289.369995 | D117: 291.399994 | E117: 287.820007 | F117: 289.26001 | G117: 267806600 | H117: 278.993866 | I117: 0.9645089413 | J117: 1 | K117: 279.1 | L117: 281.06 | M117: 277.6 | N117: 278.99 | O117: 267806600 | U117: 1996-03-15 | V117: 0.285 | W117: 65.15625 | X117: 199603 | Y117: 199503 | Z117: 1995-03-17 | AA117: 5 | AB117: 1 | AC117: 1.295 | AD117: 0.01987529976
A118: 103 | B118: 2019-06-03 | C118: 275.309998 | D118: 288.850006 | E118: 273.089996 | F118: 287.649994 | G118: 388532200 | H118: 277.440979 | I118: 0.964508899 | J118: 1 | K118: 265.54 | L118: 278.6 | M118: 263.4 | N118: 277.44 | O118: 388532200 | U118: 1995-12-15 | V118: 0.382 | W118: 61.203125 | X118: 199512 | Y118: 199412 | Z118: 1994-12-16 | AA118: 5 | AB118: 1 | AC118: 1.278 | AD118: 0.0208812867
A119: 104 | B119: 2019-05-27 | C119: 283.089996 | D119: 284.149994 | E119: 275.23999 | F119: 275.269989 | G119: 324388900 | H119: 265.500397 | I119: 0.9645090551 | J119: 1 | K119: 273.04 | L119: 274.07 | M119: 265.47 | N119: 265.5 | O119: 324388900 | U119: 1995-09-15 | V119: 0.312 | W119: 58.3125 | X119: 199509 | Y119: 199409 | Z119: 1994-09-16 | AA119: 5 | AB119: 1 | AC119: 1.259 | AD119: 0.02159056806
A120: 105 | B120: 2019-05-20 | C120: 284.059998 | D120: 286.929993 | E120: 280.570007 | F120: 282.779999 | G120: 313209100 | H120: 272.743835 | I120: 0.9645089326 | J120: 1 | K120: 273.98 | L120: 276.75 | M120: 270.61 | N120: 272.74 | O120: 313209100 | U120: 1995-06-16 | V120: 0.316 | W120: 55.015625 | X120: 199506 | Y120: 199406 | Z120: 1994-06-17 | AA120: 5 | AB120: 1 | AC120: 1.235 | AD120: 0.02244816813
A121: 106 | B121: 2019-05-13 | C121: 282.420013 | D121: 289.209991 | E121: 279.929993 | F121: 285.839996 | G121: 455352700 | H121: 275.69519 | I121: 0.9645087946 | J121: 1 | K121: 272.4 | L121: 278.95 | M121: 269.99 | N121: 275.7 | O121: 455352700 | U121: 1995-03-17 | V121: 0.268 | W121: 50.21875 | X121: 199503 | Y121: 199403 | Z121: 1994-03-18 | AA121: 5 | AB121: 1 | AC121: 1.224 | AD121: 0.02437336652
A122: 107 | B122: 2019-05-06 | C122: 289.25 | D122: 293.309998 | E122: 282.299988 | F122: 288.100006 | G122: 559396700 | H122: 277.875061 | I122: 0.9645090427 | J122: 1 | K122: 278.98 | L122: 282.9 | M122: 272.28 | N122: 277.88 | O122: 559396700 | U122: 1994-12-16 | V122: 0.363 | W122: 46.0625 | X122: 199412 | Y122: 199312 | Z122: 1993-12-17 | AA122: 5 | AB122: 1 | AC122: 1.227 | AD122: 0.02663772049
A123: 108 | B123: 2019-04-29 | C123: 293.51001 | D123: 294.950012 | E123: 289.519989 | F123: 294.029999 | G123: 331555200 | H123: 283.594574 | I123: 0.9645089786 | J123: 1 | K123: 283.09 | L123: 284.48 | M123: 279.24 | N123: 283.59 | O123: 331555200 | U123: 1994-09-16 | V123: 0.288 | W123: 45.90625 | X123: 199409 | Y123: 199309 | Z123: 1993-09-17 | AA123: 5 | AB123: 1 | AC123: 1.181 | AD123: 0.02572634445
A124: 109 | B124: 2019-04-22 | C124: 289.170013 | D124: 293.48999 | E124: 289.070007 | F124: 293.410004 | G124: 251486900 | H124: 282.996582 | I124: 0.9645089743 | J124: 1 | K124: 278.91 | L124: 283.07 | M124: 278.81 | N124: 283 | O124: 251486900 | U124: 1994-06-17 | V124: 0.305 | W124: 44.0625 | X124: 199406 | Y124: 199306 | Z124: 1993-06-18 | AA124: 5 | AB124: 1 | AC124: 1.179 | AD124: 0.02675744681
A125: 110 | B125: 2019-04-15 | C125: 290.23999 | D125: 291.429993 | E125: 288.660004 | F125: 290.019989 | G125: 228726700 | H125: 279.726898 | I125: 0.9645090291 | J125: 1 | K125: 279.94 | L125: 281.09 | M125: 278.42 | N125: 279.73 | O125: 228726700 | U125: 1994-03-18 | V125: 0.271 | W125: 45.9375 | X125: 199403 | Y125: 199303 | Z125: 1993-03-19 | AA125: 5 | AB125: 1 | AC125: 1.192 | AD125: 0.02594829932
A126: 111 | B126: 2019-04-08 | C126: 288.100006 | D126: 290.470001 | E126: 286.700012 | F126: 290.160004 | G126: 297131000 | H126: 279.861938 | I126: 0.9645090093 | J126: 1 | K126: 277.88 | L126: 280.16 | M126: 276.52 | N126: 279.86 | O126: 297131000 | U126: 1993-12-17 | V126: 0.317 | W126: 46.75 | X126: 199312 | Y126: 199212 | Z126: 1993-03-19 | AA126: 4 | AB126: 0 | AC126: 1.134 | AD126: 0.02425668449
A127: 112 | B127: 2019-04-01 | C127: 284.700012 | D127: 288.630005 | E127: 284.399994 | F127: 288.570007 | G127: 293550700 | H127: 278.328339 | I127: 0.9645088964 | J127: 1 | K127: 274.6 | L127: 278.39 | M127: 274.31 | N127: 278.33 | O127: 293550700 | U127: 1993-09-17 | V127: 0.286 | W127: 45.78125 | X127: 199309 | Y127: 199209 | Z127: 1993-03-19 | AA127: 3 | AB127: 0 | AC127: 0.817 | AD127: 0.01784573379
A128: 113 | B128: 2019-03-25 | C128: 278.869995 | D128: 282.839996 | E128: 277.640015 | F128: 282.480011 | G128: 364351100 | H128: 272.454498 | I128: 0.9645089471 | J128: 1 | K128: 268.97 | L128: 272.8 | M128: 267.79 | N128: 272.45 | O128: 364351100 | U128: 1993-06-18 | V128: 0.318 | W128: 44.78125 | X128: 199306 | Y128: 199206 | Z128: 1993-03-19 | AA128: 2 | AB128: 0 | AC128: 0.531 | AD128: 0.01185764131
A129: 114 | B129: 2019-03-18 | C129: 281.549988 | D129: 285.179993 | E129: 279.179993 | F129: 279.25 | G129: 439286800 | H129: 269.339142 | I129: 0.9645090134 | J129: 1 | K129: 271.56 | L129: 275.06 | M129: 269.27 | N129: 269.34 | O129: 439286800 | U129: 1993-03-19 | V129: 0.213 | W129: 44.90625 | X129: 199303 | Y129: 199203 | Z129: 1993-03-19 | AA129: 1 | AB129: 1 | AC129: 0.213 | AD129: 0.004743215031
A130: 115 | B130: 2019-03-11 | C130: 275.26001 | D130: 282.380005 | E130: 275.230011 | F130: 281.309998 | G130: 374233000 | H130: 270.136169 | I130: 0.9602793037 | J130: 1 | K130: 264.33 | L130: 271.16 | M130: 264.3 | N130: 270.14 | O130: 374233000
A131: 116 | B131: 2019-03-04 | C131: 281.600006 | D131: 281.869995 | E131: 272.420013 | F131: 274.459991 | G131: 421329900 | H131: 263.558197 | I131: 0.9602791141 | J131: 1 | K131: 270.41 | L131: 270.67 | M131: 261.6 | N131: 263.56 | O131: 421329900
A132: 117 | B132: 2019-02-25 | C132: 280.730011 | D132: 281.309998 | E132: 277.480011 | F132: 280.420013 | G132: 330945200 | H132: 269.281525 | I132: 0.9602792687 | J132: 1 | K132: 269.58 | L132: 270.14 | M132: 266.46 | N132: 269.28 | O132: 330945200
A133: 118 | B133: 2019-02-18 | C133: 276.480011 | D133: 279.359985 | E133: 276.350006 | F133: 279.140015 | G133: 278060900 | H133: 268.052338 | I133: 0.960279156 | J133: 1 | K133: 265.5 | L133: 268.26 | M133: 265.37 | N133: 268.05 | O133: 278060900
A134: 119 | B134: 2019-02-11 | C134: 271.200012 | D134: 277.410004 | E134: 270.029999 | F134: 277.369995 | G134: 385891900 | H134: 266.3526 | I134: 0.960279067 | J134: 1 | K134: 260.43 | L134: 266.39 | M134: 259.3 | N134: 266.35 | O134: 385891900
A135: 120 | B135: 2019-02-04 | C135: 270.109985 | D135: 273.440002 | E135: 267.829987 | F135: 270.470001 | G135: 369916300 | H135: 259.726715 | I135: 0.9602791956 | J135: 1 | K135: 259.38 | L135: 262.58 | M135: 257.19 | N135: 259.73 | O135: 369916300
A136: 121 | B136: 2019-01-28 | C136: 263.390015 | D136: 271.200012 | E136: 261.790009 | F136: 270.059998 | G136: 434018300 | H136: 259.333008 | I136: 0.960279234 | J136: 1 | K136: 252.93 | L136: 260.43 | M136: 251.39 | N136: 259.33 | O136: 434018300
A137: 122 | B137: 2019-01-21 | C137: 264.820007 | D137: 266.700012 | E137: 260.660004 | F137: 265.779999 | G137: 357649000 | H137: 255.223007 | I137: 0.9602792082 | J137: 1 | K137: 254.3 | L137: 256.11 | M137: 250.31 | N137: 255.22 | O137: 357649000
A138: 123 | B138: 2019-01-14 | C138: 256.859985 | D138: 266.980011 | E138: 256.410004 | F138: 266.459991 | G138: 457771900 | H138: 255.876007 | I138: 0.9602792751 | J138: 1 | K138: 246.66 | L138: 256.38 | M138: 246.23 | N138: 255.88 | O138: 457771900
A139: 124 | B139: 2019-01-07 | C139: 252.690002 | D139: 259.160004 | E139: 251.690002 | F139: 258.980011 | G139: 471340300 | H139: 248.693115 | I139: 0.9602791893 | J139: 1 | K139: 242.65 | L139: 248.87 | M139: 241.69 | N139: 248.69 | O139: 471340300
A140: 125 | B140: 2018-12-31 | C140: 249.559998 | D140: 253.110001 | E140: 243.669998 | F140: 252.389999 | G140: 557994100 | H140: 242.364868 | I140: 0.9602792066 | J140: 1 | K140: 239.65 | L140: 243.06 | M140: 233.99 | N140: 242.36 | O140: 557994100
A141: 126 | B141: 2018-12-24 | C141: 239.039993 | D141: 251.399994 | E141: 233.759995 | F141: 247.75 | G141: 705164500 | H141: 237.909164 | I141: 0.9602791685 | J141: 1 | K141: 229.55 | L141: 241.41 | M141: 224.47 | N141: 237.91 | O141: 705164500
A142: 127 | B142: 2018-12-17 | C142: 259.399994 | D142: 260.649994 | E142: 239.979996 | F142: 240.699997 | G142: 1022399200 | H142: 229.797256 | I142: 0.9547040252 | J142: 1 | K142: 247.65 | L142: 248.84 | M142: 229.11 | N142: 229.8 | O142: 1022399200
A143: 128 | B143: 2018-12-10 | C143: 263.369995 | D143: 269 | E143: 258.619995 | F143: 260.470001 | G143: 584550800 | H143: 248.671768 | I143: 0.9547040621 | J143: 1 | K143: 251.44 | L143: 256.82 | M143: 246.91 | N143: 248.67 | O143: 584550800
A144: 129 | B144: 2018-12-03 | C144: 280.279999 | D144: 280.399994 | E144: 262.440002 | F144: 263.570007 | G144: 646366600 | H144: 251.631332 | I144: 0.9547039698 | J144: 1 | K144: 267.58 | L144: 267.7 | M144: 250.55 | N144: 251.63 | O144: 646366600
A145: 130 | B145: 2018-11-26 | C145: 265.779999 | D145: 276.279999 | E145: 265.339996 | F145: 275.649994 | G145: 463664000 | H145: 263.164185 | I145: =IF(F145=0,1,H145/F145) -> 0.9547041202 | J145: =INDEX(OFFSET($T$15,0,0,$S$13+1,1),MATCH(B145,OFFSET($Q$15,0,0,$S$13+1,1),-1)) -> 1 | K145: =ROUND($I145*C145,2) -> 253.74 | L145: =ROUND($I145*D145,2) -> 263.77 | M145: =ROUND($I145*E145,2) -> 253.32 | N145: =ROUND($I145*F145,2) -> 263.16 | O145: =G145*J145 -> 463664000
A146: 131 | B146: 2018-11-19 | C146: 273.049988 | D146: 273.380005 | E146: 263.070007 | F146: 263.25 | G146: 357454600 | H146: 251.325836 | I146: 0.9547040304 | J146: 1 | K146: 260.68 | L146: 261 | M146: 251.15 | N146: 251.33 | O146: 357454600
A147: 132 | B147: 2018-11-12 | C147: 277.190002 | D147: 277.459991 | E147: 267.01001 | F147: 273.730011 | G147: 584955500 | H147: 261.331146 | I147: 0.954704035 | J147: 1 | K147: 264.63 | L147: 264.89 | M147: 254.92 | N147: 261.33 | O147: 584955500
A148: 133 | B148: 2018-11-05 | C148: 272.440002 | D148: 281.220001 | E148: 271.350006 | F148: 277.76001 | G148: 392858000 | H148: 265.178619 | I148: 0.9547040951 | J148: 1 | K148: 260.1 | L148: 268.48 | M148: 259.06 | N148: 265.18 | O148: 392858000
A149: 134 | B149: 2018-10-29 | C149: 268.799988 | D149: 275.230011 | E149: 259.850006 | F149: 271.890015 | G149: 668290500 | H149: 259.574493 | I149: 0.9547040299 | J149: 1 | K149: 256.62 | L149: 262.76 | M149: 248.08 | N149: 259.57 | O149: 668290500
A150: 135 | B150: 2018-10-22 | C150: 277 | D150: 277.359985 | E150: 262.290009 | F150: 265.329987 | G150: 746211300 | H150: 253.311615 | I150: 0.9547040569 | J150: 1 | K150: 264.45 | L150: 264.8 | M150: 250.41 | N150: 253.31 | O150: 746211300
A151: 136 | B151: 2018-10-15 | C151: 275.549988 | D151: 281.149994 | E151: 274.299988 | F151: 276.25 | G151: 605604600 | H151: 263.73703 | I151: 0.954704181 | J151: 1 | K151: 263.07 | L151: 268.42 | M151: 261.88 | N151: 263.74 | O151: 605604600
A152: 137 | B152: 2018-10-08 | C152: 287.049988 | D152: 288.859985 | E152: 270.359985 | F152: 275.950012 | G152: 834839200 | H152: 263.450592 | I152: 0.9547040426 | J152: 1 | K152: 274.05 | L152: 275.78 | M152: 258.11 | N152: 263.45 | O152: 834839200
A153: 138 | B153: 2018-10-01 | C153: 292.109985 | D153: 293.209991 | E153: 286.220001 | F153: 287.820007 | G153: 391529300 | H153: 274.782898 | I153: 0.9547039515 | J153: 1 | K153: 278.88 | L153: 279.93 | M153: 273.26 | N153: 274.78 | O153: 391529300
A154: 139 | B154: 2018-09-24 | C154: 291.339996 | D154: 292.23999 | E154: 289.410004 | F154: 290.720001 | G154: 306860200 | H154: 277.551575 | I154: 0.9547040934 | J154: 1 | K154: 278.14 | L154: 279 | M154: 276.3 | N154: 277.55 | O154: 306860200
A155: 140 | B155: 2018-09-17 | C155: 290.820007 | D155: 293.940002 | E155: 289.029999 | F155: 291.98999 | G155: 385095300 | H155: 277.507813 | I155: 0.9504018032 | J155: 1 | K155: 276.4 | L155: 279.36 | M155: 274.69 | N155: 277.51 | O155: 385095300
A156: 141 | B156: 2018-09-10 | C156: 288.73999 | D156: 291.269989 | E156: 286.980011 | F156: 290.880005 | G156: 266666300 | H156: 276.45282 | I156: 0.9504015926 | J156: 1 | K156: 274.42 | L156: 276.82 | M156: 272.75 | N156: 276.45 | O156: 266666300
A157: 142 | B157: 2018-09-03 | C157: 289.839996 | D157: 290.209991 | E157: 286.709991 | F157: 287.600006 | G157: 269481500 | H157: 273.335541 | I157: 0.9504017222 | J157: 1 | K157: 275.46 | L157: 275.82 | M157: 272.49 | N157: 273.34 | O157: 269481500
A158: 143 | B158: 2018-08-27 | C158: 288.859985 | D158: 291.73999 | E158: 288.679993 | F158: 290.309998 | G158: 292871700 | H158: 275.911133 | I158: 0.9504017598 | J158: 1 | K158: 274.53 | L158: 277.27 | M158: 274.36 | N158: 275.91 | O158: 292871700
A159: 144 | B159: 2018-08-20 | C159: 285.570007 | D159: 287.670013 | E159: 285.059998 | F159: 287.51001 | G159: 258765100 | H159: 273.25 | I159: 0.9504016921 | J159: 1 | K159: 271.41 | L159: 273.4 | M159: 270.92 | N159: 273.25 | O159: 258765100
A160: 145 | B160: 2018-08-13 | C160: 283.470001 | D160: 285.559998 | E160: 280.160004 | F160: 285.059998 | G160: 348086700 | H160: 270.921539 | I160: 0.9504018133 | J160: 1 | K160: 269.41 | L160: 271.4 | M160: 266.26 | N160: 270.92 | O160: 348086700
A161: 146 | B161: 2018-08-06 | C161: 283.640015 | D161: 286.01001 | E161: 282.359985 | F161: 283.160004 | G161: 237505100 | H161: 269.115723 | I161: 0.9504016076 | J161: 1 | K161: 269.57 | L161: 271.82 | M161: 268.36 | N161: 269.12 | O161: 237505100
A162: 147 | B162: 2018-07-30 | C162: 281.51001 | D162: 283.660004 | E162: 279.160004 | F162: 283.600006 | G162: 303528100 | H162: 269.533936 | I162: 0.9504017288 | J162: 1 | K162: 267.55 | L162: 269.59 | M162: 265.31 | N162: 269.53 | O162: 303528100
A163: 148 | B163: 2018-07-23 | C163: 279.450012 | D163: 284.369995 | E163: 279.059998 | F163: 281.420013 | G163: 328645600 | H163: 267.462036 | I163: 0.9504016191 | J163: 1 | K163: 265.59 | L163: 270.27 | M163: 265.22 | N163: 267.46 | O163: 328645600
A164: 149 | B164: 2018-07-16 | C164: 279.640015 | D164: 281.179993 | E164: 278.410004 | F164: 279.679993 | G164: 288859800 | H164: 265.808319 | I164: 0.950401622 | J164: 1 | K164: 265.77 | L164: 267.23 | M164: 264.6 | N164: 265.81 | O164: 288859800
A165: 150 | B165: 2018-07-09 | C165: 276.549988 | D165: 279.929993 | E165: 276.5 | F165: 279.589996 | G165: 287912600 | H165: 265.722809 | I165: 0.9504017054 | J165: 1 | K165: 262.83 | L165: 266.05 | M165: 262.79 | N165: 265.72 | O165: 287912600
A166: 151 | B166: 2018-07-02 | C166: 269.51001 | D166: 275.839996 | E166: 269.23999 | F166: 275.420013 | G166: 229161500 | H166: 261.759613 | I166: 0.9504015709 | J166: 1 | K166: 256.14 | L166: 262.16 | M166: 255.89 | N166: 261.76 | O166: 229161500
A167: 152 | B167: 2018-06-25 | C167: 273.440002 | D167: 273.869995 | E167: 268.48999 | F167: 271.279999 | G167: 485755300 | H167: 257.824951 | I167: 0.9504016218 | J167: 1 | K167: 259.88 | L167: 260.29 | M167: 255.17 | N167: 257.82 | O167: 485755300
A168: 153 | B168: 2018-06-18 | C168: 275.48999 | D168: 276.720001 | E168: 273.529999 | F168: 274.73999 | G168: 330194500 | H168: 261.113373 | I168: 0.9504017708 | J168: 1 | K168: 261.83 | L168: 263 | M168: 259.96 | N168: 261.11 | O168: 330194500
A169: 154 | B169: 2018-06-11 | C169: 278.440002 | D169: 279.480011 | E169: 275.350006 | F169: 277.130005 | G169: 407431300 | H169: 262.207397 | I169: 0.9461530411 | J169: 1 | K169: 263.45 | L169: 264.43 | M169: 260.52 | N169: 262.21 | O169: 407431300
A170: 155 | B170: 2018-06-04 | C170: 274.529999 | D170: 278.279999 | E170: 274.179993 | F170: 278.190002 | G170: 304361500 | H170: 263.210358 | I170: 0.9461531907 | J170: 1 | K170: 259.75 | L170: 263.3 | M170: 259.42 | N170: 263.21 | O170: 304361500
A171: 156 | B171: 2018-05-28 | C171: 270.309998 | D171: 273.940002 | E171: 267.76001 | F171: 273.600006 | G171: 350365300 | H171: 258.867554 | I171: 0.9461533199 | J171: 1 | K171: 255.75 | L171: 259.19 | M171: 253.34 | N171: 258.87 | O171: 350365300
A172: 157 | B172: 2018-05-21 | C172: 273.01001 | D172: 274.25 | E172: 270.779999 | F172: 272.149994 | G172: 308105100 | H172: 257.495575 | I172: 0.9461531533 | J172: 1 | K172: 258.31 | L172: 259.48 | M172: 256.2 | N172: 257.5 | O172: 308105100
A173: 158 | B173: 2018-05-14 | C173: 273.339996 | D173: 274.079987 | E173: 270.029999 | F173: 271.329987 | G173: 316673700 | H173: 256.719727 | I173: 0.9461531688 | J173: 1 | K173: 258.62 | L173: 259.32 | M173: 255.49 | N173: 256.72 | O173: 316673700
A174: 159 | B174: 2018-05-07 | C174: 266.890015 | D174: 273.149994 | E174: 265.149994 | F174: 272.850006 | G174: 314405600 | H174: 258.157867 | I174: 0.946153056 | J174: 1 | K174: 252.52 | L174: 258.44 | M174: 250.87 | N174: 258.16 | O174: 314405600
A175: 160 | B175: 2018-04-30 | C175: 267.26001 | D175: 267.890015 | E175: 259.049988 | F175: 266.019989 | G175: 470288200 | H175: 251.695648 | I175: 0.9461531404 | J175: 1 | K175: 252.87 | L175: 253.46 | M175: 245.1 | N175: 251.7 | O175: 470288200
A176: 161 | B176: 2018-04-23 | C176: 267.26001 | D176: 267.980011 | E176: 260.850006 | F176: 266.559998 | G176: 407069900 | H176: 252.206604 | I176: 0.9461532334 | J176: 1 | K176: 252.87 | L176: 253.55 | M176: 246.8 | N176: 252.21 | O176: 407069900
A177: 162 | B177: 2018-04-16 | C177: 267 | D177: 271.299988 | E177: 265.609985 | F177: 266.609985 | G177: 363000200 | H177: 252.253922 | I177: 0.9461533183 | J177: 1 | K177: 252.62 | L177: 256.69 | M177: 251.31 | N177: 252.25 | O177: 363000200
A178: 163 | B178: 2018-04-09 | C178: 261.369995 | D178: 267.540009 | E178: 259.940002 | F178: 265.149994 | G178: 454081800 | H178: 250.872467 | I178: 0.9461530178 | J178: 1 | K178: 247.3 | L178: 253.13 | M178: 245.94 | N178: 250.87 | O178: 454081800
A179: 164 | B179: 2018-04-02 | C179: 262.549988 | D179: 266.640015 | E179: 254.669998 | F179: 259.720001 | G179: 692132300 | H179: 245.734894 | I179: 0.9461531382 | J179: 1 | K179: 248.41 | L179: 252.28 | M179: 240.96 | N179: 245.73 | O179: 692132300
A180: 165 | B180: 2018-03-26 | C180: 262.130005 | D180: 266.769989 | E180: 258.579987 | F180: 263.149994 | G180: 529951400 | H180: 248.980209 | I180: 0.9461532004 | J180: 1 | K180: 248.02 | L180: 252.41 | M180: 244.66 | N180: 248.98 | O180: 529951400
A181: 166 | B181: 2018-03-19 | C181: 273.350006 | D181: 274.399994 | E181: 257.829987 | F181: 258.049988 | G181: 579996000 | H181: 244.1548 | I181: 0.9461531151 | J181: 1 | K181: 258.63 | L181: 259.62 | M181: 243.95 | N181: 244.15 | O181: 579996000
A182: 167 | B182: 2018-03-12 | C182: 279.200012 | D182: 280.410004 | E182: 274.140015 | F182: 274.200012 | G182: 453565500 | H182: 258.40033 | I182: 0.9423789887 | J182: 1 | K182: 263.11 | L182: 264.25 | M182: 258.34 | N182: 258.4 | O182: 453565500
A183: 168 | B183: 2018-03-05 | C183: 267.730011 | D183: 278.869995 | E183: 267.609985 | F183: 278.869995 | G183: 444110600 | H183: 262.801239 | I183: 0.942379043 | J183: 1 | K183: 252.3 | L183: 262.8 | M183: 252.19 | N183: 262.8 | O183: 444110600
A184: 169 | B184: 2018-02-26 | C184: 275.929993 | D184: 278.920013 | E184: 264.820007 | F184: 269.079987 | G184: 623436700 | H184: 253.575333 | I184: 0.9423790146 | J184: 1 | K184: 260.03 | L184: 262.85 | M184: 249.56 | N184: 253.58 | O184: 623436700
A185: 170 | B185: 2018-02-19 | C185: 272.029999 | D185: 274.720001 | E185: 269.640015 | F185: 274.709991 | G185: 388531100 | H185: 258.88092 | I185: 0.9423789759 | J185: 1 | K185: 256.36 | L185: 258.89 | M185: 254.1 | N185: 258.88 | O185: 388531100
A186: 171 | B186: 2018-02-12 | C186: 263.829987 | D186: 275.320007 | E186: 261.660004 | F186: 273.109985 | G186: 617315700 | H186: 257.373077 | I186: 0.9423788625 | J186: 1 | K186: 248.63 | L186: 259.46 | M186: 246.58 | N186: 257.37 | O186: 617315700
A187: 172 | B187: 2018-02-05 | C187: 273.450012 | D187: 275.850006 | E187: 252.919998 | F187: 261.5 | G187: 1347099500 | H187: 246.432068 | I187: 0.9423788451 | J187: 1 | K187: 257.69 | L187: 259.96 | M187: 238.35 | N187: 246.43 | O187: 1347099500
A188: 173 | B188: 2018-01-29 | C188: 285.929993 | D188: 286.429993 | E188: 275.410004 | F188: 275.450012 | G188: 593556800 | H188: 259.578278 | I188: 0.9423788952 | J188: 1 | K188: 269.45 | L188: 269.93 | M188: 259.54 | N188: 259.58 | O188: 593556800
A189: 174 | B189: 2018-01-22 | C189: 280.170013 | D189: 286.630005 | E189: 280.109985 | F189: 286.579987 | G189: 515553600 | H189: 270.066925 | I189: 0.9423788724 | J189: 1 | K189: 264.03 | L189: 270.11 | M189: 263.97 | N189: 270.07 | O189: 515553600
A190: 175 | B190: 2018-01-15 | C190: 279.350006 | D190: 280.410004 | E190: 276.179993 | F190: 280.410004 | G190: 461462000 | H190: 264.252472 | I190: 0.9423789031 | J190: 1 | K190: 263.25 | L190: 264.25 | M190: 260.27 | N190: 264.25 | O190: 461462000
A191: 176 | B191: 2018-01-08 | C191: 273.309998 | D191: 278.109985 | E191: 272.920013 | F191: 277.920013 | G191: 337325100 | H191: 261.905975 | I191: 0.9423789679 | J191: 1 | K191: 257.56 | L191: 262.09 | M191: 257.19 | N191: 261.91 | O191: 337325100
A192: 177 | B192: 2018-01-01 | C192: 267.839996 | D192: 273.559998 | E192: 267.399994 | F192: 273.420013 | G192: 340886500 | H192: 257.665283 | I192: 0.9423790167 | J192: 1 | K192: 252.41 | L192: 257.8 | M192: 251.99 | N192: 257.67 | O192: 340886500
A193: 178 | B193: 2017-12-25 | C193: 267.049988 | D193: 268.549988 | E193: 266.640015 | F193: 266.859985 | G193: 244118900 | H193: 251.483246 | I193: 0.9423790007 | J193: 1 | K193: 251.66 | L193: 253.08 | M193: 251.28 | N193: 251.48 | O193: 244118900
A194: 179 | B194: 2017-12-18 | C194: 268.100006 | D194: 268.600006 | E194: 266.690002 | F194: 267.51001 | G194: 388541200 | H194: 252.09581 | I194: 0.9423789786 | J194: 1 | K194: 252.65 | L194: 253.12 | M194: 251.32 | N194: 252.1 | O194: 388541200
A195: 180 | B195: 2017-12-11 | C195: 266.309998 | D195: 267.559998 | E195: 265.390015 | F195: 266.51001 | G195: 516455700 | H195: 249.87616 | I195: 0.9375863968 | J195: 1 | K195: 249.69 | L195: 250.86 | M195: 248.83 | N195: 249.88 | O195: 516455700
A196: 181 | B196: 2017-12-04 | C196: 266.309998 | D196: 266.799988 | E196: 262.709991 | F196: 265.51001 | G196: 401716200 | H196: 248.938614 | I196: 0.937586549 | J196: 1 | K196: 249.69 | L196: 250.15 | M196: 246.31 | N196: 248.94 | O196: 401716200
A197: 182 | B197: 2017-11-27 | C197: 260.410004 | D197: 266.049988 | E197: 260 | F197: 264.459991 | G197: 521044000 | H197: 247.954117 | I197: 0.9375864987 | J197: 1 | K197: 244.16 | L197: 249.44 | M197: 243.77 | N197: 247.95 | O197: 521044000
A198: 183 | B198: 2017-11-20 | C198: 258.140015 | D198: 260.480011 | E198: 257.859985 | F198: 260.359985 | G198: 190142200 | H198: 244.10997 | I198: 0.9375863576 | J198: 1 | K198: 242.03 | L198: 244.22 | M198: 241.77 | N198: 244.11 | O198: 190142200
A199: 184 | B199: 2017-11-13 | C199: 257.309998 | D199: 259.040009 | E199: 255.630005 | F199: 257.859985 | G199: 335889100 | H199: 241.766022 | I199: 0.937586427 | J199: 1 | K199: 241.25 | L199: 242.87 | M199: 239.68 | N199: 241.77 | O199: 335889100
A200: 185 | B200: 2017-11-06 | C200: 258.299988 | D200: 259.350006 | E200: 256.359985 | F200: 258.089996 | G200: 312694600 | H200: 241.981644 | I200: 0.9375862984 | J200: 1 | K200: 242.18 | L200: 243.16 | M200: 240.36 | N200: 241.98 | O200: 312694600
... 1293 more rows

Sheet InputIndexData
A1: CBOE Volatility Index (^VIX) -Chicago Options (Weekly)
M2: To retrieve data for symbols traded on non US Exchanges, | II2: 241.79
A3: Request Online Yahoo History for: | F3: Market State == > | G3: As of | H3: 15:37:00 | I3: EDT. Market open. | M3: you will need to append the dot-suffix for the exchange to the symbol.
A4: Symbol | B4: ^VIX | D4: Valid | I4: =OFFSET(I4,-2,0,1,1) -> 0 | M4: The following links provide a description of how to use the exchange suffix
A5: From | B5: 1950-10-01 | D5: Data | M5: along with a list of suffixes for the major world exchanges. | AD5: Trailing 12 Div return (Cur Close)
A6: To | B6: =NOW() -> 2021-05-17T16:18:32.330 | D6: Types | E6: =VLOOKUP(B7,D7:E10,2,FALSE) -> w | M6: https://help.yahoo.com/kb/finance/SLN2310.html
A7: Data Type | B7: Weekly | D7: Daily | E7: d | M7: And
A8: Crumb | B8: jqoMqYsRwIZ | D8: Weekly | E8: w | M8: https://www.stockmarketeye.com/users-guide/ticker-symbols-and-data-providers/data-providers.html
A9: Available Data | D9: Monthly | E9: m
A10: Bar Count: | B10: 1638 | M10: You may search on “exchange suffixes” for additional discussions | AD10: =OFFSET(AC15,1,0,1,1)/OFFSET(N15,1,0,1,1) -> 0
A11: From: | B11: =IF(B10<=0,"",OFFSET(B15,B10,IF(HistReqDataType="v",1,0),1,1)) -> 1990-01-01 | W11: Trailing 12 Month Dividend Returns
A12: To: | B12: =IF(B10<=0,"",IF(HistReqDataType="v",OFFSET(B15,2,1,1,1),OFFSET(B15,1,0,1,1))) -> 2021-05-17 | W12: Raw Close price on Dividend date | X12: Div Year and Month | Y12: Looking for year ago Div Year and Month | Z12: Year ago Div Date we found | AA12: row offset to year ago div Date | AB12: Same month flag | AC12: Trailing 12 Div Total | AD12: Trailing 12 Div return
Q13: Split History | S13: 0 | T13: Running | U13: Dividend History
B14: Raw Data Values | H14: Adjusted | I14: Price Adjust | J14: Vol Adjust | K14: Adjusted Values | P14: Last | Q14: Effective | R14: Shares | T14: Vol Adjust | V14: 0
A15: RelRow | B15: Date | C15: Open | D15: High | E15: Low | F15: Close | G15: Volume | H15: Close | I15: Factor | J15: Factor | K15: Open | L15: High | M15: Low | N15: Close | O15: Volume | P15: Trade | Q15: 44334 | R15: New | S15: Old | T15: 1 | U15: Date | V15: $ / Share
A16: 1 | B16: 2021-05-17 | C16: 19.889999 | D16: 21.58 | E16: 19.82 | F16: 20.540001 | G16: 0 | H16: 20.540001 | I16: =IF(F16=0,1,H16/F16) -> 1 | J16: =INDEX(OFFSET($T$15,0,0,$S$13+1,1),MATCH(B16,OFFSET($Q$15,0,0,$S$13+1,1),-1)) -> 1 | K16: =ROUND($I16*C16,2) -> 19.89 | L16: =ROUND($I16*D16,2) -> 21.58 | M16: 19.82 | N16: 20.54 | O16: =G16*J16 -> 0
A17: 2 | B17: 2021-05-10 | C17: 17.34 | D17: 28.93 | E17: 17.07 | F17: 18.809999 | G17: 0 | H17: 18.809999 | I17: =IF(F17=0,1,H17/F17) -> 1 | J17: =INDEX(OFFSET($T$15,0,0,$S$13+1,1),MATCH(B17,OFFSET($Q$15,0,0,$S$13+1,1),-1)) -> 1 | K17: =ROUND($I17*C17,2) -> 17.34 | L17: =ROUND($I17*D17,2) -> 28.93 | M17: =ROUND($I17*E17,2) -> 17.07 | N17: =ROUND($I17*F17,2) -> 18.81 | O17: =G17*J17 -> 0
A18: 3 | B18: 2021-05-03 | C18: 18.65 | D18: 21.85 | E18: 16.68 | F18: 16.690001 | G18: 0 | H18: 16.690001 | I18: 1 | J18: 1 | K18: 18.65 | L18: 21.85 | M18: 16.68 | N18: 16.69 | O18: 0
A19: 4 | B19: 2021-04-26 | C19: 17.940001 | D19: 19.25 | E19: 16.67 | F19: 18.610001 | G19: 0 | H19: 18.610001 | I19: 1 | J19: 1 | K19: 17.94 | L19: 19.25 | M19: 16.67 | N19: 18.61 | O19: 0
A20: 5 | B20: 2021-04-19 | C20: 17.040001 | D20: 19.9 | E20: 16.780001 | F20: 17.33 | G20: 0 | H20: 17.33 | I20: 1 | J20: 1 | K20: 17.04 | L20: 19.9 | M20: 16.78 | N20: 17.33 | O20: 0
A21: 6 | B21: 2021-04-12 | C21: 17.43 | D21: 17.91 | E21: 15.38 | F21: 16.25 | G21: 0 | H21: 16.25 | I21: 1 | J21: 1 | K21: 17.43 | L21: 17.91 | M21: 15.38 | N21: 16.25 | O21: 0
A22: 7 | B22: 2021-04-05 | C22: 18.16 | D22: 18.4 | E22: 16.200001 | F22: 16.690001 | G22: 0 | H22: 16.690001 | I22: 1 | J22: 1 | K22: 18.16 | L22: 18.4 | M22: 16.2 | N22: 16.69 | O22: 0
A23: 8 | B23: 2021-03-29 | C23: 20.4 | D23: 21.75 | E23: 17.290001 | F23: 17.33 | G23: 0 | H23: 17.33 | I23: 1 | J23: 1 | K23: 20.4 | L23: 21.75 | M23: 17.29 | N23: 17.33 | O23: 0
A24: 9 | B24: 2021-03-22 | C24: 21.91 | D24: 23.549999 | E24: 18.68 | F24: 18.860001 | G24: 0 | H24: 18.860001 | I24: 1 | J24: 1 | K24: 21.91 | L24: 23.55 | M24: 18.68 | N24: 18.86 | O24: 0
A25: 10 | B25: 2021-03-15 | C25: 21.84 | D25: 23.17 | E25: 18.950001 | F25: 20.950001 | G25: 0 | H25: 20.950001 | I25: 1 | J25: 1 | K25: 21.84 | L25: 23.17 | M25: 18.95 | N25: 20.95 | O25: 0
A26: 11 | B26: 2021-03-08 | C26: 27.610001 | D26: 28.389999 | E26: 20.629999 | F26: 20.690001 | G26: 0 | H26: 20.690001 | I26: 1 | J26: 1 | K26: 27.61 | L26: 28.39 | M26: 20.63 | N26: 20.69 | O26: 0
A27: 12 | B27: 2021-03-01 | C27: 25.200001 | D27: 31.9 | E27: 22.450001 | F27: 24.66 | G27: 0 | H27: 24.66 | I27: 1 | J27: 1 | K27: 25.2 | L27: 31.9 | M27: 22.45 | N27: 24.66 | O27: 0
A28: 13 | B28: 2021-02-22 | C28: 24.459999 | D28: 31.16 | E28: 21.309999 | F28: 27.950001 | G28: 0 | H28: 27.950001 | I28: 1 | J28: 1 | K28: 24.46 | L28: 31.16 | M28: 21.31 | N28: 27.95 | O28: 0
A29: 14 | B29: 2021-02-15 | C29: 21.129999 | D29: 24.23 | E29: 20.84 | F29: 22.049999 | G29: 0 | H29: 22.049999 | I29: 1 | J29: 1 | K29: 21.13 | L29: 24.23 | M29: 20.84 | N29: 22.05 | O29: 0
A30: 15 | B30: 2021-02-08 | C30: 21.889999 | D30: 23.85 | E30: 19.690001 | F30: 19.969999 | G30: 0 | H30: 19.969999 | I30: 1 | J30: 1 | K30: 21.89 | L30: 23.85 | M30: 19.69 | N30: 19.97 | O30: 0
A31: 16 | B31: 2021-02-01 | C31: 31.450001 | D31: 33.959999 | E31: 20.860001 | F31: 20.870001 | G31: 0 | H31: 20.870001 | I31: 1 | J31: 1 | K31: 31.45 | L31: 33.96 | M31: 20.86 | N31: 20.87 | O31: 0
A32: 17 | B32: 2021-01-25 | C32: 22.309999 | D32: 37.509998 | E32: 22.200001 | F32: 33.09 | G32: 0 | H32: 33.09 | I32: 1 | J32: 1 | K32: 22.31 | L32: 37.51 | M32: 22.2 | N32: 33.09 | O32: 0
A33: 18 | B33: 2021-01-18 | C33: 23.030001 | D33: 23.73 | E33: 21.09 | F33: 21.91 | G33: 0 | H33: 21.91 | I33: 1 | J33: 1 | K33: 23.03 | L33: 23.73 | M33: 21.09 | N33: 21.91 | O33: 0
A34: 19 | B34: 2021-01-11 | C34: 23.309999 | D34: 25.799999 | E34: 21.66 | F34: 24.34 | G34: 0 | H34: 24.34 | I34: 1 | J34: 1 | K34: 23.31 | L34: 25.8 | M34: 21.66 | N34: 24.34 | O34: 0
A35: 20 | B35: 2021-01-04 | C35: 23.040001 | D35: 29.190001 | E35: 21.42 | F35: 21.559999 | G35: 0 | H35: 21.559999 | I35: 1 | J35: 1 | K35: 23.04 | L35: 29.19 | M35: 21.42 | N35: 21.56 | O35: 0
A36: 21 | B36: 2020-12-28 | C36: 22.110001 | D36: 23.719999 | E36: 20.99 | F36: 22.75 | G36: 0 | H36: 22.75 | I36: 1 | J36: 1 | K36: 22.11 | L36: 23.72 | M36: 20.99 | N36: 22.75 | O36: 0
A37: 22 | B37: 2020-12-21 | C37: 24.25 | D37: 31.459999 | E37: 21.389999 | F37: 21.530001 | G37: 0 | H37: 21.530001 | I37: 1 | J37: 1 | K37: 24.25 | L37: 31.46 | M37: 21.39 | N37: 21.53 | O37: 0
A38: 23 | B38: 2020-12-14 | C38: 22.67 | D38: 24.82 | E38: 21.52 | F38: 21.57 | G38: 0 | H38: 21.57 | I38: 1 | J38: 1 | K38: 22.67 | L38: 24.82 | M38: 21.52 | N38: 21.57 | O38: 0
A39: 24 | B39: 2020-12-07 | C39: 22.040001 | D39: 25.139999 | E39: 20.1 | F39: 23.309999 | G39: 0 | H39: 23.309999 | I39: 1 | J39: 1 | K39: 22.04 | L39: 25.14 | M39: 20.1 | N39: 23.31 | O39: 0
A40: 25 | B40: 2020-11-30 | C40: 22.639999 | D40: 22.889999 | E40: 19.969999 | F40: 20.790001 | G40: 0 | H40: 20.790001 | I40: 1 | J40: 1 | K40: 22.64 | L40: 22.89 | M40: 19.97 | N40: 20.79 | O40: 0
A41: 26 | B41: 2020-11-23 | C41: 23.66 | D41: 23.959999 | E41: 19.51 | F41: 20.84 | G41: 0 | H41: 20.84 | I41: 1 | J41: 1 | K41: 23.66 | L41: 23.96 | M41: 19.51 | N41: 20.84 | O41: 0
A42: 27 | B42: 2020-11-16 | C42: 23.66 | D42: 24.52 | E42: 21.66 | F42: 23.700001 | G42: 0 | H42: 23.700001 | I42: 1 | J42: 1 | K42: 23.66 | L42: 24.52 | M42: 21.66 | N42: 23.7 | O42: 0
A43: 28 | B43: 2020-11-09 | C43: 24.799999 | D43: 27.27 | E43: 22.41 | F43: 23.1 | G43: 0 | H43: 23.1 | I43: 1 | J43: 1 | K43: 24.8 | L43: 27.27 | M43: 22.41 | N43: 23.1 | O43: 0
A44: 29 | B44: 2020-11-02 | C44: 38.57 | D44: 38.779999 | E44: 24.559999 | F44: 24.860001 | G44: 0 | H44: 24.860001 | I44: 1 | J44: 1 | K44: 38.57 | L44: 38.78 | M44: 24.56 | N44: 24.86 | O44: 0
A45: 30 | B45: 2020-10-26 | C45: 29.379999 | D45: 41.16 | E45: 29.219999 | F45: 38.02 | G45: 0 | H45: 38.02 | I45: 1 | J45: 1 | K45: 29.38 | L45: 41.16 | M45: 29.22 | N45: 38.02 | O45: 0
A46: 31 | B46: 2020-10-19 | C46: 27.360001 | D46: 30.549999 | E46: 27.040001 | F46: 27.549999 | G46: 0 | H46: 27.549999 | I46: 1 | J46: 1 | K46: 27.36 | L46: 30.55 | M46: 27.04 | N46: 27.55 | O46: 0
A47: 32 | B47: 2020-10-12 | C47: 25.65 | D47: 29.059999 | E47: 24.139999 | F47: 27.41 | G47: 0 | H47: 27.41 | I47: 1 | J47: 1 | K47: 25.65 | L47: 29.06 | M47: 24.14 | N47: 27.41 | O47: 0
A48: 33 | B48: 2020-10-05 | C48: 29.52 | D48: 30 | E48: 24.030001 | F48: 25 | G48: 0 | H48: 25 | I48: 1 | J48: 1 | K48: 29.52 | L48: 30 | M48: 24.03 | N48: 25 | O48: 0
A49: 34 | B49: 2020-09-28 | C49: 27.15 | D49: 29.9 | E49: 24.9 | F49: 27.629999 | G49: 0 | H49: 27.629999 | I49: 1 | J49: 1 | K49: 27.15 | L49: 29.9 | M49: 24.9 | N49: 27.63 | O49: 0
A50: 35 | B50: 2020-09-21 | C50: 28.040001 | D50: 31.18 | E50: 25.190001 | F50: 26.379999 | G50: 0 | H50: 26.379999 | I50: 1 | J50: 1 | K50: 28.04 | L50: 31.18 | M50: 25.19 | N50: 26.38 | O50: 0
A51: 36 | B51: 2020-09-14 | C51: 25.860001 | D51: 28.92 | E51: 24.84 | F51: 25.83 | G51: 0 | H51: 25.83 | I51: 1 | J51: 1 | K51: 25.86 | L51: 28.92 | M51: 24.84 | N51: 25.83 | O51: 0
A52: 37 | B52: 2020-09-07 | C52: 30.610001 | D52: 35.93 | E52: 26.51 | F52: 26.870001 | G52: 0 | H52: 26.870001 | I52: 1 | J52: 1 | K52: 30.61 | L52: 35.93 | M52: 26.51 | N52: 26.87 | O52: 0
A53: 38 | B53: 2020-08-31 | C53: 23.91 | D53: 38.279999 | E53: 21.77 | F53: 30.75 | G53: 0 | H53: 30.75 | I53: 1 | J53: 1 | K53: 23.91 | L53: 38.28 | M53: 21.77 | N53: 30.75 | O53: 0
A54: 39 | B54: 2020-08-24 | C54: 22.870001 | D54: 27.09 | E54: 20.92 | F54: 22.959999 | G54: 0 | H54: 22.959999 | I54: 1 | J54: 1 | K54: 22.87 | L54: 27.09 | M54: 20.92 | N54: 22.96 | O54: 0
A55: 40 | B55: 2020-08-17 | C55: 22.52 | D55: 24.6 | E55: 20.99 | F55: 22.540001 | G55: 0 | H55: 22.540001 | I55: 1 | J55: 1 | K55: 22.52 | L55: 24.6 | M55: 20.99 | N55: 22.54 | O55: 0
A56: 41 | B56: 2020-08-10 | C56: 22.879999 | D56: 24.93 | E56: 20.280001 | F56: 22.049999 | G56: 0 | H56: 22.049999 | I56: 1 | J56: 1 | K56: 22.88 | L56: 24.93 | M56: 20.28 | N56: 22.05 | O56: 0
A57: 42 | B57: 2020-08-03 | C57: 25.75 | D57: 26.01 | E57: 20.969999 | F57: 22.209999 | G57: 0 | H57: 22.209999 | I57: 1 | J57: 1 | K57: 25.75 | L57: 26.01 | M57: 20.97 | N57: 22.21 | O57: 0
A58: 43 | B58: 2020-07-27 | C58: 26.6 | D58: 28.290001 | E58: 23.549999 | F58: 24.459999 | G58: 0 | H58: 24.459999 | I58: 1 | J58: 1 | K58: 26.6 | L58: 28.29 | M58: 23.55 | N58: 24.46 | O58: 0
A59: 44 | B59: 2020-07-20 | C59: 26.940001 | D59: 28.58 | E59: 23.6 | F59: 25.84 | G59: 0 | H59: 25.84 | I59: 1 | J59: 1 | K59: 26.94 | L59: 28.58 | M59: 23.6 | N59: 25.84 | O59: 0
A60: 45 | B60: 2020-07-13 | C60: 27.85 | D60: 33.669998 | E60: 25.41 | F60: 25.68 | G60: 0 | H60: 25.68 | I60: 1 | J60: 1 | K60: 27.85 | L60: 33.67 | M60: 25.41 | N60: 25.68 | O60: 0
A61: 46 | B61: 2020-07-06 | C61: 27.76 | D61: 31.48 | E61: 24.92 | F61: 27.290001 | G61: 0 | H61: 27.290001 | I61: 1 | J61: 1 | K61: 27.76 | L61: 31.48 | M61: 24.92 | N61: 27.29 | O61: 0
A62: 47 | B62: 2020-06-29 | C62: 35.049999 | D62: 36.310001 | E62: 25.9 | F62: 27.68 | G62: 0 | H62: 27.68 | I62: 1 | J62: 1 | K62: 35.05 | L62: 36.31 | M62: 25.9 | N62: 27.68 | O62: 0
A63: 48 | B63: 2020-06-22 | C63: 35.220001 | D63: 37.119999 | E63: 29.26 | F63: 34.73 | G63: 0 | H63: 34.73 | I63: 1 | J63: 1 | K63: 35.22 | L63: 37.12 | M63: 29.26 | N63: 34.73 | O63: 0
A64: 49 | B64: 2020-06-15 | C64: 44.09 | D64: 44.439999 | E64: 30.4 | F64: 35.119999 | G64: 0 | H64: 35.119999 | I64: 1 | J64: 1 | K64: 44.09 | L64: 44.44 | M64: 30.4 | N64: 35.12 | O64: 0
A65: 50 | B65: 2020-06-08 | C65: 25.559999 | D65: 44.16 | E65: 24.65 | F65: 36.09 | G65: 0 | H65: 36.09 | I65: 1 | J65: 1 | K65: 25.56 | L65: 44.16 | M65: 24.65 | N65: 36.09 | O65: 0
A66: 51 | B66: 2020-06-01 | C66: 28.940001 | D66: 30.6 | E66: 23.540001 | F66: 24.52 | G66: 0 | H66: 24.52 | I66: 1 | J66: 1 | K66: 28.94 | L66: 30.6 | M66: 23.54 | N66: 24.52 | O66: 0
A67: 52 | B67: 2020-05-25 | C67: 27.719999 | D67: 30.530001 | E67: 25.92 | F67: 27.51 | G67: 0 | H67: 27.51 | I67: 1 | J67: 1 | K67: 27.72 | L67: 30.53 | M67: 25.92 | N67: 27.51 | O67: 0
A68: 53 | B68: 2020-05-18 | C68: 30.709999 | D68: 31.549999 | E68: 27.67 | F68: 28.16 | G68: 0 | H68: 28.16 | I68: 1 | J68: 1 | K68: 30.71 | L68: 31.55 | M68: 27.67 | N68: 28.16 | O68: 0
A69: 54 | B69: 2020-05-11 | C69: 28.459999 | D69: 39.279999 | E69: 26 | F69: 31.889999 | G69: 0 | H69: 31.889999 | I69: 1 | J69: 1 | K69: 28.46 | L69: 39.28 | M69: 26 | N69: 31.89 | O69: 0
A70: 55 | B70: 2020-05-04 | C70: 39.130001 | D70: 40.32 | E70: 27.889999 | F70: 27.98 | G70: 0 | H70: 27.98 | I70: 1 | J70: 1 | K70: 39.13 | L70: 40.32 | M70: 27.89 | N70: 27.98 | O70: 0
A71: 56 | B71: 2020-04-27 | C71: 36.290001 | D71: 39.57 | E71: 30.540001 | F71: 37.189999 | G71: 0 | H71: 37.189999 | I71: 1 | J71: 1 | K71: 36.29 | L71: 39.57 | M71: 30.54 | N71: 37.19 | O71: 0
A72: 57 | B72: 2020-04-20 | C72: 40.68 | D72: 47.77 | E72: 35.599998 | F72: 35.93 | G72: 0 | H72: 35.93 | I72: 1 | J72: 1 | K72: 40.68 | L72: 47.77 | M72: 35.6 | N72: 35.93 | O72: 0
A73: 58 | B73: 2020-04-13 | C73: 44.599998 | D73: 45.040001 | E73: 37.310001 | F73: 38.150002 | G73: 0 | H73: 38.150002 | I73: 1 | J73: 1 | K73: 44.6 | L73: 45.04 | M73: 37.31 | N73: 38.15 | O73: 0
A74: 59 | B74: 2020-04-06 | C74: 44.169998 | D74: 47.509998 | E74: 41.389999 | F74: 41.669998 | G74: 0 | H74: 41.669998 | I74: 1 | J74: 1 | K74: 44.17 | L74: 47.51 | M74: 41.39 | N74: 41.67 | O74: 0
A75: 60 | B75: 2020-03-30 | C75: 66.300003 | D75: 67.690002 | E75: 46.740002 | F75: 46.799999 | G75: 0 | H75: 46.799999 | I75: 1 | J75: 1 | K75: 66.3 | L75: 67.69 | M75: 46.74 | N75: 46.8 | O75: 0
A76: 61 | B76: 2020-03-23 | C76: 74.080002 | D76: 76.739998 | E76: 36.240002 | F76: 65.540001 | G76: 0 | H76: 65.540001 | I76: 1 | J76: 1 | K76: 74.08 | L76: 76.74 | M76: 36.24 | N76: 65.54 | O76: 0
A77: 62 | B77: 2020-03-16 | C77: 57.830002 | D77: 85.470001 | E77: 57.419998 | F77: 66.040001 | G77: 0 | H77: 66.040001 | I77: 1 | J77: 1 | K77: 57.83 | L77: 85.47 | M77: 57.42 | N77: 66.04 | O77: 0
A78: 63 | B78: 2020-03-09 | C78: 41.939999 | D78: 77.57 | E78: 41.939999 | F78: 57.830002 | G78: 0 | H78: 57.830002 | I78: 1 | J78: 1 | K78: 41.94 | L78: 77.57 | M78: 41.94 | N78: 57.83 | O78: 0
A79: 64 | B79: 2020-03-02 | C79: 38.540001 | D79: 54.389999 | E79: 24.93 | F79: 41.939999 | G79: 0 | H79: 41.939999 | I79: 1 | J79: 1 | K79: 38.54 | L79: 54.39 | M79: 24.93 | N79: 41.94 | O79: 0
A80: 65 | B80: 2020-02-24 | C80: 22.25 | D80: 49.48 | E80: 22 | F80: 40.110001 | G80: 0 | H80: 40.110001 | I80: 1 | J80: 1 | K80: 22.25 | L80: 49.48 | M80: 22 | N80: 40.11 | O80: 0
A81: 66 | B81: 2020-02-17 | C81: 14.98 | D81: 18.209999 | E81: 14.21 | F81: 17.08 | G81: 0 | H81: 17.08 | I81: =IF(F81=0,1,H81/F81) -> 1 | J81: =INDEX(OFFSET($T$15,0,0,$S$13+1,1),MATCH(B81,OFFSET($Q$15,0,0,$S$13+1,1),-1)) -> 1 | K81: =ROUND($I81*C81,2) -> 14.98 | L81: =ROUND($I81*D81,2) -> 18.21 | M81: =ROUND($I81*E81,2) -> 14.21 | N81: =ROUND($I81*F81,2) -> 17.08 | O81: =G81*J81 -> 0
A82: 67 | B82: 2020-02-10 | C82: 15.88 | D82: 16.43 | E82: 13.38 | F82: 13.68 | G82: 0 | H82: 13.68 | I82: 1 | J82: 1 | K82: 15.88 | L82: 16.43 | M82: 13.38 | N82: 13.68 | O82: 0
A83: 68 | B83: 2020-02-03 | C83: 18.639999 | D83: 18.879999 | E83: 14.7 | F83: 15.47 | G83: 0 | H83: 15.47 | I83: 1 | J83: 1 | K83: 18.64 | L83: 18.88 | M83: 14.7 | N83: 15.47 | O83: 0
A84: 69 | B84: 2020-01-27 | C84: 17.42 | D84: 19.99 | E84: 14.94 | F84: 18.84 | G84: 0 | H84: 18.84 | I84: 1 | J84: 1 | K84: 17.42 | L84: 19.99 | M84: 14.94 | N84: 18.84 | O84: 0
A85: 70 | B85: 2020-01-20 | C85: 13.23 | D85: 15.98 | E85: 12.31 | F85: 14.56 | G85: 0 | H85: 14.56 | I85: 1 | J85: 1 | K85: 13.23 | L85: 15.98 | M85: 12.31 | N85: 14.56 | O85: 0
A86: 71 | B86: 2020-01-13 | C86: 12.84 | D86: 13.82 | E86: 11.75 | F86: 12.1 | G86: 0 | H86: 12.1 | I86: 1 | J86: 1 | K86: 12.84 | L86: 13.82 | M86: 11.75 | N86: 12.1 | O86: 0
A87: 72 | B87: 2020-01-06 | C87: 15.45 | D87: 16.389999 | E87: 12.09 | F87: 12.56 | G87: 0 | H87: 12.56 | I87: 1 | J87: 1 | K87: 15.45 | L87: 16.39 | M87: 12.09 | N87: 12.56 | O87: 0
A88: 73 | B88: 2019-12-30 | C88: 13.74 | D88: 16.200001 | E88: 12.42 | F88: 14.02 | G88: 0 | H88: 14.02 | I88: 1 | J88: 1 | K88: 13.74 | L88: 16.2 | M88: 12.42 | N88: 14.02 | O88: 0
A89: 74 | B89: 2019-12-23 | C89: 12.81 | D89: 13.72 | E89: 11.72 | F89: 13.43 | G89: 0 | H89: 13.43 | I89: 1 | J89: 1 | K89: 12.81 | L89: 13.72 | M89: 11.72 | N89: 13.43 | O89: 0
A90: 75 | B90: 2019-12-16 | C90: 12.47 | D90: 12.78 | E90: 11.71 | F90: 12.51 | G90: 0 | H90: 12.51 | I90: 1 | J90: 1 | K90: 12.47 | L90: 12.78 | M90: 11.71 | N90: 12.51 | O90: 0
A91: 76 | B91: 2019-12-09 | C91: 14.25 | D91: 16.9 | E91: 12.25 | F91: 12.63 | G91: 0 | H91: 12.63 | I91: 1 | J91: 1 | K91: 14.25 | L91: 16.9 | M91: 12.25 | N91: 12.63 | O91: 0
A92: 77 | B92: 2019-12-02 | C92: 12.69 | D92: 17.99 | E92: 12.55 | F92: 13.62 | G92: 0 | H92: 13.62 | I92: 1 | J92: 1 | K92: 12.69 | L92: 17.99 | M92: 12.55 | N92: 13.62 | O92: 0
A93: 78 | B93: 2019-11-25 | C93: 12.51 | D93: 12.83 | E93: 11.42 | F93: 12.62 | G93: 0 | H93: 12.62 | I93: 1 | J93: 1 | K93: 12.51 | L93: 12.83 | M93: 11.42 | N93: 12.62 | O93: 0
A94: 79 | B94: 2019-11-18 | C94: 12.39 | D94: 14.17 | E94: 12.16 | F94: 12.34 | G94: 0 | H94: 12.34 | I94: 1 | J94: 1 | K94: 12.39 | L94: 14.17 | M94: 12.16 | N94: 12.34 | O94: 0
A95: 80 | B95: 2019-11-11 | C95: 13.15 | D95: 13.9 | E95: 11.92 | F95: 12.05 | G95: 0 | H95: 12.05 | I95: 1 | J95: 1 | K95: 13.15 | L95: 13.9 | M95: 11.92 | N95: 12.05 | O95: 0
A96: 81 | B96: 2019-11-04 | C96: 12.68 | D96: 13.39 | E96: 12 | F96: 12.07 | G96: 0 | H96: 12.07 | I96: 1 | J96: 1 | K96: 12.68 | L96: 13.39 | M96: 12 | N96: 12.07 | O96: 0
A97: 82 | B97: 2019-10-28 | C97: 13.01 | D97: 13.95 | E97: 12.26 | F97: 12.3 | G97: 0 | H97: 12.3 | I97: 1 | J97: 1 | K97: 13.01 | L97: 13.95 | M97: 12.26 | N97: 12.3 | O97: 0
A98: 83 | B98: 2019-10-21 | C98: 14.24 | D98: 15.12 | E98: 12.62 | F98: 12.65 | G98: 0 | H98: 12.65 | I98: 1 | J98: 1 | K98: 14.24 | L98: 15.12 | M98: 12.62 | N98: 12.65 | O98: 0
A99: 84 | B99: 2019-10-14 | C99: 15.66 | D99: 16.5 | E99: 13.31 | F99: 14.25 | G99: 0 | H99: 14.25 | I99: 1 | J99: 1 | K99: 15.66 | L99: 16.5 | M99: 13.31 | N99: 14.25 | O99: 0
A100: 85 | B100: 2019-10-07 | C100: 18.27 | D100: 20.379999 | E100: 15.11 | F100: 15.58 | G100: 0 | H100: 15.58 | I100: 1 | J100: 1 | K100: 18.27 | L100: 20.38 | M100: 15.11 | N100: 15.58 | O100: 0
A101: 86 | B101: 2019-09-30 | C101: 17.23 | D101: 21.459999 | E101: 15.79 | F101: 17.040001 | G101: 0 | H101: 17.040001 | I101: 1 | J101: 1 | K101: 17.23 | L101: 21.46 | M101: 15.79 | N101: 17.04 | O101: 0
A102: 87 | B102: 2019-09-23 | C102: 15.35 | D102: 18.690001 | E102: 14.33 | F102: 17.219999 | G102: 0 | H102: 17.219999 | I102: 1 | J102: 1 | K102: 15.35 | L102: 18.69 | M102: 14.33 | N102: 17.22 | O102: 0
A103: 88 | B103: 2019-09-16 | C103: 14.89 | D103: 15.84 | E103: 13.31 | F103: 15.32 | G103: 0 | H103: 15.32 | I103: 1 | J103: 1 | K103: 14.89 | L103: 15.84 | M103: 13.31 | N103: 15.32 | O103: 0
A104: 89 | B104: 2019-09-09 | C104: 15.26 | D104: 16.52 | E104: 13.51 | F104: 13.74 | G104: 0 | H104: 13.74 | I104: 1 | J104: 1 | K104: 15.26 | L104: 16.52 | M104: 13.51 | N104: 13.74 | O104: 0
A105: 90 | B105: 2019-09-02 | C105: 20.959999 | D105: 21.15 | E105: 14.91 | F105: 15 | G105: 0 | H105: 15 | I105: 1 | J105: 1 | K105: 20.96 | L105: 21.15 | M105: 14.91 | N105: 15 | O105: 0
A106: 91 | B106: 2019-08-26 | C106: 20.34 | D106: 21.639999 | E106: 17.09 | F106: 18.98 | G106: 0 | H106: 18.98 | I106: 1 | J106: 1 | K106: 20.34 | L106: 21.64 | M106: 17.09 | N106: 18.98 | O106: 0
A107: 92 | B107: 2019-08-19 | C107: 17.93 | D107: 21.07 | E107: 15.51 | F107: 19.870001 | G107: 0 | H107: 19.870001 | I107: 1 | J107: 1 | K107: 17.93 | L107: 21.07 | M107: 15.51 | N107: 19.87 | O107: 0
A108: 93 | B108: 2019-08-12 | C108: 17.870001 | D108: 24.1 | E108: 17.52 | F108: 18.469999 | G108: 0 | H108: 18.469999 | I108: 1 | J108: 1 | K108: 17.87 | L108: 24.1 | M108: 17.52 | N108: 18.47 | O108: 0
A109: 94 | B109: 2019-08-05 | C109: 19.959999 | D109: 24.809999 | E109: 16.82 | F109: 17.969999 | G109: 0 | H109: 17.969999 | I109: 1 | J109: 1 | K109: 19.96 | L109: 24.81 | M109: 16.82 | N109: 17.97 | O109: 0
A110: 95 | B110: 2019-07-29 | C110: 12.15 | D110: 20.110001 | E110: 12.15 | F110: 17.610001 | G110: 0 | H110: 17.610001 | I110: 1 | J110: 1 | K110: 12.15 | L110: 20.11 | M110: 12.15 | N110: 17.61 | O110: 0
A111: 96 | B111: 2019-07-22 | C111: 14.55 | D111: 14.7 | E111: 11.69 | F111: 12.16 | G111: 0 | H111: 12.16 | I111: 1 | J111: 1 | K111: 14.55 | L111: 14.7 | M111: 11.69 | N111: 12.16 | O111: 0
A112: 97 | B112: 2019-07-15 | C112: 12.58 | D112: 14.5 | E112: 12.24 | F112: 14.45 | G112: 0 | H112: 14.45 | I112: 1 | J112: 1 | K112: 12.58 | L112: 14.5 | M112: 12.24 | N112: 14.45 | O112: 0
A113: 98 | B113: 2019-07-08 | C113: 13.73 | D113: 14.71 | E113: 12.28 | F113: 12.39 | G113: 0 | H113: 12.39 | I113: 1 | J113: 1 | K113: 13.73 | L113: 14.71 | M113: 12.28 | N113: 12.39 | O113: 0
A114: 99 | B114: 2019-07-01 | C114: 13.85 | D114: 14.64 | E114: 12.04 | F114: 13.28 | G114: 0 | H114: 13.28 | I114: 1 | J114: 1 | K114: 13.85 | L114: 14.64 | M114: 12.04 | N114: 13.28 | O114: 0
A115: 100 | B115: 2019-06-24 | C115: 15.46 | D115: 16.68 | E115: 15.08 | F115: 15.08 | G115: 0 | H115: 15.08 | I115: 1 | J115: 1 | K115: 15.46 | L115: 16.68 | M115: 15.08 | N115: 15.08 | O115: 0
A116: 101 | B116: 2019-06-17 | C116: 15.65 | D116: 16.030001 | E116: 13.19 | F116: 15.4 | G116: 0 | H116: 15.4 | I116: 1 | J116: 1 | K116: 15.65 | L116: 16.03 | M116: 13.19 | N116: 15.4 | O116: 0
A117: 102 | B117: 2019-06-10 | C117: 16.299999 | D117: 16.700001 | E117: 15.21 | F117: 15.28 | G117: 0 | H117: 15.28 | I117: 1 | J117: 1 | K117: 16.3 | L117: 16.7 | M117: 15.21 | N117: 15.28 | O117: 0
A118: 103 | B118: 2019-06-03 | C118: 19.41 | D118: 19.75 | E118: 15.33 | F118: 16.299999 | G118: 0 | H118: 16.299999 | I118: 1 | J118: 1 | K118: 19.41 | L118: 19.75 | M118: 15.33 | N118: 16.3 | O118: 0
A119: 104 | B119: 2019-05-27 | C119: 16.549999 | D119: 19.719999 | E119: 15.9 | F119: 18.709999 | G119: 0 | H119: 18.709999 | I119: 1 | J119: 1 | K119: 16.55 | L119: 19.72 | M119: 15.9 | N119: 18.71 | O119: 0
A120: 105 | B120: 2019-05-20 | C120: 15.88 | D120: 18.049999 | E120: 14.42 | F120: 15.85 | G120: 0 | H120: 15.85 | I120: 1 | J120: 1 | K120: 15.88 | L120: 18.05 | M120: 14.42 | N120: 15.85 | O120: 0
A121: 106 | B121: 2019-05-13 | C121: 18.620001 | D121: 21.32 | E121: 14.86 | F121: 15.96 | G121: 0 | H121: 15.96 | I121: 1 | J121: 1 | K121: 18.62 | L121: 21.32 | M121: 14.86 | N121: 15.96 | O121: 0
A122: 107 | B122: 2019-05-06 | C122: 12.89 | D122: 23.379999 | E122: 12.89 | F122: 16.040001 | G122: 0 | H122: 16.040001 | I122: 1 | J122: 1 | K122: 12.89 | L122: 23.38 | M122: 12.89 | N122: 16.04 | O122: 0
A123: 108 | B123: 2019-04-29 | C123: 13.04 | D123: 15.92 | E123: 12.65 | F123: 12.87 | G123: 0 | H123: 12.87 | I123: 1 | J123: 1 | K123: 13.04 | L123: 15.92 | M123: 12.65 | N123: 12.87 | O123: 0
A124: 109 | B124: 2019-04-22 | C124: 13.21 | D124: 14.3 | E124: 12.08 | F124: 12.73 | G124: 0 | H124: 12.73 | I124: 1 | J124: 1 | K124: 13.21 | L124: 14.3 | M124: 12.08 | N124: 12.73 | O124: 0
A125: 110 | B125: 2019-04-15 | C125: 12.46 | D125: 13.14 | E125: 11.03 | F125: 12.09 | G125: 0 | H125: 12.09 | I125: 1 | J125: 1 | K125: 12.46 | L125: 13.14 | M125: 11.03 | N125: 12.09 | O125: 0
A126: 111 | B126: 2019-04-08 | C126: 13.55 | D126: 14.39 | E126: 11.95 | F126: 12.01 | G126: 0 | H126: 12.01 | I126: 1 | J126: 1 | K126: 13.55 | L126: 14.39 | M126: 11.95 | N126: 12.01 | O126: 0
A127: 112 | B127: 2019-04-01 | C127: 13.9 | D127: 14.27 | E127: 12.17 | F127: 12.82 | G127: 0 | H127: 12.82 | I127: 1 | J127: 1 | K127: 13.9 | L127: 14.27 | M127: 12.17 | N127: 12.82 | O127: 0
A128: 113 | B128: 2019-03-25 | C128: 17.76 | D128: 17.85 | E128: 13.64 | F128: 13.71 | G128: 0 | H128: 13.71 | I128: 1 | J128: 1 | K128: 17.76 | L128: 17.85 | M128: 13.64 | N128: 13.71 | O128: 0
A129: 114 | B129: 2019-03-18 | C129: 13.13 | D129: 17.52 | E129: 12.37 | F129: 16.48 | G129: 0 | H129: 16.48 | I129: 1 | J129: 1 | K129: 13.13 | L129: 17.52 | M129: 12.37 | N129: 16.48 | O129: 0
A130: 115 | B130: 2019-03-11 | C130: 16.280001 | D130: 16.43 | E130: 12.5 | F130: 12.88 | G130: 0 | H130: 12.88 | I130: 1 | J130: 1 | K130: 16.28 | L130: 16.43 | M130: 12.5 | N130: 12.88 | O130: 0
A131: 116 | B131: 2019-03-04 | C131: 13.77 | D131: 18.33 | E131: 13.38 | F131: 16.049999 | G131: 0 | H131: 16.049999 | I131: 1 | J131: 1 | K131: 13.77 | L131: 18.33 | M131: 13.38 | N131: 16.05 | O131: 0
A132: 117 | B132: 2019-02-25 | C132: 13.91 | D132: 16.17 | E132: 13.41 | F132: 13.57 | G132: 0 | H132: 13.57 | I132: 1 | J132: 1 | K132: 13.91 | L132: 16.17 | M132: 13.41 | N132: 13.57 | O132: 0
A133: 118 | B133: 2019-02-18 | C133: 15.65 | D133: 16.16 | E133: 13.51 | F133: 13.51 | G133: 0 | H133: 13.51 | I133: 1 | J133: 1 | K133: 15.65 | L133: 16.16 | M133: 13.51 | N133: 13.51 | O133: 0
A134: 119 | B134: 2019-02-11 | C134: 16.17 | D134: 17.27 | E134: 14.79 | F134: 14.91 | G134: 0 | H134: 14.91 | I134: 1 | J134: 1 | K134: 16.17 | L134: 17.27 | M134: 14.79 | N134: 14.91 | O134: 0
A135: 120 | B135: 2019-02-04 | C135: 16.719999 | D135: 17.889999 | E135: 15.04 | F135: 15.72 | G135: 0 | H135: 15.72 | I135: 1 | J135: 1 | K135: 16.72 | L135: 17.89 | M135: 15.04 | N135: 15.72 | O135: 0
A136: 121 | B136: 2019-01-28 | C136: 18.559999 | D136: 20.42 | E136: 16.08 | F136: 16.139999 | G136: 0 | H136: 16.139999 | I136: 1 | J136: 1 | K136: 18.56 | L136: 20.42 | M136: 16.08 | N136: 16.14 | O136: 0
A137: 122 | B137: 2019-01-21 | C137: 18.530001 | D137: 22.02 | E137: 17.309999 | F137: 17.42 | G137: 0 | H137: 17.42 | I137: 1 | J137: 1 | K137: 18.53 | L137: 22.02 | M137: 17.31 | N137: 17.42 | O137: 0
A138: 123 | B138: 2019-01-14 | C138: 19.84 | D138: 20.27 | E138: 17.17 | F138: 17.799999 | G138: 0 | H138: 17.799999 | I138: 1 | J138: 1 | K138: 19.84 | L138: 20.27 | M138: 17.17 | N138: 17.8 | O138: 0
A139: 124 | B139: 2019-01-07 | C139: 22.059999 | D139: 22.799999 | E139: 18.120001 | F139: 18.190001 | G139: 0 | H139: 18.190001 | I139: 1 | J139: 1 | K139: 22.06 | L139: 22.8 | M139: 18.12 | N139: 18.19 | O139: 0
A140: 125 | B140: 2018-12-31 | C140: 27.59 | D140: 28.530001 | E140: 21.190001 | F140: 21.379999 | G140: 0 | H140: 21.379999 | I140: 1 | J140: 1 | K140: 27.59 | L140: 28.53 | M140: 21.19 | N140: 21.38 | O140: 0
A141: 126 | B141: 2018-12-24 | C141: 29.290001 | D141: 36.200001 | E141: 27.43 | F141: 28.34 | G141: 0 | H141: 28.34 | I141: 1 | J141: 1 | K141: 29.29 | L141: 36.2 | M141: 27.43 | N141: 28.34 | O141: 0
A142: 127 | B142: 2018-12-17 | C142: 22.360001 | D142: 31.35 | E142: 21.969999 | F142: 30.110001 | G142: 0 | H142: 30.110001 | I142: 1 | J142: 1 | K142: 22.36 | L142: 31.35 | M142: 21.97 | N142: 30.11 | O142: 0
A143: 128 | B143: 2018-12-10 | C143: 23.950001 | D143: 25.940001 | E143: 20.34 | F143: 21.629999 | G143: 0 | H143: 21.629999 | I143: 1 | J143: 1 | K143: 23.95 | L143: 25.94 | M143: 20.34 | N143: 21.63 | O143: 0
A144: 129 | B144: 2018-12-03 | C144: 16.040001 | D144: 25.940001 | E144: 15.94 | F144: 23.23 | G144: 0 | H144: 23.23 | I144: 1 | J144: 1 | K144: 16.04 | L144: 25.94 | M144: 15.94 | N144: 23.23 | O144: 0
A145: 130 | B145: 2018-11-26 | C145: 20.780001 | D145: 20.799999 | E145: 18.030001 | F145: 18.07 | G145: 0 | H145: 18.07 | I145: =IF(F145=0,1,H145/F145) -> 1 | J145: =INDEX(OFFSET($T$15,0,0,$S$13+1,1),MATCH(B145,OFFSET($Q$15,0,0,$S$13+1,1),-1)) -> 1 | K145: =ROUND($I145*C145,2) -> 20.78 | L145: =ROUND($I145*D145,2) -> 20.8 | M145: =ROUND($I145*E145,2) -> 18.03 | N145: =ROUND($I145*F145,2) -> 18.07 | O145: =G145*J145 -> 0
A146: 131 | B146: 2018-11-19 | C146: 18.780001 | D146: 23.809999 | E146: 18.52 | F146: 21.52 | G146: 0 | H146: 21.52 | I146: 1 | J146: 1 | K146: 18.78 | L146: 23.81 | M146: 18.52 | N146: 21.52 | O146: 0
A147: 132 | B147: 2018-11-12 | C147: 17.26 | D147: 22.969999 | E147: 17.25 | F147: 18.139999 | G147: 0 | H147: 18.139999 | I147: 1 | J147: 1 | K147: 17.26 | L147: 22.97 | M147: 17.25 | N147: 18.14 | O147: 0
A148: 133 | B148: 2018-11-05 | C148: 20.58 | D148: 20.870001 | E148: 16.09 | F148: 17.360001 | G148: 0 | H148: 17.360001 | I148: 1 | J148: 1 | K148: 20.58 | L148: 20.87 | M148: 16.09 | N148: 17.36 | O148: 0
A149: 134 | B149: 2018-10-29 | C149: 24.48 | D149: 27.860001 | E149: 18.049999 | F149: 19.51 | G149: 0 | H149: 19.51 | I149: 1 | J149: 1 | K149: 24.48 | L149: 27.86 | M149: 18.05 | N149: 19.51 | O149: 0
A150: 135 | B150: 2018-10-22 | C150: 19.379999 | D150: 27.52 | E150: 18.82 | F150: 24.16 | G150: 0 | H150: 24.16 | I150: 1 | J150: 1 | K150: 19.38 | L150: 27.52 | M150: 18.82 | N150: 24.16 | O150: 0
A151: 136 | B151: 2018-10-15 | C151: 21.969999 | D151: 22.889999 | E151: 17.059999 | F151: 19.889999 | G151: 0 | H151: 19.889999 | I151: 1 | J151: 1 | K151: 21.97 | L151: 22.89 | M151: 17.06 | N151: 19.89 | O151: 0
A152: 137 | B152: 2018-10-08 | C152: 16.049999 | D152: 28.84 | E152: 15.27 | F152: 21.309999 | G152: 0 | H152: 21.309999 | I152: 1 | J152: 1 | K152: 16.05 | L152: 28.84 | M152: 15.27 | N152: 21.31 | O152: 0
A153: 138 | B153: 2018-10-01 | C153: 11.99 | D153: 17.360001 | E153: 11.34 | F153: 14.82 | G153: 0 | H153: 14.82 | I153: 1 | J153: 1 | K153: 11.99 | L153: 17.36 | M153: 11.34 | N153: 14.82 | O153: 0
A154: 139 | B154: 2018-09-24 | C154: 12.46 | D154: 13.22 | E154: 11.55 | F154: 12.12 | G154: 0 | H154: 12.12 | I154: 1 | J154: 1 | K154: 12.46 | L154: 13.22 | M154: 11.55 | N154: 12.12 | O154: 0
A155: 140 | B155: 2018-09-17 | C155: 12.72 | D155: 13.75 | E155: 11.1 | F155: 11.68 | G155: 0 | H155: 11.68 | I155: 1 | J155: 1 | K155: 12.72 | L155: 13.75 | M155: 11.1 | N155: 11.68 | O155: 0
A156: 141 | B156: 2018-09-10 | C156: 15.09 | D156: 15.2 | E156: 11.93 | F156: 12.07 | G156: 0 | H156: 12.07 | I156: 1 | J156: 1 | K156: 15.09 | L156: 15.2 | M156: 11.93 | N156: 12.07 | O156: 0
A157: 142 | B157: 2018-09-03 | C157: 13.13 | D157: 15.63 | E157: 13.12 | F157: 14.88 | G157: 0 | H157: 14.88 | I157: 1 | J157: 1 | K157: 13.13 | L157: 15.63 | M157: 13.12 | N157: 14.88 | O157: 0
A158: 143 | B158: 2018-08-27 | C158: 12.37 | D158: 14.03 | E158: 11.87 | F158: 12.86 | G158: 0 | H158: 12.86 | I158: 1 | J158: 1 | K158: 12.37 | L158: 14.03 | M158: 11.87 | N158: 12.86 | O158: 0
A159: 144 | B159: 2018-08-20 | C159: 12.57 | D159: 13.29 | E159: 11.65 | F159: 11.99 | G159: 0 | H159: 11.99 | I159: 1 | J159: 1 | K159: 12.57 | L159: 13.29 | M159: 11.65 | N159: 11.99 | O159: 0
A160: 145 | B160: 2018-08-13 | C160: 14.5 | D160: 16.860001 | E160: 12.4 | F160: 12.64 | G160: 0 | H160: 12.64 | I160: 1 | J160: 1 | K160: 14.5 | L160: 16.86 | M160: 12.4 | N160: 12.64 | O160: 0
A161: 146 | B161: 2018-08-06 | C161: 11.91 | D161: 13.82 | E161: 10.17 | F161: 13.16 | G161: 0 | H161: 13.16 | I161: 1 | J161: 1 | K161: 11.91 | L161: 13.82 | M161: 10.17 | N161: 13.16 | O161: 0
A162: 147 | B162: 2018-07-30 | C162: 13.63 | D162: 14.53 | E162: 11.07 | F162: 11.64 | G162: 0 | H162: 11.64 | I162: 1 | J162: 1 | K162: 13.63 | L162: 14.53 | M162: 11.07 | N162: 11.64 | O162: 0
A163: 148 | B163: 2018-07-23 | C163: 13.47 | D163: 14.26 | E163: 11.6 | F163: 13.03 | G163: 0 | H163: 13.03 | I163: 1 | J163: 1 | K163: 13.47 | L163: 14.26 | M163: 11.6 | N163: 13.03 | O163: 0
A164: 149 | B164: 2018-07-16 | C164: 12.77 | D164: 13.58 | E164: 11.44 | F164: 12.86 | G164: 0 | H164: 12.86 | I164: 1 | J164: 1 | K164: 12.77 | L164: 13.58 | M164: 11.44 | N164: 12.86 | O164: 0
A165: 150 | B165: 2018-07-09 | C165: 13.02 | D165: 14.15 | E165: 11.62 | F165: 12.18 | G165: 0 | H165: 12.18 | I165: 1 | J165: 1 | K165: 13.02 | L165: 14.15 | M165: 11.62 | N165: 12.18 | O165: 0
A166: 151 | B166: 2018-07-02 | C166: 17.700001 | D166: 18.08 | E166: 13.34 | F166: 13.37 | G166: 0 | H166: 13.37 | I166: 1 | J166: 1 | K166: 17.7 | L166: 18.08 | M166: 13.34 | N166: 13.37 | O166: 0
A167: 152 | B167: 2018-06-25 | C167: 15.07 | D167: 19.610001 | E167: 14.56 | F167: 16.09 | G167: 0 | H167: 16.09 | I167: 1 | J167: 1 | K167: 15.07 | L167: 19.61 | M167: 14.56 | N167: 16.09 | O167: 0
A168: 153 | B168: 2018-06-18 | C168: 12.79 | D168: 15.18 | E168: 12.18 | F168: 13.77 | G168: 0 | H168: 13.77 | I168: 1 | J168: 1 | K168: 12.79 | L168: 15.18 | M168: 12.18 | N168: 13.77 | O168: 0
A169: 154 | B169: 2018-06-11 | C169: 12.52 | D169: 13.16 | E169: 11.88 | F169: 11.98 | G169: 0 | H169: 11.98 | I169: 1 | J169: 1 | K169: 12.52 | L169: 13.16 | M169: 11.88 | N169: 11.98 | O169: 0
A170: 155 | B170: 2018-06-04 | C170: 13.91 | D170: 13.91 | E170: 11.22 | F170: 12.18 | G170: 0 | H170: 12.18 | I170: 1 | J170: 1 | K170: 13.91 | L170: 13.91 | M170: 11.22 | N170: 12.18 | O170: 0
A171: 156 | B171: 2018-05-28 | C171: 14.39 | D171: 18.780001 | E171: 13.37 | F171: 13.46 | G171: 0 | H171: 13.46 | I171: 1 | J171: 1 | K171: 14.39 | L171: 18.78 | M171: 13.37 | N171: 13.46 | O171: 0
A172: 157 | B172: 2018-05-21 | C172: 12.99 | D172: 14.6 | E172: 12.29 | F172: 13.22 | G172: 0 | H172: 13.22 | I172: 1 | J172: 1 | K172: 12.99 | L172: 14.6 | M172: 12.29 | N172: 13.22 | O172: 0
A173: 158 | B173: 2018-05-14 | C173: 13.09 | D173: 15.01 | E173: 12.5 | F173: 13.42 | G173: 0 | H173: 13.42 | I173: 1 | J173: 1 | K173: 13.09 | L173: 15.01 | M173: 12.5 | N173: 13.42 | O173: 0
A174: 159 | B174: 2018-05-07 | C174: 15.05 | D174: 15.56 | E174: 12.65 | F174: 12.65 | G174: 0 | H174: 12.65 | I174: 1 | J174: 1 | K174: 15.05 | L174: 15.56 | M174: 12.65 | N174: 12.65 | O174: 0
A175: 160 | B175: 2018-04-30 | C175: 15.31 | D175: 18.66 | E175: 10.91 | F175: 14.77 | G175: 0 | H175: 14.77 | I175: 1 | J175: 1 | K175: 15.31 | L175: 18.66 | M175: 10.91 | N175: 14.77 | O175: 0
A176: 161 | B176: 2018-04-23 | C176: 17.290001 | D176: 19.84 | E176: 15.25 | F176: 15.41 | G176: 0 | H176: 15.41 | I176: 1 | J176: 1 | K176: 17.29 | L176: 19.84 | M176: 15.25 | N176: 15.41 | O176: 0
A177: 162 | B177: 2018-04-16 | C177: 17.59 | D177: 17.66 | E177: 14.57 | F177: 16.879999 | G177: 0 | H177: 16.879999 | I177: 1 | J177: 1 | K177: 17.59 | L177: 17.66 | M177: 14.57 | N177: 16.88 | O177: 0
A178: 163 | B178: 2018-04-09 | C178: 21.27 | D178: 22.02 | E178: 17.26 | F178: 17.41 | G178: 0 | H178: 17.41 | I178: 1 | J178: 1 | K178: 21.27 | L178: 22.02 | M178: 17.26 | N178: 17.41 | O178: 0
A179: 164 | B179: 2018-04-02 | C179: 21.07 | D179: 25.719999 | E179: 18.57 | F179: 21.49 | G179: 0 | H179: 21.49 | I179: 1 | J179: 1 | K179: 21.07 | L179: 25.72 | M179: 18.57 | N179: 21.49 | O179: 0
A180: 165 | B180: 2018-03-26 | C180: 23.41 | D180: 24.940001 | E180: 19.6 | F180: 19.969999 | G180: 0 | H180: 19.969999 | I180: 1 | J180: 1 | K180: 23.41 | L180: 24.94 | M180: 19.6 | N180: 19.97 | O180: 0
A181: 166 | B181: 2018-03-19 | C181: 16.629999 | D181: 26.01 | E181: 16.26 | F181: 24.870001 | G181: 0 | H181: 24.870001 | I181: 1 | J181: 1 | K181: 16.63 | L181: 26.01 | M181: 16.26 | N181: 24.87 | O181: 0
A182: 167 | B182: 2018-03-12 | C182: 15.28 | D182: 17.59 | E182: 14.94 | F182: 15.8 | G182: 0 | H182: 15.8 | I182: 1 | J182: 1 | K182: 15.28 | L182: 17.59 | M182: 14.94 | N182: 15.8 | O182: 0
A183: 168 | B183: 2018-03-05 | C183: 21.549999 | D183: 21.57 | E183: 13.31 | F183: 14.64 | G183: 0 | H183: 14.64 | I183: 1 | J183: 1 | K183: 21.55 | L183: 21.57 | M183: 13.31 | N183: 14.64 | O183: 0
A184: 169 | B184: 2018-02-26 | C184: 16.530001 | D184: 26.219999 | E184: 15.29 | F184: 19.59 | G184: 0 | H184: 19.59 | I184: 1 | J184: 1 | K184: 16.53 | L184: 26.22 | M184: 15.29 | N184: 19.59 | O184: 0
A185: 170 | B185: 2018-02-19 | C185: 20.530001 | D185: 21.610001 | E185: 16.469999 | F185: 16.49 | G185: 0 | H185: 16.49 | I185: 1 | J185: 1 | K185: 20.53 | L185: 21.61 | M185: 16.47 | N185: 16.49 | O185: 0
A186: 171 | B186: 2018-02-12 | C186: 27.25 | D186: 29.700001 | E186: 17.440001 | F186: 19.459999 | G186: 0 | H186: 19.459999 | I186: 1 | J186: 1 | K186: 27.25 | L186: 29.7 | M186: 17.44 | N186: 19.46 | O186: 0
A187: 172 | B187: 2018-02-05 | C187: 18.440001 | D187: 50.299999 | E187: 16.799999 | F187: 29.059999 | G187: 0 | H187: 29.059999 | I187: 1 | J187: 1 | K187: 18.44 | L187: 50.3 | M187: 16.8 | N187: 29.06 | O187: 0
A188: 173 | B188: 2018-01-29 | C188: 11.71 | D188: 17.860001 | E188: 11.68 | F188: 17.309999 | G188: 0 | H188: 17.309999 | I188: 1 | J188: 1 | K188: 11.71 | L188: 17.86 | M188: 11.68 | N188: 17.31 | O188: 0
A189: 174 | B189: 2018-01-22 | C189: 11.59 | D189: 12.19 | E189: 10.76 | F189: 11.08 | G189: 0 | H189: 11.08 | I189: 1 | J189: 1 | K189: 11.59 | L189: 12.19 | M189: 10.76 | N189: 11.08 | O189: 0
A190: 175 | B190: 2018-01-15 | C190: 10.42 | D190: 12.81 | E190: 10.4 | F190: 11.27 | G190: 0 | H190: 11.27 | I190: 1 | J190: 1 | K190: 10.42 | L190: 12.81 | M190: 10.4 | N190: 11.27 | O190: 0
A191: 176 | B191: 2018-01-08 | C191: 9.61 | D191: 10.85 | E191: 9.32 | F191: 10.16 | G191: 0 | H191: 10.16 | I191: 1 | J191: 1 | K191: 9.61 | L191: 10.85 | M191: 9.32 | N191: 10.16 | O191: 0
A192: 177 | B192: 2018-01-01 | C192: 10.95 | D192: 11.07 | E192: 8.92 | F192: 9.22 | G192: 0 | H192: 9.22 | I192: 1 | J192: 1 | K192: 10.95 | L192: 11.07 | M192: 8.92 | N192: 9.22 | O192: 0
A193: 178 | B193: 2017-12-25 | C193: 10.19 | D193: 11.06 | E193: 9.71 | F193: 11.04 | G193: 0 | H193: 11.04 | I193: 1 | J193: 1 | K193: 10.19 | L193: 11.06 | M193: 9.71 | N193: 11.04 | O193: 0
A194: 179 | B194: 2017-12-18 | C194: 9.46 | D194: 10.18 | E194: 8.9 | F194: 9.9 | G194: 0 | H194: 9.9 | I194: 1 | J194: 1 | K194: 9.46 | L194: 10.18 | M194: 8.9 | N194: 9.9 | O194: 0
A195: 180 | B195: 2017-12-11 | C195: 9.74 | D195: 10.54 | E195: 9.21 | F195: 9.42 | G195: 0 | H195: 9.42 | I195: 1 | J195: 1 | K195: 9.74 | L195: 10.54 | M195: 9.21 | N195: 9.42 | O195: 0
A196: 181 | B196: 2017-12-04 | C196: 11.05 | D196: 11.86 | E196: 9.43 | F196: 9.58 | G196: 0 | H196: 9.58 | I196: 1 | J196: 1 | K196: 11.05 | L196: 11.86 | M196: 9.43 | N196: 9.58 | O196: 0
A197: 182 | B197: 2017-11-27 | C197: 10.07 | D197: 14.58 | E197: 9.53 | F197: 11.43 | G197: 0 | H197: 11.43 | I197: 1 | J197: 1 | K197: 10.07 | L197: 14.58 | M197: 9.53 | N197: 11.43 | O197: 0
A198: 183 | B198: 2017-11-20 | C198: 11.96 | D198: 12.08 | E198: 8.56 | F198: 9.67 | G198: 0 | H198: 9.67 | I198: 1 | J198: 1 | K198: 11.96 | L198: 12.08 | M198: 8.56 | N198: 9.67 | O198: 0
A199: 184 | B199: 2017-11-13 | C199: 11.43 | D199: 14.51 | E199: 11 | F199: 11.43 | G199: 0 | H199: 11.43 | I199: 1 | J199: 1 | K199: 11.43 | L199: 14.51 | M199: 11 | N199: 11.43 | O199: 0
A200: 185 | B200: 2017-11-06 | C200: 9.63 | D200: 12.19 | E200: 9.29 | F200: 11.29 | G200: 0 | H200: 11.29 | I200: 1 | J200: 1 | K200: 9.63 | L200: 12.19 | M200: 9.29 | N200: 11.29 | O200: 0
... 1453 more rows

Sheet CalculationsAndCharts
A1: BuyAndSell.xlsm
A2: =InputPriceData!A1 -> SPDR S&P 500 ETF Trust (SPY) -NYSEArca (Weekly)
A4: User Charting Controls | E4: Click to Shift Chart One Bar:
A5: Data Control | C5: TRUE
A6: =MIN(InputPriceData!$B$10,InputIndexData!$B$10) -> 1478 | B6: Available Input Data Rows | E6: Earliest: | F6: =OFFSET(InputPriceData!B15,CalculationsAndCharts!A6,0,1,1) -> 1993-01-25
A7: =MAX(A33:A56896) -> 1250 | B7: Available Calculation Rows | E7: Latest: | F7: =OFFSET(InputPriceData!B15,1,0,1,1) -> 2021-05-17
A8: =MIN(AvailableInputRows-DataPanRows,A7) -> 1250 | B8: Logically Available for Calc / Plot | E8: $ Change: | F8: =G33-G34 -> -1.23
A10: Historical Price Windowing Specifications | F10: Click to Shift
A11: 0 | B11: Input Data Offset (Pan) | F11: Points to Plot
A12: 1250 | B12: Data Points to Plot (Zoom)
B13: First: | C13: =OFFSET(B32,A12,0,1,1) -> 1997-06-09
B14: ="Last: " & IF(OFFSET(InputPriceData!P15,1+A11,0,1,1)="","",TEXT(OFFSET(InputPriceData!P15,1+A11,0,1,1),"H:MM AM/PM")) -> Last: | C14: =B33 -> 2021-05-17
A15: User Controls
A16: -30 | B16: VIXDNMIN
A17: 100 | B17: VIXUPMIN
A18: TRUE
B20: Results of trading a SINGLE share
B21: =A8&" Weekly Bar Study Period: " & TEXT(OFFSET(B32,A8,0,1,1),"mm/dd/yyyy") &" - " &TEXT(B33,"mm/dd/yyyy") -> 1250 Weekly Bar Study Period: 06/09/1997 - 05/17/2021
C22: Cumulative Long | D22: =AH30 -> 449.89
C23: Cumulative Shorts | D23: =AL30 -> 93.66
C24: Total | D24: =SUM(D22:D23) -> 543.55
A25: Help! I would like to plot data
A26: From | B26: 2018-05-01 | C26: =OFFSET(InputPriceData!$A$15,MATCH(B26,OFFSET(InputPriceData!B15,1,0,InputPriceData!$B$10,1),0),0,1,1)-C27 ->  | E26: 801
A27: To | B27: 2020-11-09 | C27: =OFFSET(InputPriceData!$A$15,MATCH(B27,OFFSET(InputPriceData!$B$15,1,0,InputPriceData!$B$10,1),0),0,1,1)-1 -> 27 | E27: =$A$12-$E$26+1 -> 450
H28: Value @ Cursor => | I28: =OFFSET(A32,$E$27,0,1,1)&"(RR)" -> 450(RR) | J28: =OFFSET($B$32,E27,0,1,1) -> 2012-10-08 | K28: =TEXT(OFFSET(D32,$E$27,0,1,1),"#,##0.00")&"(o)" -> 123.25(o) | L28: =TEXT(OFFSET(E32,$E$27,0,1,1),"#,##0.00")&"(h)" -> 123.69(h) | M28: =TEXT(OFFSET(F32,$E$27,0,1,1),"#,##0.00")&"(l)" -> 120.69(l) | N28: =TEXT(OFFSET(G32,$E$27,0,1,1),"#,##0.00")&"(c)" -> 120.95(c) | O28: =TEXT(OFFSET(C32,$E$27,0,1,1),"#,##0.00,,""M""")&"(v)" -> 599.32M(v) | AH28: Cumulative Long Result | AL28: Cumulative Short Result
E29: Cursor ==> | AY29: Work Area For Chart Cursors
B30: =LogicallyAvailableRows -> 1250 | C30: <== Calculation Rel Row Limits ==> | AA30: =$A$8-10 -> 1240 | AG30: =$A$8-2 -> 1248 | AH30: =SUM(AH33:AH1282) -> 449.89 | AL30: =SUM(AL33:AL1282) -> 93.66
A31: Rel Row | M31: Close | S31: LLB | U31: HHB | AC31: Long Positions | AE31: Background Colors | AG31: Long | AI31: ="Short Positions: "&IF(A18,"On", "Off") -> Short Positions: On | AK31: Short | AM31: Running Balance | AW31: Used To Color Vol Bars
B32: Date | C32: Volume | D32: Open | E32: High | F32: Low | G32: Close | H32: 10 | I32: 2 | J32: AStochK(40,3) | K32: AStochK(14,3) | L32: AStochK(3,3) | M32: VIX | N32: VIXDN | O32: VIXUP | P32: ATRDN | Q32: ATRUP | R32: 4 | S32: =R32 -> 4 | T32: 4 | U32: =T32 -> 4 | V32: UP | W32: DN | X32: VolUP | Y32: CCH | Z32: AVG(C,10) | AA32: BUYINITIAL | AB32: B2 | AC32: BUY | AD32: SELL | AE32: Long | AF32: Short | AG32: Position | AH32: Transaction | AI32: SHORT | AJ32: COVER | AK32: Position | AL32: Transaction | AW32: Up Vol | AX32: Dn Vol | AY32: Volume Cursor | AZ32: =MAX(OFFSET(C33,0,0,A12,1)) -> 3281575900 | BA32: Price Chart Cursor | BC32: Indicator 01 Cursor | BE32: Indicator 02 Cursor | BG32: Indicator 03 Cursor | BI32: Indicator 04 Cursor
A33: 1 | B33: =IF(A33>$B$30,NA(),IF($A33>$A$8,"",OFFSET(InputPriceData!$B$15,$A33+$A$11,0,1,1))) -> 2021-05-17 | C33: =IF(A33>$B$30,NA(),IF($A33>$A$8,"",OFFSET(InputPriceData!$G$15,CalculationsAndCharts!$A33+$A$11,IF($C$5,8,0),1,1))) -> 56769259 | D33: =IF(A33>$B$30,NA(),IF(A33>$A$8,"",OFFSET(InputPriceData!$C$15,CalculationsAndCharts!$A33+$A$11,IF($C$5,8,0),1,1))) -> 415.39 | E33: =IF(A33>$B$30,NA(),IF(A33>$A$8,"",OFFSET(InputPriceData!$D$15,CalculationsAndCharts!$A33+$A$11,IF($C$5,8,0),1,1))) -> 416.39 | F33: =IF(A33>$B$30,NA(),IF(A33>$A$8,"",OFFSET(InputPriceData!$E$15,CalculationsAndCharts!$A33+$A$11,IF($C$5,8,0),1,1))) -> 413.36 | G33: =IF(A33>$B$30,NA(),IF(A33>$A$8,"",OFFSET(InputPriceData!$F$15,CalculationsAndCharts!$A33+$A$11,IF($C$5,8,0),1,1))) -> 415.35 | H33: =WildersATR(OFFSET($D$33,0,0,$A$7,4),$H$32,$A$8) -> 4.689697575 | I33: =WildersATR(OFFSET($D$33,0,0,$A$7,4),$I$32,$A$8) -> 8.491366765 | J33: =AStochK(OFFSET($D$33,0,0,$A$7,4),J$32,$A$8) -> 95.44362234 | K33: =AStochK(OFFSET($D$33,0,0,$A$7,4),K$32,$A$8) -> 90.8018992 | L33: =AStochK(OFFSET($D$33,0,0,$A$7,4),L$32,$A$8) -> 73.80944519 | M33: =IF(A33>$B$30,NA(),IF(A33>$A$8,"",OFFSET(InputIndexData!$F$15,CalculationsAndCharts!$A33+$A$11,IF($C$5,8,0),1,1))) -> 20.54 | N33: =(M33/MAX(OFFSET(M33,1,0,15,1))-1)*100 -> -26.51162791 | O33: =(M33/MIN(OFFSET(M33,1,0,15,1))-1)* 100 -> 26.4 | P33: =(I33/MAX(OFFSET(I33,1,0,15,1)) - 1)*100 -> -46.84970556 | Q33: =(I33/MIN(OFFSET(I33,1,0,15,1)) - 1)*100 -> 32.24503803 | R33: =MIN(OFFSET($G33,0,0,$R$32,1)) -> 415.35 | S33: =MATCH(R33,OFFSET($G33,0,0,$R$32,1),0) -> 1 | T33: =MAX(OFFSET($G33,0,0,$R$32,1)) -> 422.12 | U33: =MATCH(T33,OFFSET($G33,0,0,$R$32,1),0) -> 3 | V33: =(MAX(OFFSET($G33,0,0,2,1))/R33-1)*100 -> 0.2961357891 | W33: =(MIN(OFFSET($G33,0,0,2,1))/T33-1)*100 -> -1.603809343 | X33: =(C33/AVERAGE(OFFSET(C33,U33-1,0,50,1))-1)*100 -> -84.70792477 | Y33: =(MIN(OFFSET(G33,0,0,10,1))/MAX(OFFSET(G33,0,0,100,1))-1)*100 -> -8.033260684 | Z33: =AVERAGE(OFFSET(G33,0,0,10,1)) -> 410.164 | AA33: =AND(A33>=$AA$30-10,A33<$AA$30,Z33>=Z34,L33<40) -> FALSE | AB33: =AND(V33>6,OR(N33<$A$16,P33<2*$A$16),Y33<-15,MIN(OFFSET(J33,0,0,S33,1))<25,MIN(OFFSET(K33,0,0,S33,1))<25,K33>=J33) -> FALSE | AC33: =OR(AA33,AB33) -> FALSE | AD33: =AND(G33<AVERAGE(OFFSET(G33,0,0,20,1)),W33<=-6,OR(O33>$A$17,Q33>2*$A$17),X33>80,MAX(OFFSET(J33,0,0,U33,1))>85,MAX(OFFSET(K33,0,0,U33,1))>85,J33>=K33) -> FALSE | AE33: =IF(AG33,$BB$34,NA()) -> 433.3905 | AF33: =IF(AK33,$BB$34,NA()) ->  | AG33: =IF(A33<=$AG$30,AND(OR(AC34,AG34),NOT(AD34))) -> TRUE | AH33: =IF(AND(A33=1,AG33),G33,IF(AND($A33<=$AG$30,AG33,NOT(AG34)),-$D33,IF(AND($A33<=$AG$30,NOT(AG33),AG34),$D33,0))) -> 415.35 | AI33: =AND($A$18,AD33) -> FALSE | AJ33: =AND($A$18,AC33) -> FALSE | AK33: =IF($A33<=$AG$30,AND(OR(AI34,AK34),NOT(AJ34))) -> FALSE | AL33: =IF(AND(A33=1,AK33),-G33,IF(AND($A33<=$AG$30,AK33,NOT(AK34)),$D33,IF(AND($A33<=$AG$30,NOT(AK33),AK34),-$D33,0))) -> 0 | AM33: =AM34+AH33+AL33 -> 543.55 | AW33: =IF(G33>=D33,C33,NA()) ->  | AX33: =IF(G33<D33,C33,NA()) -> 56769259 | AY33: =$E$27 -> 450 | AZ33: 0 | BA33: =$E$27 -> 450 | BB33: 51.2265 | BC33: =$E$27 -> 450 | BD33: 0 | BE33: =$E$27 -> 450 | BF33: 0 | BG33: =$E$27 -> 450 | BH33: 0 | BI33: =$E$27 -> 450 | BJ33: -1
A34: 2 | B34: =IF(A34>$B$30,NA(),IF($A34>$A$8,"",OFFSET(InputPriceData!$B$15,$A34+$A$11,0,1,1))) -> 2021-05-10 | C34: =IF(A34>$B$30,NA(),IF($A34>$A$8,"",OFFSET(InputPriceData!$G$15,CalculationsAndCharts!$A34+$A$11,IF($C$5,8,0),1,1))) -> 522068500 | D34: =IF(A34>$B$30,NA(),IF(A34>$A$8,"",OFFSET(InputPriceData!$C$15,CalculationsAndCharts!$A34+$A$11,IF($C$5,8,0),1,1))) -> 422.5 | E34: =IF(A34>$B$30,NA(),IF(A34>$A$8,"",OFFSET(InputPriceData!$D$15,CalculationsAndCharts!$A34+$A$11,IF($C$5,8,0),1,1))) -> 422.74 | F34: =IF(A34>$B$30,NA(),IF(A34>$A$8,"",OFFSET(InputPriceData!$E$15,CalculationsAndCharts!$A34+$A$11,IF($C$5,8,0),1,1))) -> 404 | G34: =IF(A34>$B$30,NA(),IF(A34>$A$8,"",OFFSET(InputPriceData!$F$15,CalculationsAndCharts!$A34+$A$11,IF($C$5,8,0),1,1))) -> 416.58 | H34: 17.91697575 | I34: 13.76273353 | J34: 96.71719359 | K34: 93.45170409 | L34: 76.20354903 | M34: =IF(A34>$B$30,NA(),IF(A34>$A$8,"",OFFSET(InputIndexData!$F$15,CalculationsAndCharts!$A34+$A$11,IF($C$5,8,0),1,1))) -> 18.81 | N34: -43.15503173 | O34: 15.75384615 | P34: =(I34/MAX(OFFSET(I34,1,0,15,1)) - 1)*100 -> -13.85446423 | Q34: =(I34/MIN(OFFSET(I34,1,0,15,1)) - 1)*100 -> 114.3416095 | R34: =MIN(OFFSET($G34,0,0,$R$32,1)) -> 416.58 | S34: =MATCH(R34,OFFSET($G34,0,0,$R$32,1),0) -> 1 | T34: =MAX(OFFSET($G34,0,0,$R$32,1)) -> 422.12 | U34: =MATCH(T34,OFFSET($G34,0,0,$R$32,1),0) -> 2 | V34: =(MAX(OFFSET($G34,0,0,2,1))/R34-1)*100 -> 1.329876614 | W34: =(MIN(OFFSET($G34,0,0,2,1))/T34-1)*100 -> -1.312423008 | X34: =(C34/AVERAGE(OFFSET(C34,U34-1,0,50,1))-1)*100 -> 40.63087872 | Y34: =(MIN(OFFSET(G34,0,0,10,1))/MAX(OFFSET(G34,0,0,100,1))-1)*100 -> -8.033260684 | Z34: =AVERAGE(OFFSET(G34,0,0,10,1)) -> 407.906 | AA34: =AND(A34>=$AA$30-10,A34<$AA$30,Z34>=Z35,L34<40) -> FALSE | AB34: =AND(V34>6,OR(N34<$A$16,P34<2*$A$16),Y34<-15,MIN(OFFSET(J34,0,0,S34,1))<25,MIN(OFFSET(K34,0,0,S34,1))<25,K34>=J34) -> FALSE | AC34: =OR(AA34,AB34) -> FALSE | AD34: =AND(G34<AVERAGE(OFFSET(G34,0,0,20,1)),W34<=-6,OR(O34>$A$17,Q34>2*$A$17),X34>80,MAX(OFFSET(J34,0,0,U34,1))>85,MAX(OFFSET(K34,0,0,U34,1))>85,J34>=K34) -> FALSE | AE34: 433.3905 | AG34: TRUE | AH34: =IF(AND($A34<=$AG$30,AG34,NOT(AG35)),-$D34,IF(AND($A34<=$AG$30,NOT(AG34),AG35),$D34,0)) -> 0 | AI34: FALSE | AJ34: FALSE | AK34: FALSE | AL34: 0 | AM34: 128.2 | AX34: 522068500 | AY34: =$E$27 -> 450 | AZ34: =CEILING(AZ32,10^INT(LOG10(AZ32))/8) -> 3375000000 | BA34: =$E$27 -> 450 | BB34: 433.3905 | BC34: =$E$27 -> 450 | BD34: 80 | BE34: =$E$27 -> 450 | BF34: 42 | BG34: =$E$27 -> 450 | BH34: 100 | BI34: =$E$27 -> 450 | BJ34: 1
A35: 3 | B35: =IF(A35>$B$30,NA(),IF($A35>$A$8,"",OFFSET(InputPriceData!$B$15,$A35+$A$11,0,1,1))) -> 2021-05-03 | C35: =IF(A35>$B$30,NA(),IF($A35>$A$8,"",OFFSET(InputPriceData!$G$15,CalculationsAndCharts!$A35+$A$11,IF($C$5,8,0),1,1))) -> 351681700 | D35: =IF(A35>$B$30,NA(),IF(A35>$A$8,"",OFFSET(InputPriceData!$C$15,CalculationsAndCharts!$A35+$A$11,IF($C$5,8,0),1,1))) -> 419.43 | E35: =IF(A35>$B$30,NA(),IF(A35>$A$8,"",OFFSET(InputPriceData!$D$15,CalculationsAndCharts!$A35+$A$11,IF($C$5,8,0),1,1))) -> 422.82 | F35: =IF(A35>$B$30,NA(),IF(A35>$A$8,"",OFFSET(InputPriceData!$E$15,CalculationsAndCharts!$A35+$A$11,IF($C$5,8,0),1,1))) -> 411.67 | G35: =IF(A35>$B$30,NA(),IF(A35>$A$8,"",OFFSET(InputPriceData!$F$15,CalculationsAndCharts!$A35+$A$11,IF($C$5,8,0),1,1))) -> 422.12 | H35: 10.50975753 | I35: 8.785467058 | J35: 98.19996215 | K35: 96.45674174 | L35: 83.87073001 | M35: =IF(A35>$B$30,NA(),IF(A35>$A$8,"",OFFSET(InputIndexData!$F$15,CalculationsAndCharts!$A35+$A$11,IF($C$5,8,0),1,1))) -> 16.69 | N35: -49.56180115 | O35: 2.707692308 | P35: -45.00883381 | Q35: 36.82537305 | R35: 416.74 | S35: 3 | T35: 422.12 | U35: 1 | V35: 1.290972789 | W35: -1.141855397 | X35: -5.266633593 | Y35: -9.414384535 | Z35: 404.486 | AA35: FALSE | AB35: FALSE | AC35: FALSE | AD35: FALSE | AE35: 433.3905 | AG35: TRUE | AH35: 0 | AI35: FALSE | AJ35: FALSE | AK35: FALSE | AL35: 0 | AM35: 128.2 | AW35: 351681700
A36: 4 | B36: =IF(A36>$B$30,NA(),IF($A36>$A$8,"",OFFSET(InputPriceData!$B$15,$A36+$A$11,0,1,1))) -> 2021-04-26 | C36: =IF(A36>$B$30,NA(),IF($A36>$A$8,"",OFFSET(InputPriceData!$G$15,CalculationsAndCharts!$A36+$A$11,IF($C$5,8,0),1,1))) -> 318717100 | D36: =IF(A36>$B$30,NA(),IF(A36>$A$8,"",OFFSET(InputPriceData!$C$15,CalculationsAndCharts!$A36+$A$11,IF($C$5,8,0),1,1))) -> 417.44 | E36: =IF(A36>$B$30,NA(),IF(A36>$A$8,"",OFFSET(InputPriceData!$D$15,CalculationsAndCharts!$A36+$A$11,IF($C$5,8,0),1,1))) -> 420.72 | F36: =IF(A36>$B$30,NA(),IF(A36>$A$8,"",OFFSET(InputPriceData!$E$15,CalculationsAndCharts!$A36+$A$11,IF($C$5,8,0),1,1))) -> 416.3 | G36: =IF(A36>$B$30,NA(),IF(A36>$A$8,"",OFFSET(InputPriceData!$F$15,CalculationsAndCharts!$A36+$A$11,IF($C$5,8,0),1,1))) -> 417.3 | H36: 4.747575288 | I36: 6.420934117 | J36: 98.22339378 | K36: 96.4654858 | L36: 84.91539301 | M36: =IF(A36>$B$30,NA(),IF(A36>$A$8,"",OFFSET(InputIndexData!$F$15,CalculationsAndCharts!$A36+$A$11,IF($C$5,8,0),1,1))) -> 18.61 | N36: -43.75944394 | O36: 14.52307692 | P36: -59.8092335 | Q36: -23.75879153 | R36: 411.49 | S36: 4 | T36: 417.3 | U36: 1 | V36: 1.411941967 | W36: -0.134196022 | X36: -14.56672929 | Y36: -9.149293075 | Z36: 400.186 | AA36: FALSE | AB36: FALSE | AC36: FALSE | AD36: FALSE | AE36: 433.3905 | AG36: TRUE | AH36: 0 | AI36: FALSE | AJ36: FALSE | AK36: FALSE | AL36: 0 | AM36: 128.2 | AX36: 318717100
A37: 5 | B37: =IF(A37>$B$30,NA(),IF($A37>$A$8,"",OFFSET(InputPriceData!$B$15,$A37+$A$11,0,1,1))) -> 2021-04-19 | C37: =IF(A37>$B$30,NA(),IF($A37>$A$8,"",OFFSET(InputPriceData!$G$15,CalculationsAndCharts!$A37+$A$11,IF($C$5,8,0),1,1))) -> 397935300 | D37: =IF(A37>$B$30,NA(),IF(A37>$A$8,"",OFFSET(InputPriceData!$C$15,CalculationsAndCharts!$A37+$A$11,IF($C$5,8,0),1,1))) -> 416.26 | E37: =IF(A37>$B$30,NA(),IF(A37>$A$8,"",OFFSET(InputPriceData!$D$15,CalculationsAndCharts!$A37+$A$11,IF($C$5,8,0),1,1))) -> 418.25 | F37: =IF(A37>$B$30,NA(),IF(A37>$A$8,"",OFFSET(InputPriceData!$E$15,CalculationsAndCharts!$A37+$A$11,IF($C$5,8,0),1,1))) -> 410.59 | G37: =IF(A37>$B$30,NA(),IF(A37>$A$8,"",OFFSET(InputPriceData!$F$15,CalculationsAndCharts!$A37+$A$11,IF($C$5,8,0),1,1))) -> 416.74 | H37: 7.69575288 | I37: 8.421868234 | J37: 99.25441436 | K37: 98.46547338 | L37: 95.53583441 | M37: =IF(A37>$B$30,NA(),IF(A37>$A$8,"",OFFSET(InputIndexData!$F$15,CalculationsAndCharts!$A37+$A$11,IF($C$5,8,0),1,1))) -> 17.33 | N37: -47.62768208 | O37: 6.646153846 | P37: -47.28472003 | Q37: -1.458689114 | R37: 400.61 | S37: 4 | T37: 417.26 | U37: 2 | V37: 4.156161853 | W37: -0.1246225375 | X37: 5.411419 | Y37: -9.140583809 | Z37: 397.332 | AA37: FALSE | AB37: FALSE | AC37: FALSE | AD37: FALSE | AE37: 433.3905 | AG37: TRUE | AH37: 0 | AI37: FALSE | AJ37: FALSE | AK37: FALSE | AL37: 0 | AM37: 128.2 | AW37: 397935300
A38: 6 | B38: =IF(A38>$B$30,NA(),IF($A38>$A$8,"",OFFSET(InputPriceData!$B$15,$A38+$A$11,0,1,1))) -> 2021-04-12 | C38: =IF(A38>$B$30,NA(),IF($A38>$A$8,"",OFFSET(InputPriceData!$G$15,CalculationsAndCharts!$A38+$A$11,IF($C$5,8,0),1,1))) -> 317182900 | D38: =IF(A38>$B$30,NA(),IF(A38>$A$8,"",OFFSET(InputPriceData!$C$15,CalculationsAndCharts!$A38+$A$11,IF($C$5,8,0),1,1))) -> 410.85 | E38: =IF(A38>$B$30,NA(),IF(A38>$A$8,"",OFFSET(InputPriceData!$D$15,CalculationsAndCharts!$A38+$A$11,IF($C$5,8,0),1,1))) -> 417.91 | F38: =IF(A38>$B$30,NA(),IF(A38>$A$8,"",OFFSET(InputPriceData!$E$15,CalculationsAndCharts!$A38+$A$11,IF($C$5,8,0),1,1))) -> 410.2 | G38: =IF(A38>$B$30,NA(),IF(A38>$A$8,"",OFFSET(InputPriceData!$F$15,CalculationsAndCharts!$A38+$A$11,IF($C$5,8,0),1,1))) -> 417.26 | H38: 8.017528803 | I38: 9.183736467 | J38: 99.7256873 | K38: 99.39493478 | L38: 98.80146511 | M38: =IF(A38>$B$30,NA(),IF(A38>$A$8,"",OFFSET(InputIndexData!$F$15,CalculationsAndCharts!$A38+$A$11,IF($C$5,8,0),1,1))) -> 16.25 | N38: -50.89150801 | O38: -2.636309167 | P38: -42.51593285 | Q38: 7.455662474 | R38: 395.98 | S38: 4 | T38: 417.26 | U38: 1 | V38: 5.374008788 | W38: -1.382830849 | X38: -15.97955856 | Y38: -9.140583809 | Z38: 394.794 | AA38: FALSE | AB38: FALSE | AC38: FALSE | AD38: FALSE | AE38: 433.3905 | AG38: TRUE | AH38: 0 | AI38: FALSE | AJ38: FALSE | AK38: FALSE | AL38: 0 | AM38: 128.2 | AW38: 317182900
A39: 7 | B39: =IF(A39>$B$30,NA(),IF($A39>$A$8,"",OFFSET(InputPriceData!$B$15,$A39+$A$11,0,1,1))) -> 2021-04-05 | C39: =IF(A39>$B$30,NA(),IF($A39>$A$8,"",OFFSET(InputPriceData!$G$15,CalculationsAndCharts!$A39+$A$11,IF($C$5,8,0),1,1))) -> 328509800 | D39: =IF(A39>$B$30,NA(),IF(A39>$A$8,"",OFFSET(InputPriceData!$C$15,CalculationsAndCharts!$A39+$A$11,IF($C$5,8,0),1,1))) -> 403.46 | E39: =IF(A39>$B$30,NA(),IF(A39>$A$8,"",OFFSET(InputPriceData!$D$15,CalculationsAndCharts!$A39+$A$11,IF($C$5,8,0),1,1))) -> 411.67 | F39: =IF(A39>$B$30,NA(),IF(A39>$A$8,"",OFFSET(InputPriceData!$E$15,CalculationsAndCharts!$A39+$A$11,IF($C$5,8,0),1,1))) -> 403.38 | G39: =IF(A39>$B$30,NA(),IF(A39>$A$8,"",OFFSET(InputPriceData!$F$15,CalculationsAndCharts!$A39+$A$11,IF($C$5,8,0),1,1))) -> 411.49 | H39: 10.78528803 | I39: 10.65747293 | J39: 99.64721312 | K39: 99.04268193 | L39: 97.98299724 | M39: =IF(A39>$B$30,NA(),IF(A39>$A$8,"",OFFSET(InputIndexData!$F$15,CalculationsAndCharts!$A39+$A$11,IF($C$5,8,0),1,1))) -> 16.69 | N39: -49.56180115 | O39: -3.693017888 | P39: -33.29132516 | Q39: 24.69933328 | R39: 388.21 | S39: 4 | T39: 411.49 | U39: 1 | V39: 5.996754334 | W39: -2.644049673 | X39: -14.0393596 | Y39: -7.866533816 | Z39: 391.712 | AA39: FALSE | AB39: FALSE | AC39: FALSE | AD39: FALSE | AE39: 433.3905 | AG39: TRUE | AH39: 0 | AI39: FALSE | AJ39: FALSE | AK39: FALSE | AL39: 0 | AM39: 128.2 | AW39: 328509800
A40: 8 | B40: =IF(A40>$B$30,NA(),IF($A40>$A$8,"",OFFSET(InputPriceData!$B$15,$A40+$A$11,0,1,1))) -> 2021-03-29 | C40: =IF(A40>$B$30,NA(),IF($A40>$A$8,"",OFFSET(InputPriceData!$G$15,CalculationsAndCharts!$A40+$A$11,IF($C$5,8,0),1,1))) -> 396786900 | D40: =IF(A40>$B$30,NA(),IF(A40>$A$8,"",OFFSET(InputPriceData!$C$15,CalculationsAndCharts!$A40+$A$11,IF($C$5,8,0),1,1))) -> 394.4 | E40: =IF(A40>$B$30,NA(),IF(A40>$A$8,"",OFFSET(InputPriceData!$D$15,CalculationsAndCharts!$A40+$A$11,IF($C$5,8,0),1,1))) -> 400.67 | F40: =IF(A40>$B$30,NA(),IF(A40>$A$8,"",OFFSET(InputPriceData!$E$15,CalculationsAndCharts!$A40+$A$11,IF($C$5,8,0),1,1))) -> 392.81 | G40: =IF(A40>$B$30,NA(),IF(A40>$A$8,"",OFFSET(InputPriceData!$F$15,CalculationsAndCharts!$A40+$A$11,IF($C$5,8,0),1,1))) -> 400.61 | H40: 8.312880286 | I40: 10.25494587 | J40: 96.96500667 | K40: 91.18870657 | L40: 87.22391433 | M40: =IF(A40>$B$30,NA(),IF(A40>$A$8,"",OFFSET(InputIndexData!$F$15,CalculationsAndCharts!$A40+$A$11,IF($C$5,8,0),1,1))) -> 17.33 | N40: -47.62768208 | O40: -8.112407211 | P40: -35.81087621 | Q40: 19.98950601 | R40: 388.21 | S40: 3 | T40: 400.61 | U40: 1 | V40: 3.194147497 | W40: -1.1557375 | X40: 2.853891032 | Y40: -7.925413744 | Z40: 387.449 | AA40: FALSE | AB40: FALSE | AC40: FALSE | AD40: FALSE | AE40: 433.3905 | AG40: TRUE | AH40: 0 | AI40: FALSE | AJ40: FALSE | AK40: FALSE | AL40: 0 | AM40: 128.2 | AW40: 396786900
A41: 9 | B41: =IF(A41>$B$30,NA(),IF($A41>$A$8,"",OFFSET(InputPriceData!$B$15,$A41+$A$11,0,1,1))) -> 2021-03-22 | C41: =IF(A41>$B$30,NA(),IF($A41>$A$8,"",OFFSET(InputPriceData!$G$15,CalculationsAndCharts!$A41+$A$11,IF($C$5,8,0),1,1))) -> 492591500 | D41: =IF(A41>$B$30,NA(),IF(A41>$A$8,"",OFFSET(InputPriceData!$C$15,CalculationsAndCharts!$A41+$A$11,IF($C$5,8,0),1,1))) -> 390.03 | E41: =IF(A41>$B$30,NA(),IF(A41>$A$8,"",OFFSET(InputPriceData!$D$15,CalculationsAndCharts!$A41+$A$11,IF($C$5,8,0),1,1))) -> 396.41 | F41: =IF(A41>$B$30,NA(),IF(A41>$A$8,"",OFFSET(InputPriceData!$E$15,CalculationsAndCharts!$A41+$A$11,IF($C$5,8,0),1,1))) -> 383.9 | G41: =IF(A41>$B$30,NA(),IF(A41>$A$8,"",OFFSET(InputPriceData!$F$15,CalculationsAndCharts!$A41+$A$11,IF($C$5,8,0),1,1))) -> 395.98 | H41: 12.38880286 | I41: 12.64989174 | J41: 96.46594124 | K41: 89.6755822 | L41: 85.10594402 | M41: =IF(A41>$B$30,NA(),IF(A41>$A$8,"",OFFSET(InputIndexData!$F$15,CalculationsAndCharts!$A41+$A$11,IF($C$5,8,0),1,1))) -> 18.86 | N41: -43.00392868 | O41: -5.558337506 | P41: -20.82011187 | Q41: 48.01192323 | R41: 382.38 | S41: 4 | T41: 395.98 | U41: 1 | V41: 3.556671374 | W41: -1.962220314 | X41: 26.03846898 | Y41: -6.848830749 | Z41: 385.551 | AA41: FALSE | AB41: FALSE | AC41: FALSE | AD41: FALSE | AE41: 433.3905 | AG41: TRUE | AH41: 0 | AI41: FALSE | AJ41: FALSE | AK41: FALSE | AL41: 0 | AM41: 128.2 | AW41: 492591500
A42: 10 | B42: =IF(A42>$B$30,NA(),IF($A42>$A$8,"",OFFSET(InputPriceData!$B$15,$A42+$A$11,0,1,1))) -> 2021-03-15 | C42: =IF(A42>$B$30,NA(),IF($A42>$A$8,"",OFFSET(InputPriceData!$G$15,CalculationsAndCharts!$A42+$A$11,IF($C$5,8,0),1,1))) -> 474082600 | D42: =IF(A42>$B$30,NA(),IF(A42>$A$8,"",OFFSET(InputPriceData!$C$15,CalculationsAndCharts!$A42+$A$11,IF($C$5,8,0),1,1))) -> 393.04 | E42: =IF(A42>$B$30,NA(),IF(A42>$A$8,"",OFFSET(InputPriceData!$D$15,CalculationsAndCharts!$A42+$A$11,IF($C$5,8,0),1,1))) -> 396.82 | F42: =IF(A42>$B$30,NA(),IF(A42>$A$8,"",OFFSET(InputPriceData!$E$15,CalculationsAndCharts!$A42+$A$11,IF($C$5,8,0),1,1))) -> 385.89 | G42: =IF(A42>$B$30,NA(),IF(A42>$A$8,"",OFFSET(InputPriceData!$F$15,CalculationsAndCharts!$A42+$A$11,IF($C$5,8,0),1,1))) -> 388.21 | H42: 11.29802858 | I42: 12.78978348 | J42: 93.27078724 | K42: 80.83862406 | L42: 71.02895843 | M42: =IF(A42>$B$30,NA(),IF(A42>$A$8,"",OFFSET(InputIndexData!$F$15,CalculationsAndCharts!$A42+$A$11,IF($C$5,8,0),1,1))) -> 20.95 | N42: -36.68782109 | O42: 4.907361042 | P42: -19.94448286 | Q42: 49.64874713 | R42: 379.12 | S42: 4 | T42: 392.77 | U42: 2 | V42: 3.600443131 | W42: -1.1609848 | X42: 17.4813489 | Y42: -6.087532143 | Z42: 383.4 | AA42: FALSE | AB42: FALSE | AC42: FALSE | AD42: FALSE | AE42: 433.3905 | AG42: TRUE | AH42: 0 | AI42: FALSE | AJ42: FALSE | AK42: FALSE | AL42: 0 | AM42: 128.2 | AX42: 474082600
A43: 11 | B43: =IF(A43>$B$30,NA(),IF($A43>$A$8,"",OFFSET(InputPriceData!$B$15,$A43+$A$11,0,1,1))) -> 2021-03-08 | C43: =IF(A43>$B$30,NA(),IF($A43>$A$8,"",OFFSET(InputPriceData!$G$15,CalculationsAndCharts!$A43+$A$11,IF($C$5,8,0),1,1))) -> 497580800 | D43: =IF(A43>$B$30,NA(),IF(A43>$A$8,"",OFFSET(InputPriceData!$C$15,CalculationsAndCharts!$A43+$A$11,IF($C$5,8,0),1,1))) -> 383.4 | E43: =IF(A43>$B$30,NA(),IF(A43>$A$8,"",OFFSET(InputPriceData!$D$15,CalculationsAndCharts!$A43+$A$11,IF($C$5,8,0),1,1))) -> 394.36 | F43: =IF(A43>$B$30,NA(),IF(A43>$A$8,"",OFFSET(InputPriceData!$E$15,CalculationsAndCharts!$A43+$A$11,IF($C$5,8,0),1,1))) -> 380.17 | G43: =IF(A43>$B$30,NA(),IF(A43>$A$8,"",OFFSET(InputPriceData!$F$15,CalculationsAndCharts!$A43+$A$11,IF($C$5,8,0),1,1))) -> 392.77 | H43: 14.61028584 | I43: 14.64956695 | J43: 91.51717457 | K43: 77.53973122 | L43: 53.12081048 | M43: =IF(A43>$B$30,NA(),IF(A43>$A$8,"",OFFSET(InputIndexData!$F$15,CalculationsAndCharts!$A43+$A$11,IF($C$5,8,0),1,1))) -> 20.69 | N43: -37.47355697 | O43: 3.605408112 | P43: -8.303478285 | Q43: 71.40941788 | R43: 379.12 | S43: 3 | T43: 392.77 | U43: 1 | V43: 3.600443131 | W43: -2.645314051 | X43: 23.30438529 | Y43: -6.087532143 | Z43: 382.581 | AA43: FALSE | AB43: FALSE | AC43: FALSE | AD43: FALSE | AE43: 433.3905 | AG43: TRUE | AH43: 0 | AI43: FALSE | AJ43: FALSE | AK43: FALSE | AL43: 0 | AM43: 128.2 | AW43: 497580800
A44: 12 | B44: =IF(A44>$B$30,NA(),IF($A44>$A$8,"",OFFSET(InputPriceData!$B$15,$A44+$A$11,0,1,1))) -> 2021-03-01 | C44: =IF(A44>$B$30,NA(),IF($A44>$A$8,"",OFFSET(InputPriceData!$G$15,CalculationsAndCharts!$A44+$A$11,IF($C$5,8,0),1,1))) -> 640356900 | D44: =IF(A44>$B$30,NA(),IF(A44>$A$8,"",OFFSET(InputPriceData!$C$15,CalculationsAndCharts!$A44+$A$11,IF($C$5,8,0),1,1))) -> 384.33 | E44: =IF(A44>$B$30,NA(),IF(A44>$A$8,"",OFFSET(InputPriceData!$D$15,CalculationsAndCharts!$A44+$A$11,IF($C$5,8,0),1,1))) -> 389.64 | F44: =IF(A44>$B$30,NA(),IF(A44>$A$8,"",OFFSET(InputPriceData!$E$15,CalculationsAndCharts!$A44+$A$11,IF($C$5,8,0),1,1))) -> 370.67 | G44: =IF(A44>$B$30,NA(),IF(A44>$A$8,"",OFFSET(InputPriceData!$F$15,CalculationsAndCharts!$A44+$A$11,IF($C$5,8,0),1,1))) -> 382.38 | H44: 18.39285841 | I44: 15.1091339 | J44: 90.73401424 | K44: 75.78801769 | L44: 49.56582994 | M44: =IF(A44>$B$30,NA(),IF(A44>$A$8,"",OFFSET(InputIndexData!$F$15,CalculationsAndCharts!$A44+$A$11,IF($C$5,8,0),1,1))) -> 24.66 | N44: -25.47597461 | O44: 23.48522784 | P44: -5.426895574 | Q44: 76.78664876 | R44: 379.12 | S44: 2 | T44: 391.36 | U44: 4 | V44: 0.8598860519 | W44: -3.127555192 | X44: 34.49463616 | Y44: -5.749182339 | Z44: 380.57 | AA44: FALSE | AB44: FALSE | AC44: FALSE | AD44: FALSE | AE44: 433.3905 | AG44: TRUE | AH44: 0 | AI44: FALSE | AJ44: FALSE | AK44: FALSE | AL44: 0 | AM44: 128.2 | AX44: 640356900
A45: 13 | B45: =IF(A45>$B$30,NA(),IF($A45>$A$8,"",OFFSET(InputPriceData!$B$15,$A45+$A$11,0,1,1))) -> 2021-02-22 | C45: =IF(A45>$B$30,NA(),IF($A45>$A$8,"",OFFSET(InputPriceData!$G$15,CalculationsAndCharts!$A45+$A$11,IF($C$5,8,0),1,1))) -> 546504300 | D45: =IF(A45>$B$30,NA(),IF(A45>$A$8,"",OFFSET(InputPriceData!$C$15,CalculationsAndCharts!$A45+$A$11,IF($C$5,8,0),1,1))) -> 385.8 | E45: =IF(A45>$B$30,NA(),IF(A45>$A$8,"",OFFSET(InputPriceData!$D$15,CalculationsAndCharts!$A45+$A$11,IF($C$5,8,0),1,1))) -> 390.95 | F45: =IF(A45>$B$30,NA(),IF(A45>$A$8,"",OFFSET(InputPriceData!$E$15,CalculationsAndCharts!$A45+$A$11,IF($C$5,8,0),1,1))) -> 377 | G45: =IF(A45>$B$30,NA(),IF(A45>$A$8,"",OFFSET(InputPriceData!$F$15,CalculationsAndCharts!$A45+$A$11,IF($C$5,8,0),1,1))) -> 379.12 | H45: 13.19858413 | I45: 11.24826781 | J45: 94.13505257 | K45: 85.20526178 | L45: 64.97147616 | M45: =IF(A45>$B$30,NA(),IF(A45>$A$8,"",OFFSET(InputIndexData!$F$15,CalculationsAndCharts!$A45+$A$11,IF($C$5,8,0),1,1))) -> 27.95 | N45: -15.53339377 | O45: 39.95993991 | P45: -35.94224083 | Q45: 31.61201581 | R45: 379.12 | S45: 1 | T45: 391.36 | U45: 3 | V45: 2.542730534 | W45: -3.127555192 | X45: 14.78270475 | Y45: -6.020032706 | Z45: 379.112 | AA45: FALSE | AB45: FALSE | AC45: FALSE | AD45: FALSE | AE45: 433.3905 | AG45: TRUE | AH45: 0 | AI45: FALSE | AJ45: FALSE | AK45: FALSE | AL45: 0 | AM45: 128.2 | AX45: 546504300
A46: 14 | B46: =IF(A46>$B$30,NA(),IF($A46>$A$8,"",OFFSET(InputPriceData!$B$15,$A46+$A$11,0,1,1))) -> 2021-02-15 | C46: =IF(A46>$B$30,NA(),IF($A46>$A$8,"",OFFSET(InputPriceData!$G$15,CalculationsAndCharts!$A46+$A$11,IF($C$5,8,0),1,1))) -> 246216800 | D46: =IF(A46>$B$30,NA(),IF(A46>$A$8,"",OFFSET(InputPriceData!$C$15,CalculationsAndCharts!$A46+$A$11,IF($C$5,8,0),1,1))) -> 392.67 | E46: =IF(A46>$B$30,NA(),IF(A46>$A$8,"",OFFSET(InputPriceData!$D$15,CalculationsAndCharts!$A46+$A$11,IF($C$5,8,0),1,1))) -> 392.88 | F46: =IF(A46>$B$30,NA(),IF(A46>$A$8,"",OFFSET(InputPriceData!$E$15,CalculationsAndCharts!$A46+$A$11,IF($C$5,8,0),1,1))) -> 386.47 | G46: =IF(A46>$B$30,NA(),IF(A46>$A$8,"",OFFSET(InputPriceData!$F$15,CalculationsAndCharts!$A46+$A$11,IF($C$5,8,0),1,1))) -> 388.76 | H46: 6.435841272 | I46: 8.546535618 | J46: 98.41451319 | K46: 96.07710804 | L46: 92.59628101 | M46: =IF(A46>$B$30,NA(),IF(A46>$A$8,"",OFFSET(InputIndexData!$F$15,CalculationsAndCharts!$A46+$A$11,IF($C$5,8,0),1,1))) -> 22.05 | N46: -33.36355394 | O46: 10.41562344 | P46: -59.31992138 | Q46: -0.8089492414 | R46: 368.86 | S46: 4 | T46: 391.36 | U46: 2 | V46: 6.099875291 | W46: -0.6643499591 | X46: -48.2869023 | Y46: -6.375204415 | Z46: 377.841 | AA46: FALSE | AB46: FALSE | AC46: FALSE | AD46: FALSE | AE46: 433.3905 | AG46: TRUE | AH46: 0 | AI46: FALSE | AJ46: FALSE | AK46: FALSE | AL46: 0 | AM46: 128.2 | AX46: 246216800
A47: 15 | B47: =IF(A47>$B$30,NA(),IF($A47>$A$8,"",OFFSET(InputPriceData!$B$15,$A47+$A$11,0,1,1))) -> 2021-02-08 | C47: =IF(A47>$B$30,NA(),IF($A47>$A$8,"",OFFSET(InputPriceData!$G$15,CalculationsAndCharts!$A47+$A$11,IF($C$5,8,0),1,1))) -> 226577300 | D47: =IF(A47>$B$30,NA(),IF(A47>$A$8,"",OFFSET(InputPriceData!$C$15,CalculationsAndCharts!$A47+$A$11,IF($C$5,8,0),1,1))) -> 388 | E47: =IF(A47>$B$30,NA(),IF(A47>$A$8,"",OFFSET(InputPriceData!$D$15,CalculationsAndCharts!$A47+$A$11,IF($C$5,8,0),1,1))) -> 391.62 | F47: =IF(A47>$B$30,NA(),IF(A47>$A$8,"",OFFSET(InputPriceData!$E$15,CalculationsAndCharts!$A47+$A$11,IF($C$5,8,0),1,1))) -> 386.23 | G47: =IF(A47>$B$30,NA(),IF(A47>$A$8,"",OFFSET(InputPriceData!$F$15,CalculationsAndCharts!$A47+$A$11,IF($C$5,8,0),1,1))) -> 391.36 | H47: 6.668412719 | I47: 10.68307124 | J47: 95.19213293 | K47: 91.25538373 | L47: 68.46079078 | M47: =IF(A47>$B$30,NA(),IF(A47>$A$8,"",OFFSET(InputIndexData!$F$15,CalculationsAndCharts!$A47+$A$11,IF($C$5,8,0),1,1))) -> 19.97 | N47: -47.47501315 | O47: -3.944203944 | P47: -49.15036955 | Q47: 23.98767274 | R47: 368.86 | S47: 3 | T47: 391.36 | U47: 1 | V47: 6.099875291 | W47: -1.257154538 | X47: -52.4118011 | Y47: -7.10598937 | Z47: 375.32 | AA47: FALSE | AB47: FALSE | AC47: FALSE | AD47: FALSE | AE47: 433.3905 | AG47: TRUE | AH47: 0 | AI47: FALSE | AJ47: FALSE | AK47: FALSE | AL47: 0 | AM47: 128.2 | AW47: 226577300
A48: 16 | B48: =IF(A48>$B$30,NA(),IF($A48>$A$8,"",OFFSET(InputPriceData!$B$15,$A48+$A$11,0,1,1))) -> 2021-02-01 | C48: =IF(A48>$B$30,NA(),IF($A48>$A$8,"",OFFSET(InputPriceData!$G$15,CalculationsAndCharts!$A48+$A$11,IF($C$5,8,0),1,1))) -> 288507800 | D48: =IF(A48>$B$30,NA(),IF(A48>$A$8,"",OFFSET(InputPriceData!$C$15,CalculationsAndCharts!$A48+$A$11,IF($C$5,8,0),1,1))) -> 372.5 | E48: =IF(A48>$B$30,NA(),IF(A48>$A$8,"",OFFSET(InputPriceData!$D$15,CalculationsAndCharts!$A48+$A$11,IF($C$5,8,0),1,1))) -> 387.2 | F48: =IF(A48>$B$30,NA(),IF(A48>$A$8,"",OFFSET(InputPriceData!$E$15,CalculationsAndCharts!$A48+$A$11,IF($C$5,8,0),1,1))) -> 369.17 | G48: =IF(A48>$B$30,NA(),IF(A48>$A$8,"",OFFSET(InputPriceData!$F$15,CalculationsAndCharts!$A48+$A$11,IF($C$5,8,0),1,1))) -> 386.44 | H48: 18.17412719 | I48: 15.97614247 | J48: 94.67046981 | K48: 90.3723297 | L48: 65.39074768 | M48: =IF(A48>$B$30,NA(),IF(A48>$A$8,"",OFFSET(InputIndexData!$F$15,CalculationsAndCharts!$A48+$A$11,IF($C$5,8,0),1,1))) -> 20.87 | N48: -45.10783798 | O48: 0.3848003848 | P48: -23.95623667 | Q48: 85.41903173 | R48: 368.86 | S48: 2 | T48: 386.44 | U48: 1 | V48: 4.766035894 | W48: -4.549218507 | X48: -41.88832499 | Y48: -5.923299865 | Z48: 372.892 | AA48: FALSE | AB48: FALSE | AC48: FALSE | AD48: FALSE | AE48: 433.3905 | AG48: TRUE | AH48: 0 | AI48: FALSE | AJ48: FALSE | AK48: FALSE | AL48: 0 | AM48: 128.2 | AW48: 288507800
A49: 17 | B49: =IF(A49>$B$30,NA(),IF($A49>$A$8,"",OFFSET(InputPriceData!$B$15,$A49+$A$11,0,1,1))) -> 2021-01-25 | C49: =IF(A49>$B$30,NA(),IF($A49>$A$8,"",OFFSET(InputPriceData!$G$15,CalculationsAndCharts!$A49+$A$11,IF($C$5,8,0),1,1))) -> 457381600 | D49: =IF(A49>$B$30,NA(),IF(A49>$A$8,"",OFFSET(InputPriceData!$C$15,CalculationsAndCharts!$A49+$A$11,IF($C$5,8,0),1,1))) -> 382.42 | E49: =IF(A49>$B$30,NA(),IF(A49>$A$8,"",OFFSET(InputPriceData!$D$15,CalculationsAndCharts!$A49+$A$11,IF($C$5,8,0),1,1))) -> 384.59 | F49: =IF(A49>$B$30,NA(),IF(A49>$A$8,"",OFFSET(InputPriceData!$E$15,CalculationsAndCharts!$A49+$A$11,IF($C$5,8,0),1,1))) -> 367.07 | G49: =IF(A49>$B$30,NA(),IF(A49>$A$8,"",OFFSET(InputPriceData!$F$15,CalculationsAndCharts!$A49+$A$11,IF($C$5,8,0),1,1))) -> 368.86 | H49: 16.68127187 | I49: 13.61228495 | J49: 93.1838075 | K49: 87.57589435 | L49: 55.06986433 | M49: =IF(A49>$B$30,NA(),IF(A49>$A$8,"",OFFSET(InputIndexData!$F$15,CalculationsAndCharts!$A49+$A$11,IF($C$5,8,0),1,1))) -> 33.09 | N49: -12.96685955 | O49: 59.16305916 | P49: -35.20780272 | Q49: 57.98411279 | R49: 368.86 | S49: 1 | T49: 381.63 | U49: 2 | V49: 3.46201811 | W49: -3.346172995 | X49: -7.155826851 | Y49: -5.42148154 | Z49: 370.342 | AA49: FALSE | AB49: FALSE | AC49: FALSE | AD49: FALSE | AE49: 433.3905 | AG49: TRUE | AH49: 0 | AI49: FALSE | AJ49: FALSE | AK49: FALSE | AL49: 0 | AM49: 128.2 | AX49: 457381600
A50: 18 | B50: =IF(A50>$B$30,NA(),IF($A50>$A$8,"",OFFSET(InputPriceData!$B$15,$A50+$A$11,0,1,1))) -> 2021-01-18 | C50: =IF(A50>$B$30,NA(),IF($A50>$A$8,"",OFFSET(InputPriceData!$G$15,CalculationsAndCharts!$A50+$A$11,IF($C$5,8,0),1,1))) -> 213770000 | D50: =IF(A50>$B$30,NA(),IF(A50>$A$8,"",OFFSET(InputPriceData!$C$15,CalculationsAndCharts!$A50+$A$11,IF($C$5,8,0),1,1))) -> 377.1 | E50: =IF(A50>$B$30,NA(),IF(A50>$A$8,"",OFFSET(InputPriceData!$D$15,CalculationsAndCharts!$A50+$A$11,IF($C$5,8,0),1,1))) -> 383.69 | F50: =IF(A50>$B$30,NA(),IF(A50>$A$8,"",OFFSET(InputPriceData!$E$15,CalculationsAndCharts!$A50+$A$11,IF($C$5,8,0),1,1))) -> 375.52 | G50: =IF(A50>$B$30,NA(),IF(A50>$A$8,"",OFFSET(InputPriceData!$F$15,CalculationsAndCharts!$A50+$A$11,IF($C$5,8,0),1,1))) -> 381.63 | H50: 9.132718673 | I50: 9.704569894 | J50: 97.65350662 | K50: 95.59435211 | L50: 84.61936418 | M50: =IF(A50>$B$30,NA(),IF(A50>$A$8,"",OFFSET(InputIndexData!$F$15,CalculationsAndCharts!$A50+$A$11,IF($C$5,8,0),1,1))) -> 21.91 | N50: -42.37243556 | O50: 5.387205387 | P50: -53.80787212 | Q50: 12.63119092 | R50: 372.66 | S50: 4 | T50: 381.63 | U50: 1 | V50: 2.407019804 | W50: -1.876162775 | X50: -56.60669582 | Y50: -7.588501952 | Z50: 368.723 | AA50: FALSE | AB50: FALSE | AC50: FALSE | AD50: FALSE | AE50: 433.3905 | AG50: TRUE | AH50: 0 | AI50: FALSE | AJ50: FALSE | AK50: FALSE | AL50: 0 | AM50: 128.2 | AW50: 213770000
A51: 19 | B51: =IF(A51>$B$30,NA(),IF($A51>$A$8,"",OFFSET(InputPriceData!$B$15,$A51+$A$11,0,1,1))) -> 2021-01-11 | C51: =IF(A51>$B$30,NA(),IF($A51>$A$8,"",OFFSET(InputPriceData!$G$15,CalculationsAndCharts!$A51+$A$11,IF($C$5,8,0),1,1))) -> 306035100 | D51: =IF(A51>$B$30,NA(),IF(A51>$A$8,"",OFFSET(InputPriceData!$C$15,CalculationsAndCharts!$A51+$A$11,IF($C$5,8,0),1,1))) -> 376.62 | E51: =IF(A51>$B$30,NA(),IF(A51>$A$8,"",OFFSET(InputPriceData!$D$15,CalculationsAndCharts!$A51+$A$11,IF($C$5,8,0),1,1))) -> 379.89 | F51: =IF(A51>$B$30,NA(),IF(A51>$A$8,"",OFFSET(InputPriceData!$E$15,CalculationsAndCharts!$A51+$A$11,IF($C$5,8,0),1,1))) -> 372.48 | G51: =IF(A51>$B$30,NA(),IF(A51>$A$8,"",OFFSET(InputPriceData!$F$15,CalculationsAndCharts!$A51+$A$11,IF($C$5,8,0),1,1))) -> 374.47 | H51: 8.347186734 | I51: 10.18913979 | J51: 97.13755082 | K51: 94.01075004 | L51: 78.75715037 | M51: =IF(A51>$B$30,NA(),IF(A51>$A$8,"",OFFSET(InputIndexData!$F$15,CalculationsAndCharts!$A51+$A$11,IF($C$5,8,0),1,1))) -> 24.34 | N51: -35.9810626 | O51: 17.07551708 | P51: -51.50140055 | Q51: 18.25510674 | R51: 367.8 | S51: 4 | T51: 380.02 | U51: 2 | V51: 3.322457858 | W51: -1.46044945 | X51: -38.33693104 | Y51: -7.196989632 | Z51: 366.102 | AA51: FALSE | AB51: FALSE | AC51: FALSE | AD51: FALSE | AE51: 433.3905 | AG51: TRUE | AH51: 0 | AI51: FALSE | AJ51: FALSE | AK51: FALSE | AL51: 0 | AM51: 128.2 | AX51: 306035100
A52: 20 | B52: =IF(A52>$B$30,NA(),IF($A52>$A$8,"",OFFSET(InputPriceData!$B$15,$A52+$A$11,0,1,1))) -> 2021-01-04 | C52: =IF(A52>$B$30,NA(),IF($A52>$A$8,"",OFFSET(InputPriceData!$G$15,CalculationsAndCharts!$A52+$A$11,IF($C$5,8,0),1,1))) -> 425078700 | D52: =IF(A52>$B$30,NA(),IF(A52>$A$8,"",OFFSET(InputPriceData!$C$15,CalculationsAndCharts!$A52+$A$11,IF($C$5,8,0),1,1))) -> 374.08 | E52: =IF(A52>$B$30,NA(),IF(A52>$A$8,"",OFFSET(InputPriceData!$D$15,CalculationsAndCharts!$A52+$A$11,IF($C$5,8,0),1,1))) -> 380.24 | F52: =IF(A52>$B$30,NA(),IF(A52>$A$8,"",OFFSET(InputPriceData!$E$15,CalculationsAndCharts!$A52+$A$11,IF($C$5,8,0),1,1))) -> 363.63 | G52: =IF(A52>$B$30,NA(),IF(A52>$A$8,"",OFFSET(InputPriceData!$F$15,CalculationsAndCharts!$A52+$A$11,IF($C$5,8,0),1,1))) -> 380.02 | H52: 15.61186734 | I52: 12.83827957 | J52: 96.90446291 | K52: 91.96402267 | L52: 71.51158018 | M52: =IF(A52>$B$30,NA(),IF(A52>$A$8,"",OFFSET(InputIndexData!$F$15,CalculationsAndCharts!$A52+$A$11,IF($C$5,8,0),1,1))) -> 21.56 | N52: -43.29300368 | O52: 3.703703704 | P52: -38.8919387 | Q52: 49.00101021 | R52: 366.41 | S52: 4 | T52: 380.02 | U52: 1 | V52: 3.714418275 | W52: -1.936740172 | X52: -14.35081404 | Y52: -8.546918583 | Z52: 363.409 | AA52: FALSE | AB52: FALSE | AC52: FALSE | AD52: FALSE | AE52: 433.3905 | AG52: TRUE | AH52: 0 | AI52: FALSE | AJ52: FALSE | AK52: FALSE | AL52: 0 | AM52: 128.2 | AW52: 425078700
A53: 21 | B53: =IF(A53>$B$30,NA(),IF($A53>$A$8,"",OFFSET(InputPriceData!$B$15,$A53+$A$11,0,1,1))) -> 2020-12-28 | C53: =IF(A53>$B$30,NA(),IF($A53>$A$8,"",OFFSET(InputPriceData!$G$15,CalculationsAndCharts!$A53+$A$11,IF($C$5,8,0),1,1))) -> 220656900 | D53: =IF(A53>$B$30,NA(),IF(A53>$A$8,"",OFFSET(InputPriceData!$C$15,CalculationsAndCharts!$A53+$A$11,IF($C$5,8,0),1,1))) -> 370.53 | E53: =IF(A53>$B$30,NA(),IF(A53>$A$8,"",OFFSET(InputPriceData!$D$15,CalculationsAndCharts!$A53+$A$11,IF($C$5,8,0),1,1))) -> 373.44 | F53: =IF(A53>$B$30,NA(),IF(A53>$A$8,"",OFFSET(InputPriceData!$E$15,CalculationsAndCharts!$A53+$A$11,IF($C$5,8,0),1,1))) -> 369.62 | G53: =IF(A53>$B$30,NA(),IF(A53>$A$8,"",OFFSET(InputPriceData!$F$15,CalculationsAndCharts!$A53+$A$11,IF($C$5,8,0),1,1))) -> 372.66 | H53: 6.628673385 | I53: 9.06655915 | J53: 96.25663406 | K53: 90.00717374 | L53: 63.65121744 | M53: =IF(A53>$B$30,NA(),IF(A53>$A$8,"",OFFSET(InputIndexData!$F$15,CalculationsAndCharts!$A53+$A$11,IF($C$5,8,0),1,1))) -> 22.75 | N53: -40.16307207 | O53: 9.427609428 | P53: -56.84469644 | Q53: 5.226441331 | R53: 363.55 | S53: 4 | T53: 372.66 | U53: 1 | V53: 2.505845138 | W53: -1.30413782 | X53: -55.25330733 | Y53: -13.03332797 | Z53: 357.816 | AA53: FALSE | AB53: FALSE | AC53: FALSE | AD53: FALSE | AE53: 433.3905 | AG53: TRUE | AH53: 0 | AI53: FALSE | AJ53: FALSE | AK53: FALSE | AL53: 0 | AM53: 128.2 | AW53: 220656900
A54: 22 | B54: =IF(A54>$B$30,NA(),IF($A54>$A$8,"",OFFSET(InputPriceData!$B$15,$A54+$A$11,0,1,1))) -> 2020-12-21 | C54: =IF(A54>$B$30,NA(),IF($A54>$A$8,"",OFFSET(InputPriceData!$G$15,CalculationsAndCharts!$A54+$A$11,IF($C$5,8,0),1,1))) -> 216995000 | D54: =IF(A54>$B$30,NA(),IF(A54>$A$8,"",OFFSET(InputPriceData!$C$15,CalculationsAndCharts!$A54+$A$11,IF($C$5,8,0),1,1))) -> 363.78 | E54: =IF(A54>$B$30,NA(),IF(A54>$A$8,"",OFFSET(InputPriceData!$D$15,CalculationsAndCharts!$A54+$A$11,IF($C$5,8,0),1,1))) -> 377.22 | F54: =IF(A54>$B$30,NA(),IF(A54>$A$8,"",OFFSET(InputPriceData!$E$15,CalculationsAndCharts!$A54+$A$11,IF($C$5,8,0),1,1))) -> 360.85 | G54: =IF(A54>$B$30,NA(),IF(A54>$A$8,"",OFFSET(InputPriceData!$F$15,CalculationsAndCharts!$A54+$A$11,IF($C$5,8,0),1,1))) -> 367.8 | H54: 15.52673385 | I54: 12.4931183 | J54: 96.33944125 | K54: 89.57911932 | L54: 63.13989928 | M54: =IF(A54>$B$30,NA(),IF(A54>$A$8,"",OFFSET(InputIndexData!$F$15,CalculationsAndCharts!$A54+$A$11,IF($C$5,8,0),1,1))) -> 21.53 | N54: -43.37190952 | O54: 3.559403559 | P54: -40.53484859 | Q54: 44.99507013 | R54: 363.55 | S54: 3 | T54: 367.8 | U54: 1 | V54: 1.169027644 | W54: -0.3779227841 | X54: -56.19349454 | Y54: -11.88417618 | Z54: 354.869 | AA54: FALSE | AB54: FALSE | AC54: FALSE | AD54: FALSE | AE54: 433.3905 | AG54: TRUE | AH54: 0 | AI54: FALSE | AJ54: FALSE | AK54: FALSE | AL54: 0 | AM54: 128.2 | AW54: 216995000
A55: 23 | B55: =IF(A55>$B$30,NA(),IF($A55>$A$8,"",OFFSET(InputPriceData!$B$15,$A55+$A$11,0,1,1))) -> 2020-12-14 | C55: =IF(A55>$B$30,NA(),IF($A55>$A$8,"",OFFSET(InputPriceData!$G$15,CalculationsAndCharts!$A55+$A$11,IF($C$5,8,0),1,1))) -> 392163800 | D55: =IF(A55>$B$30,NA(),IF(A55>$A$8,"",OFFSET(InputPriceData!$C$15,CalculationsAndCharts!$A55+$A$11,IF($C$5,8,0),1,1))) -> 365.88 | E55: =IF(A55>$B$30,NA(),IF(A55>$A$8,"",OFFSET(InputPriceData!$D$15,CalculationsAndCharts!$A55+$A$11,IF($C$5,8,0),1,1))) -> 369.67 | F55: =IF(A55>$B$30,NA(),IF(A55>$A$8,"",OFFSET(InputPriceData!$E$15,CalculationsAndCharts!$A55+$A$11,IF($C$5,8,0),1,1))) -> 361.74 | G55: =IF(A55>$B$30,NA(),IF(A55>$A$8,"",OFFSET(InputPriceData!$F$15,CalculationsAndCharts!$A55+$A$11,IF($C$5,8,0),1,1))) -> 366.41 | H55: 7.937338463 | I55: 8.616236599 | J55: 98.27293878 | K55: 94.8281999 | L55: 81.96483933 | M55: =IF(A55>$B$30,NA(),IF(A55>$A$8,"",OFFSET(InputIndexData!$F$15,CalculationsAndCharts!$A55+$A$11,IF($C$5,8,0),1,1))) -> 21.57 | N55: -43.26670174 | O55: 3.751803752 | P55: -58.98815638 | Q55: -7.376926376 | R55: 360.94 | S55: 4 | T55: 367.08 | U55: 3 | V55: 1.515487339 | W55: -0.9616432385 | X55: -20.07638322 | Y55: -11.71134358 | Z55: 352.558 | AA55: FALSE | AB55: FALSE | AC55: FALSE | AD55: FALSE | AE55: 433.3905 | AG55: TRUE | AH55: 0 | AI55: FALSE | AJ55: FALSE | AK55: FALSE | AL55: 0 | AM55: 128.2 | AW55: 392163800
A56: 24 | B56: =IF(A56>$B$30,NA(),IF($A56>$A$8,"",OFFSET(InputPriceData!$B$15,$A56+$A$11,0,1,1))) -> 2020-12-07 | C56: =IF(A56>$B$30,NA(),IF($A56>$A$8,"",OFFSET(InputPriceData!$G$15,CalculationsAndCharts!$A56+$A$11,IF($C$5,8,0),1,1))) -> 280935500 | D56: =IF(A56>$B$30,NA(),IF(A56>$A$8,"",OFFSET(InputPriceData!$C$15,CalculationsAndCharts!$A56+$A$11,IF($C$5,8,0),1,1))) -> 366.25 | E56: =IF(A56>$B$30,NA(),IF(A56>$A$8,"",OFFSET(InputPriceData!$D$15,CalculationsAndCharts!$A56+$A$11,IF($C$5,8,0),1,1))) -> 368.27 | F56: =IF(A56>$B$30,NA(),IF(A56>$A$8,"",OFFSET(InputPriceData!$E$15,CalculationsAndCharts!$A56+$A$11,IF($C$5,8,0),1,1))) -> 360.54 | G56: =IF(A56>$B$30,NA(),IF(A56>$A$8,"",OFFSET(InputPriceData!$F$15,CalculationsAndCharts!$A56+$A$11,IF($C$5,8,0),1,1))) -> 363.55 | H56: 8.003384634 | I56: 9.302473198 | J56: 98.81350903 | K56: 96.37230902 | L56: 88.48469173 | M56: =IF(A56>$B$30,NA(),IF(A56>$A$8,"",OFFSET(InputIndexData!$F$15,CalculationsAndCharts!$A56+$A$11,IF($C$5,8,0),1,1))) -> 23.31 | N56: -38.69016307 | O56: 12.12121212 | P56: -55.72178507 | Q56: 9.547190817 | R56: 352.67 | S56: 4 | T56: 367.08 | U56: 2 | V56: 4.085972722 | W56: -0.9616432385 | X56: -42.74489067 | Y56: -11.71134358 | Z56: 350.342 | AA56: FALSE | AB56: FALSE | AC56: FALSE | AD56: FALSE | AE56: 433.3905 | AG56: TRUE | AH56: 0 | AI56: FALSE | AJ56: FALSE | AK56: FALSE | AL56: 0 | AM56: 128.2 | AX56: 280935500
A57: 25 | B57: =IF(A57>$B$30,NA(),IF($A57>$A$8,"",OFFSET(InputPriceData!$B$15,$A57+$A$11,0,1,1))) -> 2020-11-30 | C57: =IF(A57>$B$30,NA(),IF($A57>$A$8,"",OFFSET(InputPriceData!$G$15,CalculationsAndCharts!$A57+$A$11,IF($C$5,8,0),1,1))) -> 317663000 | D57: =IF(A57>$B$30,NA(),IF(A57>$A$8,"",OFFSET(InputPriceData!$C$15,CalculationsAndCharts!$A57+$A$11,IF($C$5,8,0),1,1))) -> 360.11 | E57: =IF(A57>$B$30,NA(),IF(A57>$A$8,"",OFFSET(InputPriceData!$D$15,CalculationsAndCharts!$A57+$A$11,IF($C$5,8,0),1,1))) -> 367.08 | F57: =IF(A57>$B$30,NA(),IF(A57>$A$8,"",OFFSET(InputPriceData!$E$15,CalculationsAndCharts!$A57+$A$11,IF($C$5,8,0),1,1))) -> 356.48 | G57: =IF(A57>$B$30,NA(),IF(A57>$A$8,"",OFFSET(InputPriceData!$F$15,CalculationsAndCharts!$A57+$A$11,IF($C$5,8,0),1,1))) -> 367.08 | H57: 10.46384634 | I57: 10.8749464 | J57: 97.80017708 | K57: 92.70056497 | L57: 90.16047032 | M57: =IF(A57>$B$30,NA(),IF(A57>$A$8,"",OFFSET(InputIndexData!$F$15,CalculationsAndCharts!$A57+$A$11,IF($C$5,8,0),1,1))) -> 20.79 | N57: -45.31825355 | O57: -0.2399232246 | P57: -48.23707592 | Q57: 86.10332303 | R57: 352.67 | S57: 3 | T57: 367.08 | U57: 1 | V57: 4.085972722 | W57: -1.672659911 | X57: -35.25976676 | Y57: -11.71134358 | Z57: 347.121 | AA57: FALSE | AB57: FALSE | AC57: FALSE | AD57: FALSE | AE57: 433.3905 | AG57: TRUE | AH57: 0 | AI57: FALSE | AJ57: FALSE | AK57: FALSE | AL57: 0 | AM57: 128.2 | AW57: 317663000
A58: 26 | B58: =IF(A58>$B$30,NA(),IF($A58>$A$8,"",OFFSET(InputPriceData!$B$15,$A58+$A$11,0,1,1))) -> 2020-11-23 | C58: =IF(A58>$B$30,NA(),IF($A58>$A$8,"",OFFSET(InputPriceData!$G$15,CalculationsAndCharts!$A58+$A$11,IF($C$5,8,0),1,1))) -> 199491500 | D58: =IF(A58>$B$30,NA(),IF(A58>$A$8,"",OFFSET(InputPriceData!$C$15,CalculationsAndCharts!$A58+$A$11,IF($C$5,8,0),1,1))) -> 354.6 | E58: =IF(A58>$B$30,NA(),IF(A58>$A$8,"",OFFSET(InputPriceData!$D$15,CalculationsAndCharts!$A58+$A$11,IF($C$5,8,0),1,1))) -> 361.45 | F58: =IF(A58>$B$30,NA(),IF(A58>$A$8,"",OFFSET(InputPriceData!$E$15,CalculationsAndCharts!$A58+$A$11,IF($C$5,8,0),1,1))) -> 352.21 | G58: =IF(A58>$B$30,NA(),IF(A58>$A$8,"",OFFSET(InputPriceData!$F$15,CalculationsAndCharts!$A58+$A$11,IF($C$5,8,0),1,1))) -> 360.94 | H58: 9.238463427 | I58: 11.14989279 | J58: 96.38584304 | K58: 88.00753296 | L58: 85.15283427 | M58: =IF(A58>$B$30,NA(),IF(A58>$A$8,"",OFFSET(InputIndexData!$F$15,CalculationsAndCharts!$A58+$A$11,IF($C$5,8,0),1,1))) -> 20.84 | N58: -45.18674382 | O58: -5.487528345 | P58: -46.92837711 | Q58: 90.80848993 | R58: 347.54 | S58: 4 | T58: 360.94 | U58: 1 | V58: 3.85567129 | W58: -2.291239541 | X58: -59.51948002 | Y58: -10.20945309 | Z58: 343.04 | AA58: FALSE | AB58: FALSE | AC58: FALSE | AD58: FALSE | AE58: 433.3905 | AG58: TRUE | AH58: 0 | AI58: FALSE | AJ58: FALSE | AK58: FALSE | AL58: 0 | AM58: 128.2 | AW58: 199491500
A59: 27 | B59: =IF(A59>$B$30,NA(),IF($A59>$A$8,"",OFFSET(InputPriceData!$B$15,$A59+$A$11,0,1,1))) -> 2020-11-16 | C59: =IF(A59>$B$30,NA(),IF($A59>$A$8,"",OFFSET(InputPriceData!$G$15,CalculationsAndCharts!$A59+$A$11,IF($C$5,8,0),1,1))) -> 341601600 | D59: =IF(A59>$B$30,NA(),IF(A59>$A$8,"",OFFSET(InputPriceData!$C$15,CalculationsAndCharts!$A59+$A$11,IF($C$5,8,0),1,1))) -> 358.27 | E59: =IF(A59>$B$30,NA(),IF(A59>$A$8,"",OFFSET(InputPriceData!$D$15,CalculationsAndCharts!$A59+$A$11,IF($C$5,8,0),1,1))) -> 360.06 | F59: =IF(A59>$B$30,NA(),IF(A59>$A$8,"",OFFSET(InputPriceData!$E$15,CalculationsAndCharts!$A59+$A$11,IF($C$5,8,0),1,1))) -> 351.5 | G59: =IF(A59>$B$30,NA(),IF(A59>$A$8,"",OFFSET(InputPriceData!$F$15,CalculationsAndCharts!$A59+$A$11,IF($C$5,8,0),1,1))) -> 352.67 | H59: 9.224634269 | I59: 13.05978558 | J59: 94.85437472 | K59: 82.18719923 | L59: 84.59030709 | M59: =IF(A59>$B$30,NA(),IF(A59>$A$8,"",OFFSET(InputIndexData!$F$15,CalculationsAndCharts!$A59+$A$11,IF($C$5,8,0),1,1))) -> 23.7 | N59: -37.66438716 | O59: 7.482993197 | P59: -37.83760719 | Q59: 123.4925494 | R59: 324.09 | S59: 4 | T59: 355.42 | U59: 2 | V59: 9.66706779 | W59: -0.7737324855 | X59: -30.86828185 | Y59: -8.814923189 | Z59: 339.632 | AA59: FALSE | AB59: FALSE | AC59: FALSE | AD59: FALSE | AE59: 433.3905 | AG59: TRUE | AH59: 0 | AI59: FALSE | AJ59: FALSE | AK59: FALSE | AL59: 0 | AM59: 128.2 | AX59: 341601600
A60: 28 | B60: =IF(A60>$B$30,NA(),IF($A60>$A$8,"",OFFSET(InputPriceData!$B$15,$A60+$A$11,0,1,1))) -> 2020-11-09 | C60: =IF(A60>$B$30,NA(),IF($A60>$A$8,"",OFFSET(InputPriceData!$G$15,CalculationsAndCharts!$A60+$A$11,IF($C$5,8,0),1,1))) -> 446943600 | D60: =IF(A60>$B$30,NA(),IF(A60>$A$8,"",OFFSET(InputPriceData!$C$15,CalculationsAndCharts!$A60+$A$11,IF($C$5,8,0),1,1))) -> 361.24 | E60: =IF(A60>$B$30,NA(),IF(A60>$A$8,"",OFFSET(InputPriceData!$D$15,CalculationsAndCharts!$A60+$A$11,IF($C$5,8,0),1,1))) -> 361.65 | F60: =IF(A60>$B$30,NA(),IF(A60>$A$8,"",OFFSET(InputPriceData!$E$15,CalculationsAndCharts!$A60+$A$11,IF($C$5,8,0),1,1))) -> 347.88 | G60: =IF(A60>$B$30,NA(),IF(A60>$A$8,"",OFFSET(InputPriceData!$F$15,CalculationsAndCharts!$A60+$A$11,IF($C$5,8,0),1,1))) -> 355.42 | H60: 15.20634269 | I60: 17.55957117 | J60: 89.6098399 | K60: 62.61104593 | L60: 63.55648102 | M60: =IF(A60>$B$30,NA(),IF(A60>$A$8,"",OFFSET(InputIndexData!$F$15,CalculationsAndCharts!$A60+$A$11,IF($C$5,8,0),1,1))) -> 23.1 | N60: -39.24250395 | O60: 4.761904762 | P60: -16.4193812 | Q60: 200.4975313 | R60: 324.09 | S60: 3 | T60: 355.42 | U60: 1 | V60: 9.66706779 | W60: -2.217095268 | X60: -9.549665509 | Y60: -8.814923189 | Z60: 337.388 | AA60: FALSE | AB60: FALSE | AC60: FALSE | AD60: FALSE | AE60: 433.3905 | AG60: TRUE | AH60: 0 | AI60: FALSE | AJ60: FALSE | AK60: FALSE | AL60: 0 | AM60: 128.2 | AX60: 446943600
A61: 29 | B61: =IF(A61>$B$30,NA(),IF($A61>$A$8,"",OFFSET(InputPriceData!$B$15,$A61+$A$11,0,1,1))) -> 2020-11-02 | C61: =IF(A61>$B$30,NA(),IF($A61>$A$8,"",OFFSET(InputPriceData!$G$15,CalculationsAndCharts!$A61+$A$11,IF($C$5,8,0),1,1))) -> 463334900 | D61: =IF(A61>$B$30,NA(),IF(A61>$A$8,"",OFFSET(InputPriceData!$C$15,CalculationsAndCharts!$A61+$A$11,IF($C$5,8,0),1,1))) -> 327.73 | E61: =IF(A61>$B$30,NA(),IF(A61>$A$8,"",OFFSET(InputPriceData!$D$15,CalculationsAndCharts!$A61+$A$11,IF($C$5,8,0),1,1))) -> 349.55 | F61: =IF(A61>$B$30,NA(),IF(A61>$A$8,"",OFFSET(InputPriceData!$E$15,CalculationsAndCharts!$A61+$A$11,IF($C$5,8,0),1,1))) -> 324.79 | G61: =IF(A61>$B$30,NA(),IF(A61>$A$8,"",OFFSET(InputPriceData!$F$15,CalculationsAndCharts!$A61+$A$11,IF($C$5,8,0),1,1))) -> 347.54 | H61: 25.07342693 | I61: 21.00914233 | J61: 88.29447385 | K61: 57.53028367 | L61: 54.58121107 | M61: =IF(A61>$B$30,NA(),IF(A61>$A$8,"",OFFSET(InputIndexData!$F$15,CalculationsAndCharts!$A61+$A$11,IF($C$5,8,0),1,1))) -> 24.86 | N61: -34.61336139 | O61: 12.74376417 | P61: 26.87994412 | Q61: 259.5301586 | R61: 324.09 | S61: 2 | T61: 347.54 | U61: 1 | V61: 7.23564442 | W61: -6.747424757 | X61: -5.158824753 | Y61: -6.747424757 | Z61: 335.711 | AA61: FALSE | AB61: FALSE | AC61: FALSE | AD61: FALSE | AE61: 433.3905 | AG61: TRUE | AH61: 0 | AI61: FALSE | AJ61: FALSE | AK61: FALSE | AL61: 0 | AM61: 128.2 | AW61: 463334900
A62: 30 | B62: =IF(A62>$B$30,NA(),IF($A62>$A$8,"",OFFSET(InputPriceData!$B$15,$A62+$A$11,0,1,1))) -> 2020-10-26 | C62: =IF(A62>$B$30,NA(),IF($A62>$A$8,"",OFFSET(InputPriceData!$G$15,CalculationsAndCharts!$A62+$A$11,IF($C$5,8,0),1,1))) -> 495446400 | D62: =IF(A62>$B$30,NA(),IF(A62>$A$8,"",OFFSET(InputPriceData!$C$15,CalculationsAndCharts!$A62+$A$11,IF($C$5,8,0),1,1))) -> 339.57 | E62: =IF(A62>$B$30,NA(),IF(A62>$A$8,"",OFFSET(InputPriceData!$D$15,CalculationsAndCharts!$A62+$A$11,IF($C$5,8,0),1,1))) -> 340.41 | F62: =IF(A62>$B$30,NA(),IF(A62>$A$8,"",OFFSET(InputPriceData!$E$15,CalculationsAndCharts!$A62+$A$11,IF($C$5,8,0),1,1))) -> 320.18 | G62: =IF(A62>$B$30,NA(),IF(A62>$A$8,"",OFFSET(InputPriceData!$F$15,CalculationsAndCharts!$A62+$A$11,IF($C$5,8,0),1,1))) -> 324.09 | H62: 21.59426927 | I62: 16.55828467 | J62: 87.61502885 | K62: 56.70807868 | L62: 47.0360309 | M62: =IF(A62>$B$30,NA(),IF(A62>$A$8,"",OFFSET(InputIndexData!$F$15,CalculationsAndCharts!$A62+$A$11,IF($C$5,8,0),1,1))) -> 38.02 | N62: 23.64227642 | O62: 72.42630385 | P62: 3.161259716 | Q62: 183.3624818 | R62: 324.09 | S62: 1 | T62: 344.69 | U62: 3 | V62: 5.893424666 | W62: -5.976384577 | X62: 3.346163453 | Y62: -6.486424099 | Z62: 335.614 | AA62: FALSE | AB62: FALSE | AC62: FALSE | AD62: FALSE | AE62: 433.3905 | AG62: TRUE | AH62: 0 | AI62: FALSE | AJ62: FALSE | AK62: FALSE | AL62: 0 | AM62: 128.2 | AX62: 495446400
A63: 31 | B63: =IF(A63>$B$30,NA(),IF($A63>$A$8,"",OFFSET(InputPriceData!$B$15,$A63+$A$11,0,1,1))) -> 2020-10-19 | C63: =IF(A63>$B$30,NA(),IF($A63>$A$8,"",OFFSET(InputPriceData!$G$15,CalculationsAndCharts!$A63+$A$11,IF($C$5,8,0),1,1))) -> 296595700 | D63: =IF(A63>$B$30,NA(),IF(A63>$A$8,"",OFFSET(InputPriceData!$C$15,CalculationsAndCharts!$A63+$A$11,IF($C$5,8,0),1,1))) -> 346.04 | E63: =IF(A63>$B$30,NA(),IF(A63>$A$8,"",OFFSET(InputPriceData!$D$15,CalculationsAndCharts!$A63+$A$11,IF($C$5,8,0),1,1))) -> 346.71 | F63: =IF(A63>$B$30,NA(),IF(A63>$A$8,"",OFFSET(InputPriceData!$E$15,CalculationsAndCharts!$A63+$A$11,IF($C$5,8,0),1,1))) -> 338.1 | G63: =IF(A63>$B$30,NA(),IF(A63>$A$8,"",OFFSET(InputPriceData!$F$15,CalculationsAndCharts!$A63+$A$11,IF($C$5,8,0),1,1))) -> 343.19 | H63: 8.852692669 | I63: 10.10656933 | J63: 92.42120822 | K63: 75.76066771 | L63: 75.58128996 | M63: =IF(A63>$B$30,NA(),IF(A63>$A$8,"",OFFSET(InputIndexData!$F$15,CalculationsAndCharts!$A63+$A$11,IF($C$5,8,0),1,1))) -> 27.55 | N63: -10.40650407 | O63: 24.94331066 | P63: -37.0341527 | Q63: 72.95406056 | R63: 331.34 | S63: 4 | T63: 344.69 | U63: 2 | V63: 4.029093982 | W63: -0.4351736343 | X63: -38.13250497 | Y63: -5.857402545 | Z63: 336.764 | AA63: FALSE | AB63: FALSE | AC63: FALSE | AD63: FALSE | AE63: 433.3905 | AG63: TRUE | AH63: 0 | AI63: FALSE | AJ63: FALSE | AK63: FALSE | AL63: 0 | AM63: 128.2 | AX63: 296595700
A64: 32 | B64: =IF(A64>$B$30,NA(),IF($A64>$A$8,"",OFFSET(InputPriceData!$B$15,$A64+$A$11,0,1,1))) -> 2020-10-12 | C64: =IF(A64>$B$30,NA(),IF($A64>$A$8,"",OFFSET(InputPriceData!$G$15,CalculationsAndCharts!$A64+$A$11,IF($C$5,8,0),1,1))) -> 361231500 | D64: =IF(A64>$B$30,NA(),IF(A64>$A$8,"",OFFSET(InputPriceData!$C$15,CalculationsAndCharts!$A64+$A$11,IF($C$5,8,0),1,1))) -> 346.97 | E64: =IF(A64>$B$30,NA(),IF(A64>$A$8,"",OFFSET(InputPriceData!$D$15,CalculationsAndCharts!$A64+$A$11,IF($C$5,8,0),1,1))) -> 351.37 | F64: =IF(A64>$B$30,NA(),IF(A64>$A$8,"",OFFSET(InputPriceData!$E$15,CalculationsAndCharts!$A64+$A$11,IF($C$5,8,0),1,1))) -> 340.56 | G64: =IF(A64>$B$30,NA(),IF(A64>$A$8,"",OFFSET(InputPriceData!$F$15,CalculationsAndCharts!$A64+$A$11,IF($C$5,8,0),1,1))) -> 344.69 | H64: 11.03692669 | I64: 11.60313867 | J64: 89.59614743 | K64: 72.39956149 | L64: 77.61451041 | M64: =IF(A64>$B$30,NA(),IF(A64>$A$8,"",OFFSET(InputIndexData!$F$15,CalculationsAndCharts!$A64+$A$11,IF($C$5,8,0),1,1))) -> 27.41 | N64: -10.86178862 | O64: 24.30839002 | P64: -31.04825519 | Q64: 98.56490186 | R64: 326.27 | S64: 4 | T64: 344.69 | U64: 1 | V64: 5.645630919 | W64: -0.1276509327 | X64: -24.64999313 | Y64: -5.857402545 | Z64: 335.743 | AA64: FALSE | AB64: FALSE | AC64: FALSE | AD64: FALSE | AE64: 433.3905 | AG64: TRUE | AH64: 0 | AI64: FALSE | AJ64: FALSE | AK64: FALSE | AL64: 0 | AM64: 128.2 | AX64: 361231500
A65: 33 | B65: =IF(A65>$B$30,NA(),IF($A65>$A$8,"",OFFSET(InputPriceData!$B$15,$A65+$A$11,0,1,1))) -> 2020-10-05 | C65: =IF(A65>$B$30,NA(),IF($A65>$A$8,"",OFFSET(InputPriceData!$G$15,CalculationsAndCharts!$A65+$A$11,IF($C$5,8,0),1,1))) -> 297612700 | D65: =IF(A65>$B$30,NA(),IF(A65>$A$8,"",OFFSET(InputPriceData!$C$15,CalculationsAndCharts!$A65+$A$11,IF($C$5,8,0),1,1))) -> 333.54 | E65: =IF(A65>$B$30,NA(),IF(A65>$A$8,"",OFFSET(InputPriceData!$D$15,CalculationsAndCharts!$A65+$A$11,IF($C$5,8,0),1,1))) -> 344.75 | F65: =IF(A65>$B$30,NA(),IF(A65>$A$8,"",OFFSET(InputPriceData!$E$15,CalculationsAndCharts!$A65+$A$11,IF($C$5,8,0),1,1))) -> 331.87 | G65: =IF(A65>$B$30,NA(),IF(A65>$A$8,"",OFFSET(InputPriceData!$F$15,CalculationsAndCharts!$A65+$A$11,IF($C$5,8,0),1,1))) -> 344.25 | H65: 13.07926688 | I65: 12.39627734 | J65: 85.20478711 | K65: 63.58393037 | L65: 67.71397796 | M65: =IF(A65>$B$30,NA(),IF(A65>$A$8,"",OFFSET(InputIndexData!$F$15,CalculationsAndCharts!$A65+$A$11,IF($C$5,8,0),1,1))) -> 25 | N65: -28.01612439 | O65: 13.37868481 | P65: -27.44699989 | Q65: 112.1379106 | R65: 326.27 | S65: 3 | T65: 344.25 | U65: 1 | V65: 5.510773286 | W65: -3.750181554 | X65: -37.6995484 | Y65: -5.857402545 | Z65: 334.348 | AA65: FALSE | AB65: FALSE | AC65: FALSE | AD65: FALSE | AE65: 433.3905 | AG65: TRUE | AH65: 0 | AI65: FALSE | AJ65: FALSE | AK65: FALSE | AL65: 0 | AM65: 128.2 | AW65: 297612700
A66: 34 | B66: =IF(A66>$B$30,NA(),IF($A66>$A$8,"",OFFSET(InputPriceData!$B$15,$A66+$A$11,0,1,1))) -> 2020-09-28 | C66: =IF(A66>$B$30,NA(),IF($A66>$A$8,"",OFFSET(InputPriceData!$G$15,CalculationsAndCharts!$A66+$A$11,IF($C$5,8,0),1,1))) -> 398099500 | D66: =IF(A66>$B$30,NA(),IF(A66>$A$8,"",OFFSET(InputPriceData!$C$15,CalculationsAndCharts!$A66+$A$11,IF($C$5,8,0),1,1))) -> 330.72 | E66: =IF(A66>$B$30,NA(),IF(A66>$A$8,"",OFFSET(InputPriceData!$D$15,CalculationsAndCharts!$A66+$A$11,IF($C$5,8,0),1,1))) -> 336.2 | F66: =IF(A66>$B$30,NA(),IF(A66>$A$8,"",OFFSET(InputPriceData!$E$15,CalculationsAndCharts!$A66+$A$11,IF($C$5,8,0),1,1))) -> 328.71 | G66: =IF(A66>$B$30,NA(),IF(A66>$A$8,"",OFFSET(InputPriceData!$F$15,CalculationsAndCharts!$A66+$A$11,IF($C$5,8,0),1,1))) -> 331.34 | H66: 10.1026688 | I66: 11.38255468 | J66: 81.05898059 | K66: 56.07502998 | L66: 37.89286626 | M66: =IF(A66>$B$30,NA(),IF(A66>$A$8,"",OFFSET(InputIndexData!$F$15,CalculationsAndCharts!$A66+$A$11,IF($C$5,8,0),1,1))) -> 27.63 | N66: -21.32687927 | O66: 25.30612245 | P66: -40.90559853 | Q66: 94.79004059 | R66: 326.27 | S66: 2 | T66: 331.34 | U66: 1 | V66: 1.553927729 | W66: -1.530150299 | X66: -16.33161299 | Y66: -6.864414115 | Z66: 332.201 | AA66: FALSE | AB66: FALSE | AC66: FALSE | AD66: FALSE | AE66: 433.3905 | AG66: TRUE | AH66: 0 | AI66: FALSE | AJ66: FALSE | AK66: FALSE | AL66: 0 | AM66: 128.2 | AW66: 398099500
A67: 35 | B67: =IF(A67>$B$30,NA(),IF($A67>$A$8,"",OFFSET(InputPriceData!$B$15,$A67+$A$11,0,1,1))) -> 2020-09-21 | C67: =IF(A67>$B$30,NA(),IF($A67>$A$8,"",OFFSET(InputPriceData!$G$15,CalculationsAndCharts!$A67+$A$11,IF($C$5,8,0),1,1))) -> 403925800 | D67: =IF(A67>$B$30,NA(),IF(A67>$A$8,"",OFFSET(InputPriceData!$C$15,CalculationsAndCharts!$A67+$A$11,IF($C$5,8,0),1,1))) -> 323.26 | E67: =IF(A67>$B$30,NA(),IF(A67>$A$8,"",OFFSET(InputPriceData!$D$15,CalculationsAndCharts!$A67+$A$11,IF($C$5,8,0),1,1))) -> 328.72 | F67: =IF(A67>$B$30,NA(),IF(A67>$A$8,"",OFFSET(InputPriceData!$E$15,CalculationsAndCharts!$A67+$A$11,IF($C$5,8,0),1,1))) -> 317.4 | G67: =IF(A67>$B$30,NA(),IF(A67>$A$8,"",OFFSET(InputPriceData!$F$15,CalculationsAndCharts!$A67+$A$11,IF($C$5,8,0),1,1))) -> 326.27 | H67: 11.65668804 | I67: 12.83510935 | J67: 80.79435465 | K67: 56.20790641 | L67: 20.17916621 | M67: =IF(A67>$B$30,NA(),IF(A67>$A$8,"",OFFSET(InputIndexData!$F$15,CalculationsAndCharts!$A67+$A$11,IF($C$5,8,0),1,1))) -> 26.38 | N67: -26.90495982 | O67: 19.63718821 | P67: -35.5773695 | Q67: 119.6476576 | R67: 326.27 | S67: 1 | T67: 338.65 | U67: 4 | V67: 0.1808318264 | W67: -3.655691717 | X67: -14.38928885 | Y67: -8.47159304 | Z67: 330.788 | AA67: FALSE | AB67: FALSE | AC67: FALSE | AD67: FALSE | AE67: 433.3905 | AG67: TRUE | AH67: 0 | AI67: FALSE | AJ67: FALSE | AK67: FALSE | AL67: 0 | AM67: 128.2 | AW67: 403925800
A68: 36 | B68: =IF(A68>$B$30,NA(),IF($A68>$A$8,"",OFFSET(InputPriceData!$B$15,$A68+$A$11,0,1,1))) -> 2020-09-14 | C68: =IF(A68>$B$30,NA(),IF($A68>$A$8,"",OFFSET(InputPriceData!$G$15,CalculationsAndCharts!$A68+$A$11,IF($C$5,8,0),1,1))) -> 398023800 | D68: =IF(A68>$B$30,NA(),IF(A68>$A$8,"",OFFSET(InputPriceData!$C$15,CalculationsAndCharts!$A68+$A$11,IF($C$5,8,0),1,1))) -> 333.62 | E68: =IF(A68>$B$30,NA(),IF(A68>$A$8,"",OFFSET(InputPriceData!$D$15,CalculationsAndCharts!$A68+$A$11,IF($C$5,8,0),1,1))) -> 339.13 | F68: =IF(A68>$B$30,NA(),IF(A68>$A$8,"",OFFSET(InputPriceData!$E$15,CalculationsAndCharts!$A68+$A$11,IF($C$5,8,0),1,1))) -> 324.21 | G68: =IF(A68>$B$30,NA(),IF(A68>$A$8,"",OFFSET(InputPriceData!$F$15,CalculationsAndCharts!$A68+$A$11,IF($C$5,8,0),1,1))) -> 326.86 | H68: 14.68688044 | I68: 14.35021871 | J68: 83.74576837 | K68: 63.68381805 | L68: 17.33093818 | M68: =IF(A68>$B$30,NA(),IF(A68>$A$8,"",OFFSET(InputIndexData!$F$15,CalculationsAndCharts!$A68+$A$11,IF($C$5,8,0),1,1))) -> 25.83 | N68: -28.42892768 | O68: 17.14285714 | P68: -27.97265595 | Q68: 145.5757748 | R68: 326.86 | S68: 1 | T68: 346.57 | U68: 4 | V68: 1.031022456 | W68: -5.687162767 | X68: -15.14183205 | Y68: -8.47159304 | Z68: 329.965 | AA68: FALSE | AB68: FALSE | AC68: FALSE | AD68: FALSE | AE68: 433.3905 | AG68: TRUE | AH68: 0 | AI68: FALSE | AJ68: FALSE | AK68: FALSE | AL68: 0 | AM68: 128.2 | AX68: 398023800
A69: 37 | B69: =IF(A69>$B$30,NA(),IF($A69>$A$8,"",OFFSET(InputPriceData!$B$15,$A69+$A$11,0,1,1))) -> 2020-09-07 | C69: =IF(A69>$B$30,NA(),IF($A69>$A$8,"",OFFSET(InputPriceData!$G$15,CalculationsAndCharts!$A69+$A$11,IF($C$5,8,0),1,1))) -> 381177300 | D69: =IF(A69>$B$30,NA(),IF(A69>$A$8,"",OFFSET(InputPriceData!$C$15,CalculationsAndCharts!$A69+$A$11,IF($C$5,8,0),1,1))) -> 332.85 | E69: =IF(A69>$B$30,NA(),IF(A69>$A$8,"",OFFSET(InputPriceData!$D$15,CalculationsAndCharts!$A69+$A$11,IF($C$5,8,0),1,1))) -> 338.72 | F69: =IF(A69>$B$30,NA(),IF(A69>$A$8,"",OFFSET(InputPriceData!$E$15,CalculationsAndCharts!$A69+$A$11,IF($C$5,8,0),1,1))) -> 327.21 | G69: =IF(A69>$B$30,NA(),IF(A69>$A$8,"",OFFSET(InputPriceData!$F$15,CalculationsAndCharts!$A69+$A$11,IF($C$5,8,0),1,1))) -> 330.23 | H69: 12.58880438 | I69: 13.78043741 | J69: 90.33571096 | K69: 78.40335843 | L69: 47.52707349 | M69: =IF(A69>$B$30,NA(),IF(A69>$A$8,"",OFFSET(InputIndexData!$F$15,CalculationsAndCharts!$A69+$A$11,IF($C$5,8,0),1,1))) -> 26.87 | N69: -25.547243 | O69: 21.85941043 | P69: -30.83253105 | Q69: 135.8250884 | R69: 330.23 | S69: 1 | T69: 346.57 | U69: 3 | V69: 2.549738061 | W69: -4.714776236 | X69: -18.73348443 | Y69: -9.412239952 | Z69: 328.674 | AA69: FALSE | AB69: FALSE | AC69: FALSE | AD69: FALSE | AE69: 433.3905 | AG69: TRUE | AH69: 0 | AI69: FALSE | AJ69: FALSE | AK69: FALSE | AL69: 0 | AM69: 128.2 | AX69: 381177300
A70: 38 | B70: =IF(A70>$B$30,NA(),IF($A70>$A$8,"",OFFSET(InputPriceData!$B$15,$A70+$A$11,0,1,1))) -> 2020-08-31 | C70: =IF(A70>$B$30,NA(),IF($A70>$A$8,"",OFFSET(InputPriceData!$G$15,CalculationsAndCharts!$A70+$A$11,IF($C$5,8,0),1,1))) -> 477715300 | D70: =IF(A70>$B$30,NA(),IF(A70>$A$8,"",OFFSET(InputPriceData!$C$15,CalculationsAndCharts!$A70+$A$11,IF($C$5,8,0),1,1))) -> 346.34 | E70: =IF(A70>$B$30,NA(),IF(A70>$A$8,"",OFFSET(InputPriceData!$D$15,CalculationsAndCharts!$A70+$A$11,IF($C$5,8,0),1,1))) -> 354.64 | F70: =IF(A70>$B$30,NA(),IF(A70>$A$8,"",OFFSET(InputPriceData!$E$15,CalculationsAndCharts!$A70+$A$11,IF($C$5,8,0),1,1))) -> 331.03 | G70: =IF(A70>$B$30,NA(),IF(A70>$A$8,"",OFFSET(InputPriceData!$F$15,CalculationsAndCharts!$A70+$A$11,IF($C$5,8,0),1,1))) -> 338.65 | H70: 22.29804375 | I70: 16.05087483 | J70: 96.08898755 | K70: 91.24040004 | L70: 76.51535359 | M70: =IF(A70>$B$30,NA(),IF(A70>$A$8,"",OFFSET(InputIndexData!$F$15,CalculationsAndCharts!$A70+$A$11,IF($C$5,8,0),1,1))) -> 30.75 | N70: -14.79634248 | O70: 39.45578231 | P70: -19.43663667 | Q70: 174.6791602 | R70: 332.98 | S70: 4 | T70: 346.57 | U70: 2 | V70: 4.081326206 | W70: -2.285252619 | X70: 1.848294394 | Y70: -10.94151254 | Z70: 326.516 | AA70: FALSE | AB70: FALSE | AC70: FALSE | AD70: FALSE | AE70: 433.3905 | AG70: TRUE | AH70: 0 | AI70: FALSE | AJ70: FALSE | AK70: FALSE | AL70: 0 | AM70: 128.2 | AX70: 477715300
A71: 39 | B71: =IF(A71>$B$30,NA(),IF($A71>$A$8,"",OFFSET(InputPriceData!$B$15,$A71+$A$11,0,1,1))) -> 2020-08-24 | C71: =IF(A71>$B$30,NA(),IF($A71>$A$8,"",OFFSET(InputPriceData!$G$15,CalculationsAndCharts!$A71+$A$11,IF($C$5,8,0),1,1))) -> 244465300 | D71: =IF(A71>$B$30,NA(),IF(A71>$A$8,"",OFFSET(InputPriceData!$C$15,CalculationsAndCharts!$A71+$A$11,IF($C$5,8,0),1,1))) -> 338.2 | E71: =IF(A71>$B$30,NA(),IF(A71>$A$8,"",OFFSET(InputPriceData!$D$15,CalculationsAndCharts!$A71+$A$11,IF($C$5,8,0),1,1))) -> 346.7 | F71: =IF(A71>$B$30,NA(),IF(A71>$A$8,"",OFFSET(InputPriceData!$E$15,CalculationsAndCharts!$A71+$A$11,IF($C$5,8,0),1,1))) -> 335.56 | G71: =IF(A71>$B$30,NA(),IF(A71>$A$8,"",OFFSET(InputPriceData!$F$15,CalculationsAndCharts!$A71+$A$11,IF($C$5,8,0),1,1))) -> 346.57 | H71: 10.49043753 | I71: 8.491749655 | J71: 99.50244756 | K71: 99.03230925 | L71: 96.50417078 | M71: =IF(A71>$B$30,NA(),IF(A71>$A$8,"",OFFSET(InputIndexData!$F$15,CalculationsAndCharts!$A71+$A$11,IF($C$5,8,0),1,1))) -> 22.96 | N71: -36.38126905 | O71: 4.126984127 | P71: -57.37778033 | Q71: 45.31959713 | R71: 330.74 | S71: 4 | T71: 346.57 | U71: 1 | V71: 4.786236923 | W71: -3.16819113 | X71: -47.88030895 | Y71: -14.41555818 | Z71: 322.312 | AA71: FALSE | AB71: FALSE | AC71: FALSE | AD71: FALSE | AE71: 433.3905 | AG71: TRUE | AH71: 0 | AI71: FALSE | AJ71: FALSE | AK71: FALSE | AL71: 0 | AM71: 128.2 | AW71: 244465300
A72: 40 | B72: =IF(A72>$B$30,NA(),IF($A72>$A$8,"",OFFSET(InputPriceData!$B$15,$A72+$A$11,0,1,1))) -> 2020-08-17 | C72: =IF(A72>$B$30,NA(),IF($A72>$A$8,"",OFFSET(InputPriceData!$G$15,CalculationsAndCharts!$A72+$A$11,IF($C$5,8,0),1,1))) -> 239583500 | D72: =IF(A72>$B$30,NA(),IF(A72>$A$8,"",OFFSET(InputPriceData!$C$15,CalculationsAndCharts!$A72+$A$11,IF($C$5,8,0),1,1))) -> 334.07 | E72: =IF(A72>$B$30,NA(),IF(A72>$A$8,"",OFFSET(InputPriceData!$D$15,CalculationsAndCharts!$A72+$A$11,IF($C$5,8,0),1,1))) -> 335.83 | F72: =IF(A72>$B$30,NA(),IF(A72>$A$8,"",OFFSET(InputPriceData!$E$15,CalculationsAndCharts!$A72+$A$11,IF($C$5,8,0),1,1))) -> 331.38 | G72: =IF(A72>$B$30,NA(),IF(A72>$A$8,"",OFFSET(InputPriceData!$F$15,CalculationsAndCharts!$A72+$A$11,IF($C$5,8,0),1,1))) -> 335.59 | H72: 4.644375343 | I72: 5.843499309 | J72: 99.23890808 | K72: 98.94946942 | L72: 96.09128251 | M72: =IF(A72>$B$30,NA(),IF(A72>$A$8,"",OFFSET(InputIndexData!$F$15,CalculationsAndCharts!$A72+$A$11,IF($C$5,8,0),1,1))) -> 22.54 | N72: -37.54502632 | O72: 2.222222222 | P72: -70.6700125 | Q72: -19.25521038 | R72: 322.78 | S72: 4 | T72: 335.59 | U72: 1 | V72: 3.968647376 | W72: -0.7777347358 | X72: -49.07002649 | Y72: -11.61536399 | Z72: 318.032 | AA72: FALSE | AB72: FALSE | AC72: FALSE | AD72: FALSE | AE72: 433.3905 | AG72: TRUE | AH72: 0 | AI72: FALSE | AJ72: FALSE | AK72: FALSE | AL72: 0 | AM72: 128.2 | AW72: 239583500
A73: 41 | B73: =IF(A73>$B$30,NA(),IF($A73>$A$8,"",OFFSET(InputPriceData!$B$15,$A73+$A$11,0,1,1))) -> 2020-08-10 | C73: =IF(A73>$B$30,NA(),IF($A73>$A$8,"",OFFSET(InputPriceData!$G$15,CalculationsAndCharts!$A73+$A$11,IF($C$5,8,0),1,1))) -> 256734100 | D73: =IF(A73>$B$30,NA(),IF(A73>$A$8,"",OFFSET(InputPriceData!$C$15,CalculationsAndCharts!$A73+$A$11,IF($C$5,8,0),1,1))) -> 331.22 | E73: =IF(A73>$B$30,NA(),IF(A73>$A$8,"",OFFSET(InputPriceData!$D$15,CalculationsAndCharts!$A73+$A$11,IF($C$5,8,0),1,1))) -> 334.41 | F73: =IF(A73>$B$30,NA(),IF(A73>$A$8,"",OFFSET(InputPriceData!$E$15,CalculationsAndCharts!$A73+$A$11,IF($C$5,8,0),1,1))) -> 328.21 | G73: =IF(A73>$B$30,NA(),IF(A73>$A$8,"",OFFSET(InputPriceData!$F$15,CalculationsAndCharts!$A73+$A$11,IF($C$5,8,0),1,1))) -> 332.98 | H73: 6.393753426 | I73: 7.236998619 | J73: 96.74003884 | K73: 98.68866114 | L73: 95.2160004 | M73: =IF(A73>$B$30,NA(),IF(A73>$A$8,"",OFFSET(InputIndexData!$F$15,CalculationsAndCharts!$A73+$A$11,IF($C$5,8,0),1,1))) -> 22.05 | N73: -40.70986824 | O73: -0.7203962179 | P73: -63.67569024 | Q73: -12.53322414 | R73: 317.21 | S73: 4 | T73: 332.98 | U73: 1 | V73: 4.971470004 | W73: -0.6727130759 | X73: -45.44565001 | Y73: -10.92257793 | Z73: 314.414 | AA73: FALSE | AB73: FALSE | AC73: FALSE | AD73: FALSE | AE73: 433.3905 | AG73: TRUE | AH73: 0 | AI73: FALSE | AJ73: FALSE | AK73: FALSE | AL73: 0 | AM73: 128.2 | AW73: 256734100
A74: 42 | B74: =IF(A74>$B$30,NA(),IF($A74>$A$8,"",OFFSET(InputPriceData!$B$15,$A74+$A$11,0,1,1))) -> 2020-08-03 | C74: =IF(A74>$B$30,NA(),IF($A74>$A$8,"",OFFSET(InputPriceData!$G$15,CalculationsAndCharts!$A74+$A$11,IF($C$5,8,0),1,1))) -> 238681200 | D74: =IF(A74>$B$30,NA(),IF(A74>$A$8,"",OFFSET(InputPriceData!$C$15,CalculationsAndCharts!$A74+$A$11,IF($C$5,8,0),1,1))) -> 324.56 | E74: =IF(A74>$B$30,NA(),IF(A74>$A$8,"",OFFSET(InputPriceData!$D$15,CalculationsAndCharts!$A74+$A$11,IF($C$5,8,0),1,1))) -> 331.04 | F74: =IF(A74>$B$30,NA(),IF(A74>$A$8,"",OFFSET(InputPriceData!$E$15,CalculationsAndCharts!$A74+$A$11,IF($C$5,8,0),1,1))) -> 323.98 | G74: =IF(A74>$B$30,NA(),IF(A74>$A$8,"",OFFSET(InputPriceData!$F$15,CalculationsAndCharts!$A74+$A$11,IF($C$5,8,0),1,1))) -> 330.74 | H74: 8.13753426 | I74: 8.273997238 | J74: 92.98620611 | K74: 95.66497112 | L74: 85.02730209 | M74: =IF(A74>$B$30,NA(),IF(A74>$A$8,"",OFFSET(InputIndexData!$F$15,CalculationsAndCharts!$A74+$A$11,IF($C$5,8,0),1,1))) -> 22.21 | N74: -40.27964507 | O74: -9.198691742 | P74: -58.47073429 | Q74: -0.1688857038 | R74: 317.21 | S74: 3 | T74: 330.74 | U74: 1 | V74: 4.265313199 | W74: -2.406724315 | X74: -49.41689789 | Y74: -10.31928403 | Z74: 312.546 | AA74: FALSE | AB74: FALSE | AC74: FALSE | AD74: FALSE | AE74: 433.3905 | AG74: TRUE | AH74: 0 | AI74: FALSE | AJ74: FALSE | AK74: FALSE | AL74: 0 | AM74: 128.2 | AW74: 238681200
A75: 43 | B75: =IF(A75>$B$30,NA(),IF($A75>$A$8,"",OFFSET(InputPriceData!$B$15,$A75+$A$11,0,1,1))) -> 2020-07-27 | C75: =IF(A75>$B$30,NA(),IF($A75>$A$8,"",OFFSET(InputPriceData!$G$15,CalculationsAndCharts!$A75+$A$11,IF($C$5,8,0),1,1))) -> 301090700 | D75: =IF(A75>$B$30,NA(),IF(A75>$A$8,"",OFFSET(InputPriceData!$C$15,CalculationsAndCharts!$A75+$A$11,IF($C$5,8,0),1,1))) -> 317.95 | E75: =IF(A75>$B$30,NA(),IF(A75>$A$8,"",OFFSET(InputPriceData!$D$15,CalculationsAndCharts!$A75+$A$11,IF($C$5,8,0),1,1))) -> 322.89 | F75: =IF(A75>$B$30,NA(),IF(A75>$A$8,"",OFFSET(InputPriceData!$E$15,CalculationsAndCharts!$A75+$A$11,IF($C$5,8,0),1,1))) -> 315.98 | G75: =IF(A75>$B$30,NA(),IF(A75>$A$8,"",OFFSET(InputPriceData!$F$15,CalculationsAndCharts!$A75+$A$11,IF($C$5,8,0),1,1))) -> 322.78 | H75: 7.0353426 | I75: 8.287994476 | J75: 89.36673507 | K75: 94.99534884 | L75: 83.85611513 | M75: =IF(A75>$B$30,NA(),IF(A75>$A$8,"",OFFSET(InputIndexData!$F$15,CalculationsAndCharts!$A75+$A$11,IF($C$5,8,0),1,1))) -> 24.46 | N75: -35.88466579 | O75: -0.2446982055 | P75: -64.72139462 | Q75: -14.25611474 | R75: 313.95 | S75: 4 | T75: 322.78 | U75: 1 | V75: 2.812549769 | W75: -1.725633558 | X75: -36.50505692 | Y75: -10.20797384 | Z75: 309.424 | AA75: FALSE | AB75: FALSE | AC75: FALSE | AD75: FALSE | AE75: 433.3905 | AG75: TRUE | AH75: 0 | AI75: FALSE | AJ75: FALSE | AK75: FALSE | AL75: 0 | AM75: 128.2 | AW75: 301090700
A76: 44 | B76: =IF(A76>$B$30,NA(),IF($A76>$A$8,"",OFFSET(InputPriceData!$B$15,$A76+$A$11,0,1,1))) -> 2020-07-20 | C76: =IF(A76>$B$30,NA(),IF($A76>$A$8,"",OFFSET(InputPriceData!$G$15,CalculationsAndCharts!$A76+$A$11,IF($C$5,8,0),1,1))) -> 320898500 | D76: =IF(A76>$B$30,NA(),IF(A76>$A$8,"",OFFSET(InputPriceData!$C$15,CalculationsAndCharts!$A76+$A$11,IF($C$5,8,0),1,1))) -> 317.75 | E76: =IF(A76>$B$30,NA(),IF(A76>$A$8,"",OFFSET(InputPriceData!$D$15,CalculationsAndCharts!$A76+$A$11,IF($C$5,8,0),1,1))) -> 323.48 | F76: =IF(A76>$B$30,NA(),IF(A76>$A$8,"",OFFSET(InputPriceData!$E$15,CalculationsAndCharts!$A76+$A$11,IF($C$5,8,0),1,1))) -> 315.59 | G76: =IF(A76>$B$30,NA(),IF(A76>$A$8,"",OFFSET(InputPriceData!$F$15,CalculationsAndCharts!$A76+$A$11,IF($C$5,8,0),1,1))) -> 317.21 | H76: 8.163426004 | I76: 9.665988951 | J76: 86.8502052 | K76: 93.45876674 | L76: 84.89039666 | M76: =IF(A76>$B$30,NA(),IF(A76>$A$8,"",OFFSET(InputIndexData!$F$15,CalculationsAndCharts!$A76+$A$11,IF($C$5,8,0),1,1))) -> 25.84 | N76: -37.98896088 | O76: 5.383360522 | P76: -69.16351868 | Q76: -15.52169534 | R76: 308.65 | S76: 4 | T76: 318.04 | U76: 2 | V76: 3.042280901 | W76: -0.2609734625 | X76: -33.66391501 | Y76: -11.97287561 | Z76: 306.224 | AA76: FALSE | AB76: FALSE | AC76: FALSE | AD76: FALSE | AE76: 433.3905 | AG76: TRUE | AH76: 0 | AI76: FALSE | AJ76: FALSE | AK76: FALSE | AL76: 0 | AM76: 128.2 | AX76: 320898500
A77: 45 | B77: =IF(A77>$B$30,NA(),IF($A77>$A$8,"",OFFSET(InputPriceData!$B$15,$A77+$A$11,0,1,1))) -> 2020-07-13 | C77: =IF(A77>$B$30,NA(),IF($A77>$A$8,"",OFFSET(InputPriceData!$G$15,CalculationsAndCharts!$A77+$A$11,IF($C$5,8,0),1,1))) -> 401248400 | D77: =IF(A77>$B$30,NA(),IF(A77>$A$8,"",OFFSET(InputPriceData!$C$15,CalculationsAndCharts!$A77+$A$11,IF($C$5,8,0),1,1))) -> 316.46 | E77: =IF(A77>$B$30,NA(),IF(A77>$A$8,"",OFFSET(InputPriceData!$D$15,CalculationsAndCharts!$A77+$A$11,IF($C$5,8,0),1,1))) -> 319.34 | F77: =IF(A77>$B$30,NA(),IF(A77>$A$8,"",OFFSET(InputPriceData!$E$15,CalculationsAndCharts!$A77+$A$11,IF($C$5,8,0),1,1))) -> 308.43 | G77: =IF(A77>$B$30,NA(),IF(A77>$A$8,"",OFFSET(InputPriceData!$F$15,CalculationsAndCharts!$A77+$A$11,IF($C$5,8,0),1,1))) -> 318.04 | H77: 10.62426004 | I77: 11.4419779 | J77: 84.41062472 | K77: 93.0931555 | L77: 91.95450208 | M77: =IF(A77>$B$30,NA(),IF(A77>$A$8,"",OFFSET(InputIndexData!$F$15,CalculationsAndCharts!$A77+$A$11,IF($C$5,8,0),1,1))) -> 25.68 | N77: -45.12820513 | O77: 4.730831974 | P77: -63.49775076 | Q77: -4.442791598 | R77: 296.61 | S77: 4 | T77: 318.04 | U77: 1 | V77: 7.224975557 | W77: -1.286001761 | X77: -17.05399693 | Y77: -14.70347834 | Z77: 302.679 | AA77: FALSE | AB77: FALSE | AC77: FALSE | AD77: FALSE | AE77: 433.3905 | AG77: TRUE | AH77: 0 | AI77: FALSE | AJ77: FALSE | AK77: FALSE | AL77: 0 | AM77: 128.2 | AW77: 401248400
A78: 46 | B78: =IF(A78>$B$30,NA(),IF($A78>$A$8,"",OFFSET(InputPriceData!$B$15,$A78+$A$11,0,1,1))) -> 2020-07-06 | C78: =IF(A78>$B$30,NA(),IF($A78>$A$8,"",OFFSET(InputPriceData!$G$15,CalculationsAndCharts!$A78+$A$11,IF($C$5,8,0),1,1))) -> 340167000 | D78: =IF(A78>$B$30,NA(),IF(A78>$A$8,"",OFFSET(InputPriceData!$C$15,CalculationsAndCharts!$A78+$A$11,IF($C$5,8,0),1,1))) -> 312.75 | E78: =IF(A78>$B$30,NA(),IF(A78>$A$8,"",OFFSET(InputPriceData!$D$15,CalculationsAndCharts!$A78+$A$11,IF($C$5,8,0),1,1))) -> 314.24 | F78: =IF(A78>$B$30,NA(),IF(A78>$A$8,"",OFFSET(InputPriceData!$E$15,CalculationsAndCharts!$A78+$A$11,IF($C$5,8,0),1,1))) -> 307.12 | G78: =IF(A78>$B$30,NA(),IF(A78>$A$8,"",OFFSET(InputPriceData!$F$15,CalculationsAndCharts!$A78+$A$11,IF($C$5,8,0),1,1))) -> 313.95 | H78: 8.052600407 | I78: 11.9739558 | J78: 78.30312358 | K78: 86.93373383 | L78: 66.21738266 | M78: =IF(A78>$B$30,NA(),IF(A78>$A$8,"",OFFSET(InputIndexData!$F$15,CalculationsAndCharts!$A78+$A$11,IF($C$5,8,0),1,1))) -> 27.29 | N78: -58.36130607 | O78: 11.29690049 | P78: -70.96787326 | Q78: -7.416709062 | R78: 296.61 | S78: 3 | T78: 313.95 | U78: 1 | V78: 5.846060483 | W78: -1.688166906 | X78: -29.81528231 | Y78: -14.70347834 | Z78: 299.657 | AA78: FALSE | AB78: FALSE | AC78: FALSE | AD78: FALSE | AE78: 433.3905 | AG78: TRUE | AH78: 0 | AI78: FALSE | AJ78: FALSE | AK78: FALSE | AL78: 0 | AM78: 128.2 | AW78: 340167000
A79: 47 | B79: =IF(A79>$B$30,NA(),IF($A79>$A$8,"",OFFSET(InputPriceData!$B$15,$A79+$A$11,0,1,1))) -> 2020-06-29 | C79: =IF(A79>$B$30,NA(),IF($A79>$A$8,"",OFFSET(InputPriceData!$G$15,CalculationsAndCharts!$A79+$A$11,IF($C$5,8,0),1,1))) -> 334908800 | D79: =IF(A79>$B$30,NA(),IF(A79>$A$8,"",OFFSET(InputPriceData!$C$15,CalculationsAndCharts!$A79+$A$11,IF($C$5,8,0),1,1))) -> 297.96 | E79: =IF(A79>$B$30,NA(),IF(A79>$A$8,"",OFFSET(InputPriceData!$D$15,CalculationsAndCharts!$A79+$A$11,IF($C$5,8,0),1,1))) -> 312.08 | F79: =IF(A79>$B$30,NA(),IF(A79>$A$8,"",OFFSET(InputPriceData!$E$15,CalculationsAndCharts!$A79+$A$11,IF($C$5,8,0),1,1))) -> 295.51 | G79: =IF(A79>$B$30,NA(),IF(A79>$A$8,"",OFFSET(InputPriceData!$F$15,CalculationsAndCharts!$A79+$A$11,IF($C$5,8,0),1,1))) -> 308.65 | H79: 16.44600407 | I79: 16.82791161 | J79: 75.40184679 | K79: 84.21288446 | L79: 48.26999667 | M79: =IF(A79>$B$30,NA(),IF(A79>$A$8,"",OFFSET(InputIndexData!$F$15,CalculationsAndCharts!$A79+$A$11,IF($C$5,8,0),1,1))) -> 27.68 | N79: -58.08600848 | O79: 12.88743883 | P79: -59.19894223 | Q79: 30.11434666 | R79: 296.61 | S79: 2 | T79: 308.65 | U79: 1 | V79: 4.05920232 | W79: -3.900858578 | X79: -30.60156842 | Y79: -15.74183392 | Z79: 296.095 | AA79: FALSE | AB79: FALSE | AC79: FALSE | AD79: FALSE | AE79: 433.3905 | AG79: TRUE | AH79: 0 | AI79: FALSE | AJ79: FALSE | AK79: FALSE | AL79: 0 | AM79: 128.2 | AW79: 334908800
A80: 48 | B80: =IF(A80>$B$30,NA(),IF($A80>$A$8,"",OFFSET(InputPriceData!$B$15,$A80+$A$11,0,1,1))) -> 2020-06-22 | C80: =IF(A80>$B$30,NA(),IF($A80>$A$8,"",OFFSET(InputPriceData!$G$15,CalculationsAndCharts!$A80+$A$11,IF($C$5,8,0),1,1))) -> 493363100 | D80: =IF(A80>$B$30,NA(),IF(A80>$A$8,"",OFFSET(InputPriceData!$C$15,CalculationsAndCharts!$A80+$A$11,IF($C$5,8,0),1,1))) -> 304.46 | E80: =IF(A80>$B$30,NA(),IF(A80>$A$8,"",OFFSET(InputPriceData!$D$15,CalculationsAndCharts!$A80+$A$11,IF($C$5,8,0),1,1))) -> 310.9 | F80: =IF(A80>$B$30,NA(),IF(A80>$A$8,"",OFFSET(InputPriceData!$E$15,CalculationsAndCharts!$A80+$A$11,IF($C$5,8,0),1,1))) -> 295.99 | G80: =IF(A80>$B$30,NA(),IF(A80>$A$8,"",OFFSET(InputPriceData!$F$15,CalculationsAndCharts!$A80+$A$11,IF($C$5,8,0),1,1))) -> 296.61 | H80: 15.33004068 | I80: 17.08582322 | J80: 72.76846785 | K80: 82.23982994 | L80: 31.08018902 | M80: =IF(A80>$B$30,NA(),IF(A80>$A$8,"",OFFSET(InputIndexData!$F$15,CalculationsAndCharts!$A80+$A$11,IF($C$5,8,0),1,1))) -> 34.73 | N80: -47.41066021 | O80: 41.63947798 | P80: -58.57360815 | Q80: 32.10853354 | R80: 296.61 | S80: 1 | T80: 314.3 | U80: 4 | V80: 2.413944237 | W80: -5.628380528 | X80: 7.044305042 | Y80: -15.74183392 | Z80: 293.08 | AA80: FALSE | AB80: FALSE | AC80: FALSE | AD80: FALSE | AE80: 433.3905 | AG80: TRUE | AH80: 0 | AI80: FALSE | AJ80: FALSE | AK80: FALSE | AL80: 0 | AM80: 128.2 | AX80: 493363100
A81: 49 | B81: =IF(A81>$B$30,NA(),IF($A81>$A$8,"",OFFSET(InputPriceData!$B$15,$A81+$A$11,0,1,1))) -> 2020-06-15 | C81: =IF(A81>$B$30,NA(),IF($A81>$A$8,"",OFFSET(InputPriceData!$G$15,CalculationsAndCharts!$A81+$A$11,IF($C$5,8,0),1,1))) -> 573187400 | D81: =IF(A81>$B$30,NA(),IF(A81>$A$8,"",OFFSET(InputPriceData!$C$15,CalculationsAndCharts!$A81+$A$11,IF($C$5,8,0),1,1))) -> 293.32 | E81: =IF(A81>$B$30,NA(),IF(A81>$A$8,"",OFFSET(InputPriceData!$D$15,CalculationsAndCharts!$A81+$A$11,IF($C$5,8,0),1,1))) -> 310.66 | F81: =IF(A81>$B$30,NA(),IF(A81>$A$8,"",OFFSET(InputPriceData!$E$15,CalculationsAndCharts!$A81+$A$11,IF($C$5,8,0),1,1))) -> 292.06 | G81: =IF(A81>$B$30,NA(),IF(A81>$A$8,"",OFFSET(InputPriceData!$F$15,CalculationsAndCharts!$A81+$A$11,IF($C$5,8,0),1,1))) -> 303.77 | H81: 19.11040676 | I81: 19.26164644 | J81: 77.81007752 | K81: 88.60452079 | L81: 56.44124238 | M81: =IF(A81>$B$30,NA(),IF(A81>$A$8,"",OFFSET(InputIndexData!$F$15,CalculationsAndCharts!$A81+$A$11,IF($C$5,8,0),1,1))) -> 35.12 | N81: -46.82010902 | O81: 43.23001631 | P81: -53.29809382 | Q81: 48.93211945 | R81: 299.41 | S81: 2 | T81: 314.3 | U81: 3 | V81: 1.456197188 | W81: -4.737511931 | X81: 24.3636723 | Y81: -15.74183392 | Z81: 291.631 | AA81: FALSE | AB81: FALSE | AC81: FALSE | AD81: FALSE | AE81: 433.3905 | AG81: TRUE | AH81: 0 | AI81: FALSE | AJ81: FALSE | AK81: FALSE | AL81: 0 | AM81: 128.2 | AW81: 573187400
A82: 50 | B82: =IF(A82>$B$30,NA(),IF($A82>$A$8,"",OFFSET(InputPriceData!$B$15,$A82+$A$11,0,1,1))) -> 2020-06-08 | C82: =IF(A82>$B$30,NA(),IF($A82>$A$8,"",OFFSET(InputPriceData!$G$15,CalculationsAndCharts!$A82+$A$11,IF($C$5,8,0),1,1))) -> 650043700 | D82: =IF(A82>$B$30,NA(),IF(A82>$A$8,"",OFFSET(InputPriceData!$C$15,CalculationsAndCharts!$A82+$A$11,IF($C$5,8,0),1,1))) -> 315.17 | E82: =IF(A82>$B$30,NA(),IF(A82>$A$8,"",OFFSET(InputPriceData!$D$15,CalculationsAndCharts!$A82+$A$11,IF($C$5,8,0),1,1))) -> 318.31 | F82: =IF(A82>$B$30,NA(),IF(A82>$A$8,"",OFFSET(InputPriceData!$E$15,CalculationsAndCharts!$A82+$A$11,IF($C$5,8,0),1,1))) -> 293.89 | G82: =IF(A82>$B$30,NA(),IF(A82>$A$8,"",OFFSET(InputPriceData!$F$15,CalculationsAndCharts!$A82+$A$11,IF($C$5,8,0),1,1))) -> 299.41 | H82: 23.7040676 | I82: 19.92329288 | J82: 76.59883721 | K82: 85.26216634 | L82: 72.42374205 | M82: =IF(A82>$B$30,NA(),IF(A82>$A$8,"",OFFSET(InputIndexData!$F$15,CalculationsAndCharts!$A82+$A$11,IF($C$5,8,0),1,1))) -> 36.09 | N82: -45.35130224 | O82: 47.18597064 | P82: -51.69386181 | Q82: 54.04800644 | R82: 290.78 | S82: 4 | T82: 314.3 | U82: 2 | V82: 8.088589312 | W82: -4.737511931 | X82: 41.03907672 | Y82: -17.11016256 | Z82: 288.635 | AA82: FALSE | AB82: FALSE | AC82: FALSE | AD82: FALSE | AE82: 433.3905 | AG82: TRUE | AH82: 0 | AI82: FALSE | AJ82: FALSE | AK82: FALSE | AL82: 0 | AM82: 128.2 | AX82: 650043700
A83: 51 | B83: =IF(A83>$B$30,NA(),IF($A83>$A$8,"",OFFSET(InputPriceData!$B$15,$A83+$A$11,0,1,1))) -> 2020-06-01 | C83: =IF(A83>$B$30,NA(),IF($A83>$A$8,"",OFFSET(InputPriceData!$G$15,CalculationsAndCharts!$A83+$A$11,IF($C$5,8,0),1,1))) -> 448912200 | D83: =IF(A83>$B$30,NA(),IF(A83>$A$8,"",OFFSET(InputPriceData!$C$15,CalculationsAndCharts!$A83+$A$11,IF($C$5,8,0),1,1))) -> 298.83 | E83: =IF(A83>$B$30,NA(),IF(A83>$A$8,"",OFFSET(InputPriceData!$D$15,CalculationsAndCharts!$A83+$A$11,IF($C$5,8,0),1,1))) -> 316.2 | F83: =IF(A83>$B$30,NA(),IF(A83>$A$8,"",OFFSET(InputPriceData!$E$15,CalculationsAndCharts!$A83+$A$11,IF($C$5,8,0),1,1))) -> 298.28 | G83: =IF(A83>$B$30,NA(),IF(A83>$A$8,"",OFFSET(InputPriceData!$F$15,CalculationsAndCharts!$A83+$A$11,IF($C$5,8,0),1,1))) -> 314.3 | H83: 17.26067605 | I83: 15.42658575 | J83: 74.13930689 | K83: 79.66480451 | L83: 92.07147696 | M83: =IF(A83>$B$30,NA(),IF(A83>$A$8,"",OFFSET(InputIndexData!$F$15,CalculationsAndCharts!$A83+$A$11,IF($C$5,8,0),1,1))) -> 24.52 | N83: -62.87098728 | O83: 43.55971897 | P83: -62.5966055 | Q83: 112.7221726 | R83: 281.76 | S83: 4 | T83: 314.3 | U83: 1 | V83: 11.54883589 | W83: -4.702513522 | X83: -2.600144855 | Y83: -26.05273514 | Z83: 283.121 | AA83: FALSE | AB83: FALSE | AC83: FALSE | AD83: FALSE | AE83: 433.3905 | AG83: TRUE | AH83: 0 | AI83: FALSE | AJ83: FALSE | AK83: FALSE | AL83: 0 | AM83: 128.2 | AW83: 448912200
A84: 52 | B84: =IF(A84>$B$30,NA(),IF($A84>$A$8,"",OFFSET(InputPriceData!$B$15,$A84+$A$11,0,1,1))) -> 2020-05-25 | C84: =IF(A84>$B$30,NA(),IF($A84>$A$8,"",OFFSET(InputPriceData!$G$15,CalculationsAndCharts!$A84+$A$11,IF($C$5,8,0),1,1))) -> 403264800 | D84: =IF(A84>$B$30,NA(),IF(A84>$A$8,"",OFFSET(InputPriceData!$C$15,CalculationsAndCharts!$A84+$A$11,IF($C$5,8,0),1,1))) -> 297.16 | E84: =IF(A84>$B$30,NA(),IF(A84>$A$8,"",OFFSET(InputPriceData!$D$15,CalculationsAndCharts!$A84+$A$11,IF($C$5,8,0),1,1))) -> 302 | F84: =IF(A84>$B$30,NA(),IF(A84>$A$8,"",OFFSET(InputPriceData!$E$15,CalculationsAndCharts!$A84+$A$11,IF($C$5,8,0),1,1))) -> 290.8 | G84: =IF(A84>$B$30,NA(),IF(A84>$A$8,"",OFFSET(InputPriceData!$F$15,CalculationsAndCharts!$A84+$A$11,IF($C$5,8,0),1,1))) -> 299.52 | H84: 11.32676049 | I84: 12.93317151 | J84: 64.86548108 | K84: 66.03393085 | L84: 81.16466438 | M84: =IF(A84>$B$30,NA(),IF(A84>$A$8,"",OFFSET(InputIndexData!$F$15,CalculationsAndCharts!$A84+$A$11,IF($C$5,8,0),1,1))) -> 27.51 | N84: -58.34342823 | O84: 101.0964912 | P84: -68.64215298 | Q84: 78.33967835 | R84: 281.76 | S84: 3 | T84: 299.52 | U84: 1 | V84: 6.303236797 | W84: -2.918002137 | X84: -12.33027275 | Y84: -26.05273514 | Z84: 276.633 | AA84: FALSE | AB84: FALSE | AC84: FALSE | AD84: FALSE | AE84: 433.3905 | AG84: TRUE | AH84: 0 | AI84: FALSE | AJ84: FALSE | AK84: FALSE | AL84: 0 | AM84: 128.2 | AW84: 403264800
A85: 53 | B85: =IF(A85>$B$30,NA(),IF($A85>$A$8,"",OFFSET(InputPriceData!$B$15,$A85+$A$11,0,1,1))) -> 2020-05-18 | C85: =IF(A85>$B$30,NA(),IF($A85>$A$8,"",OFFSET(InputPriceData!$G$15,CalculationsAndCharts!$A85+$A$11,IF($C$5,8,0),1,1))) -> 443006900 | D85: =IF(A85>$B$30,NA(),IF(A85>$A$8,"",OFFSET(InputPriceData!$C$15,CalculationsAndCharts!$A85+$A$11,IF($C$5,8,0),1,1))) -> 288.42 | E85: =IF(A85>$B$30,NA(),IF(A85>$A$8,"",OFFSET(InputPriceData!$D$15,CalculationsAndCharts!$A85+$A$11,IF($C$5,8,0),1,1))) -> 293.17 | F85: =IF(A85>$B$30,NA(),IF(A85>$A$8,"",OFFSET(InputPriceData!$E$15,CalculationsAndCharts!$A85+$A$11,IF($C$5,8,0),1,1))) -> 287.34 | G85: =IF(A85>$B$30,NA(),IF(A85>$A$8,"",OFFSET(InputPriceData!$F$15,CalculationsAndCharts!$A85+$A$11,IF($C$5,8,0),1,1))) -> 290.78 | H85: 12.28760488 | I85: 14.64634302 | J85: 61.53100775 | K85: 61.53100775 | L85: 80.07528641 | M85: =IF(A85>$B$30,NA(),IF(A85>$A$8,"",OFFSET(InputIndexData!$F$15,CalculationsAndCharts!$A85+$A$11,IF($C$5,8,0),1,1))) -> 28.16 | N85: -57.35917626 | O85: 105.8479532 | P85: -64.48838683 | Q85: 101.9631535 | R85: 278.33 | S85: 4 | T85: 290.78 | U85: 1 | V85: 4.473107462 | W85: -3.102001513 | X85: -3.119746624 | Y85: -32.22837768 | Z85: 269.068 | AA85: FALSE | AB85: FALSE | AC85: FALSE | AD85: FALSE | AE85: 433.3905 | AG85: TRUE | AH85: 0 | AI85: FALSE | AJ85: FALSE | AK85: FALSE | AL85: 0 | AM85: 128.2 | AW85: 443006900
A86: 54 | B86: =IF(A86>$B$30,NA(),IF($A86>$A$8,"",OFFSET(InputPriceData!$B$15,$A86+$A$11,0,1,1))) -> 2020-05-11 | C86: =IF(A86>$B$30,NA(),IF($A86>$A$8,"",OFFSET(InputPriceData!$G$15,CalculationsAndCharts!$A86+$A$11,IF($C$5,8,0),1,1))) -> 553230300 | D86: =IF(A86>$B$30,NA(),IF(A86>$A$8,"",OFFSET(InputPriceData!$C$15,CalculationsAndCharts!$A86+$A$11,IF($C$5,8,0),1,1))) -> 285.76 | E86: =IF(A86>$B$30,NA(),IF(A86>$A$8,"",OFFSET(InputPriceData!$D$15,CalculationsAndCharts!$A86+$A$11,IF($C$5,8,0),1,1))) -> 289.6 | F86: =IF(A86>$B$30,NA(),IF(A86>$A$8,"",OFFSET(InputPriceData!$E$15,CalculationsAndCharts!$A86+$A$11,IF($C$5,8,0),1,1))) -> 268.68 | G86: =IF(A86>$B$30,NA(),IF(A86>$A$8,"",OFFSET(InputPriceData!$F$15,CalculationsAndCharts!$A86+$A$11,IF($C$5,8,0),1,1))) -> 281.76 | H86: 20.18604875 | I86: 17.88268603 | J86: 57.98278614 | K86: 57.98278614 | L86: 66.15659769 | M86: =IF(A86>$B$30,NA(),IF(A86>$A$8,"",OFFSET(InputIndexData!$F$15,CalculationsAndCharts!$A86+$A$11,IF($C$5,8,0),1,1))) -> 31.89 | N86: -51.71108419 | O86: 133.1140351 | P86: -56.64152969 | Q86: 161.9827744 | R86: 278.33 | S86: 3 | T86: 287.82 | U86: 2 | V86: 3.409621672 | W86: -2.105482593 | X86: 22.50277911 | Y86: -32.22837768 | Z86: 266.342 | AA86: FALSE | AB86: FALSE | AC86: FALSE | AD86: FALSE | AE86: 433.3905 | AG86: TRUE | AH86: 0 | AI86: FALSE | AJ86: FALSE | AK86: FALSE | AL86: 0 | AM86: 128.2 | AX86: 553230300
A87: 55 | B87: =IF(A87>$B$30,NA(),IF($A87>$A$8,"",OFFSET(InputPriceData!$B$15,$A87+$A$11,0,1,1))) -> 2020-05-04 | C87: =IF(A87>$B$30,NA(),IF($A87>$A$8,"",OFFSET(InputPriceData!$G$15,CalculationsAndCharts!$A87+$A$11,IF($C$5,8,0),1,1))) -> 385778500 | D87: =IF(A87>$B$30,NA(),IF(A87>$A$8,"",OFFSET(InputPriceData!$C$15,CalculationsAndCharts!$A87+$A$11,IF($C$5,8,0),1,1))) -> 276.31 | E87: =IF(A87>$B$30,NA(),IF(A87>$A$8,"",OFFSET(InputPriceData!$D$15,CalculationsAndCharts!$A87+$A$11,IF($C$5,8,0),1,1))) -> 288.33 | F87: =IF(A87>$B$30,NA(),IF(A87>$A$8,"",OFFSET(InputPriceData!$E$15,CalculationsAndCharts!$A87+$A$11,IF($C$5,8,0),1,1))) -> 274.72 | G87: =IF(A87>$B$30,NA(),IF(A87>$A$8,"",OFFSET(InputPriceData!$F$15,CalculationsAndCharts!$A87+$A$11,IF($C$5,8,0),1,1))) -> 287.82 | H87: 13.58048753 | I87: 14.84537206 | J87: 57.05369357 | K87: 57.05369357 | L87: 75.56286227 | M87: =IF(A87>$B$30,NA(),IF(A87>$A$8,"",OFFSET(InputIndexData!$F$15,CalculationsAndCharts!$A87+$A$11,IF($C$5,8,0),1,1))) -> 27.98 | N87: -57.63173834 | O87: 104.5321637 | P87: -64.00581978 | Q87: 156.7602572 | R87: 278.33 | S87: 2 | T87: 287.82 | U87: 1 | V87: 3.409621672 | W87: -3.297199639 | X87: -14.57637376 | Y87: -32.22837768 | Z87: 267.271 | AA87: FALSE | AB87: FALSE | AC87: FALSE | AD87: FALSE | AE87: 433.3905 | AG87: TRUE | AH87: 0 | AI87: FALSE | AJ87: FALSE | AK87: FALSE | AL87: 0 | AM87: 128.2 | AW87: 385778500
A88: 56 | B88: =IF(A88>$B$30,NA(),IF($A88>$A$8,"",OFFSET(InputPriceData!$B$15,$A88+$A$11,0,1,1))) -> 2020-04-27 | C88: =IF(A88>$B$30,NA(),IF($A88>$A$8,"",OFFSET(InputPriceData!$G$15,CalculationsAndCharts!$A88+$A$11,IF($C$5,8,0),1,1))) -> 549993900 | D88: =IF(A88>$B$30,NA(),IF(A88>$A$8,"",OFFSET(InputPriceData!$C$15,CalculationsAndCharts!$A88+$A$11,IF($C$5,8,0),1,1))) -> 280.62 | E88: =IF(A88>$B$30,NA(),IF(A88>$A$8,"",OFFSET(InputPriceData!$D$15,CalculationsAndCharts!$A88+$A$11,IF($C$5,8,0),1,1))) -> 290.23 | F88: =IF(A88>$B$30,NA(),IF(A88>$A$8,"",OFFSET(InputPriceData!$E$15,CalculationsAndCharts!$A88+$A$11,IF($C$5,8,0),1,1))) -> 277.08 | G88: =IF(A88>$B$30,NA(),IF(A88>$A$8,"",OFFSET(InputPriceData!$F$15,CalculationsAndCharts!$A88+$A$11,IF($C$5,8,0),1,1))) -> 278.33 | H88: 13.31487527 | I88: 16.08074413 | J88: 55.42920657 | K88: 55.42920657 | L88: 78.62605411 | M88: =IF(A88>$B$30,NA(),IF(A88>$A$8,"",OFFSET(InputIndexData!$F$15,CalculationsAndCharts!$A88+$A$11,IF($C$5,8,0),1,1))) -> 37.19 | N88: -43.68564506 | O88: 207.3553719 | P88: -61.01052909 | Q88: 178.1268115 | R88: 273.81 | S88: 4 | T88: 282.12 | U88: 3 | V88: 1.712866586 | W88: -1.343399972 | X88: 22.42064137 | Y88: -32.22837768 | Z88: 267.477 | AA88: FALSE | AB88: FALSE | AC88: FALSE | AD88: FALSE | AE88: 433.3905 | AG88: TRUE | AH88: 0 | AI88: FALSE | AJ88: FALSE | AK88: FALSE | AL88: 0 | AM88: 128.2 | AX88: 549993900
A89: 57 | B89: =IF(A89>$B$30,NA(),IF($A89>$A$8,"",OFFSET(InputPriceData!$B$15,$A89+$A$11,0,1,1))) -> 2020-04-20 | C89: =IF(A89>$B$30,NA(),IF($A89>$A$8,"",OFFSET(InputPriceData!$G$15,CalculationsAndCharts!$A89+$A$11,IF($C$5,8,0),1,1))) -> 509219500 | D89: =IF(A89>$B$30,NA(),IF(A89>$A$8,"",OFFSET(InputPriceData!$C$15,CalculationsAndCharts!$A89+$A$11,IF($C$5,8,0),1,1))) -> 278.15 | E89: =IF(A89>$B$30,NA(),IF(A89>$A$8,"",OFFSET(InputPriceData!$D$15,CalculationsAndCharts!$A89+$A$11,IF($C$5,8,0),1,1))) -> 282.26 | F89: =IF(A89>$B$30,NA(),IF(A89>$A$8,"",OFFSET(InputPriceData!$E$15,CalculationsAndCharts!$A89+$A$11,IF($C$5,8,0),1,1))) -> 267.73 | G89: =IF(A89>$B$30,NA(),IF(A89>$A$8,"",OFFSET(InputPriceData!$F$15,CalculationsAndCharts!$A89+$A$11,IF($C$5,8,0),1,1))) -> 278.5 | H89: 14.79875273 | I89: 19.01148826 | J89: 54.14101687 | K89: 54.14101687 | L89: 94.21021343 | M89: =IF(A89>$B$30,NA(),IF(A89>$A$8,"",OFFSET(InputIndexData!$F$15,CalculationsAndCharts!$A89+$A$11,IF($C$5,8,0),1,1))) -> 35.93 | N89: -45.59357965 | O89: 196.9421488 | P89: -53.90462888 | Q89: 228.815916 | R89: 244.27 | S89: 4 | T89: 282.12 | U89: 2 | V89: 15.49514881 | W89: -1.283141925 | X89: 13.34485308 | Y89: -32.22837768 | Z89: 272.274 | AA89: FALSE | AB89: TRUE | AC89: TRUE | AD89: FALSE | AE89: 433.3905 | AG89: TRUE | AH89: 0 | AI89: FALSE | AJ89: TRUE | AK89: FALSE | AL89: 0 | AM89: 128.2 | AW89: 509219500
A90: 58 | B90: =IF(A90>$B$30,NA(),IF($A90>$A$8,"",OFFSET(InputPriceData!$B$15,$A90+$A$11,0,1,1))) -> 2020-04-13 | C90: =IF(A90>$B$30,NA(),IF($A90>$A$8,"",OFFSET(InputPriceData!$G$15,CalculationsAndCharts!$A90+$A$11,IF($C$5,8,0),1,1))) -> 649240600 | D90: =IF(A90>$B$30,NA(),IF(A90>$A$8,"",OFFSET(InputPriceData!$C$15,CalculationsAndCharts!$A90+$A$11,IF($C$5,8,0),1,1))) -> 272.77 | E90: =IF(A90>$B$30,NA(),IF(A90>$A$8,"",OFFSET(InputPriceData!$D$15,CalculationsAndCharts!$A90+$A$11,IF($C$5,8,0),1,1))) -> 282.77 | F90: =IF(A90>$B$30,NA(),IF(A90>$A$8,"",OFFSET(InputPriceData!$E$15,CalculationsAndCharts!$A90+$A$11,IF($C$5,8,0),1,1))) -> 267.13 | G90: =IF(A90>$B$30,NA(),IF(A90>$A$8,"",OFFSET(InputPriceData!$F$15,CalculationsAndCharts!$A90+$A$11,IF($C$5,8,0),1,1))) -> 282.12 | H90: 17.21752728 | I90: 23.49297651 | J90: 44.38554492 | K90: 44.38554492 | L90: 86.70646618 | M90: =IF(A90>$B$30,NA(),IF(A90>$A$8,"",OFFSET(InputIndexData!$F$15,CalculationsAndCharts!$A90+$A$11,IF($C$5,8,0),1,1))) -> 38.15 | N90: -42.23198062 | O90: 215.2892562 | P90: -43.03878495 | Q90: 393.091702 | R90: 244.27 | S90: 3 | T90: 282.12 | U90: 1 | V90: 15.49514881 | W90: -2.945555083 | X90: 44.51151305 | Y90: -32.22837768 | Z90: 277.457 | AA90: FALSE | AB90: TRUE | AC90: TRUE | AD90: FALSE | AE90: =IF(AG90,$BB$34,NA()) -> 433.3905 | AF90: =IF(AK90,$BB$34,NA()) ->  | AG90: TRUE | AH90: -272.77 | AI90: FALSE | AJ90: TRUE | AK90: FALSE | AL90: -272.77 | AM90: 128.2 | AW90: 649240600
A91: 59 | B91: =IF(A91>$B$30,NA(),IF($A91>$A$8,"",OFFSET(InputPriceData!$B$15,$A91+$A$11,0,1,1))) -> 2020-04-06 | C91: =IF(A91>$B$30,NA(),IF($A91>$A$8,"",OFFSET(InputPriceData!$G$15,CalculationsAndCharts!$A91+$A$11,IF($C$5,8,0),1,1))) -> 733262100 | D91: =IF(A91>$B$30,NA(),IF(A91>$A$8,"",OFFSET(InputPriceData!$C$15,CalculationsAndCharts!$A91+$A$11,IF($C$5,8,0),1,1))) -> 253.77 | E91: =IF(A91>$B$30,NA(),IF(A91>$A$8,"",OFFSET(InputPriceData!$D$15,CalculationsAndCharts!$A91+$A$11,IF($C$5,8,0),1,1))) -> 276.76 | F91: =IF(A91>$B$30,NA(),IF(A91>$A$8,"",OFFSET(InputPriceData!$E$15,CalculationsAndCharts!$A91+$A$11,IF($C$5,8,0),1,1))) -> 244.25 | G91: =IF(A91>$B$30,NA(),IF(A91>$A$8,"",OFFSET(InputPriceData!$F$15,CalculationsAndCharts!$A91+$A$11,IF($C$5,8,0),1,1))) -> 273.81 | H91: 31.41527284 | I91: 31.34595303 | J91: 35.06611947 | K91: 35.06611947 | L91: 70.96926282 | M91: =IF(A91>$B$30,NA(),IF(A91>$A$8,"",OFFSET(InputIndexData!$F$15,CalculationsAndCharts!$A91+$A$11,IF($C$5,8,0),1,1))) -> 41.67 | N91: -36.90187765 | O91: 244.3801653 | P91: -23.99840989 | Q91: 557.9170299 | R91: 223.87 | S91: 4 | T91: 273.81 | U91: 1 | V91: 22.30758923 | W91: -10.78850298 | X91: 65.55482416 | Y91: -32.22837768 | Z91: 281.75 | AA91: FALSE | AB91: TRUE | AC91: TRUE | AD91: FALSE | AE91: =IF(AG91,$BB$34,NA()) ->  | AF91: =IF(AK91,$BB$34,NA()) -> 433.3905 | AG91: FALSE | AH91: 0 | AI91: FALSE | AJ91: TRUE | AK91: TRUE | AL91: 0 | AM91: 673.74 | AW91: 733262100
A92: 60 | B92: =IF(A92>$B$30,NA(),IF($A92>$A$8,"",OFFSET(InputPriceData!$B$15,$A92+$A$11,0,1,1))) -> 2020-03-30 | C92: =IF(A92>$B$30,NA(),IF($A92>$A$8,"",OFFSET(InputPriceData!$G$15,CalculationsAndCharts!$A92+$A$11,IF($C$5,8,0),1,1))) -> 869026800 | D92: =IF(A92>$B$30,NA(),IF(A92>$A$8,"",OFFSET(InputPriceData!$C$15,CalculationsAndCharts!$A92+$A$11,IF($C$5,8,0),1,1))) -> 251.66 | E92: =IF(A92>$B$30,NA(),IF(A92>$A$8,"",OFFSET(InputPriceData!$D$15,CalculationsAndCharts!$A92+$A$11,IF($C$5,8,0),1,1))) -> 259.17 | F92: =IF(A92>$B$30,NA(),IF(A92>$A$8,"",OFFSET(InputPriceData!$E$15,CalculationsAndCharts!$A92+$A$11,IF($C$5,8,0),1,1))) -> 240.05 | G92: =IF(A92>$B$30,NA(),IF(A92>$A$8,"",OFFSET(InputPriceData!$F$15,CalculationsAndCharts!$A92+$A$11,IF($C$5,8,0),1,1))) -> 244.27 | H92: 21.56272836 | I92: 30.18190606 | J92: 18.48722565 | K92: 18.48722565 | L92: 39.52518239 | M92: =IF(A92>$B$30,NA(),IF(A92>$A$8,"",OFFSET(InputIndexData!$F$15,CalculationsAndCharts!$A92+$A$11,IF($C$5,8,0),1,1))) -> 46.8 | N92: -29.13385827 | O92: 286.7768595 | P92: -26.82076532 | Q92: 533.484966 | R92: 223.87 | S92: 3 | T92: 263.52 | U92: 4 | V92: 11.41287354 | W92: -7.304948391 | X92: 131.7665429 | Y92: -32.22837768 | Z92: 285.849 | AA92: FALSE | AB92: FALSE | AC92: FALSE | AD92: FALSE | AF92: 433.3905 | AG92: FALSE | AH92: 0 | AI92: FALSE | AJ92: FALSE | AK92: TRUE | AL92: 0 | AM92: 673.74 | AX92: 869026800
A93: 61 | B93: =IF(A93>$B$30,NA(),IF($A93>$A$8,"",OFFSET(InputPriceData!$B$15,$A93+$A$11,0,1,1))) -> 2020-03-23 | C93: =IF(A93>$B$30,NA(),IF($A93>$A$8,"",OFFSET(InputPriceData!$G$15,CalculationsAndCharts!$A93+$A$11,IF($C$5,8,0),1,1))) -> 1342924000 | D93: =IF(A93>$B$30,NA(),IF(A93>$A$8,"",OFFSET(InputPriceData!$C$15,CalculationsAndCharts!$A93+$A$11,IF($C$5,8,0),1,1))) -> 224.59 | E93: =IF(A93>$B$30,NA(),IF(A93>$A$8,"",OFFSET(InputPriceData!$D$15,CalculationsAndCharts!$A93+$A$11,IF($C$5,8,0),1,1))) -> 258.65 | F93: =IF(A93>$B$30,NA(),IF(A93>$A$8,"",OFFSET(InputPriceData!$E$15,CalculationsAndCharts!$A93+$A$11,IF($C$5,8,0),1,1))) -> 214.82 | G93: =IF(A93>$B$30,NA(),IF(A93>$A$8,"",OFFSET(InputPriceData!$F$15,CalculationsAndCharts!$A93+$A$11,IF($C$5,8,0),1,1))) -> 249.42 | H93: 43.54728362 | I93: 41.24381212 | J93: 17.98475807 | K93: 17.98475807 | L93: 25.78844094 | M93: =IF(A93>$B$30,NA(),IF(A93>$A$8,"",OFFSET(InputIndexData!$F$15,CalculationsAndCharts!$A93+$A$11,IF($C$5,8,0),1,1))) -> 65.54 | N93: -0.7571168988 | O93: 441.6528926 | P93: 6.689981437 | Q93: 765.6621907 | R93: 223.87 | S93: 2 | T93: 291.05 | U93: 4 | V93: 11.41287354 | W93: -23.08194468 | X93: 282.6151687 | Y93: -32.22837768 | Z93: 293.591 | AA93: FALSE | AB93: FALSE | AC93: FALSE | AD93: FALSE | AF93: 433.3905 | AG93: FALSE | AH93: 0 | AI93: FALSE | AJ93: FALSE | AK93: TRUE | AL93: 0 | AM93: 673.74 | AW93: 1342924000
A94: 62 | B94: =IF(A94>$B$30,NA(),IF($A94>$A$8,"",OFFSET(InputPriceData!$B$15,$A94+$A$11,0,1,1))) -> 2020-03-16 | C94: =IF(A94>$B$30,NA(),IF($A94>$A$8,"",OFFSET(InputPriceData!$G$15,CalculationsAndCharts!$A94+$A$11,IF($C$5,8,0),1,1))) -> 1523388400 | D94: =IF(A94>$B$30,NA(),IF(A94>$A$8,"",OFFSET(InputPriceData!$C$15,CalculationsAndCharts!$A94+$A$11,IF($C$5,8,0),1,1))) -> 235.99 | E94: =IF(A94>$B$30,NA(),IF(A94>$A$8,"",OFFSET(InputPriceData!$D$15,CalculationsAndCharts!$A94+$A$11,IF($C$5,8,0),1,1))) -> 251.37 | F94: =IF(A94>$B$30,NA(),IF(A94>$A$8,"",OFFSET(InputPriceData!$E$15,CalculationsAndCharts!$A94+$A$11,IF($C$5,8,0),1,1))) -> 223.11 | G94: =IF(A94>$B$30,NA(),IF(A94>$A$8,"",OFFSET(InputPriceData!$F$15,CalculationsAndCharts!$A94+$A$11,IF($C$5,8,0),1,1))) -> 223.87 | H94: 41.00283615 | I94: 38.65762423 | J94: 21.60243693 | K94: 15.54255554 | L94: 16.11820807 | M94: =IF(A94>$B$30,NA(),IF(A94>$A$8,"",OFFSET(InputIndexData!$F$15,CalculationsAndCharts!$A94+$A$11,IF($C$5,8,0),1,1))) -> 66.04 | N94: 14.19678368 | O94: 445.785124 | P94: 4.748310452 | Q94: 711.3809554 | R94: 223.87 | S94: 1 | T94: 291.05 | U94: 3 | V94: 17.71117166 | W94: -23.08194468 | X94: 334.0316426 | Y94: -32.22837768 | Z94: 301.129 | AA94: FALSE | AB94: FALSE | AC94: FALSE | AD94: FALSE | AF94: 433.3905 | AG94: FALSE | AH94: 0 | AI94: FALSE | AJ94: FALSE | AK94: TRUE | AL94: 0 | AM94: 673.74 | AX94: 1523388400
A95: 63 | B95: =IF(A95>$B$30,NA(),IF($A95>$A$8,"",OFFSET(InputPriceData!$B$15,$A95+$A$11,0,1,1))) -> 2020-03-09 | C95: =IF(A95>$B$30,NA(),IF($A95>$A$8,"",OFFSET(InputPriceData!$G$15,CalculationsAndCharts!$A95+$A$11,IF($C$5,8,0),1,1))) -> 1562964500 | D95: =IF(A95>$B$30,NA(),IF(A95>$A$8,"",OFFSET(InputPriceData!$C$15,CalculationsAndCharts!$A95+$A$11,IF($C$5,8,0),1,1))) -> 269.37 | E95: =IF(A95>$B$30,NA(),IF(A95>$A$8,"",OFFSET(InputPriceData!$D$15,CalculationsAndCharts!$A95+$A$11,IF($C$5,8,0),1,1))) -> 282.31 | F95: =IF(A95>$B$30,NA(),IF(A95>$A$8,"",OFFSET(InputPriceData!$E$15,CalculationsAndCharts!$A95+$A$11,IF($C$5,8,0),1,1))) -> 242.35 | G95: =IF(A95>$B$30,NA(),IF(A95>$A$8,"",OFFSET(InputPriceData!$F$15,CalculationsAndCharts!$A95+$A$11,IF($C$5,8,0),1,1))) -> 263.52 | H95: 46.33836155 | I95: 36.90524846 | J95: 34.27757303 | K95: 21.98373557 | L95: 22.49081473 | M95: =IF(A95>$B$30,NA(),IF(A95>$A$8,"",OFFSET(InputIndexData!$F$15,CalculationsAndCharts!$A95+$A$11,IF($C$5,8,0),1,1))) -> 57.83 | N95: 37.88745827 | O95: 377.9338843 | P95: 36.07631297 | Q95: 782.573556 | R95: 263.52 | S95: 1 | T95: 326.3 | U95: 4 | V95: 10.44702489 | W95: -19.23996322 | X95: 388.7867918 | Y95: -20.22522932 | Z95: 310.612 | AA95: FALSE | AB95: FALSE | AC95: FALSE | AD95: TRUE | AF95: 433.3905 | AG95: FALSE | AH95: 0 | AI95: TRUE | AJ95: FALSE | AK95: TRUE | AL95: 0 | AM95: 673.74 | AX95: 1562964500
A96: 64 | B96: =IF(A96>$B$30,NA(),IF($A96>$A$8,"",OFFSET(InputPriceData!$B$15,$A96+$A$11,0,1,1))) -> 2020-03-02 | C96: =IF(A96>$B$30,NA(),IF($A96>$A$8,"",OFFSET(InputPriceData!$G$15,CalculationsAndCharts!$A96+$A$11,IF($C$5,8,0),1,1))) -> 1130490100 | D96: =IF(A96>$B$30,NA(),IF(A96>$A$8,"",OFFSET(InputPriceData!$C$15,CalculationsAndCharts!$A96+$A$11,IF($C$5,8,0),1,1))) -> 291.79 | E96: =IF(A96>$B$30,NA(),IF(A96>$A$8,"",OFFSET(InputPriceData!$D$15,CalculationsAndCharts!$A96+$A$11,IF($C$5,8,0),1,1))) -> 307.08 | F96: =IF(A96>$B$30,NA(),IF(A96>$A$8,"",OFFSET(InputPriceData!$E$15,CalculationsAndCharts!$A96+$A$11,IF($C$5,8,0),1,1))) -> 283.98 | G96: =IF(A96>$B$30,NA(),IF(A96>$A$8,"",OFFSET(InputPriceData!$F$15,CalculationsAndCharts!$A96+$A$11,IF($C$5,8,0),1,1))) -> 291.05 | H96: 25.08361549 | I96: 25.11049692 | J96: 57.04884469 | K96: 41.84533723 | L96: 35.65659418 | M96: =IF(A96>$B$30,NA(),IF(A96>$A$8,"",OFFSET(InputIndexData!$F$15,CalculationsAndCharts!$A96+$A$11,IF($C$5,8,0),1,1))) -> 41.94 | N96: 4.562453254 | O96: 246.6115702 | P96: -7.413065069 | Q96: 535.2104844 | R96: 289.88 | S96: 2 | T96: 330.33 | U96: 4 | V96: 0.4036152891 | W96: -12.24533043 | X96: 250.7453256 | Y96: -12.24533043 | Z96: 315.807 | AA96: FALSE | AB96: FALSE | AC96: FALSE | AD96: TRUE | AF96: 433.3905 | AG96: FALSE | AH96: 291.79 | AI96: TRUE | AJ96: FALSE | AK96: TRUE | AL96: 291.79 | AM96: 673.74 | AX96: 1130490100
A97: 65 | B97: =IF(A97>$B$30,NA(),IF($A97>$A$8,"",OFFSET(InputPriceData!$B$15,$A97+$A$11,0,1,1))) -> 2020-02-24 | C97: =IF(A97>$B$30,NA(),IF($A97>$A$8,"",OFFSET(InputPriceData!$G$15,CalculationsAndCharts!$A97+$A$11,IF($C$5,8,0),1,1))) -> 1244104700 | D97: =IF(A97>$B$30,NA(),IF(A97>$A$8,"",OFFSET(InputPriceData!$C$15,CalculationsAndCharts!$A97+$A$11,IF($C$5,8,0),1,1))) -> 316.18 | E97: =IF(A97>$B$30,NA(),IF(A97>$A$8,"",OFFSET(InputPriceData!$D$15,CalculationsAndCharts!$A97+$A$11,IF($C$5,8,0),1,1))) -> 326.38 | F97: =IF(A97>$B$30,NA(),IF(A97>$A$8,"",OFFSET(InputPriceData!$E$15,CalculationsAndCharts!$A97+$A$11,IF($C$5,8,0),1,1))) -> 279.39 | G97: =IF(A97>$B$30,NA(),IF(A97>$A$8,"",OFFSET(InputPriceData!$F$15,CalculationsAndCharts!$A97+$A$11,IF($C$5,8,0),1,1))) -> 289.88 | H97: 42.9361549 | I97: 27.12099384 | J97: 76.65150212 | K97: 67.22519262 | L97: 60.57238402 | M97: =IF(A97>$B$30,NA(),IF(A97>$A$8,"",OFFSET(InputIndexData!$F$15,CalculationsAndCharts!$A97+$A$11,IF($C$5,8,0),1,1))) -> 40.11 | N97: =(M97/MAX(OFFSET(M97,1,0,15,1))-1)*100 -> 112.8980892 | O97: =(M97/MIN(OFFSET(M97,1,0,15,1))-1)* 100 -> 232.8630705 | P97: 185.2454184 | Q97: 586.0692438 | R97: 289.88 | S97: 1 | T97: 330.33 | U97: 3 | V97: 12.56381951 | W97: -12.24533043 | X97: 285.9953379 | Y97: -12.24533043 | Z97: 318.293 | AA97: FALSE | AB97: FALSE | AC97: FALSE | AD97: TRUE | AE97: 433.3905 | AG97: =IF(A97<=$AG$30,AND(OR(AC98,AG98),NOT(AD98))) -> TRUE | AH97: 0 | AI97: =AND($A$18,AD97) -> TRUE | AJ97: =AND($A$18,AC97) -> FALSE | AK97: =IF($A97<=$AG$30,AND(OR(AI98,AK98),NOT(AJ98))) -> FALSE | AL97: =IF(AND(A97=1,AK97),-G97,IF(AND($A97<=$AG$30,AK97,NOT(AK98)),$D97,IF(AND($A97<=$AG$30,NOT(AK97),AK98),-$D97,0))) -> 0 | AM97: =AM98+AH97+AL97 -> 90.16 | AW97: =IF(G97>=D97,C97,NA()) ->  | AX97: =IF(G97<D97,C97,NA()) -> 1244104700
A98: 66 | B98: =IF(A98>$B$30,NA(),IF($A98>$A$8,"",OFFSET(InputPriceData!$B$15,$A98+$A$11,0,1,1))) -> 2020-02-17 | C98: =IF(A98>$B$30,NA(),IF($A98>$A$8,"",OFFSET(InputPriceData!$G$15,CalculationsAndCharts!$A98+$A$11,IF($C$5,8,0),1,1))) -> 293992500 | D98: =IF(A98>$B$30,NA(),IF(A98>$A$8,"",OFFSET(InputPriceData!$C$15,CalculationsAndCharts!$A98+$A$11,IF($C$5,8,0),1,1))) -> 329.26 | E98: =IF(A98>$B$30,NA(),IF(A98>$A$8,"",OFFSET(InputPriceData!$D$15,CalculationsAndCharts!$A98+$A$11,IF($C$5,8,0),1,1))) -> 331.78 | F98: =IF(A98>$B$30,NA(),IF(A98>$A$8,"",OFFSET(InputPriceData!$E$15,CalculationsAndCharts!$A98+$A$11,IF($C$5,8,0),1,1))) -> 325.42 | G98: =IF(A98>$B$30,NA(),IF(A98>$A$8,"",OFFSET(InputPriceData!$F$15,CalculationsAndCharts!$A98+$A$11,IF($C$5,8,0),1,1))) -> 326.3 | H98: 6.451548988 | I98: 7.251987683 | J98: 96.0596463 | K98: 91.65357 | L98: 82.32126631 | M98: =IF(A98>$B$30,NA(),IF(A98>$A$8,"",OFFSET(InputIndexData!$F$15,CalculationsAndCharts!$A98+$A$11,IF($C$5,8,0),1,1))) -> 17.08 | N98: -9.341825902 | O98: 41.74273859 | P98: =(I98/MAX(OFFSET(I98,1,0,15,1)) - 1)*100 -> -23.72712178 | Q98: =(I98/MIN(OFFSET(I98,1,0,15,1)) - 1)*100 -> 83.45071478 | R98: =MIN(OFFSET($G98,0,0,$R$32,1)) -> 314.8 | S98: =MATCH(R98,OFFSET($G98,0,0,$R$32,1),0) -> 4 | T98: =MAX(OFFSET($G98,0,0,$R$32,1)) -> 330.33 | U98: =MATCH(T98,OFFSET($G98,0,0,$R$32,1),0) -> 2 | V98: =(MAX(OFFSET($G98,0,0,2,1))/R98-1)*100 -> 4.933290978 | W98: =(MIN(OFFSET($G98,0,0,2,1))/T98-1)*100 -> -1.219992129 | X98: =(C98/AVERAGE(OFFSET(C98,U98-1,0,50,1))-1)*100 -> -8.786025514 | Y98: =(MIN(OFFSET(G98,0,0,10,1))/MAX(OFFSET(G98,0,0,100,1))-1)*100 -> -5.461205461 | Z98: =AVERAGE(OFFSET(G98,0,0,10,1)) -> 320.534 | AA98: =AND(A98>=$AA$30-10,A98<$AA$30,Z98>=Z99,L98<40) -> FALSE | AB98: =AND(V98>6,OR(N98<$A$16,P98<2*$A$16),Y98<-15,MIN(OFFSET(J98,0,0,S98,1))<25,MIN(OFFSET(K98,0,0,S98,1))<25,K98>=J98) -> FALSE | AC98: =OR(AA98,AB98) -> FALSE | AD98: =AND(G98<AVERAGE(OFFSET(G98,0,0,20,1)),W98<=-6,OR(O98>$A$17,Q98>2*$A$17),X98>80,MAX(OFFSET(J98,0,0,U98,1))>85,MAX(OFFSET(K98,0,0,U98,1))>85,J98>=K98) -> FALSE | AE98: 433.3905 | AG98: TRUE | AH98: =IF(AND($A98<=$AG$30,AG98,NOT(AG99)),-$D98,IF(AND($A98<=$AG$30,NOT(AG98),AG99),$D98,0)) -> 0 | AI98: FALSE | AJ98: FALSE | AK98: FALSE | AL98: 0 | AM98: 90.16 | AX98: 293992500
A99: 67 | B99: =IF(A99>$B$30,NA(),IF($A99>$A$8,"",OFFSET(InputPriceData!$B$15,$A99+$A$11,0,1,1))) -> 2020-02-10 | C99: =IF(A99>$B$30,NA(),IF($A99>$A$8,"",OFFSET(InputPriceData!$G$15,CalculationsAndCharts!$A99+$A$11,IF($C$5,8,0),1,1))) -> 260011300 | D99: =IF(A99>$B$30,NA(),IF(A99>$A$8,"",OFFSET(InputPriceData!$C$15,CalculationsAndCharts!$A99+$A$11,IF($C$5,8,0),1,1))) -> 324.1 | E99: =IF(A99>$B$30,NA(),IF(A99>$A$8,"",OFFSET(InputPriceData!$D$15,CalculationsAndCharts!$A99+$A$11,IF($C$5,8,0),1,1))) -> 330.84 | F99: =IF(A99>$B$30,NA(),IF(A99>$A$8,"",OFFSET(InputPriceData!$E$15,CalculationsAndCharts!$A99+$A$11,IF($C$5,8,0),1,1))) -> 324.06 | G99: =IF(A99>$B$30,NA(),IF(A99>$A$8,"",OFFSET(InputPriceData!$F$15,CalculationsAndCharts!$A99+$A$11,IF($C$5,8,0),1,1))) -> 330.33 | H99: 7.275489882 | I99: 8.143975366 | J99: 92.86372755 | K99: 85.79351106 | L99: 63.48901907 | M99: =IF(A99>$B$30,NA(),IF(A99>$A$8,"",OFFSET(InputIndexData!$F$15,CalculationsAndCharts!$A99+$A$11,IF($C$5,8,0),1,1))) -> 13.68 | N99: -27.38853503 | O99: 13.52697095 | P99: -14.3456293 | Q99: 106.0149806 | R99: 314.8 | S99: 3 | T99: 330.33 | U99: 1 | V99: 4.933290978 | W99: -1.598401598 | X99: -19.32901661 | Y99: -6.466261012 | Z99: 318.801 | AA99: FALSE | AB99: FALSE | AC99: FALSE | AD99: FALSE | AE99: 433.3905 | AG99: TRUE | AH99: 0 | AI99: FALSE | AJ99: FALSE | AK99: FALSE | AL99: 0 | AM99: 90.16 | AW99: 260011300
A100: 68 | B100: =IF(A100>$B$30,NA(),IF($A100>$A$8,"",OFFSET(InputPriceData!$B$15,$A100+$A$11,0,1,1))) -> 2020-02-03 | C100: =IF(A100>$B$30,NA(),IF($A100>$A$8,"",OFFSET(InputPriceData!$G$15,CalculationsAndCharts!$A100+$A$11,IF($C$5,8,0),1,1))) -> 312106400 | D100: =IF(A100>$B$30,NA(),IF(A100>$A$8,"",OFFSET(InputPriceData!$C$15,CalculationsAndCharts!$A100+$A$11,IF($C$5,8,0),1,1))) -> 316.39 | E100: =IF(A100>$B$30,NA(),IF(A100>$A$8,"",OFFSET(InputPriceData!$D$15,CalculationsAndCharts!$A100+$A$11,IF($C$5,8,0),1,1))) -> 326.99 | F100: =IF(A100>$B$30,NA(),IF(A100>$A$8,"",OFFSET(InputPriceData!$E$15,CalculationsAndCharts!$A100+$A$11,IF($C$5,8,0),1,1))) -> 316.26 | G100: =IF(A100>$B$30,NA(),IF(A100>$A$8,"",OFFSET(InputPriceData!$F$15,CalculationsAndCharts!$A100+$A$11,IF($C$5,8,0),1,1))) -> 325.05 | H100: 11.73489882 | I100: 9.507950732 | J100: 90.93027392 | K100: 82.4485512 | L100: 53.42182667 | M100: =IF(A100>$B$30,NA(),IF(A100>$A$8,"",OFFSET(InputIndexData!$F$15,CalculationsAndCharts!$A100+$A$11,IF($C$5,8,0),1,1))) -> 15.47 | N100: -17.88747346 | O100: 28.38174274 | P100: 39.29223536 | Q100: 140.5189355 | R100: 314.8 | S100: 2 | T100: 325.05 | U100: 1 | V100: 3.256035578 | W100: -3.153361021 | X100: -3.590370489 | Y100: -5.682202738 | Z100: 316.426 | AA100: FALSE | AB100: FALSE | AC100: FALSE | AD100: FALSE | AE100: 433.3905 | AG100: TRUE | AH100: 0 | AI100: FALSE | AJ100: FALSE | AK100: FALSE | AL100: 0 | AM100: 90.16 | AW100: 312106400
A101: 69 | B101: =IF(A101>$B$30,NA(),IF($A101>$A$8,"",OFFSET(InputPriceData!$B$15,$A101+$A$11,0,1,1))) -> 2020-01-27 | C101: =IF(A101>$B$30,NA(),IF($A101>$A$8,"",OFFSET(InputPriceData!$G$15,CalculationsAndCharts!$A101+$A$11,IF($C$5,8,0),1,1))) -> 391122800 | D101: =IF(A101>$B$30,NA(),IF(A101>$A$8,"",OFFSET(InputPriceData!$C$15,CalculationsAndCharts!$A101+$A$11,IF($C$5,8,0),1,1))) -> 316.07 | E101: =IF(A101>$B$30,NA(),IF(A101>$A$8,"",OFFSET(InputPriceData!$D$15,CalculationsAndCharts!$A101+$A$11,IF($C$5,8,0),1,1))) -> 321.55 | F101: =IF(A101>$B$30,NA(),IF(A101>$A$8,"",OFFSET(InputPriceData!$E$15,CalculationsAndCharts!$A101+$A$11,IF($C$5,8,0),1,1))) -> 313.82 | G101: =IF(A101>$B$30,NA(),IF(A101>$A$8,"",OFFSET(InputPriceData!$F$15,CalculationsAndCharts!$A101+$A$11,IF($C$5,8,0),1,1))) -> 314.8 | H101: 7.63898818 | I101: 6.825901464 | J101: 91.82280701 | K101: 84.47333362 | L101: 57.6811554 | M101: =IF(A101>$B$30,NA(),IF(A101>$A$8,"",OFFSET(InputIndexData!$F$15,CalculationsAndCharts!$A101+$A$11,IF($C$5,8,0),1,1))) -> 18.84 | N101: 29.3956044 | O101: 56.34854772 | P101: -5.316219067 | Q101: 72.67217724 | R101: 314.8 | S101: 1 | T101: 324.8 | U101: 3 | V101: 2.188691233 | W101: -3.078817734 | X101: 20.33869649 | Y101: -5.775862069 | Z101: 314.525 | AA101: FALSE | AB101: FALSE | AC101: FALSE | AD101: FALSE | AE101: 433.3905 | AG101: TRUE | AH101: 0 | AI101: FALSE | AJ101: FALSE | AK101: FALSE | AL101: 0 | AM101: 90.16 | AX101: 391122800
A102: 70 | B102: =IF(A102>$B$30,NA(),IF($A102>$A$8,"",OFFSET(InputPriceData!$B$15,$A102+$A$11,0,1,1))) -> 2020-01-20 | C102: =IF(A102>$B$30,NA(),IF($A102>$A$8,"",OFFSET(InputPriceData!$G$15,CalculationsAndCharts!$A102+$A$11,IF($C$5,8,0),1,1))) -> 266198700 | D102: =IF(A102>$B$30,NA(),IF(A102>$A$8,"",OFFSET(InputPriceData!$C$15,CalculationsAndCharts!$A102+$A$11,IF($C$5,8,0),1,1))) -> 323.77 | E102: =IF(A102>$B$30,NA(),IF(A102>$A$8,"",OFFSET(InputPriceData!$D$15,CalculationsAndCharts!$A102+$A$11,IF($C$5,8,0),1,1))) -> 325.78 | F102: =IF(A102>$B$30,NA(),IF(A102>$A$8,"",OFFSET(InputPriceData!$E$15,CalculationsAndCharts!$A102+$A$11,IF($C$5,8,0),1,1))) -> 320.31 | G102: =IF(A102>$B$30,NA(),IF(A102>$A$8,"",OFFSET(InputPriceData!$F$15,CalculationsAndCharts!$A102+$A$11,IF($C$5,8,0),1,1))) -> 321.69 | H102: 5.5598818 | I102: 5.781802927 | J102: 96.69024757 | K102: 94.47173622 | L102: 80.32226823 | M102: =IF(A102>$B$30,NA(),IF(A102>$A$8,"",OFFSET(InputIndexData!$F$15,CalculationsAndCharts!$A102+$A$11,IF($C$5,8,0),1,1))) -> 14.56 | N102: -6.546854942 | O102: 20.82987552 | P102: -41.41041609 | Q102: 46.26002223 | R102: 315.47 | S102: 4 | T102: 324.8 | U102: 2 | V102: 2.957491996 | W102: -0.9575123153 | X102: -18.09732247 | Y102: -6.782635468 | Z102: 313.322 | AA102: FALSE | AB102: FALSE | AC102: FALSE | AD102: FALSE | AE102: 433.3905 | AG102: TRUE | AH102: 0 | AI102: FALSE | AJ102: FALSE | AK102: FALSE | AL102: 0 | AM102: 90.16 | AX102: 266198700
A103: 71 | B103: =IF(A103>$B$30,NA(),IF($A103>$A$8,"",OFFSET(InputPriceData!$B$15,$A103+$A$11,0,1,1))) -> 2020-01-13 | C103: =IF(A103>$B$30,NA(),IF($A103>$A$8,"",OFFSET(InputPriceData!$G$15,CalculationsAndCharts!$A103+$A$11,IF($C$5,8,0),1,1))) -> 331872500 | D103: =IF(A103>$B$30,NA(),IF(A103>$A$8,"",OFFSET(InputPriceData!$C$15,CalculationsAndCharts!$A103+$A$11,IF($C$5,8,0),1,1))) -> 319.36 | E103: =IF(A103>$B$30,NA(),IF(A103>$A$8,"",OFFSET(InputPriceData!$D$15,CalculationsAndCharts!$A103+$A$11,IF($C$5,8,0),1,1))) -> 325.03 | F103: =IF(A103>$B$30,NA(),IF(A103>$A$8,"",OFFSET(InputPriceData!$E$15,CalculationsAndCharts!$A103+$A$11,IF($C$5,8,0),1,1))) -> 318.9 | G103: =IF(A103>$B$30,NA(),IF(A103>$A$8,"",OFFSET(InputPriceData!$F$15,CalculationsAndCharts!$A103+$A$11,IF($C$5,8,0),1,1))) -> 324.8 | H103: 6.368817997 | I103: 6.093605854 | J103: 97.39538316 | K103: 96.36312251 | L103: 82.41535266 | M103: =IF(A103>$B$30,NA(),IF(A103>$A$8,"",OFFSET(InputIndexData!$F$15,CalculationsAndCharts!$A103+$A$11,IF($C$5,8,0),1,1))) -> 12.1 | N103: -28.99061033 | O103: 0.4149377593 | P103: -38.25077817 | Q103: 54.14757972 | R103: 315.47 | S103: 3 | T103: 324.8 | U103: 1 | V103: 2.957491996 | W103: -1.878078818 | X103: 2.1088621 | Y103: -6.782635468 | Z103: 311.511 | AA103: FALSE | AB103: FALSE | AC103: FALSE | AD103: FALSE | AE103: 433.3905 | AG103: TRUE | AH103: 0 | AI103: FALSE | AJ103: FALSE | AK103: FALSE | AL103: 0 | AM103: 90.16 | AW103: 331872500
A104: 72 | B104: =IF(A104>$B$30,NA(),IF($A104>$A$8,"",OFFSET(InputPriceData!$B$15,$A104+$A$11,0,1,1))) -> 2020-01-06 | C104: =IF(A104>$B$30,NA(),IF($A104>$A$8,"",OFFSET(InputPriceData!$G$15,CalculationsAndCharts!$A104+$A$11,IF($C$5,8,0),1,1))) -> 265948900 | D104: =IF(A104>$B$30,NA(),IF(A104>$A$8,"",OFFSET(InputPriceData!$C$15,CalculationsAndCharts!$A104+$A$11,IF($C$5,8,0),1,1))) -> 313.59 | E104: =IF(A104>$B$30,NA(),IF(A104>$A$8,"",OFFSET(InputPriceData!$D$15,CalculationsAndCharts!$A104+$A$11,IF($C$5,8,0),1,1))) -> 320.41 | F104: =IF(A104>$B$30,NA(),IF(A104>$A$8,"",OFFSET(InputPriceData!$E$15,CalculationsAndCharts!$A104+$A$11,IF($C$5,8,0),1,1))) -> 313.46 | G104: =IF(A104>$B$30,NA(),IF(A104>$A$8,"",OFFSET(InputPriceData!$F$15,CalculationsAndCharts!$A104+$A$11,IF($C$5,8,0),1,1))) -> 318.7 | H104: 6.718179971 | I104: 5.857211708 | J104: 96.94582175 | K104: 95.79281953 | L104: 80.5627719 | M104: =IF(A104>$B$30,NA(),IF(A104>$A$8,"",OFFSET(InputIndexData!$F$15,CalculationsAndCharts!$A104+$A$11,IF($C$5,8,0),1,1))) -> 12.56 | N104: -27.06155633 | O104: 4.232365145 | P104: -40.64626533 | Q104: 48.16760886 | R104: 312.29 | S104: 4 | T104: 318.7 | U104: 1 | V104: 2.052579333 | W104: -1.013492313 | X104: -18.68528666 | Y104: -5.613429558 | Z104: 309.112 | AA104: FALSE | AB104: FALSE | AC104: FALSE | AD104: FALSE | AE104: 433.3905 | AG104: TRUE | AH104: 0 | AI104: FALSE | AJ104: FALSE | AK104: FALSE | AL104: 0 | AM104: 90.16 | AW104: 265948900
A105: 73 | B105: =IF(A105>$B$30,NA(),IF($A105>$A$8,"",OFFSET(InputPriceData!$B$15,$A105+$A$11,0,1,1))) -> 2019-12-30 | C105: =IF(A105>$B$30,NA(),IF($A105>$A$8,"",OFFSET(InputPriceData!$G$15,CalculationsAndCharts!$A105+$A$11,IF($C$5,8,0),1,1))) -> 243667300 | D105: =IF(A105>$B$30,NA(),IF(A105>$A$8,"",OFFSET(InputPriceData!$C$15,CalculationsAndCharts!$A105+$A$11,IF($C$5,8,0),1,1))) -> 315.99 | E105: =IF(A105>$B$30,NA(),IF(A105>$A$8,"",OFFSET(InputPriceData!$D$15,CalculationsAndCharts!$A105+$A$11,IF($C$5,8,0),1,1))) -> 317.89 | F105: =IF(A105>$B$30,NA(),IF(A105>$A$8,"",OFFSET(InputPriceData!$E$15,CalculationsAndCharts!$A105+$A$11,IF($C$5,8,0),1,1))) -> 313.25 | G105: =IF(A105>$B$30,NA(),IF(A105>$A$8,"",OFFSET(InputPriceData!$F$15,CalculationsAndCharts!$A105+$A$11,IF($C$5,8,0),1,1))) -> 315.47 | H105: 4.631799712 | I105: 4.764423416 | J105: 97.14708376 | K105: 96.12960341 | L105: 85.75358265 | M105: =IF(A105>$B$30,NA(),IF(A105>$A$8,"",OFFSET(InputIndexData!$F$15,CalculationsAndCharts!$A105+$A$11,IF($C$5,8,0),1,1))) -> 14.02 | N105: -18.58304297 | O105: 16.34854772 | P105: -51.71997575 | Q105: 20.52376802 | R105: 308.97 | S105: 4 | T105: 315.91 | U105: 2 | V105: 2.246172768 | W105: -0.1392801747 | X105: -26.86558061 | Y105: -5.644012535 | Z105: 307.05 | AA105: FALSE | AB105: FALSE | AC105: FALSE | AD105: FALSE | AE105: 433.3905 | AG105: TRUE | AH105: 0 | AI105: FALSE | AJ105: FALSE | AK105: FALSE | AL105: 0 | AM105: 90.16 | AX105: 243667300
A106: 74 | B106: =IF(A106>$B$30,NA(),IF($A106>$A$8,"",OFFSET(InputPriceData!$B$15,$A106+$A$11,0,1,1))) -> 2019-12-23 | C106: =IF(A106>$B$30,NA(),IF($A106>$A$8,"",OFFSET(InputPriceData!$G$15,CalculationsAndCharts!$A106+$A$11,IF($C$5,8,0),1,1))) -> 146700000 | D106: =IF(A106>$B$30,NA(),IF(A106>$A$8,"",OFFSET(InputPriceData!$C$15,CalculationsAndCharts!$A106+$A$11,IF($C$5,8,0),1,1))) -> 314.66 | E106: =IF(A106>$B$30,NA(),IF(A106>$A$8,"",OFFSET(InputPriceData!$D$15,CalculationsAndCharts!$A106+$A$11,IF($C$5,8,0),1,1))) -> 316.83 | F106: =IF(A106>$B$30,NA(),IF(A106>$A$8,"",OFFSET(InputPriceData!$E$15,CalculationsAndCharts!$A106+$A$11,IF($C$5,8,0),1,1))) -> 313.99 | G106: =IF(A106>$B$30,NA(),IF(A106>$A$8,"",OFFSET(InputPriceData!$F$15,CalculationsAndCharts!$A106+$A$11,IF($C$5,8,0),1,1))) -> 315.91 | H106: 4.557997124 | I106: 4.888846832 | J106: 97.69602151 | K106: 96.79309815 | L106: 90.83812135 | M106: =IF(A106>$B$30,NA(),IF(A106>$A$8,"",OFFSET(InputIndexData!$F$15,CalculationsAndCharts!$A106+$A$11,IF($C$5,8,0),1,1))) -> 13.43 | N106: -22.00929152 | O106: 11.45228216 | P106: -50.45913786 | Q106: 23.67125883 | R106: 306.58 | S106: 4 | T106: 315.91 | U106: 1 | V106: 3.043251354 | W106: -1.145895983 | X106: -55.96939218 | Y106: -7.0431452 | Z106: 304.869 | AA106: FALSE | AB106: FALSE | AC106: FALSE | AD106: FALSE | AE106: 433.3905 | AG106: TRUE | AH106: 0 | AI106: FALSE | AJ106: FALSE | AK106: FALSE | AL106: 0 | AM106: 90.16 | AW106: 146700000
A107: 75 | B107: =IF(A107>$B$30,NA(),IF($A107>$A$8,"",OFFSET(InputPriceData!$B$15,$A107+$A$11,0,1,1))) -> 2019-12-16 | C107: =IF(A107>$B$30,NA(),IF($A107>$A$8,"",OFFSET(InputPriceData!$G$15,CalculationsAndCharts!$A107+$A$11,IF($C$5,8,0),1,1))) -> 424433000 | D107: =IF(A107>$B$30,NA(),IF(A107>$A$8,"",OFFSET(InputPriceData!$C$15,CalculationsAndCharts!$A107+$A$11,IF($C$5,8,0),1,1))) -> 310.82 | E107: =IF(A107>$B$30,NA(),IF(A107>$A$8,"",OFFSET(InputPriceData!$D$15,CalculationsAndCharts!$A107+$A$11,IF($C$5,8,0),1,1))) -> 313.49 | F107: =IF(A107>$B$30,NA(),IF(A107>$A$8,"",OFFSET(InputPriceData!$E$15,CalculationsAndCharts!$A107+$A$11,IF($C$5,8,0),1,1))) -> 308.9 | G107: =IF(A107>$B$30,NA(),IF(A107>$A$8,"",OFFSET(InputPriceData!$F$15,CalculationsAndCharts!$A107+$A$11,IF($C$5,8,0),1,1))) -> 312.29 | H107: 4.719971244 | I107: 5.237693664 | J107: 97.83119227 | K107: 96.89948059 | L107: 90.88149812 | M107: =IF(A107>$B$30,NA(),IF(A107>$A$8,"",OFFSET(InputIndexData!$F$15,CalculationsAndCharts!$A107+$A$11,IF($C$5,8,0),1,1))) -> 12.51 | N107: -27.35191638 | O107: 3.817427386 | P107: -46.92411756 | Q107: 32.4959016 | R107: 306.04 | S107: 4 | T107: 312.29 | U107: 1 | V107: 2.042216704 | W107: -1.063114413 | X107: 24.95446759 | Y107: -7.095968491 | Z107: 302.291 | AA107: FALSE | AB107: FALSE | AC107: FALSE | AD107: FALSE | AE107: 433.3905 | AG107: TRUE | AH107: 0 | AI107: FALSE | AJ107: FALSE | AK107: FALSE | AL107: 0 | AM107: 90.16 | AW107: 424433000
A108: 76 | B108: =IF(A108>$B$30,NA(),IF($A108>$A$8,"",OFFSET(InputPriceData!$B$15,$A108+$A$11,0,1,1))) -> 2019-12-09 | C108: =IF(A108>$B$30,NA(),IF($A108>$A$8,"",OFFSET(InputPriceData!$G$15,CalculationsAndCharts!$A108+$A$11,IF($C$5,8,0),1,1))) -> 318810900 | D108: =IF(A108>$B$30,NA(),IF(A108>$A$8,"",OFFSET(InputPriceData!$C$15,CalculationsAndCharts!$A108+$A$11,IF($C$5,8,0),1,1))) -> 306.16 | E108: =IF(A108>$B$30,NA(),IF(A108>$A$8,"",OFFSET(InputPriceData!$D$15,CalculationsAndCharts!$A108+$A$11,IF($C$5,8,0),1,1))) -> 310.28 | F108: =IF(A108>$B$30,NA(),IF(A108>$A$8,"",OFFSET(InputPriceData!$E$15,CalculationsAndCharts!$A108+$A$11,IF($C$5,8,0),1,1))) -> 304.58 | G108: =IF(A108>$B$30,NA(),IF(A108>$A$8,"",OFFSET(InputPriceData!$F$15,CalculationsAndCharts!$A108+$A$11,IF($C$5,8,0),1,1))) -> 308.97 | H108: 5.889712444 | I108: 5.885387328 | J108: 97.79605587 | K108: 96.76839028 | L108: 88.90158122 | M108: =IF(A108>$B$30,NA(),IF(A108>$A$8,"",OFFSET(InputIndexData!$F$15,CalculationsAndCharts!$A108+$A$11,IF($C$5,8,0),1,1))) -> 12.63 | N108: -33.45626976 | O108: 4.813278008 | P108: -40.36074922 | Q108: 48.88035657 | R108: 302.77 | S108: 4 | T108: 308.97 | U108: 1 | V108: 2.047759025 | W108: -0.7735378839 | X108: -6.873388213 | Y108: -6.631711817 | Z108: 299.91 | AA108: FALSE | AB108: FALSE | AC108: FALSE | AD108: FALSE | AE108: 433.3905 | AG108: TRUE | AH108: 0 | AI108: FALSE | AJ108: FALSE | AK108: FALSE | AL108: 0 | AM108: 90.16 | AW108: 318810900
A109: 77 | B109: =IF(A109>$B$30,NA(),IF($A109>$A$8,"",OFFSET(InputPriceData!$B$15,$A109+$A$11,0,1,1))) -> 2019-12-02 | C109: =IF(A109>$B$30,NA(),IF($A109>$A$8,"",OFFSET(InputPriceData!$G$15,CalculationsAndCharts!$A109+$A$11,IF($C$5,8,0),1,1))) -> 288425500 | D109: =IF(A109>$B$30,NA(),IF(A109>$A$8,"",OFFSET(InputPriceData!$C$15,CalculationsAndCharts!$A109+$A$11,IF($C$5,8,0),1,1))) -> 306.31 | E109: =IF(A109>$B$30,NA(),IF(A109>$A$8,"",OFFSET(InputPriceData!$D$15,CalculationsAndCharts!$A109+$A$11,IF($C$5,8,0),1,1))) -> 307.01 | F109: =IF(A109>$B$30,NA(),IF(A109>$A$8,"",OFFSET(InputPriceData!$E$15,CalculationsAndCharts!$A109+$A$11,IF($C$5,8,0),1,1))) -> 299.05 | G109: =IF(A109>$B$30,NA(),IF(A109>$A$8,"",OFFSET(InputPriceData!$F$15,CalculationsAndCharts!$A109+$A$11,IF($C$5,8,0),1,1))) -> 306.58 | H109: 7.597124441 | I109: 6.070774656 | J109: 97.41315525 | K109: 96.19775965 | L109: 84.06964516 | M109: =IF(A109>$B$30,NA(),IF(A109>$A$8,"",OFFSET(InputIndexData!$F$15,CalculationsAndCharts!$A109+$A$11,IF($C$5,8,0),1,1))) -> 13.62 | N109: -31.45445395 | O109: 13.02904564 | P109: -41.31077045 | Q109: 53.57002778 | R109: 302.77 | S109: 3 | T109: 306.58 | U109: 1 | V109: 1.258380949 | W109: -0.1761367343 | X109: -17.60882105 | Y109: -6.517059169 | Z109: 297.673 | AA109: FALSE | AB109: FALSE | AC109: FALSE | AD109: FALSE | AE109: 433.3905 | AG109: TRUE | AH109: 0 | AI109: FALSE | AJ109: FALSE | AK109: FALSE | AL109: 0 | AM109: 90.16 | AW109: 288425500
A110: 78 | B110: =IF(A110>$B$30,NA(),IF($A110>$A$8,"",OFFSET(InputPriceData!$B$15,$A110+$A$11,0,1,1))) -> 2019-11-25 | C110: =IF(A110>$B$30,NA(),IF($A110>$A$8,"",OFFSET(InputPriceData!$G$15,CalculationsAndCharts!$A110+$A$11,IF($C$5,8,0),1,1))) -> 167253500 | D110: =IF(A110>$B$30,NA(),IF(A110>$A$8,"",OFFSET(InputPriceData!$C$15,CalculationsAndCharts!$A110+$A$11,IF($C$5,8,0),1,1))) -> 303.77 | E110: =IF(A110>$B$30,NA(),IF(A110>$A$8,"",OFFSET(InputPriceData!$D$15,CalculationsAndCharts!$A110+$A$11,IF($C$5,8,0),1,1))) -> 307.18 | F110: =IF(A110>$B$30,NA(),IF(A110>$A$8,"",OFFSET(InputPriceData!$E$15,CalculationsAndCharts!$A110+$A$11,IF($C$5,8,0),1,1))) -> 303.77 | G110: =IF(A110>$B$30,NA(),IF(A110>$A$8,"",OFFSET(InputPriceData!$F$15,CalculationsAndCharts!$A110+$A$11,IF($C$5,8,0),1,1))) -> 306.04 | H110: 4.331244409 | I110: 4.181549312 | J110: 97.81434738 | K110: 96.81188512 | L110: 86.36029307 | M110: =IF(A110>$B$30,NA(),IF(A110>$A$8,"",OFFSET(InputIndexData!$F$15,CalculationsAndCharts!$A110+$A$11,IF($C$5,8,0),1,1))) -> 12.62 | N110: -36.48716658 | O110: 4.730290456 | P110: -60.35644353 | Q110: 5.779028286 | R110: 300.81 | S110: 4 | T110: 306.04 | U110: 1 | V110: 1.738639008 | W110: -1.068487779 | X110: -54.14545174 | Y110: -6.352110835 | Z110: 295.777 | AA110: FALSE | AB110: FALSE | AC110: FALSE | AD110: FALSE | AE110: 433.3905 | AG110: TRUE | AH110: 0 | AI110: FALSE | AJ110: FALSE | AK110: FALSE | AL110: 0 | AM110: 90.16 | AW110: 167253500
A111: 79 | B111: =IF(A111>$B$30,NA(),IF($A111>$A$8,"",OFFSET(InputPriceData!$B$15,$A111+$A$11,0,1,1))) -> 2019-11-18 | C111: =IF(A111>$B$30,NA(),IF($A111>$A$8,"",OFFSET(InputPriceData!$G$15,CalculationsAndCharts!$A111+$A$11,IF($C$5,8,0),1,1))) -> 295953800 | D111: =IF(A111>$B$30,NA(),IF(A111>$A$8,"",OFFSET(InputPriceData!$C$15,CalculationsAndCharts!$A111+$A$11,IF($C$5,8,0),1,1))) -> 303.33 | E111: =IF(A111>$B$30,NA(),IF(A111>$A$8,"",OFFSET(InputPriceData!$D$15,CalculationsAndCharts!$A111+$A$11,IF($C$5,8,0),1,1))) -> 304.46 | F111: =IF(A111>$B$30,NA(),IF(A111>$A$8,"",OFFSET(InputPriceData!$E$15,CalculationsAndCharts!$A111+$A$11,IF($C$5,8,0),1,1))) -> 300.92 | G111: =IF(A111>$B$30,NA(),IF(A111>$A$8,"",OFFSET(InputPriceData!$F$15,CalculationsAndCharts!$A111+$A$11,IF($C$5,8,0),1,1))) -> 302.77 | H111: 3.622444086 | I111: 3.953098625 | J111: 98.12897618 | K111: 97.2407125 | L111: 88.99242935 | M111: =IF(A111>$B$30,NA(),IF(A111>$A$8,"",OFFSET(InputIndexData!$F$15,CalculationsAndCharts!$A111+$A$11,IF($C$5,8,0),1,1))) -> 12.34 | N111: -37.89632612 | O111: 2.406639004 | P111: -62.52229094 | Q111: -7.68952683 | R111: 298.08 | S111: 4 | T111: 303.58 | U111: 2 | V111: 1.845142244 | W111: -0.2668159958 | X111: -22.13834084 | Y111: -5.593253838 | Z111: 294.082 | AA111: FALSE | AB111: FALSE | AC111: FALSE | AD111: FALSE | AE111: 433.3905 | AG111: TRUE | AH111: 0 | AI111: FALSE | AJ111: FALSE | AK111: FALSE | AL111: 0 | AM111: 90.16 | AX111: 295953800
A112: 80 | B112: =IF(A112>$B$30,NA(),IF($A112>$A$8,"",OFFSET(InputPriceData!$B$15,$A112+$A$11,0,1,1))) -> 2019-11-11 | C112: =IF(A112>$B$30,NA(),IF($A112>$A$8,"",OFFSET(InputPriceData!$G$15,CalculationsAndCharts!$A112+$A$11,IF($C$5,8,0),1,1))) -> 249443100 | D112: =IF(A112>$B$30,NA(),IF(A112>$A$8,"",OFFSET(InputPriceData!$C$15,CalculationsAndCharts!$A112+$A$11,IF($C$5,8,0),1,1))) -> 299.33 | E112: =IF(A112>$B$30,NA(),IF(A112>$A$8,"",OFFSET(InputPriceData!$D$15,CalculationsAndCharts!$A112+$A$11,IF($C$5,8,0),1,1))) -> 303.63 | F112: =IF(A112>$B$30,NA(),IF(A112>$A$8,"",OFFSET(InputPriceData!$E$15,CalculationsAndCharts!$A112+$A$11,IF($C$5,8,0),1,1))) -> 299.18 | G112: =IF(A112>$B$30,NA(),IF(A112>$A$8,"",OFFSET(InputPriceData!$F$15,CalculationsAndCharts!$A112+$A$11,IF($C$5,8,0),1,1))) -> 303.58 | H112: 4.364440863 | I112: 4.366197249 | J112: 99.40767475 | K112: 99.06975379 | L112: 97.55157325 | M112: =IF(A112>$B$30,NA(),IF(A112>$A$8,"",OFFSET(InputIndexData!$F$15,CalculationsAndCharts!$A112+$A$11,IF($C$5,8,0),1,1))) -> 12.05 | N112: -39.35581278 | O112: -0.1657000829 | P112: -58.60587206 | Q112: 1.956913375 | R112: 293.66 | S112: 4 | T112: 303.58 | U112: 1 | V112: 3.378056256 | W112: -0.9124448251 | X112: -34.37471108 | Y112: -5.593253838 | Z112: 292.987 | AA112: FALSE | AB112: FALSE | AC112: FALSE | AD112: FALSE | AE112: 433.3905 | AG112: TRUE | AH112: 0 | AI112: FALSE | AJ112: FALSE | AK112: FALSE | AL112: 0 | AM112: 90.16 | AW112: 249443100
A113: 81 | B113: =IF(A113>$B$30,NA(),IF($A113>$A$8,"",OFFSET(InputPriceData!$B$15,$A113+$A$11,0,1,1))) -> 2019-11-04 | C113: =IF(A113>$B$30,NA(),IF($A113>$A$8,"",OFFSET(InputPriceData!$G$15,CalculationsAndCharts!$A113+$A$11,IF($C$5,8,0),1,1))) -> 253331600 | D113: =IF(A113>$B$30,NA(),IF(A113>$A$8,"",OFFSET(InputPriceData!$C$15,CalculationsAndCharts!$A113+$A$11,IF($C$5,8,0),1,1))) -> 299.75 | E113: =IF(A113>$B$30,NA(),IF(A113>$A$8,"",OFFSET(InputPriceData!$D$15,CalculationsAndCharts!$A113+$A$11,IF($C$5,8,0),1,1))) -> 301.5 | F113: =IF(A113>$B$30,NA(),IF(A113>$A$8,"",OFFSET(InputPriceData!$E$15,CalculationsAndCharts!$A113+$A$11,IF($C$5,8,0),1,1))) -> 298 | G113: =IF(A113>$B$30,NA(),IF(A113>$A$8,"",OFFSET(InputPriceData!$F$15,CalculationsAndCharts!$A113+$A$11,IF($C$5,8,0),1,1))) -> 300.81 | H113: 3.594408632 | I113: 4.282394499 | J113: 99.00517747 | K113: 98.21347099 | L113: 96.27167459 | M113: =IF(A113>$B$30,NA(),IF(A113>$A$8,"",OFFSET(InputIndexData!$F$15,CalculationsAndCharts!$A113+$A$11,IF($C$5,8,0),1,1))) -> 12.07 | N113: -39.25515853 | O113: -0.7401315789 | P113: -59.40037162 | Q113: -13.18760836 | R113: 290.13 | S113: 4 | T113: 300.81 | U113: 1 | V113: 3.681108469 | W113: -0.907549616 | X113: -34.09456642 | Y113: -4.723912104 | Z113: 291.516 | AA113: FALSE | AB113: FALSE | AC113: FALSE | AD113: FALSE | AE113: 433.3905 | AG113: TRUE | AH113: 0 | AI113: FALSE | AJ113: FALSE | AK113: FALSE | AL113: 0 | AM113: 90.16 | AW113: 253331600
A114: 82 | B114: =IF(A114>$B$30,NA(),IF($A114>$A$8,"",OFFSET(InputPriceData!$B$15,$A114+$A$11,0,1,1))) -> 2019-10-28 | C114: =IF(A114>$B$30,NA(),IF($A114>$A$8,"",OFFSET(InputPriceData!$G$15,CalculationsAndCharts!$A114+$A$11,IF($C$5,8,0),1,1))) -> 276271100 | D114: =IF(A114>$B$30,NA(),IF(A114>$A$8,"",OFFSET(InputPriceData!$C$15,CalculationsAndCharts!$A114+$A$11,IF($C$5,8,0),1,1))) -> 294.97 | E114: =IF(A114>$B$30,NA(),IF(A114>$A$8,"",OFFSET(InputPriceData!$D$15,CalculationsAndCharts!$A114+$A$11,IF($C$5,8,0),1,1))) -> 298.13 | F114: =IF(A114>$B$30,NA(),IF(A114>$A$8,"",OFFSET(InputPriceData!$E$15,CalculationsAndCharts!$A114+$A$11,IF($C$5,8,0),1,1))) -> 293.79 | G114: =IF(A114>$B$30,NA(),IF(A114>$A$8,"",OFFSET(InputPriceData!$F$15,CalculationsAndCharts!$A114+$A$11,IF($C$5,8,0),1,1))) -> 298.08 | H114: 4.444086323 | I114: 5.064788997 | J114: 97.27276083 | K114: 93.79221973 | L114: 93.48496662 | M114: =IF(A114>$B$30,NA(),IF(A114>$A$8,"",OFFSET(InputIndexData!$F$15,CalculationsAndCharts!$A114+$A$11,IF($C$5,8,0),1,1))) -> 12.3 | N114: -38.09763463 | O114: 1.151315789 | P114: -51.98280981 | Q114: 4.733987887 | R114: 288.48 | S114: 4 | T114: 298.08 | U114: 1 | V114: 3.327787022 | W114: -1.482823403 | X114: -28.51402903 | Y114: -4.911433172 | Z114: 289.779 | AA114: FALSE | AB114: FALSE | AC114: FALSE | AD114: FALSE | AE114: 433.3905 | AG114: TRUE | AH114: 0 | AI114: FALSE | AJ114: FALSE | AK114: FALSE | AL114: 0 | AM114: 90.16 | AW114: 276271100
A115: 83 | B115: =IF(A115>$B$30,NA(),IF($A115>$A$8,"",OFFSET(InputPriceData!$B$15,$A115+$A$11,0,1,1))) -> 2019-10-21 | C115: =IF(A115>$B$30,NA(),IF($A115>$A$8,"",OFFSET(InputPriceData!$G$15,CalculationsAndCharts!$A115+$A$11,IF($C$5,8,0),1,1))) -> 202654000 | D115: =IF(A115>$B$30,NA(),IF(A115>$A$8,"",OFFSET(InputPriceData!$C$15,CalculationsAndCharts!$A115+$A$11,IF($C$5,8,0),1,1))) -> 291.54 | E115: =IF(A115>$B$30,NA(),IF(A115>$A$8,"",OFFSET(InputPriceData!$D$15,CalculationsAndCharts!$A115+$A$11,IF($C$5,8,0),1,1))) -> 294.24 | F115: =IF(A115>$B$30,NA(),IF(A115>$A$8,"",OFFSET(InputPriceData!$E$15,CalculationsAndCharts!$A115+$A$11,IF($C$5,8,0),1,1))) -> 290.64 | G115: =IF(A115>$B$30,NA(),IF(A115>$A$8,"",OFFSET(InputPriceData!$F$15,CalculationsAndCharts!$A115+$A$11,IF($C$5,8,0),1,1))) -> 293.66 | H115: 4.210863227 | I115: 5.659577994 | J115: 94.18947294 | K115: 85.91587469 | L115: 85.740024 | M115: =IF(A115>$B$30,NA(),IF(A115>$A$8,"",OFFSET(InputIndexData!$F$15,CalculationsAndCharts!$A115+$A$11,IF($C$5,8,0),1,1))) -> 12.65 | N115: -36.3361852 | O115: 4.029605263 | P115: -46.34385893 | Q115: 17.03353751 | R115: 286.6 | S115: 4 | T115: 293.66 | U115: 1 | V115: 2.463363573 | W115: -1.202070422 | X115: -48.38716763 | Y115: -5.986515017 | Z115: 287.579 | AA115: FALSE | AB115: FALSE | AC115: FALSE | AD115: FALSE | AE115: 433.3905 | AG115: TRUE | AH115: 0 | AI115: FALSE | AJ115: FALSE | AK115: FALSE | AL115: 0 | AM115: 90.16 | AW115: 202654000
A116: 84 | B116: =IF(A116>$B$30,NA(),IF($A116>$A$8,"",OFFSET(InputPriceData!$B$15,$A116+$A$11,0,1,1))) -> 2019-10-14 | C116: =IF(A116>$B$30,NA(),IF($A116>$A$8,"",OFFSET(InputPriceData!$G$15,CalculationsAndCharts!$A116+$A$11,IF($C$5,8,0),1,1))) -> 246118100 | D116: =IF(A116>$B$30,NA(),IF(A116>$A$8,"",OFFSET(InputPriceData!$C$15,CalculationsAndCharts!$A116+$A$11,IF($C$5,8,0),1,1))) -> 288.14 | E116: =IF(A116>$B$30,NA(),IF(A116>$A$8,"",OFFSET(InputPriceData!$D$15,CalculationsAndCharts!$A116+$A$11,IF($C$5,8,0),1,1))) -> 292.34 | F116: =IF(A116>$B$30,NA(),IF(A116>$A$8,"",OFFSET(InputPriceData!$E$15,CalculationsAndCharts!$A116+$A$11,IF($C$5,8,0),1,1))) -> 287.79 | G116: =IF(A116>$B$30,NA(),IF(A116>$A$8,"",OFFSET(InputPriceData!$F$15,CalculationsAndCharts!$A116+$A$11,IF($C$5,8,0),1,1))) -> 290.13 | H116: 5.118632275 | I116: 7.209155989 | J116: 90.8590568 | K116: 75.79345502 | L116: 73.20139025 | M116: =IF(A116>$B$30,NA(),IF(A116>$A$8,"",OFFSET(InputIndexData!$F$15,CalculationsAndCharts!$A116+$A$11,IF($C$5,8,0),1,1))) -> 14.25 | N116: -28.28384499 | O116: 17.1875 | P116: -31.65294459 | Q116: 49.07702106 | R116: 286.6 | S116: 3 | T116: 290.13 | U116: 1 | V116: 1.231681786 | W116: -0.568710578 | X116: -37.91900079 | Y116: -5.681391138 | Z116: 286.208 | AA116: FALSE | AB116: FALSE | AC116: FALSE | AD116: FALSE | AE116: 433.3905 | AG116: TRUE | AH116: 0 | AI116: FALSE | AJ116: FALSE | AK116: FALSE | AL116: 0 | AM116: 90.16 | AW116: 246118100
A117: 85 | B117: =IF(A117>$B$30,NA(),IF($A117>$A$8,"",OFFSET(InputPriceData!$B$15,$A117+$A$11,0,1,1))) -> 2019-10-07 | C117: =IF(A117>$B$30,NA(),IF($A117>$A$8,"",OFFSET(InputPriceData!$G$15,CalculationsAndCharts!$A117+$A$11,IF($C$5,8,0),1,1))) -> 371694700 | D117: =IF(A117>$B$30,NA(),IF(A117>$A$8,"",OFFSET(InputPriceData!$C$15,CalculationsAndCharts!$A117+$A$11,IF($C$5,8,0),1,1))) -> 285.74 | E117: =IF(A117>$B$30,NA(),IF(A117>$A$8,"",OFFSET(InputPriceData!$D$15,CalculationsAndCharts!$A117+$A$11,IF($C$5,8,0),1,1))) -> 290.88 | F117: =IF(A117>$B$30,NA(),IF(A117>$A$8,"",OFFSET(InputPriceData!$E$15,CalculationsAndCharts!$A117+$A$11,IF($C$5,8,0),1,1))) -> 280.9 | G117: =IF(A117>$B$30,NA(),IF(A117>$A$8,"",OFFSET(InputPriceData!$F$15,CalculationsAndCharts!$A117+$A$11,IF($C$5,8,0),1,1))) -> 288.48 | H117: 10.23632275 | I117: 9.868311978 | J117: 90.35536253 | K117: 71.66584443 | L117: 52.30097327 | M117: =IF(A117>$B$30,NA(),IF(A117>$A$8,"",OFFSET(InputIndexData!$F$15,CalculationsAndCharts!$A117+$A$11,IF($C$5,8,0),1,1))) -> 15.58 | N117: -21.59033719 | O117: 28.125 | P117: -6.442575728 | Q117: 104.0652962 | R117: 286.6 | S117: 2 | T117: 289.09 | U117: 4 | V117: 0.6559665038 | W117: -0.8613234633 | X117: -12.72940519 | Y117: -5.681391138 | Z117: 285.459 | AA117: FALSE | AB117: FALSE | AC117: FALSE | AD117: FALSE | AE117: 433.3905 | AG117: TRUE | AH117: 0 | AI117: FALSE | AJ117: FALSE | AK117: FALSE | AL117: 0 | AM117: 90.16 | AW117: 371694700
A118: 86 | B118: =IF(A118>$B$30,NA(),IF($A118>$A$8,"",OFFSET(InputPriceData!$B$15,$A118+$A$11,0,1,1))) -> 2019-09-30 | C118: =IF(A118>$B$30,NA(),IF($A118>$A$8,"",OFFSET(InputPriceData!$G$15,CalculationsAndCharts!$A118+$A$11,IF($C$5,8,0),1,1))) -> 412814300 | D118: =IF(A118>$B$30,NA(),IF(A118>$A$8,"",OFFSET(InputPriceData!$C$15,CalculationsAndCharts!$A118+$A$11,IF($C$5,8,0),1,1))) -> 288.18 | E118: =IF(A118>$B$30,NA(),IF(A118>$A$8,"",OFFSET(InputPriceData!$D$15,CalculationsAndCharts!$A118+$A$11,IF($C$5,8,0),1,1))) -> 290.6 | F118: =IF(A118>$B$30,NA(),IF(A118>$A$8,"",OFFSET(InputPriceData!$E$15,CalculationsAndCharts!$A118+$A$11,IF($C$5,8,0),1,1))) -> 277.32 | G118: =IF(A118>$B$30,NA(),IF(A118>$A$8,"",OFFSET(InputPriceData!$F$15,CalculationsAndCharts!$A118+$A$11,IF($C$5,8,0),1,1))) -> 286.6 | H118: 12.54322747 | I118: 9.756623955 | J118: 91.43092305 | K118: 72.66896892 | L118: 49.34481137 | M118: =IF(A118>$B$30,NA(),IF(A118>$A$8,"",OFFSET(InputIndexData!$F$15,CalculationsAndCharts!$A118+$A$11,IF($C$5,8,0),1,1))) -> 17.04 | N118: -14.24257675 | O118: 40.13157895 | P118: -7.501444127 | Q118: 101.7557169 | R118: 286.6 | S118: 1 | T118: 291.82 | U118: 4 | V118: 0.3558967202 | W118: -1.788773902 | X118: -3.31262473 | Y118: -5.681391138 | Z118: 284.972 | AA118: FALSE | AB118: FALSE | AC118: FALSE | AD118: FALSE | AE118: 433.3905 | AG118: TRUE | AH118: 0 | AI118: FALSE | AJ118: FALSE | AK118: FALSE | AL118: 0 | AM118: 90.16 | AX118: 412814300
A119: 87 | B119: =IF(A119>$B$30,NA(),IF($A119>$A$8,"",OFFSET(InputPriceData!$B$15,$A119+$A$11,0,1,1))) -> 2019-09-23 | C119: =IF(A119>$B$30,NA(),IF($A119>$A$8,"",OFFSET(InputPriceData!$G$15,CalculationsAndCharts!$A119+$A$11,IF($C$5,8,0),1,1))) -> 351126500 | D119: =IF(A119>$B$30,NA(),IF(A119>$A$8,"",OFFSET(InputPriceData!$C$15,CalculationsAndCharts!$A119+$A$11,IF($C$5,8,0),1,1))) -> 289.72 | E119: =IF(A119>$B$30,NA(),IF(A119>$A$8,"",OFFSET(InputPriceData!$D$15,CalculationsAndCharts!$A119+$A$11,IF($C$5,8,0),1,1))) -> 291.95 | F119: =IF(A119>$B$30,NA(),IF(A119>$A$8,"",OFFSET(InputPriceData!$E$15,CalculationsAndCharts!$A119+$A$11,IF($C$5,8,0),1,1))) -> 285.96 | G119: =IF(A119>$B$30,NA(),IF(A119>$A$8,"",OFFSET(InputPriceData!$F$15,CalculationsAndCharts!$A119+$A$11,IF($C$5,8,0),1,1))) -> 287.62 | H119: 5.91227466 | I119: 6.23324791 | J119: 94.56068768 | K119: 81.51428354 | L119: 60.69483079 | M119: =IF(A119>$B$30,NA(),IF(A119>$A$8,"",OFFSET(InputIndexData!$F$15,CalculationsAndCharts!$A119+$A$11,IF($C$5,8,0),1,1))) -> 17.22 | N119: -13.33668848 | O119: 41.61184211 | P119: -40.9051294 | Q119: 28.89636893 | R119: 287.62 | S119: 1 | T119: 291.82 | U119: 3 | V119: 0.5110910229 | W119: -1.439243369 | X119: -17.76084386 | Y119: -5.681391138 | Z119: 285.583 | AA119: FALSE | AB119: FALSE | AC119: FALSE | AD119: FALSE | AE119: 433.3905 | AG119: TRUE | AH119: 0 | AI119: FALSE | AJ119: FALSE | AK119: FALSE | AL119: 0 | AM119: 90.16 | AX119: 351126500
A120: 88 | B120: =IF(A120>$B$30,NA(),IF($A120>$A$8,"",OFFSET(InputPriceData!$B$15,$A120+$A$11,0,1,1))) -> 2019-09-16 | C120: =IF(A120>$B$30,NA(),IF($A120>$A$8,"",OFFSET(InputPriceData!$G$15,CalculationsAndCharts!$A120+$A$11,IF($C$5,8,0),1,1))) -> 339168000 | D120: =IF(A120>$B$30,NA(),IF(A120>$A$8,"",OFFSET(InputPriceData!$C$15,CalculationsAndCharts!$A120+$A$11,IF($C$5,8,0),1,1))) -> 290.6 | E120: =IF(A120>$B$30,NA(),IF(A120>$A$8,"",OFFSET(InputPriceData!$D$15,CalculationsAndCharts!$A120+$A$11,IF($C$5,8,0),1,1))) -> 293.31 | F120: =IF(A120>$B$30,NA(),IF(A120>$A$8,"",OFFSET(InputPriceData!$E$15,CalculationsAndCharts!$A120+$A$11,IF($C$5,8,0),1,1))) -> 288.25 | G120: =IF(A120>$B$30,NA(),IF(A120>$A$8,"",OFFSET(InputPriceData!$F$15,CalculationsAndCharts!$A120+$A$11,IF($C$5,8,0),1,1))) -> 289.09 | H120: 5.212746605 | I120: 6.47649582 | J120: 95.34362626 | K120: 86.29812646 | L120: 84.79845388 | M120: =IF(A120>$B$30,NA(),IF(A120>$A$8,"",OFFSET(InputIndexData!$F$15,CalculationsAndCharts!$A120+$A$11,IF($C$5,8,0),1,1))) -> 15.32 | N120: -22.89884248 | O120: 25.98684211 | P120: -44.04773697 | Q120: 33.92645482 | R120: 283.44 | S120: 4 | T120: 291.82 | U120: 2 | V120: 2.956534011 | W120: -0.93550819 | X120: -20.56170609 | Y120: -5.681391138 | Z120: 285.623 | AA120: FALSE | AB120: FALSE | AC120: FALSE | AD120: FALSE | AE120: 433.3905 | AG120: TRUE | AH120: 0 | AI120: FALSE | AJ120: FALSE | AK120: FALSE | AL120: 0 | AM120: 90.16 | AX120: 339168000
A121: 89 | B121: =IF(A121>$B$30,NA(),IF($A121>$A$8,"",OFFSET(InputPriceData!$B$15,$A121+$A$11,0,1,1))) -> 2019-09-09 | C121: =IF(A121>$B$30,NA(),IF($A121>$A$8,"",OFFSET(InputPriceData!$G$15,CalculationsAndCharts!$A121+$A$11,IF($C$5,8,0),1,1))) -> 313042000 | D121: =IF(A121>$B$30,NA(),IF(A121>$A$8,"",OFFSET(InputPriceData!$C$15,CalculationsAndCharts!$A121+$A$11,IF($C$5,8,0),1,1))) -> 289.93 | E121: =IF(A121>$B$30,NA(),IF(A121>$A$8,"",OFFSET(InputPriceData!$D$15,CalculationsAndCharts!$A121+$A$11,IF($C$5,8,0),1,1))) -> 293.14 | F121: =IF(A121>$B$30,NA(),IF(A121>$A$8,"",OFFSET(InputPriceData!$E$15,CalculationsAndCharts!$A121+$A$11,IF($C$5,8,0),1,1))) -> 286.85 | G121: =IF(A121>$B$30,NA(),IF(A121>$A$8,"",OFFSET(InputPriceData!$F$15,CalculationsAndCharts!$A121+$A$11,IF($C$5,8,0),1,1))) -> 291.82 | H121: 6.58746605 | I121: 7.892991641 | J121: 92.77050349 | K121: 82.5331675 | L121: 90.61287703 | M121: =IF(A121>$B$30,NA(),IF(A121>$A$8,"",OFFSET(InputIndexData!$F$15,CalculationsAndCharts!$A121+$A$11,IF($C$5,8,0),1,1))) -> 13.74 | N121: -30.85052843 | O121: 12.99342105 | P121: -31.81023248 | Q121: 63.21795268 | R121: 276.08 | S121: 4 | T121: 291.82 | U121: 1 | V121: 5.701246016 | W121: -1.010897128 | X121: -26.68081186 | Y121: -5.681391138 | Z121: 285.853 | AA121: FALSE | AB121: FALSE | AC121: FALSE | AD121: FALSE | AE121: 433.3905 | AG121: TRUE | AH121: 0 | AI121: FALSE | AJ121: FALSE | AK121: FALSE | AL121: 0 | AM121: 90.16 | AW121: 313042000
A122: 90 | B122: =IF(A122>$B$30,NA(),IF($A122>$A$8,"",OFFSET(InputPriceData!$B$15,$A122+$A$11,0,1,1))) -> 2019-09-02 | C122: =IF(A122>$B$30,NA(),IF($A122>$A$8,"",OFFSET(InputPriceData!$G$15,CalculationsAndCharts!$A122+$A$11,IF($C$5,8,0),1,1))) -> 248831100 | D122: =IF(A122>$B$30,NA(),IF(A122>$A$8,"",OFFSET(InputPriceData!$C$15,CalculationsAndCharts!$A122+$A$11,IF($C$5,8,0),1,1))) -> 281.62 | E122: =IF(A122>$B$30,NA(),IF(A122>$A$8,"",OFFSET(InputPriceData!$D$15,CalculationsAndCharts!$A122+$A$11,IF($C$5,8,0),1,1))) -> 289.63 | F122: =IF(A122>$B$30,NA(),IF(A122>$A$8,"",OFFSET(InputPriceData!$E$15,CalculationsAndCharts!$A122+$A$11,IF($C$5,8,0),1,1))) -> 280.36 | G122: =IF(A122>$B$30,NA(),IF(A122>$A$8,"",OFFSET(InputPriceData!$F$15,CalculationsAndCharts!$A122+$A$11,IF($C$5,8,0),1,1))) -> 288.87 | H122: 9.264660495 | I122: 9.495983281 | J122: 85.21061602 | K122: 65.7068654 | L122: 68.32683864 | M122: =IF(A122>$B$30,NA(),IF(A122>$A$8,"",OFFSET(InputIndexData!$F$15,CalculationsAndCharts!$A122+$A$11,IF($C$5,8,0),1,1))) -> 15 | N122: -24.50931052 | O122: 23.35526316 | P122: -17.96153831 | Q122: 96.36596875 | R122: 276.08 | S122: 3 | T122: 288.87 | U122: 1 | V122: 4.632715155 | W122: -1.879738291 | X122: -41.70309803 | Y122: -5.681391138 | Z122: 285.598 | AA122: FALSE | AB122: FALSE | AC122: FALSE | AD122: FALSE | AE122: 433.3905 | AG122: TRUE | AH122: 0 | AI122: FALSE | AJ122: FALSE | AK122: FALSE | AL122: 0 | AM122: 90.16 | AW122: 248831100
A123: 91 | B123: =IF(A123>$B$30,NA(),IF($A123>$A$8,"",OFFSET(InputPriceData!$B$15,$A123+$A$11,0,1,1))) -> 2019-08-26 | C123: =IF(A123>$B$30,NA(),IF($A123>$A$8,"",OFFSET(InputPriceData!$G$15,CalculationsAndCharts!$A123+$A$11,IF($C$5,8,0),1,1))) -> 319590000 | D123: =IF(A123>$B$30,NA(),IF(A123>$A$8,"",OFFSET(InputPriceData!$C$15,CalculationsAndCharts!$A123+$A$11,IF($C$5,8,0),1,1))) -> 278.42 | E123: =IF(A123>$B$30,NA(),IF(A123>$A$8,"",OFFSET(InputPriceData!$D$15,CalculationsAndCharts!$A123+$A$11,IF($C$5,8,0),1,1))) -> 285.18 | F123: =IF(A123>$B$30,NA(),IF(A123>$A$8,"",OFFSET(InputPriceData!$E$15,CalculationsAndCharts!$A123+$A$11,IF($C$5,8,0),1,1))) -> 276.46 | G123: =IF(A123>$B$30,NA(),IF(A123>$A$8,"",OFFSET(InputPriceData!$F$15,CalculationsAndCharts!$A123+$A$11,IF($C$5,8,0),1,1))) -> 283.44 | H123: 9.216604953 | I123: 9.721966562 | J123: 80.86681276 | K123: 55.63459801 | L123: 48.40475056 | M123: =IF(A123>$B$30,NA(),IF(A123>$A$8,"",OFFSET(InputIndexData!$F$15,CalculationsAndCharts!$A123+$A$11,IF($C$5,8,0),1,1))) -> 18.98 | N123: -4.479114243 | O123: 56.08552632 | P123: -16.00920539 | Q123: 101.039042 | R123: 276.08 | S123: 2 | T123: 283.44 | U123: 1 | V123: 2.665893944 | W123: -2.596669489 | X123: -25.60052071 | Y123: -5.681391138 | Z123: 285.109 | AA123: FALSE | AB123: FALSE | AC123: FALSE | AD123: FALSE | AE123: 433.3905 | AG123: TRUE | AH123: 0 | AI123: FALSE | AJ123: FALSE | AK123: FALSE | AL123: 0 | AM123: 90.16 | AW123: 319590000
A124: 92 | B124: =IF(A124>$B$30,NA(),IF($A124>$A$8,"",OFFSET(InputPriceData!$B$15,$A124+$A$11,0,1,1))) -> 2019-08-19 | C124: =IF(A124>$B$30,NA(),IF($A124>$A$8,"",OFFSET(InputPriceData!$G$15,CalculationsAndCharts!$A124+$A$11,IF($C$5,8,0),1,1))) -> 355520800 | D124: =IF(A124>$B$30,NA(),IF(A124>$A$8,"",OFFSET(InputPriceData!$C$15,CalculationsAndCharts!$A124+$A$11,IF($C$5,8,0),1,1))) -> 283.19 | E124: =IF(A124>$B$30,NA(),IF(A124>$A$8,"",OFFSET(InputPriceData!$D$15,CalculationsAndCharts!$A124+$A$11,IF($C$5,8,0),1,1))) -> 284.88 | F124: =IF(A124>$B$30,NA(),IF(A124>$A$8,"",OFFSET(InputPriceData!$E$15,CalculationsAndCharts!$A124+$A$11,IF($C$5,8,0),1,1))) -> 274.74 | G124: =IF(A124>$B$30,NA(),IF(A124>$A$8,"",OFFSET(InputPriceData!$F$15,CalculationsAndCharts!$A124+$A$11,IF($C$5,8,0),1,1))) -> 276.08 | H124: 10.26604953 | I124: 10.34393312 | J124: 80.47723399 | K124: 54.73125565 | L124: 36.21586441 | M124: =IF(A124>$B$30,NA(),IF(A124>$A$8,"",OFFSET(InputIndexData!$F$15,CalculationsAndCharts!$A124+$A$11,IF($C$5,8,0),1,1))) -> 19.87 | N124: 6.199893105 | O124: 63.40460526 | P124: -10.6358619 | Q124: 113.9005923 | R124: 276.08 | S124: 1 | T124: 283.61 | U124: 4 | V124: 1.401767604 | W124: -2.655054476 | X124: -14.50188732 | Y124: -5.681391138 | Z124: 285.122 | AA124: FALSE | AB124: FALSE | AC124: FALSE | AD124: FALSE | AE124: 433.3905 | AG124: TRUE | AH124: 0 | AI124: FALSE | AJ124: FALSE | AK124: FALSE | AL124: 0 | AM124: 90.16 | AX124: 355520800
A125: 93 | B125: =IF(A125>$B$30,NA(),IF($A125>$A$8,"",OFFSET(InputPriceData!$B$15,$A125+$A$11,0,1,1))) -> 2019-08-12 | C125: =IF(A125>$B$30,NA(),IF($A125>$A$8,"",OFFSET(InputPriceData!$G$15,CalculationsAndCharts!$A125+$A$11,IF($C$5,8,0),1,1))) -> 478024400 | D125: =IF(A125>$B$30,NA(),IF(A125>$A$8,"",OFFSET(InputPriceData!$C$15,CalculationsAndCharts!$A125+$A$11,IF($C$5,8,0),1,1))) -> 281.03 | E125: =IF(A125>$B$30,NA(),IF(A125>$A$8,"",OFFSET(InputPriceData!$D$15,CalculationsAndCharts!$A125+$A$11,IF($C$5,8,0),1,1))) -> 285.09 | F125: =IF(A125>$B$30,NA(),IF(A125>$A$8,"",OFFSET(InputPriceData!$E$15,CalculationsAndCharts!$A125+$A$11,IF($C$5,8,0),1,1))) -> 273.69 | G125: =IF(A125>$B$30,NA(),IF(A125>$A$8,"",OFFSET(InputPriceData!$F$15,CalculationsAndCharts!$A125+$A$11,IF($C$5,8,0),1,1))) -> 279.95 | H125: 11.40049532 | I125: 10.54786625 | J125: 84.14414414 | K125: 63.23396567 | L125: 32.87628308 | M125: =IF(A125>$B$30,NA(),IF(A125>$A$8,"",OFFSET(InputIndexData!$F$15,CalculationsAndCharts!$A125+$A$11,IF($C$5,8,0),1,1))) -> 18.47 | N125: -1.282736505 | O125: 51.89144737 | P125: -8.874026466 | Q125: 128.7433831 | R125: 279.95 | S125: 1 | T125: 292.71 | U125: 4 | V125: 0.9608858725 | W125: -4.359263435 | X125: 15.51160084 | Y125: -4.687233098 | Z125: 285.413 | AA125: FALSE | AB125: FALSE | AC125: FALSE | AD125: FALSE | AE125: 433.3905 | AG125: TRUE | AH125: 0 | AI125: FALSE | AJ125: FALSE | AK125: FALSE | AL125: 0 | AM125: 90.16 | AX125: 478024400
A126: 94 | B126: =IF(A126>$B$30,NA(),IF($A126>$A$8,"",OFFSET(InputPriceData!$B$15,$A126+$A$11,0,1,1))) -> 2019-08-05 | C126: =IF(A126>$B$30,NA(),IF($A126>$A$8,"",OFFSET(InputPriceData!$G$15,CalculationsAndCharts!$A126+$A$11,IF($C$5,8,0),1,1))) -> 621473300 | D126: =IF(A126>$B$30,NA(),IF(A126>$A$8,"",OFFSET(InputPriceData!$C$15,CalculationsAndCharts!$A126+$A$11,IF($C$5,8,0),1,1))) -> 279.22 | E126: =IF(A126>$B$30,NA(),IF(A126>$A$8,"",OFFSET(InputPriceData!$D$15,CalculationsAndCharts!$A126+$A$11,IF($C$5,8,0),1,1))) -> 284.58 | F126: =IF(A126>$B$30,NA(),IF(A126>$A$8,"",OFFSET(InputPriceData!$E$15,CalculationsAndCharts!$A126+$A$11,IF($C$5,8,0),1,1))) -> 273.04 | G126: =IF(A126>$B$30,NA(),IF(A126>$A$8,"",OFFSET(InputPriceData!$F$15,CalculationsAndCharts!$A126+$A$11,IF($C$5,8,0),1,1))) -> 282.64 | H126: 11.40495322 | I126: 9.695732496 | J126: 90.35792549 | K126: 77.64227642 | L126: 53.42940034 | M126: =IF(A126>$B$30,NA(),IF(A126>$A$8,"",OFFSET(InputIndexData!$F$15,CalculationsAndCharts!$A126+$A$11,IF($C$5,8,0),1,1))) -> 17.97 | N126: -3.955104222 | O126: 47.77960526 | P126: -16.23584884 | Q126: 143.4618109 | R126: 282.64 | S126: 1 | T126: 292.71 | U126: 3 | V126: 0.343192754 | W126: -3.440265109 | X126: 50.17512864 | Y126: -5.216767449 | Z126: 285.162 | AA126: FALSE | AB126: FALSE | AC126: FALSE | AD126: FALSE | AE126: 433.3905 | AG126: TRUE | AH126: 0 | AI126: FALSE | AJ126: FALSE | AK126: FALSE | AL126: 0 | AM126: 90.16 | AW126: 621473300
A127: 95 | B127: =IF(A127>$B$30,NA(),IF($A127>$A$8,"",OFFSET(InputPriceData!$B$15,$A127+$A$11,0,1,1))) -> 2019-07-29 | C127: =IF(A127>$B$30,NA(),IF($A127>$A$8,"",OFFSET(InputPriceData!$G$15,CalculationsAndCharts!$A127+$A$11,IF($C$5,8,0),1,1))) -> 447617000 | D127: =IF(A127>$B$30,NA(),IF(A127>$A$8,"",OFFSET(InputPriceData!$C$15,CalculationsAndCharts!$A127+$A$11,IF($C$5,8,0),1,1))) -> 292.58 | E127: =IF(A127>$B$30,NA(),IF(A127>$A$8,"",OFFSET(InputPriceData!$D$15,CalculationsAndCharts!$A127+$A$11,IF($C$5,8,0),1,1))) -> 292.71 | F127: =IF(A127>$B$30,NA(),IF(A127>$A$8,"",OFFSET(InputPriceData!$E$15,CalculationsAndCharts!$A127+$A$11,IF($C$5,8,0),1,1))) -> 281.94 | G127: =IF(A127>$B$30,NA(),IF(A127>$A$8,"",OFFSET(InputPriceData!$F$15,CalculationsAndCharts!$A127+$A$11,IF($C$5,8,0),1,1))) -> 283.61 | H127: 10.18953215 | I127: 7.851464993 | J127: 93.46462106 | K127: 84.75268543 | L127: 51.2722148 | M127: =IF(A127>$B$30,NA(),IF(A127>$A$8,"",OFFSET(InputIndexData!$F$15,CalculationsAndCharts!$A127+$A$11,IF($C$5,8,0),1,1))) -> 17.61 | N127: -5.879208979 | O127: 45.65756824 | P127: -32.16899283 | Q127: 111.9216865 | R127: 283.61 | S127: 1 | T127: 292.71 | U127: 2 | V127: 3.208631572 | W127: -3.108879095 | X127: 8.16384317 | Y127: -9.29589013 | Z127: 283.448 | AA127: FALSE | AB127: FALSE | AC127: FALSE | AD127: FALSE | AE127: 433.3905 | AG127: TRUE | AH127: 0 | AI127: FALSE | AJ127: FALSE | AK127: FALSE | AL127: 0 | AM127: 90.16 | AX127: 447617000
A128: 96 | B128: =IF(A128>$B$30,NA(),IF($A128>$A$8,"",OFFSET(InputPriceData!$B$15,$A128+$A$11,0,1,1))) -> 2019-07-22 | C128: =IF(A128>$B$30,NA(),IF($A128>$A$8,"",OFFSET(InputPriceData!$G$15,CalculationsAndCharts!$A128+$A$11,IF($C$5,8,0),1,1))) -> 235894000 | D128: =IF(A128>$B$30,NA(),IF(A128>$A$8,"",OFFSET(InputPriceData!$C$15,CalculationsAndCharts!$A128+$A$11,IF($C$5,8,0),1,1))) -> 288.44 | E128: =IF(A128>$B$30,NA(),IF(A128>$A$8,"",OFFSET(InputPriceData!$D$15,CalculationsAndCharts!$A128+$A$11,IF($C$5,8,0),1,1))) -> 292.92 | F128: =IF(A128>$B$30,NA(),IF(A128>$A$8,"",OFFSET(InputPriceData!$E$15,CalculationsAndCharts!$A128+$A$11,IF($C$5,8,0),1,1))) -> 287.89 | G128: =IF(A128>$B$30,NA(),IF(A128>$A$8,"",OFFSET(InputPriceData!$F$15,CalculationsAndCharts!$A128+$A$11,IF($C$5,8,0),1,1))) -> 292.71 | H128: 4.96532154 | I128: 4.932929986 | J128: 97.95854298 | K128: 95.17033163 | L128: 79.27064801 | M128: =IF(A128>$B$30,NA(),IF(A128>$A$8,"",OFFSET(InputIndexData!$F$15,CalculationsAndCharts!$A128+$A$11,IF($C$5,8,0),1,1))) -> 12.16 | N128: -35.0080171 | O128: 1.248959201 | P128: -57.38303494 | Q128: 33.14646921 | R128: 288.02 | S128: 2 | T128: 292.71 | U128: 1 | V128: 1.628359142 | W128: -1.602268457 | X128: -42.99769307 | Y128: -9.29589013 | Z128: 282.361 | AA128: FALSE | AB128: FALSE | AC128: FALSE | AD128: FALSE | AE128: 433.3905 | AG128: TRUE | AH128: 0 | AI128: FALSE | AJ128: FALSE | AK128: FALSE | AL128: 0 | AM128: 90.16 | AW128: 235894000
A129: 97 | B129: =IF(A129>$B$30,NA(),IF($A129>$A$8,"",OFFSET(InputPriceData!$B$15,$A129+$A$11,0,1,1))) -> 2019-07-15 | C129: =IF(A129>$B$30,NA(),IF($A129>$A$8,"",OFFSET(InputPriceData!$G$15,CalculationsAndCharts!$A129+$A$11,IF($C$5,8,0),1,1))) -> 216657600 | D129: =IF(A129>$B$30,NA(),IF(A129>$A$8,"",OFFSET(InputPriceData!$C$15,CalculationsAndCharts!$A129+$A$11,IF($C$5,8,0),1,1))) -> 291.86 | E129: =IF(A129>$B$30,NA(),IF(A129>$A$8,"",OFFSET(InputPriceData!$D$15,CalculationsAndCharts!$A129+$A$11,IF($C$5,8,0),1,1))) -> 291.86 | F129: =IF(A129>$B$30,NA(),IF(A129>$A$8,"",OFFSET(InputPriceData!$E$15,CalculationsAndCharts!$A129+$A$11,IF($C$5,8,0),1,1))) -> 287.56 | G129: =IF(A129>$B$30,NA(),IF(A129>$A$8,"",OFFSET(InputPriceData!$F$15,CalculationsAndCharts!$A129+$A$11,IF($C$5,8,0),1,1))) -> 288.02 | H129: 4.383215398 | I129: 4.835859972 | J129: 97.88173347 | K129: 94.96250604 | L129: 79.25064172 | M129: =IF(A129>$B$30,NA(),IF(A129>$A$8,"",OFFSET(InputIndexData!$F$15,CalculationsAndCharts!$A129+$A$11,IF($C$5,8,0),1,1))) -> 14.45 | N129: -22.76857296 | O129: 20.316403 | P129: -58.22165001 | Q129: 30.52641791 | R129: 283.98 | S129: 4 | T129: 291.39 | U129: 2 | V129: 2.609338686 | W129: -1.156525619 | X129: -47.86897155 | Y129: -8.884999485 | Z129: 280.66 | AA129: FALSE | AB129: FALSE | AC129: FALSE | AD129: FALSE | AE129: 433.3905 | AG129: TRUE | AH129: 0 | AI129: FALSE | AJ129: FALSE | AK129: FALSE | AL129: 0 | AM129: 90.16 | AX129: 216657600
A130: 98 | B130: =IF(A130>$B$30,NA(),IF($A130>$A$8,"",OFFSET(InputPriceData!$B$15,$A130+$A$11,0,1,1))) -> 2019-07-08 | C130: =IF(A130>$B$30,NA(),IF($A130>$A$8,"",OFFSET(InputPriceData!$G$15,CalculationsAndCharts!$A130+$A$11,IF($C$5,8,0),1,1))) -> 236543700 | D130: =IF(A130>$B$30,NA(),IF(A130>$A$8,"",OFFSET(InputPriceData!$C$15,CalculationsAndCharts!$A130+$A$11,IF($C$5,8,0),1,1))) -> 287.86 | E130: =IF(A130>$B$30,NA(),IF(A130>$A$8,"",OFFSET(InputPriceData!$D$15,CalculationsAndCharts!$A130+$A$11,IF($C$5,8,0),1,1))) -> 291.47 | F130: =IF(A130>$B$30,NA(),IF(A130>$A$8,"",OFFSET(InputPriceData!$E$15,CalculationsAndCharts!$A130+$A$11,IF($C$5,8,0),1,1))) -> 286.38 | G130: =IF(A130>$B$30,NA(),IF(A130>$A$8,"",OFFSET(InputPriceData!$F$15,CalculationsAndCharts!$A130+$A$11,IF($C$5,8,0),1,1))) -> 291.39 | H130: 5.132153984 | I130: 5.371719944 | J130: 98.79721553 | K130: 96.76539109 | L130: 91.27787374 | M130: =IF(A130>$B$30,NA(),IF(A130>$A$8,"",OFFSET(InputIndexData!$F$15,CalculationsAndCharts!$A130+$A$11,IF($C$5,8,0),1,1))) -> 12.39 | N130: -33.77872795 | O130: 3.164029975 | P130: -53.59220548 | Q130: 44.99000516 | R130: 283.57 | S130: 4 | T130: 291.39 | U130: 1 | V130: 2.757696512 | W130: -0.7275472734 | X130: -43.08408126 | Y130: -8.884999485 | Z130: 279.646 | AA130: FALSE | AB130: FALSE | AC130: FALSE | AD130: FALSE | AE130: 433.3905 | AG130: TRUE | AH130: 0 | AI130: FALSE | AJ130: FALSE | AK130: FALSE | AL130: 0 | AM130: 90.16 | AW130: 236543700
A131: 99 | B131: =IF(A131>$B$30,NA(),IF($A131>$A$8,"",OFFSET(InputPriceData!$B$15,$A131+$A$11,0,1,1))) -> 2019-07-01 | C131: =IF(A131>$B$30,NA(),IF($A131>$A$8,"",OFFSET(InputPriceData!$G$15,CalculationsAndCharts!$A131+$A$11,IF($C$5,8,0),1,1))) -> 232786300 | D131: =IF(A131>$B$30,NA(),IF(A131>$A$8,"",OFFSET(InputPriceData!$C$15,CalculationsAndCharts!$A131+$A$11,IF($C$5,8,0),1,1))) -> 287.54 | E131: =IF(A131>$B$30,NA(),IF(A131>$A$8,"",OFFSET(InputPriceData!$D$15,CalculationsAndCharts!$A131+$A$11,IF($C$5,8,0),1,1))) -> 289.62 | F131: =IF(A131>$B$30,NA(),IF(A131>$A$8,"",OFFSET(InputPriceData!$E$15,CalculationsAndCharts!$A131+$A$11,IF($C$5,8,0),1,1))) -> 285.26 | G131: =IF(A131>$B$30,NA(),IF(A131>$A$8,"",OFFSET(InputPriceData!$F$15,CalculationsAndCharts!$A131+$A$11,IF($C$5,8,0),1,1))) -> 289.27 | H131: 5.511539839 | I131: 5.653439888 | J131: 97.63023244 | K131: 93.55534479 | L131: 88.23790306 | M131: =IF(A131>$B$30,NA(),IF(A131>$A$8,"",OFFSET(InputIndexData!$F$15,CalculationsAndCharts!$A131+$A$11,IF($C$5,8,0),1,1))) -> 13.28 | N131: -29.02191342 | O131: 10.57452123 | P131: -51.15834791 | Q131: 52.59400845 | R131: 278.99 | S131: 4 | T131: 289.27 | U131: 1 | V131: 3.684719882 | W131: -1.828741314 | X131: -44.23532846 | Y131: -8.217236492 | Z131: 278.866 | AA131: FALSE | AB131: FALSE | AC131: FALSE | AD131: FALSE | AE131: 433.3905 | AG131: TRUE | AH131: 0 | AI131: FALSE | AJ131: FALSE | AK131: FALSE | AL131: 0 | AM131: 90.16 | AW131: 232786300
A132: 100 | B132: =IF(A132>$B$30,NA(),IF($A132>$A$8,"",OFFSET(InputPriceData!$B$15,$A132+$A$11,0,1,1))) -> 2019-06-24 | C132: =IF(A132>$B$30,NA(),IF($A132>$A$8,"",OFFSET(InputPriceData!$G$15,CalculationsAndCharts!$A132+$A$11,IF($C$5,8,0),1,1))) -> 280902400 | D132: =IF(A132>$B$30,NA(),IF(A132>$A$8,"",OFFSET(InputPriceData!$C$15,CalculationsAndCharts!$A132+$A$11,IF($C$5,8,0),1,1))) -> 285.17 | E132: =IF(A132>$B$30,NA(),IF(A132>$A$8,"",OFFSET(InputPriceData!$D$15,CalculationsAndCharts!$A132+$A$11,IF($C$5,8,0),1,1))) -> 285.51 | F132: =IF(A132>$B$30,NA(),IF(A132>$A$8,"",OFFSET(InputPriceData!$E$15,CalculationsAndCharts!$A132+$A$11,IF($C$5,8,0),1,1))) -> 281.41 | G132: =IF(A132>$B$30,NA(),IF(A132>$A$8,"",OFFSET(InputPriceData!$F$15,CalculationsAndCharts!$A132+$A$11,IF($C$5,8,0),1,1))) -> 283.98 | H132: 4.355398393 | I132: 5.666879775 | J132: 94.75981462 | K132: 85.31908333 | L132: 85.42111097 | M132: =IF(A132>$B$30,NA(),IF(A132>$A$8,"",OFFSET(InputIndexData!$F$15,CalculationsAndCharts!$A132+$A$11,IF($C$5,8,0),1,1))) -> 15.08 | N132: -19.40138963 | O132: 25.56203164 | P132: -51.04223695 | Q132: 52.95676924 | R132: 277.44 | S132: 4 | T132: 283.98 | U132: 1 | V132: 2.357266436 | W132: -0.1443763645 | X132: -32.8892633 | Y132: -6.507500528 | Z132: 278.239 | AA132: FALSE | AB132: FALSE | AC132: FALSE | AD132: FALSE | AE132: 433.3905 | AG132: TRUE | AH132: 0 | AI132: FALSE | AJ132: FALSE | AK132: FALSE | AL132: 0 | AM132: 90.16 | AX132: 280902400
A133: 101 | B133: =IF(A133>$B$30,NA(),IF($A133>$A$8,"",OFFSET(InputPriceData!$B$15,$A133+$A$11,0,1,1))) -> 2019-06-17 | C133: =IF(A133>$B$30,NA(),IF($A133>$A$8,"",OFFSET(InputPriceData!$G$15,CalculationsAndCharts!$A133+$A$11,IF($C$5,8,0),1,1))) -> 403194400 | D133: =IF(A133>$B$30,NA(),IF(A133>$A$8,"",OFFSET(InputPriceData!$C$15,CalculationsAndCharts!$A133+$A$11,IF($C$5,8,0),1,1))) -> 279.24 | E133: =IF(A133>$B$30,NA(),IF(A133>$A$8,"",OFFSET(InputPriceData!$D$15,CalculationsAndCharts!$A133+$A$11,IF($C$5,8,0),1,1))) -> 285.79 | F133: =IF(A133>$B$30,NA(),IF(A133>$A$8,"",OFFSET(InputPriceData!$E$15,CalculationsAndCharts!$A133+$A$11,IF($C$5,8,0),1,1))) -> 278.92 | G133: =IF(A133>$B$30,NA(),IF(A133>$A$8,"",OFFSET(InputPriceData!$F$15,CalculationsAndCharts!$A133+$A$11,IF($C$5,8,0),1,1))) -> 283.57 | H133: 6.653983932 | I133: 7.23375955 | J133: 91.8332648 | K133: 77.75732843 | L133: 90.24395869 | M133: =IF(A133>$B$30,NA(),IF(A133>$A$8,"",OFFSET(InputIndexData!$F$15,CalculationsAndCharts!$A133+$A$11,IF($C$5,8,0),1,1))) -> 15.4 | N133: -17.69107429 | O133: 28.22647794 | P133: -37.50552331 | Q133: 95.24897901 | R133: 265.5 | S133: 4 | T133: 283.57 | U133: 1 | V133: 6.806026365 | W133: -1.615121487 | X133: -3.704587096 | Y133: -6.378927325 | Z133: 277.814 | AA133: FALSE | AB133: FALSE | AC133: FALSE | AD133: FALSE | AE133: 433.3905 | AG133: TRUE | AH133: 0 | AI133: FALSE | AJ133: FALSE | AK133: FALSE | AL133: 0 | AM133: 90.16 | AW133: 403194400
A134: 102 | B134: =IF(A134>$B$30,NA(),IF($A134>$A$8,"",OFFSET(InputPriceData!$B$15,$A134+$A$11,0,1,1))) -> 2019-06-10 | C134: =IF(A134>$B$30,NA(),IF($A134>$A$8,"",OFFSET(InputPriceData!$G$15,CalculationsAndCharts!$A134+$A$11,IF($C$5,8,0),1,1))) -> 267806600 | D134: =IF(A134>$B$30,NA(),IF(A134>$A$8,"",OFFSET(InputPriceData!$C$15,CalculationsAndCharts!$A134+$A$11,IF($C$5,8,0),1,1))) -> 279.1 | E134: =IF(A134>$B$30,NA(),IF(A134>$A$8,"",OFFSET(InputPriceData!$D$15,CalculationsAndCharts!$A134+$A$11,IF($C$5,8,0),1,1))) -> 281.06 | F134: =IF(A134>$B$30,NA(),IF(A134>$A$8,"",OFFSET(InputPriceData!$E$15,CalculationsAndCharts!$A134+$A$11,IF($C$5,8,0),1,1))) -> 277.6 | G134: =IF(A134>$B$30,NA(),IF(A134>$A$8,"",OFFSET(InputPriceData!$F$15,CalculationsAndCharts!$A134+$A$11,IF($C$5,8,0),1,1))) -> 278.99 | H134: 4.709839317 | I134: 7.597519101 | J134: 82.49736155 | K134: 53.41086017 | L134: 60.28985623 | M134: =IF(A134>$B$30,NA(),IF(A134>$A$8,"",OFFSET(InputIndexData!$F$15,CalculationsAndCharts!$A134+$A$11,IF($C$5,8,0),1,1))) -> 15.28 | N134: -18.33244254 | O134: 27.22731057 | P134: -34.36290258 | Q134: 105.0673425 | R134: 265.5 | S134: 3 | T134: 278.99 | U134: 1 | V134: 5.080979284 | W134: -0.5555754687 | X134: -35.50326659 | Y134: -6.378927325 | Z134: 277.443 | AA134: FALSE | AB134: FALSE | AC134: FALSE | AD134: FALSE | AE134: 433.3905 | AG134: TRUE | AH134: 0 | AI134: FALSE | AJ134: FALSE | AK134: FALSE | AL134: 0 | AM134: 90.16 | AX134: 267806600
A135: 103 | B135: =IF(A135>$B$30,NA(),IF($A135>$A$8,"",OFFSET(InputPriceData!$B$15,$A135+$A$11,0,1,1))) -> 2019-06-03 | C135: =IF(A135>$B$30,NA(),IF($A135>$A$8,"",OFFSET(InputPriceData!$G$15,CalculationsAndCharts!$A135+$A$11,IF($C$5,8,0),1,1))) -> 388532200 | D135: =IF(A135>$B$30,NA(),IF(A135>$A$8,"",OFFSET(InputPriceData!$C$15,CalculationsAndCharts!$A135+$A$11,IF($C$5,8,0),1,1))) -> 265.54 | E135: =IF(A135>$B$30,NA(),IF(A135>$A$8,"",OFFSET(InputPriceData!$D$15,CalculationsAndCharts!$A135+$A$11,IF($C$5,8,0),1,1))) -> 278.6 | F135: =IF(A135>$B$30,NA(),IF(A135>$A$8,"",OFFSET(InputPriceData!$E$15,CalculationsAndCharts!$A135+$A$11,IF($C$5,8,0),1,1))) -> 263.4 | G135: =IF(A135>$B$30,NA(),IF(A135>$A$8,"",OFFSET(InputPriceData!$F$15,CalculationsAndCharts!$A135+$A$11,IF($C$5,8,0),1,1))) -> 277.44 | H135: 14.51839317 | I135: 11.5750382 | J135: 79.02571794 | K135: 44.98834499 | L135: 37.9640966 | M135: =IF(A135>$B$30,NA(),IF(A135>$A$8,"",OFFSET(InputIndexData!$F$15,CalculationsAndCharts!$A135+$A$11,IF($C$5,8,0),1,1))) -> 16.3 | N135: -12.8808124 | O135: 35.72023314 | P135: 36.81584011 | Q135: 212.4259764 | R135: 265.5 | S135: 2 | T135: 277.44 | U135: 1 | V135: 4.497175141 | W135: -4.303633218 | X135: -7.400623352 | Y135: -6.378927325 | Z135: 277.377 | AA135: FALSE | AB135: FALSE | AC135: FALSE | AD135: FALSE | AE135: 433.3905 | AG135: TRUE | AH135: 0 | AI135: FALSE | AJ135: FALSE | AK135: FALSE | AL135: 0 | AM135: 90.16 | AW135: 388532200
A136: 104 | B136: =IF(A136>$B$30,NA(),IF($A136>$A$8,"",OFFSET(InputPriceData!$B$15,$A136+$A$11,0,1,1))) -> 2019-05-27 | C136: =IF(A136>$B$30,NA(),IF($A136>$A$8,"",OFFSET(InputPriceData!$G$15,CalculationsAndCharts!$A136+$A$11,IF($C$5,8,0),1,1))) -> 324388900 | D136: =IF(A136>$B$30,NA(),IF(A136>$A$8,"",OFFSET(InputPriceData!$C$15,CalculationsAndCharts!$A136+$A$11,IF($C$5,8,0),1,1))) -> 273.04 | E136: =IF(A136>$B$30,NA(),IF(A136>$A$8,"",OFFSET(InputPriceData!$D$15,CalculationsAndCharts!$A136+$A$11,IF($C$5,8,0),1,1))) -> 274.07 | F136: =IF(A136>$B$30,NA(),IF(A136>$A$8,"",OFFSET(InputPriceData!$E$15,CalculationsAndCharts!$A136+$A$11,IF($C$5,8,0),1,1))) -> 265.47 | G136: =IF(A136>$B$30,NA(),IF(A136>$A$8,"",OFFSET(InputPriceData!$F$15,CalculationsAndCharts!$A136+$A$11,IF($C$5,8,0),1,1))) -> 265.5 | H136: 8.383931729 | I136: 7.950076403 | J136: 78.05921235 | K136: 43.62177404 | L136: 20.31011866 | M136: =IF(A136>$B$30,NA(),IF(A136>$A$8,"",OFFSET(InputIndexData!$F$15,CalculationsAndCharts!$A136+$A$11,IF($C$5,8,0),1,1))) -> 18.71 | N136: 13.5315534 | O136: 55.7868443 | P136: -6.030860275 | Q136: 114.5833422 | R136: 265.5 | S136: 1 | T136: 277.88 | U136: 4 | V136: 2.72693032 | W136: -4.455160501 | X136: -22.35811602 | Y136: -6.378927325 | Z136: 276.878 | AA136: FALSE | AB136: FALSE | AC136: FALSE | AD136: FALSE | AE136: 433.3905 | AG136: TRUE | AH136: 0 | AI136: FALSE | AJ136: FALSE | AK136: FALSE | AL136: 0 | AM136: 90.16 | AX136: 324388900
A137: 105 | B137: =IF(A137>$B$30,NA(),IF($A137>$A$8,"",OFFSET(InputPriceData!$B$15,$A137+$A$11,0,1,1))) -> 2019-05-20 | C137: =IF(A137>$B$30,NA(),IF($A137>$A$8,"",OFFSET(InputPriceData!$G$15,CalculationsAndCharts!$A137+$A$11,IF($C$5,8,0),1,1))) -> 313209100 | D137: =IF(A137>$B$30,NA(),IF(A137>$A$8,"",OFFSET(InputPriceData!$C$15,CalculationsAndCharts!$A137+$A$11,IF($C$5,8,0),1,1))) -> 273.98 | E137: =IF(A137>$B$30,NA(),IF(A137>$A$8,"",OFFSET(InputPriceData!$D$15,CalculationsAndCharts!$A137+$A$11,IF($C$5,8,0),1,1))) -> 276.75 | F137: =IF(A137>$B$30,NA(),IF(A137>$A$8,"",OFFSET(InputPriceData!$E$15,CalculationsAndCharts!$A137+$A$11,IF($C$5,8,0),1,1))) -> 270.61 | G137: =IF(A137>$B$30,NA(),IF(A137>$A$8,"",OFFSET(InputPriceData!$F$15,CalculationsAndCharts!$A137+$A$11,IF($C$5,8,0),1,1))) -> 272.74 | H137: 6.439317292 | I137: 7.300152807 | J137: 84.93584403 | K137: 63.21172818 | L137: 35.53648113 | M137: =IF(A137>$B$30,NA(),IF(A137>$A$8,"",OFFSET(InputIndexData!$F$15,CalculationsAndCharts!$A137+$A$11,IF($C$5,8,0),1,1))) -> 15.85 | N137: -3.822815534 | O137: 31.97335554 | P137: -13.71289478 | Q137: 97.04102303 | R137: 272.74 | S137: 1 | T137: 283.59 | U137: 4 | V137: 1.085282687 | W137: -3.825945908 | X137: -24.1212167 | Y137: -5.024859833 | Z137: 277.262 | AA137: FALSE | AB137: FALSE | AC137: FALSE | AD137: FALSE | AE137: 433.3905 | AG137: TRUE | AH137: 0 | AI137: FALSE | AJ137: FALSE | AK137: FALSE | AL137: 0 | AM137: 90.16 | AX137: 313209100
A138: 106 | B138: =IF(A138>$B$30,NA(),IF($A138>$A$8,"",OFFSET(InputPriceData!$B$15,$A138+$A$11,0,1,1))) -> 2019-05-13 | C138: =IF(A138>$B$30,NA(),IF($A138>$A$8,"",OFFSET(InputPriceData!$G$15,CalculationsAndCharts!$A138+$A$11,IF($C$5,8,0),1,1))) -> 455352700 | D138: =IF(A138>$B$30,NA(),IF(A138>$A$8,"",OFFSET(InputPriceData!$C$15,CalculationsAndCharts!$A138+$A$11,IF($C$5,8,0),1,1))) -> 272.4 | E138: =IF(A138>$B$30,NA(),IF(A138>$A$8,"",OFFSET(InputPriceData!$D$15,CalculationsAndCharts!$A138+$A$11,IF($C$5,8,0),1,1))) -> 278.95 | F138: =IF(A138>$B$30,NA(),IF(A138>$A$8,"",OFFSET(InputPriceData!$E$15,CalculationsAndCharts!$A138+$A$11,IF($C$5,8,0),1,1))) -> 269.99 | G138: =IF(A138>$B$30,NA(),IF(A138>$A$8,"",OFFSET(InputPriceData!$F$15,CalculationsAndCharts!$A138+$A$11,IF($C$5,8,0),1,1))) -> 275.7 | H138: 9.133172917 | I138: 8.460305614 | J138: 90.96261734 | K138: 79.41891301 | L138: 56.87388598 | M138: =IF(A138>$B$30,NA(),IF(A138>$A$8,"",OFFSET(InputIndexData!$F$15,CalculationsAndCharts!$A138+$A$11,IF($C$5,8,0),1,1))) -> 15.96 | N138: -3.155339806 | O138: 32.88925895 | P138: -0.2834560341 | Q138: 128.3551204 | R138: 275.7 | S138: 1 | T138: 283.59 | U138: 3 | V138: 0.7907145448 | W138: -2.78218555 | X138: 10.31483072 | Y138: -5.024859833 | Z138: 277.002 | AA138: FALSE | AB138: FALSE | AC138: FALSE | AD138: FALSE | AE138: 433.3905 | AG138: TRUE | AH138: 0 | AI138: FALSE | AJ138: FALSE | AK138: FALSE | AL138: 0 | AM138: 90.16 | AW138: 455352700
A139: 107 | B139: =IF(A139>$B$30,NA(),IF($A139>$A$8,"",OFFSET(InputPriceData!$B$15,$A139+$A$11,0,1,1))) -> 2019-05-06 | C139: =IF(A139>$B$30,NA(),IF($A139>$A$8,"",OFFSET(InputPriceData!$G$15,CalculationsAndCharts!$A139+$A$11,IF($C$5,8,0),1,1))) -> 559396700 | D139: =IF(A139>$B$30,NA(),IF(A139>$A$8,"",OFFSET(InputPriceData!$C$15,CalculationsAndCharts!$A139+$A$11,IF($C$5,8,0),1,1))) -> 278.98 | E139: =IF(A139>$B$30,NA(),IF(A139>$A$8,"",OFFSET(InputPriceData!$D$15,CalculationsAndCharts!$A139+$A$11,IF($C$5,8,0),1,1))) -> 282.9 | F139: =IF(A139>$B$30,NA(),IF(A139>$A$8,"",OFFSET(InputPriceData!$E$15,CalculationsAndCharts!$A139+$A$11,IF($C$5,8,0),1,1))) -> 272.28 | G139: =IF(A139>$B$30,NA(),IF(A139>$A$8,"",OFFSET(InputPriceData!$F$15,CalculationsAndCharts!$A139+$A$11,IF($C$5,8,0),1,1))) -> 277.88 | H139: 10.69172917 | I139: 7.960611228 | J139: 95.79976432 | K139: 90.97066914 | L139: 76.71548947 | M139: =IF(A139>$B$30,NA(),IF(A139>$A$8,"",OFFSET(InputIndexData!$F$15,CalculationsAndCharts!$A139+$A$11,IF($C$5,8,0),1,1))) -> 16.04 | N139: -7.921928817 | O139: 33.55537052 | P139: -6.173053822 | Q139: 114.8676914 | R139: 277.88 | S139: 1 | T139: 283.59 | U139: 2 | V139: 2.054843817 | W139: -2.013470151 | X139: 35.52077822 | Y139: -7.063013505 | Z139: 275.788 | AA139: FALSE | AB139: FALSE | AC139: FALSE | AD139: FALSE | AE139: 433.3905 | AG139: TRUE | AH139: 0 | AI139: FALSE | AJ139: FALSE | AK139: FALSE | AL139: 0 | AM139: 90.16 | AX139: 559396700
A140: 108 | B140: =IF(A140>$B$30,NA(),IF($A140>$A$8,"",OFFSET(InputPriceData!$B$15,$A140+$A$11,0,1,1))) -> 2019-04-29 | C140: =IF(A140>$B$30,NA(),IF($A140>$A$8,"",OFFSET(InputPriceData!$G$15,CalculationsAndCharts!$A140+$A$11,IF($C$5,8,0),1,1))) -> 331555200 | D140: =IF(A140>$B$30,NA(),IF(A140>$A$8,"",OFFSET(InputPriceData!$C$15,CalculationsAndCharts!$A140+$A$11,IF($C$5,8,0),1,1))) -> 283.09 | E140: =IF(A140>$B$30,NA(),IF(A140>$A$8,"",OFFSET(InputPriceData!$D$15,CalculationsAndCharts!$A140+$A$11,IF($C$5,8,0),1,1))) -> 284.48 | F140: =IF(A140>$B$30,NA(),IF(A140>$A$8,"",OFFSET(InputPriceData!$E$15,CalculationsAndCharts!$A140+$A$11,IF($C$5,8,0),1,1))) -> 279.24 | G140: =IF(A140>$B$30,NA(),IF(A140>$A$8,"",OFFSET(InputPriceData!$F$15,CalculationsAndCharts!$A140+$A$11,IF($C$5,8,0),1,1))) -> 283.59 | H140: 5.12729167 | I140: 4.611222455 | J140: 98.66516061 | K140: 97.7317903 | L140: 88.061944 | M140: =IF(A140>$B$30,NA(),IF(A140>$A$8,"",OFFSET(InputIndexData!$F$15,CalculationsAndCharts!$A140+$A$11,IF($C$5,8,0),1,1))) -> 12.87 | N140: -27.69662921 | O140: 7.160699417 | P140: -54.15104072 | Q140: 24.46314674 | R140: 279.73 | S140: 3 | T140: 283.59 | U140: 1 | V140: 1.379902048 | W140: -0.2080468282 | X140: -19.67664678 | Y140: -7.063013505 | Z140: 274.928 | AA140: FALSE | AB140: FALSE | AC140: FALSE | AD140: FALSE | AE140: 433.3905 | AG140: TRUE | AH140: 0 | AI140: FALSE | AJ140: FALSE | AK140: FALSE | AL140: 0 | AM140: 90.16 | AW140: 331555200
A141: 109 | B141: =IF(A141>$B$30,NA(),IF($A141>$A$8,"",OFFSET(InputPriceData!$B$15,$A141+$A$11,0,1,1))) -> 2019-04-22 | C141: =IF(A141>$B$30,NA(),IF($A141>$A$8,"",OFFSET(InputPriceData!$G$15,CalculationsAndCharts!$A141+$A$11,IF($C$5,8,0),1,1))) -> 251486900 | D141: =IF(A141>$B$30,NA(),IF(A141>$A$8,"",OFFSET(InputPriceData!$C$15,CalculationsAndCharts!$A141+$A$11,IF($C$5,8,0),1,1))) -> 278.91 | E141: =IF(A141>$B$30,NA(),IF(A141>$A$8,"",OFFSET(InputPriceData!$D$15,CalculationsAndCharts!$A141+$A$11,IF($C$5,8,0),1,1))) -> 283.07 | F141: =IF(A141>$B$30,NA(),IF(A141>$A$8,"",OFFSET(InputPriceData!$E$15,CalculationsAndCharts!$A141+$A$11,IF($C$5,8,0),1,1))) -> 278.81 | G141: =IF(A141>$B$30,NA(),IF(A141>$A$8,"",OFFSET(InputPriceData!$F$15,CalculationsAndCharts!$A141+$A$11,IF($C$5,8,0),1,1))) -> 283 | H141: 4.112916703 | I141: 3.982444911 | J141: 98.97995721 | K141: 98.36839226 | L141: 92.14902612 | M141: =IF(A141>$B$30,NA(),IF(A141>$A$8,"",OFFSET(InputIndexData!$F$15,CalculationsAndCharts!$A141+$A$11,IF($C$5,8,0),1,1))) -> 12.73 | N141: -30.01649258 | O141: 5.995004163 | P141: -60.40291781 | Q141: 7.491588211 | R141: 278.33 | S141: 4 | T141: 283 | U141: 1 | V141: 1.677864406 | W141: -1.155477032 | X141: -39.03022204 | Y141: -6.869257951 | Z141: 273.374 | AA141: FALSE | AB141: FALSE | AC141: FALSE | AD141: FALSE | AE141: 433.3905 | AG141: TRUE | AH141: 0 | AI141: FALSE | AJ141: FALSE | AK141: FALSE | AL141: 0 | AM141: 90.16 | AW141: 251486900
A142: 110 | B142: =IF(A142>$B$30,NA(),IF($A142>$A$8,"",OFFSET(InputPriceData!$B$15,$A142+$A$11,0,1,1))) -> 2019-04-15 | C142: =IF(A142>$B$30,NA(),IF($A142>$A$8,"",OFFSET(InputPriceData!$G$15,CalculationsAndCharts!$A142+$A$11,IF($C$5,8,0),1,1))) -> 228726700 | D142: =IF(A142>$B$30,NA(),IF(A142>$A$8,"",OFFSET(InputPriceData!$C$15,CalculationsAndCharts!$A142+$A$11,IF($C$5,8,0),1,1))) -> 279.94 | E142: =IF(A142>$B$30,NA(),IF(A142>$A$8,"",OFFSET(InputPriceData!$D$15,CalculationsAndCharts!$A142+$A$11,IF($C$5,8,0),1,1))) -> 281.09 | F142: =IF(A142>$B$30,NA(),IF(A142>$A$8,"",OFFSET(InputPriceData!$E$15,CalculationsAndCharts!$A142+$A$11,IF($C$5,8,0),1,1))) -> 278.42 | G142: =IF(A142>$B$30,NA(),IF(A142>$A$8,"",OFFSET(InputPriceData!$F$15,CalculationsAndCharts!$A142+$A$11,IF($C$5,8,0),1,1))) -> 279.73 | H142: 2.789167027 | I142: 3.704889822 | J142: 98.05812114 | K142: 98.39457229 | L142: 92.31658097 | M142: =IF(A142>$B$30,NA(),IF(A142>$A$8,"",OFFSET(InputIndexData!$F$15,CalculationsAndCharts!$A142+$A$11,IF($C$5,8,0),1,1))) -> 12.09 | N142: -43.45182413 | O142: 0.6661115737 | P142: -70.9413124 | Q142: -14.15713444 | R142: 272.45 | S142: 4 | T142: 279.86 | U142: 2 | V142: 2.719765095 | W142: -0.04645179733 | X142: -45.35489216 | Y142: -5.824340742 | Z142: 271.709 | AA142: FALSE | AB142: FALSE | AC142: FALSE | AD142: FALSE | AE142: 433.3905 | AG142: TRUE | AH142: 0 | AI142: FALSE | AJ142: FALSE | AK142: FALSE | AL142: 0 | AM142: 90.16 | AX142: 228726700
A143: 111 | B143: =IF(A143>$B$30,NA(),IF($A143>$A$8,"",OFFSET(InputPriceData!$B$15,$A143+$A$11,0,1,1))) -> 2019-04-08 | C143: =IF(A143>$B$30,NA(),IF($A143>$A$8,"",OFFSET(InputPriceData!$G$15,CalculationsAndCharts!$A143+$A$11,IF($C$5,8,0),1,1))) -> 297131000 | D143: =IF(A143>$B$30,NA(),IF(A143>$A$8,"",OFFSET(InputPriceData!$C$15,CalculationsAndCharts!$A143+$A$11,IF($C$5,8,0),1,1))) -> 277.88 | E143: =IF(A143>$B$30,NA(),IF(A143>$A$8,"",OFFSET(InputPriceData!$D$15,CalculationsAndCharts!$A143+$A$11,IF($C$5,8,0),1,1))) -> 280.16 | F143: =IF(A143>$B$30,NA(),IF(A143>$A$8,"",OFFSET(InputPriceData!$E$15,CalculationsAndCharts!$A143+$A$11,IF($C$5,8,0),1,1))) -> 276.52 | G143: =IF(A143>$B$30,NA(),IF(A143>$A$8,"",OFFSET(InputPriceData!$F$15,CalculationsAndCharts!$A143+$A$11,IF($C$5,8,0),1,1))) -> 279.86 | H143: 3.861670272 | I143: 4.739779644 | J143: 94.36304784 | K143: 97.97530469 | L143: 90.91741146 | M143: =IF(A143>$B$30,NA(),IF(A143>$A$8,"",OFFSET(InputIndexData!$F$15,CalculationsAndCharts!$A143+$A$11,IF($C$5,8,0),1,1))) -> 12.01 | N143: -57.62173606 | O143: -6.31825273 | P143: -71.15055385 | Q143: 9.821421494 | R143: 269.34 | S143: 4 | T143: 279.86 | U143: 1 | V143: 3.905843915 | W143: -0.5467019224 | X143: -29.01241728 | Y143: -7.192882155 | Z143: 269.709 | AA143: FALSE | AB143: FALSE | AC143: FALSE | AD143: FALSE | AE143: 433.3905 | AG143: TRUE | AH143: 0 | AI143: FALSE | AJ143: FALSE | AK143: FALSE | AL143: 0 | AM143: 90.16 | AW143: 297131000
A144: 112 | B144: =IF(A144>$B$30,NA(),IF($A144>$A$8,"",OFFSET(InputPriceData!$B$15,$A144+$A$11,0,1,1))) -> 2019-04-01 | C144: =IF(A144>$B$30,NA(),IF($A144>$A$8,"",OFFSET(InputPriceData!$G$15,CalculationsAndCharts!$A144+$A$11,IF($C$5,8,0),1,1))) -> 293550700 | D144: =IF(A144>$B$30,NA(),IF(A144>$A$8,"",OFFSET(InputPriceData!$C$15,CalculationsAndCharts!$A144+$A$11,IF($C$5,8,0),1,1))) -> 274.6 | E144: =IF(A144>$B$30,NA(),IF(A144>$A$8,"",OFFSET(InputPriceData!$D$15,CalculationsAndCharts!$A144+$A$11,IF($C$5,8,0),1,1))) -> 278.39 | F144: =IF(A144>$B$30,NA(),IF(A144>$A$8,"",OFFSET(InputPriceData!$E$15,CalculationsAndCharts!$A144+$A$11,IF($C$5,8,0),1,1))) -> 274.31 | G144: =IF(A144>$B$30,NA(),IF(A144>$A$8,"",OFFSET(InputPriceData!$F$15,CalculationsAndCharts!$A144+$A$11,IF($C$5,8,0),1,1))) -> 278.33 | H144: 5.856702716 | I144: 5.839559287 | J144: 88.17766558 | K144: 94.46638673 | L144: 77.56039047 | M144: =IF(A144>$B$30,NA(),IF(A144>$A$8,"",OFFSET(InputIndexData!$F$15,CalculationsAndCharts!$A144+$A$11,IF($C$5,8,0),1,1))) -> 12.82 | N144: -57.42278313 | O144: -0.4658385093 | P144: -64.45656469 | Q144: 35.30348456 | R144: 269.34 | S144: 3 | T144: 278.33 | U144: 1 | V144: 3.337788669 | W144: -2.112600151 | X144: -30.23427339 | Y144: -6.826429059 | Z144: 267.656 | AA144: FALSE | AB144: FALSE | AC144: FALSE | AD144: FALSE | AE144: 433.3905 | AG144: TRUE | AH144: 0 | AI144: FALSE | AJ144: FALSE | AK144: FALSE | AL144: 0 | AM144: 90.16 | AW144: 293550700
A145: 113 | B145: =IF(A145>$B$30,NA(),IF($A145>$A$8,"",OFFSET(InputPriceData!$B$15,$A145+$A$11,0,1,1))) -> 2019-03-25 | C145: =IF(A145>$B$30,NA(),IF($A145>$A$8,"",OFFSET(InputPriceData!$G$15,CalculationsAndCharts!$A145+$A$11,IF($C$5,8,0),1,1))) -> 364351100 | D145: =IF(A145>$B$30,NA(),IF(A145>$A$8,"",OFFSET(InputPriceData!$C$15,CalculationsAndCharts!$A145+$A$11,IF($C$5,8,0),1,1))) -> 268.97 | E145: =IF(A145>$B$30,NA(),IF(A145>$A$8,"",OFFSET(InputPriceData!$D$15,CalculationsAndCharts!$A145+$A$11,IF($C$5,8,0),1,1))) -> 272.8 | F145: =IF(A145>$B$30,NA(),IF(A145>$A$8,"",OFFSET(InputPriceData!$E$15,CalculationsAndCharts!$A145+$A$11,IF($C$5,8,0),1,1))) -> 267.79 | G145: =IF(A145>$B$30,NA(),IF(A145>$A$8,"",OFFSET(InputPriceData!$F$15,CalculationsAndCharts!$A145+$A$11,IF($C$5,8,0),1,1))) -> 272.45 | H145: 5.107027164 | I145: 5.739118574 | J145: 83.25519894 | K145: 93.78322445 | L145: 74.19258436 | M145: =IF(A145>$B$30,NA(),IF(A145>$A$8,"",OFFSET(InputIndexData!$F$15,CalculationsAndCharts!$A145+$A$11,IF($C$5,8,0),1,1))) -> 13.71 | N145: -54.4669545 | O145: 6.444099379 | P145: -65.06791356 | Q145: 32.97625783 | R145: 263.56 | S145: 4 | T145: 272.45 | U145: 1 | V145: 3.373045986 | W145: -1.141493852 | X145: -13.69264647 | Y145: -8.045397226 | Z145: 265.345 | AA145: FALSE | AB145: FALSE | AC145: FALSE | AD145: FALSE | AE145: 433.3905 | AG145: TRUE | AH145: 0 | AI145: FALSE | AJ145: FALSE | AK145: FALSE | AL145: 0 | AM145: 90.16 | AW145: 364351100
A146: 114 | B146: =IF(A146>$B$30,NA(),IF($A146>$A$8,"",OFFSET(InputPriceData!$B$15,$A146+$A$11,0,1,1))) -> 2019-03-18 | C146: =IF(A146>$B$30,NA(),IF($A146>$A$8,"",OFFSET(InputPriceData!$G$15,CalculationsAndCharts!$A146+$A$11,IF($C$5,8,0),1,1))) -> 439286800 | D146: =IF(A146>$B$30,NA(),IF(A146>$A$8,"",OFFSET(InputPriceData!$C$15,CalculationsAndCharts!$A146+$A$11,IF($C$5,8,0),1,1))) -> 271.56 | E146: =IF(A146>$B$30,NA(),IF(A146>$A$8,"",OFFSET(InputPriceData!$D$15,CalculationsAndCharts!$A146+$A$11,IF($C$5,8,0),1,1))) -> 275.06 | F146: =IF(A146>$B$30,NA(),IF(A146>$A$8,"",OFFSET(InputPriceData!$E$15,CalculationsAndCharts!$A146+$A$11,IF($C$5,8,0),1,1))) -> 269.27 | G146: =IF(A146>$B$30,NA(),IF(A146>$A$8,"",OFFSET(InputPriceData!$F$15,CalculationsAndCharts!$A146+$A$11,IF($C$5,8,0),1,1))) -> 269.34 | H146: 5.980271637 | I146: 6.468237149 | J146: 77.91200865 | K146: 90.37306177 | L146: 56.14798699 | M146: =IF(A146>$B$30,NA(),IF(A146>$A$8,"",OFFSET(InputIndexData!$F$15,CalculationsAndCharts!$A146+$A$11,IF($C$5,8,0),1,1))) -> 16.48 | N146: -45.26735304 | O146: 27.95031056 | P146: -60.63001377 | Q146: 49.87004706 | R146: 263.56 | S146: 3 | T146: 270.14 | U146: 2 | V146: 2.496585218 | W146: -0.2961427408 | X146: 2.396217616 | Y146: -8.045397226 | Z146: 263.688 | AA146: FALSE | AB146: FALSE | AC146: FALSE | AD146: FALSE | AE146: 433.3905 | AG146: TRUE | AH146: 0 | AI146: FALSE | AJ146: FALSE | AK146: FALSE | AL146: 0 | AM146: 90.16 | AX146: 439286800
A147: 115 | B147: =IF(A147>$B$30,NA(),IF($A147>$A$8,"",OFFSET(InputPriceData!$B$15,$A147+$A$11,0,1,1))) -> 2019-03-11 | C147: =IF(A147>$B$30,NA(),IF($A147>$A$8,"",OFFSET(InputPriceData!$G$15,CalculationsAndCharts!$A147+$A$11,IF($C$5,8,0),1,1))) -> 374233000 | D147: =IF(A147>$B$30,NA(),IF(A147>$A$8,"",OFFSET(InputPriceData!$C$15,CalculationsAndCharts!$A147+$A$11,IF($C$5,8,0),1,1))) -> 264.33 | E147: =IF(A147>$B$30,NA(),IF(A147>$A$8,"",OFFSET(InputPriceData!$D$15,CalculationsAndCharts!$A147+$A$11,IF($C$5,8,0),1,1))) -> 271.16 | F147: =IF(A147>$B$30,NA(),IF(A147>$A$8,"",OFFSET(InputPriceData!$E$15,CalculationsAndCharts!$A147+$A$11,IF($C$5,8,0),1,1))) -> 264.3 | G147: =IF(A147>$B$30,NA(),IF(A147>$A$8,"",OFFSET(InputPriceData!$F$15,CalculationsAndCharts!$A147+$A$11,IF($C$5,8,0),1,1))) -> 270.14 | H147: 7.692716367 | I147: 7.146474297 | J147: 77.87594663 | K147: 93.51423114 | L147: 67.66888897 | M147: =IF(A147>$B$30,NA(),IF(A147>$A$8,"",OFFSET(InputIndexData!$F$15,CalculationsAndCharts!$A147+$A$11,IF($C$5,8,0),1,1))) -> 12.88 | N147: -57.22351378 | O147: -4.663212435 | P147: -56.50181214 | Q147: 65.58490584 | R147: 263.56 | S147: 2 | T147: 270.14 | U147: 1 | V147: 2.496585218 | W147: -2.435774043 | X147: -12.76759578 | Y147: -10.39812646 | Z147: 261.623 | AA147: FALSE | AB147: FALSE | AC147: FALSE | AD147: FALSE | AE147: 433.3905 | AG147: TRUE | AH147: 0 | AI147: FALSE | AJ147: FALSE | AK147: FALSE | AL147: 0 | AM147: 90.16 | AW147: 374233000
A148: 116 | B148: =IF(A148>$B$30,NA(),IF($A148>$A$8,"",OFFSET(InputPriceData!$B$15,$A148+$A$11,0,1,1))) -> 2019-03-04 | C148: =IF(A148>$B$30,NA(),IF($A148>$A$8,"",OFFSET(InputPriceData!$G$15,CalculationsAndCharts!$A148+$A$11,IF($C$5,8,0),1,1))) -> 421329900 | D148: =IF(A148>$B$30,NA(),IF(A148>$A$8,"",OFFSET(InputPriceData!$C$15,CalculationsAndCharts!$A148+$A$11,IF($C$5,8,0),1,1))) -> 270.41 | E148: =IF(A148>$B$30,NA(),IF(A148>$A$8,"",OFFSET(InputPriceData!$D$15,CalculationsAndCharts!$A148+$A$11,IF($C$5,8,0),1,1))) -> 270.67 | F148: =IF(A148>$B$30,NA(),IF(A148>$A$8,"",OFFSET(InputPriceData!$E$15,CalculationsAndCharts!$A148+$A$11,IF($C$5,8,0),1,1))) -> 261.6 | G148: =IF(A148>$B$30,NA(),IF(A148>$A$8,"",OFFSET(InputPriceData!$F$15,CalculationsAndCharts!$A148+$A$11,IF($C$5,8,0),1,1))) -> 263.56 | H148: 8.527163668 | I148: 6.692948595 | J148: 76.61978603 | K148: 94.08258461 | L148: 70.59303467 | M148: =IF(A148>$B$30,NA(),IF(A148>$A$8,"",OFFSET(InputIndexData!$F$15,CalculationsAndCharts!$A148+$A$11,IF($C$5,8,0),1,1))) -> 16.05 | N148: -46.69545002 | O148: 18.80088823 | P148: -59.26227071 | Q148: 55.07664574 | R148: 263.56 | S148: 1 | T148: 269.28 | U148: 2 | V148: 2.170283806 | W148: -2.124183007 | X148: -3.208092529 | Y148: -12.67879661 | Z148: 258.845 | AA148: FALSE | AB148: FALSE | AC148: FALSE | AD148: FALSE | AE148: 433.3905 | AG148: TRUE | AH148: 0 | AI148: FALSE | AJ148: FALSE | AK148: FALSE | AL148: 0 | AM148: 90.16 | AX148: 421329900
A149: 117 | B149: =IF(A149>$B$30,NA(),IF($A149>$A$8,"",OFFSET(InputPriceData!$B$15,$A149+$A$11,0,1,1))) -> 2019-02-25 | C149: =IF(A149>$B$30,NA(),IF($A149>$A$8,"",OFFSET(InputPriceData!$G$15,CalculationsAndCharts!$A149+$A$11,IF($C$5,8,0),1,1))) -> 330945200 | D149: =IF(A149>$B$30,NA(),IF(A149>$A$8,"",OFFSET(InputPriceData!$C$15,CalculationsAndCharts!$A149+$A$11,IF($C$5,8,0),1,1))) -> 269.58 | E149: =IF(A149>$B$30,NA(),IF(A149>$A$8,"",OFFSET(InputPriceData!$D$15,CalculationsAndCharts!$A149+$A$11,IF($C$5,8,0),1,1))) -> 270.14 | F149: =IF(A149>$B$30,NA(),IF(A149>$A$8,"",OFFSET(InputPriceData!$E$15,CalculationsAndCharts!$A149+$A$11,IF($C$5,8,0),1,1))) -> 266.46 | G149: =IF(A149>$B$30,NA(),IF(A149>$A$8,"",OFFSET(InputPriceData!$F$15,CalculationsAndCharts!$A149+$A$11,IF($C$5,8,0),1,1))) -> 269.28 | H149: 3.64163668 | I149: 4.315897189 | J149: 78.29667027 | K149: 98.17151095 | L149: 96.63424501 | M149: =IF(A149>$B$30,NA(),IF(A149>$A$8,"",OFFSET(InputIndexData!$F$15,CalculationsAndCharts!$A149+$A$11,IF($C$5,8,0),1,1))) -> 13.57 | N149: -54.93191631 | O149: 0.44411547 | P149: -73.73058393 | Q149: -12.84175272 | R149: 259.73 | S149: 4 | T149: 269.28 | U149: 1 | V149: 3.676895237 | W149: -0.4567736185 | X149: -23.97212451 | Y149: -14.28211133 | Z149: 256.28 | AA149: FALSE | AB149: FALSE | AC149: FALSE | AD149: FALSE | AE149: 433.3905 | AG149: TRUE | AH149: 0 | AI149: FALSE | AJ149: FALSE | AK149: FALSE | AL149: 0 | AM149: 90.16 | AX149: 330945200
A150: 118 | B150: =IF(A150>$B$30,NA(),IF($A150>$A$8,"",OFFSET(InputPriceData!$B$15,$A150+$A$11,0,1,1))) -> 2019-02-18 | C150: =IF(A150>$B$30,NA(),IF($A150>$A$8,"",OFFSET(InputPriceData!$G$15,CalculationsAndCharts!$A150+$A$11,IF($C$5,8,0),1,1))) -> 278060900 | D150: =IF(A150>$B$30,NA(),IF(A150>$A$8,"",OFFSET(InputPriceData!$C$15,CalculationsAndCharts!$A150+$A$11,IF($C$5,8,0),1,1))) -> 265.5 | E150: =IF(A150>$B$30,NA(),IF(A150>$A$8,"",OFFSET(InputPriceData!$D$15,CalculationsAndCharts!$A150+$A$11,IF($C$5,8,0),1,1))) -> 268.26 | F150: =IF(A150>$B$30,NA(),IF(A150>$A$8,"",OFFSET(InputPriceData!$E$15,CalculationsAndCharts!$A150+$A$11,IF($C$5,8,0),1,1))) -> 265.37 | G150: =IF(A150>$B$30,NA(),IF(A150>$A$8,"",OFFSET(InputPriceData!$F$15,CalculationsAndCharts!$A150+$A$11,IF($C$5,8,0),1,1))) -> 268.05 | H150: 3.2963668 | I150: 4.951794379 | J150: 72.55679769 | K150: 92.17192068 | L150: 91.53631017 | M150: =IF(A150>$B$30,NA(),IF(A150>$A$8,"",OFFSET(InputIndexData!$F$15,CalculationsAndCharts!$A150+$A$11,IF($C$5,8,0),1,1))) -> 13.51 | N150: -55.13118565 | O150: -9.389671362 | P150: -69.8600914 | Q150: -28.61946565 | R150: 259.33 | S150: 4 | T150: 268.05 | U150: 1 | V150: 3.362511086 | W150: -0.6342100354 | X150: -36.47907886 | Y150: -17.20410737 | Z150: 252.332 | AA150: FALSE | AB150: FALSE | AC150: FALSE | AD150: FALSE | AE150: 433.3905 | AG150: TRUE | AH150: 0 | AI150: FALSE | AJ150: FALSE | AK150: FALSE | AL150: 0 | AM150: 90.16 | AW150: 278060900
A151: 119 | B151: =IF(A151>$B$30,NA(),IF($A151>$A$8,"",OFFSET(InputPriceData!$B$15,$A151+$A$11,0,1,1))) -> 2019-02-11 | C151: =IF(A151>$B$30,NA(),IF($A151>$A$8,"",OFFSET(InputPriceData!$G$15,CalculationsAndCharts!$A151+$A$11,IF($C$5,8,0),1,1))) -> 385891900 | D151: =IF(A151>$B$30,NA(),IF(A151>$A$8,"",OFFSET(InputPriceData!$C$15,CalculationsAndCharts!$A151+$A$11,IF($C$5,8,0),1,1))) -> 260.43 | E151: =IF(A151>$B$30,NA(),IF(A151>$A$8,"",OFFSET(InputPriceData!$D$15,CalculationsAndCharts!$A151+$A$11,IF($C$5,8,0),1,1))) -> 266.39 | F151: =IF(A151>$B$30,NA(),IF(A151>$A$8,"",OFFSET(InputPriceData!$E$15,CalculationsAndCharts!$A151+$A$11,IF($C$5,8,0),1,1))) -> 259.3 | G151: =IF(A151>$B$30,NA(),IF(A151>$A$8,"",OFFSET(InputPriceData!$F$15,CalculationsAndCharts!$A151+$A$11,IF($C$5,8,0),1,1))) -> 266.35 | H151: 6.953667996 | I151: 7.013588758 | J151: 67.31578315 | K151: 85.40153141 | L151: 89.5864902 | M151: =IF(A151>$B$30,NA(),IF(A151>$A$8,"",OFFSET(InputIndexData!$F$15,CalculationsAndCharts!$A151+$A$11,IF($C$5,8,0),1,1))) -> 14.91 | N151: -50.48156759 | O151: -5.152671756 | P151: -57.31064177 | Q151: 1.101474516 | R151: 255.22 | S151: 4 | T151: 266.35 | U151: 1 | V151: 4.3609435 | W151: -2.485451474 | X151: -12.50964885 | Y151: -17.20410737 | Z151: 250.394 | AA151: FALSE | AB151: FALSE | AC151: FALSE | AD151: FALSE | AE151: 433.3905 | AG151: TRUE | AH151: 0 | AI151: FALSE | AJ151: FALSE | AK151: FALSE | AL151: 0 | AM151: 90.16 | AW151: 385891900
A152: 120 | B152: =IF(A152>$B$30,NA(),IF($A152>$A$8,"",OFFSET(InputPriceData!$B$15,$A152+$A$11,0,1,1))) -> 2019-02-04 | C152: =IF(A152>$B$30,NA(),IF($A152>$A$8,"",OFFSET(InputPriceData!$G$15,CalculationsAndCharts!$A152+$A$11,IF($C$5,8,0),1,1))) -> 369916300 | D152: =IF(A152>$B$30,NA(),IF(A152>$A$8,"",OFFSET(InputPriceData!$C$15,CalculationsAndCharts!$A152+$A$11,IF($C$5,8,0),1,1))) -> 259.38 | E152: =IF(A152>$B$30,NA(),IF(A152>$A$8,"",OFFSET(InputPriceData!$D$15,CalculationsAndCharts!$A152+$A$11,IF($C$5,8,0),1,1))) -> 262.58 | F152: =IF(A152>$B$30,NA(),IF(A152>$A$8,"",OFFSET(InputPriceData!$E$15,CalculationsAndCharts!$A152+$A$11,IF($C$5,8,0),1,1))) -> 257.19 | G152: =IF(A152>$B$30,NA(),IF(A152>$A$8,"",OFFSET(InputPriceData!$F$15,CalculationsAndCharts!$A152+$A$11,IF($C$5,8,0),1,1))) -> 259.73 | H152: 5.726679958 | I152: 6.937177515 | J152: 60.6262772 | K152: 76.39930319 | L152: 87.043203 | M152: =IF(A152>$B$30,NA(),IF(A152>$A$8,"",OFFSET(InputIndexData!$F$15,CalculationsAndCharts!$A152+$A$11,IF($C$5,8,0),1,1))) -> 15.72 | N152: -47.79143142 | O152: -2.602230483 | P152: -57.77573133 | Q152: -12.50559722 | R152: 255.22 | S152: 3 | T152: 259.73 | U152: 1 | V152: 1.767102892 | W152: -0.1540060832 | X152: -17.02542374 | Y152: -17.20410737 | Z152: 248.922 | AA152: FALSE | AB152: FALSE | AC152: FALSE | AD152: FALSE | AE152: 433.3905 | AG152: TRUE | AH152: 0 | AI152: FALSE | AJ152: FALSE | AK152: FALSE | AL152: 0 | AM152: 90.16 | AW152: 369916300
